Workbook

Sheet Home
B1: =uxb_works!$B$92 -> Global Platform for Sustainable Cities | C1: =uxb_works!$B$92 -> Global Platform for Sustainable Cities | BA1: 0 | BB1: 0
D22: Zoom | O22: Full screen
D23: Select a zoom level appropriate for your display. | O23: To maximise the viewing area, click for Full-Screen mode.
O24: Press Escape to return to normal display mode.
D26: Selected zoom will be applied to all worksheets.

Sheet Map
A1: =uxb_works!$B$92 -> Global Platform for Sustainable Cities | BA1: 1 | BB1: 0 | BC1: 1 | BD1: 2 | BF1: 1 | BG1: 2
BC2: 2 | BD2: 0
A6: =uxb_works!$C$5 -> The active weight profile has been changed from it's default setting
A11: =uxb_works!$G$21 -> 6) INCLUSIVITY AND QUALITY OF LIFE
A12: =iIndiRank!$F$2 -> 6.4) Health and Well-Being | AG12: =A12 -> 6.4) Health and Well-Being
B28: =IF(uxb_works!$B$6=1,"SELECT COUNTRY","SELECTED U27CITY") -> SELECTED U27CITY
B33: =iMap_Rank!C9 -> Melaka
B43: =uxb_works!J19 -> 0
B44: =iMap_Rank!AJ17 -> 3 | E44: =iMap_Rank!AK17 -> 2 | H44: =iMap_Rank!AL17 -> 1 | K44: =iMap_Rank!AM17 -> 0 | N44: =iMap_Rank!AN17 -> 0
A45: =MAX(A46,D46,G46,J46,M46) -> 3 | B45: =iMap_Rank!AP14 -> SCORE | E45: =iMap_Rank!AS14 -> SCORE | H45: =iMap_Rank!AV14 -> SCORE | K45: =iMap_Rank!AY14 -> SCORE | N45: =iMap_Rank!BB14 -> SCORE
A46: =COUNTIF(A47:A51,"<>0") -> 3 | B46: =iMap_Rank!AP15 -> Yes | D46: =COUNTIF(D47:D51,"<>0") -> 2 | E46: =iMap_Rank!AS15 -> Somewhat | G46: =COUNTIF(G47:G51,"<>0") -> 0 | H46: =iMap_Rank!AV15 -> No | J46: =COUNTIF(J47:J51,"<>0") -> 0 | K46: =iMap_Rank!AY15 -> 0 | M46: =COUNTIF(M47:M51,"<>0") -> 0 | N46: =iMap_Rank!BB15 -> 0 | AA46: =B46 -> Yes | AB46: =E46 -> Somewhat | AC46: =H46 -> No | AD46: =K46 -> 0 | AE46: =N46 -> 0
A47: =iMap_Rank!AO19 -> 1 | B47: =iMap_Rank!AP19 -> Lisbon | C47: =iMap_Rank!AQ19 -> 100 | D47: =iMap_Rank!AR19 -> 1 | E47: =iMap_Rank!AS19 -> Izmir | F47: =iMap_Rank!AT19 -> 50 | G47: =iMap_Rank!AU19 -> 0 | H47: =iMap_Rank!AV19 ->  | I47: =iMap_Rank!AW19 ->  | J47: =iMap_Rank!AX19 -> 0 | K47: =iMap_Rank!AY19 ->  | L47: =iMap_Rank!AZ19 ->  | M47: =iMap_Rank!BA19 -> 0 | N47: =iMap_Rank!BB19 ->  | O47: =iMap_Rank!BC19 -> 
A48: =iMap_Rank!AO20 -> 1 | B48: =iMap_Rank!AP20 -> Recife | C48: =iMap_Rank!AQ20 -> 100 | D48: =iMap_Rank!AR20 -> 3 | E48: =iMap_Rank!AS20 -> Melaka | F48: =iMap_Rank!AT20 -> 50 | G48: =iMap_Rank!AU20 -> 0 | H48: =iMap_Rank!AV20 ->  | I48: =iMap_Rank!AW20 ->  | J48: =iMap_Rank!AX20 -> 0 | K48: =iMap_Rank!AY20 ->  | L48: =iMap_Rank!AZ20 ->  | M48: =iMap_Rank!BA20 -> 0 | N48: =iMap_Rank!BB20 ->  | O48: =iMap_Rank!BC20 -> 
A49: =iMap_Rank!AO21 -> 1 | B49: =iMap_Rank!AP21 -> Singapore | C49: =iMap_Rank!AQ21 -> 100 | D49: =iMap_Rank!AR21 -> 0 | E49: =iMap_Rank!AS21 ->  | F49: =iMap_Rank!AT21 ->  | G49: =iMap_Rank!AU21 -> 0 | H49: =iMap_Rank!AV21 ->  | I49: =iMap_Rank!AW21 ->  | J49: =iMap_Rank!AX21 -> 0 | K49: =iMap_Rank!AY21 ->  | L49: =iMap_Rank!AZ21 ->  | M49: =iMap_Rank!BA21 -> 0 | N49: =iMap_Rank!BB21 ->  | O49: =iMap_Rank!BC21 -> 
A50: =iMap_Rank!AO22 -> 0 | B50: =iMap_Rank!AP22 ->  | C50: =iMap_Rank!AQ22 ->  | D50: =iMap_Rank!AR22 -> 0 | E50: =iMap_Rank!AS22 ->  | F50: =iMap_Rank!AT22 ->  | G50: =iMap_Rank!AU22 -> 0 | H50: =iMap_Rank!AV22 ->  | I50: =iMap_Rank!AW22 ->  | J50: =iMap_Rank!AX22 -> 0 | K50: =iMap_Rank!AY22 ->  | L50: =iMap_Rank!AZ22 ->  | M50: =iMap_Rank!BA22 -> 0 | N50: =iMap_Rank!BB22 ->  | O50: =iMap_Rank!BC22 -> 
A51: =iMap_Rank!AO23 -> 0 | B51: =iMap_Rank!AP23 ->  | C51: =iMap_Rank!AQ23 ->  | D51: =iMap_Rank!AR23 -> 0 | E51: =iMap_Rank!AS23 ->  | F51: =iMap_Rank!AT23 ->  | G51: =iMap_Rank!AU23 -> 0 | H51: =iMap_Rank!AV23 ->  | I51: =iMap_Rank!AW23 ->  | J51: =iMap_Rank!AX23 -> 0 | K51: =iMap_Rank!AY23 ->  | L51: =iMap_Rank!AZ23 ->  | M51: =iMap_Rank!BA23 -> 0 | N51: =iMap_Rank!BB23 ->  | O51: =iMap_Rank!BC23 -> 

Sheet Summary
A1: =uxb_works!B92 -> Global Platform for Sustainable Cities | BA1: 1 | BB1: 1
D6: =uxb_works!$C$5 -> The active weight profile has been changed from it's default setting
H11: 1
B13: =COUNTIF(B14:B19,"<>0") -> 5 | D13: =iSummary!R6 -> OVERVIEW | K13: =iSummary!AL6 -> 1) GOVERNANCE AND INTEGRATED URBAN PLANNING | R13: =iSummary!BF6 -> 2) FISCAL SUSTAINABILITY | Y13: =iSummary!BZ6 -> 3) URBAN ECONOMIES | AF13: =iSummary!CT6 -> 4) NATURAL ENVIRONMENT AND RESOURCES | AM13: =iSummary!DN6 -> 5) CLIMATE ACTION AND RESILIENCE | AT13: =iSummary!EH6 -> 6) INCLUSIVITY AND QUALITY OF LIFE
B14: =iSummary!Q8 -> 1 | C14: =IF(B14=0,0,IF(G14<=uxb_works!$B$122,1,IF(G14<=uxb_works!$B$121,2,IF(G14<=uxb_works!$B$120,3,4)))) -> 3 | F14: =iSummary!S8 -> Izmir | G14: =IF(ISNUMBER(iSummary!T8),ROUND(iSummary!T8,1),"") -> 71.3 | I14: =iSummary!AK8 -> 1 | J14: =IF(I14=0,0,IF(N14<=uxb_works!$B$122,1,IF(N14<=uxb_works!$B$121,2,IF(N14<=uxb_works!$B$120,3,4)))) -> 4 | M14: =iSummary!AM8 -> Izmir | N14: =iSummary!AN8 -> 77.8 | P14: =iSummary!BE8 -> 1 | Q14: =IF(P14=0,0,IF(U14<=uxb_works!$B$122,1,IF(U14<=uxb_works!$B$121,2,IF(U14<=uxb_works!$B$120,3,4)))) -> 4 | T14: =iSummary!BG8 -> Izmir | U14: =iSummary!BH8 -> 80 | W14: =iSummary!BY8 -> 1 | X14: =IF(W14=0,0,IF(AB14<=uxb_works!$B$122,1,IF(AB14<=uxb_works!$B$121,2,IF(AB14<=uxb_works!$B$120,3,4)))) -> 3 | AA14: =iSummary!CA8 -> Izmir | AB14: =iSummary!CB8 -> 60 | AD14: =iSummary!CS8 -> 1 | AE14: =IF(AD14=0,0,IF(AI14<=uxb_works!$B$122,1,IF(AI14<=uxb_works!$B$121,2,IF(AI14<=uxb_works!$B$120,3,4)))) -> 3 | AH14: =iSummary!CU8 -> Izmir | AI14: =iSummary!CV8 -> 70 | AK14: =iSummary!DM8 -> 1 | AL14: =IF(AK14=0,0,IF(AP14<=uxb_works!$B$122,1,IF(AP14<=uxb_works!$B$121,2,IF(AP14<=uxb_works!$B$120,3,4)))) -> 4 | AO14: =iSummary!DO8 -> Izmir | AP14: =iSummary!DP8 -> 90 | AR14: =iSummary!EG8 -> 1 | AS14: =IF(AR14=0,0,IF(AW14<=uxb_works!$B$122,1,IF(AW14<=uxb_works!$B$121,2,IF(AW14<=uxb_works!$B$120,3,4)))) -> 2 | AV14: =iSummary!EI8 -> Izmir | AW14: =iSummary!EJ8 -> 50
B15: =iSummary!Q9 -> 1 | C15: =IF(B15=0,0,IF(G15<=uxb_works!$B$122,1,IF(G15<=uxb_works!$B$121,2,IF(G15<=uxb_works!$B$120,3,4)))) -> 4 | F15: =iSummary!S9 -> Lisbon | G15: =IF(ISNUMBER(iSummary!T9),ROUND(iSummary!T9,1),"") -> 76.5 | I15: =iSummary!AK9 -> 1 | J15: =IF(I15=0,0,IF(N15<=uxb_works!$B$122,1,IF(N15<=uxb_works!$B$121,2,IF(N15<=uxb_works!$B$120,3,4)))) -> 4 | M15: =iSummary!AM9 -> Lisbon | N15: =iSummary!AN9 -> 88.9 | P15: =iSummary!BE9 -> 1 | Q15: =IF(P15=0,0,IF(U15<=uxb_works!$B$122,1,IF(U15<=uxb_works!$B$121,2,IF(U15<=uxb_works!$B$120,3,4)))) -> 3 | T15: =iSummary!BG9 -> Lisbon | U15: =iSummary!BH9 -> 70 | W15: =iSummary!BY9 -> 1 | X15: =IF(W15=0,0,IF(AB15<=uxb_works!$B$122,1,IF(AB15<=uxb_works!$B$121,2,IF(AB15<=uxb_works!$B$120,3,4)))) -> 3 | AA15: =iSummary!CA9 -> Lisbon | AB15: =iSummary!CB9 -> 70 | AD15: =iSummary!CS9 -> 1 | AE15: =IF(AD15=0,0,IF(AI15<=uxb_works!$B$122,1,IF(AI15<=uxb_works!$B$121,2,IF(AI15<=uxb_works!$B$120,3,4)))) -> 4 | AH15: =iSummary!CU9 -> Lisbon | AI15: =iSummary!CV9 -> 90 | AK15: =iSummary!DM9 -> 1 | AL15: =IF(AK15=0,0,IF(AP15<=uxb_works!$B$122,1,IF(AP15<=uxb_works!$B$121,2,IF(AP15<=uxb_works!$B$120,3,4)))) -> 3 | AO15: =iSummary!DO9 -> Lisbon | AP15: =iSummary!DP9 -> 60 | AR15: =iSummary!EG9 -> 1 | AS15: =IF(AR15=0,0,IF(AW15<=uxb_works!$B$122,1,IF(AW15<=uxb_works!$B$121,2,IF(AW15<=uxb_works!$B$120,3,4)))) -> 4 | AV15: =iSummary!EI9 -> Lisbon | AW15: =iSummary!EJ9 -> 80
B16: =iSummary!Q10 -> 1 | C16: =IF(B16=0,0,IF(G16<=uxb_works!$B$122,1,IF(G16<=uxb_works!$B$121,2,IF(G16<=uxb_works!$B$120,3,4)))) -> 3 | F16: =iSummary!S10 -> Melaka | G16: =IF(ISNUMBER(iSummary!T10),ROUND(iSummary!T10,1),"") -> 58.5 | I16: =iSummary!AK10 -> 1 | J16: =IF(I16=0,0,IF(N16<=uxb_works!$B$122,1,IF(N16<=uxb_works!$B$121,2,IF(N16<=uxb_works!$B$120,3,4)))) -> 3 | M16: =iSummary!AM10 -> Melaka | N16: =iSummary!AN10 -> 61.1 | P16: =iSummary!BE10 -> 1 | Q16: =IF(P16=0,0,IF(U16<=uxb_works!$B$122,1,IF(U16<=uxb_works!$B$121,2,IF(U16<=uxb_works!$B$120,3,4)))) -> 2 | T16: =iSummary!BG10 -> Melaka | U16: =iSummary!BH10 -> 30 | W16: =iSummary!BY10 -> 1 | X16: =IF(W16=0,0,IF(AB16<=uxb_works!$B$122,1,IF(AB16<=uxb_works!$B$121,2,IF(AB16<=uxb_works!$B$120,3,4)))) -> 2 | AA16: =iSummary!CA10 -> Melaka | AB16: =iSummary!CB10 -> 50 | AD16: =iSummary!CS10 -> 1 | AE16: =IF(AD16=0,0,IF(AI16<=uxb_works!$B$122,1,IF(AI16<=uxb_works!$B$121,2,IF(AI16<=uxb_works!$B$120,3,4)))) -> 3 | AH16: =iSummary!CU10 -> Melaka | AI16: =iSummary!CV10 -> 70 | AK16: =iSummary!DM10 -> 1 | AL16: =IF(AK16=0,0,IF(AP16<=uxb_works!$B$122,1,IF(AP16<=uxb_works!$B$121,2,IF(AP16<=uxb_works!$B$120,3,4)))) -> 2 | AO16: =iSummary!DO10 -> Melaka | AP16: =iSummary!DP10 -> 50 | AR16: =iSummary!EG10 -> 1 | AS16: =IF(AR16=0,0,IF(AW16<=uxb_works!$B$122,1,IF(AW16<=uxb_works!$B$121,2,IF(AW16<=uxb_works!$B$120,3,4)))) -> 4 | AV16: =iSummary!EI10 -> Melaka | AW16: =iSummary!EJ10 -> 90
B17: =iSummary!Q11 -> 1 | C17: =IF(B17=0,0,IF(G17<=uxb_works!$B$122,1,IF(G17<=uxb_works!$B$121,2,IF(G17<=uxb_works!$B$120,3,4)))) -> 3 | F17: =iSummary!S11 -> Recife | G17: =IF(ISNUMBER(iSummary!T11),ROUND(iSummary!T11,1),"") -> 70.4 | I17: =iSummary!AK11 -> 1 | J17: =IF(I17=0,0,IF(N17<=uxb_works!$B$122,1,IF(N17<=uxb_works!$B$121,2,IF(N17<=uxb_works!$B$120,3,4)))) -> 3 | M17: =iSummary!AM11 -> Recife | N17: =iSummary!AN11 -> 72.2 | P17: =iSummary!BE11 -> 1 | Q17: =IF(P17=0,0,IF(U17<=uxb_works!$B$122,1,IF(U17<=uxb_works!$B$121,2,IF(U17<=uxb_works!$B$120,3,4)))) -> 3 | T17: =iSummary!BG11 -> Recife | U17: =iSummary!BH11 -> 60 | W17: =iSummary!BY11 -> 1 | X17: =IF(W17=0,0,IF(AB17<=uxb_works!$B$122,1,IF(AB17<=uxb_works!$B$121,2,IF(AB17<=uxb_works!$B$120,3,4)))) -> 3 | AA17: =iSummary!CA11 -> Recife | AB17: =iSummary!CB11 -> 70 | AD17: =iSummary!CS11 -> 1 | AE17: =IF(AD17=0,0,IF(AI17<=uxb_works!$B$122,1,IF(AI17<=uxb_works!$B$121,2,IF(AI17<=uxb_works!$B$120,3,4)))) -> 3 | AH17: =iSummary!CU11 -> Recife | AI17: =iSummary!CV11 -> 70 | AK17: =iSummary!DM11 -> 1 | AL17: =IF(AK17=0,0,IF(AP17<=uxb_works!$B$122,1,IF(AP17<=uxb_works!$B$121,2,IF(AP17<=uxb_works!$B$120,3,4)))) -> 4 | AO17: =iSummary!DO11 -> Recife | AP17: =iSummary!DP11 -> 90 | AR17: =iSummary!EG11 -> 1 | AS17: =IF(AR17=0,0,IF(AW17<=uxb_works!$B$122,1,IF(AW17<=uxb_works!$B$121,2,IF(AW17<=uxb_works!$B$120,3,4)))) -> 3 | AV17: =iSummary!EI11 -> Recife | AW17: =iSummary!EJ11 -> 60
B18: =iSummary!Q12 -> 1 | C18: =IF(B18=0,0,IF(G18<=uxb_works!$B$122,1,IF(G18<=uxb_works!$B$121,2,IF(G18<=uxb_works!$B$120,3,4)))) -> 4 | F18: =iSummary!S12 -> Singapore | G18: =IF(ISNUMBER(iSummary!T12),ROUND(iSummary!T12,1),"") -> 97.4 | I18: =iSummary!AK12 -> 1 | J18: =IF(I18=0,0,IF(N18<=uxb_works!$B$122,1,IF(N18<=uxb_works!$B$121,2,IF(N18<=uxb_works!$B$120,3,4)))) -> 4 | M18: =iSummary!AM12 -> Singapore | N18: =iSummary!AN12 -> 94.4 | P18: =iSummary!BE12 -> 1 | Q18: =IF(P18=0,0,IF(U18<=uxb_works!$B$122,1,IF(U18<=uxb_works!$B$121,2,IF(U18<=uxb_works!$B$120,3,4)))) -> 4 | T18: =iSummary!BG12 -> Singapore | U18: =iSummary!BH12 -> 100 | W18: =iSummary!BY12 -> 1 | X18: =IF(W18=0,0,IF(AB18<=uxb_works!$B$122,1,IF(AB18<=uxb_works!$B$121,2,IF(AB18<=uxb_works!$B$120,3,4)))) -> 4 | AA18: =iSummary!CA12 -> Singapore | AB18: =iSummary!CB12 -> 90 | AD18: =iSummary!CS12 -> 1 | AE18: =IF(AD18=0,0,IF(AI18<=uxb_works!$B$122,1,IF(AI18<=uxb_works!$B$121,2,IF(AI18<=uxb_works!$B$120,3,4)))) -> 4 | AH18: =iSummary!CU12 -> Singapore | AI18: =iSummary!CV12 -> 100 | AK18: =iSummary!DM12 -> 1 | AL18: =IF(AK18=0,0,IF(AP18<=uxb_works!$B$122,1,IF(AP18<=uxb_works!$B$121,2,IF(AP18<=uxb_works!$B$120,3,4)))) -> 4 | AO18: =iSummary!DO12 -> Singapore | AP18: =iSummary!DP12 -> 100 | AR18: =iSummary!EG12 -> 1 | AS18: =IF(AR18=0,0,IF(AW18<=uxb_works!$B$122,1,IF(AW18<=uxb_works!$B$121,2,IF(AW18<=uxb_works!$B$120,3,4)))) -> 4 | AV18: =iSummary!EI12 -> Singapore | AW18: =iSummary!EJ12 -> 100
B19: =iSummary!Q13 -> 0 | C19: =IF(B19=0,0,IF(G19<=uxb_works!$B$122,1,IF(G19<=uxb_works!$B$121,2,IF(G19<=uxb_works!$B$120,3,4)))) -> 0 | F19: =iSummary!S13 ->  | G19: =IF(ISNUMBER(iSummary!T13),ROUND(iSummary!T13,1),"") ->  | I19: =iSummary!AK13 -> 0 | J19: =IF(I19=0,0,IF(N19<=uxb_works!$B$122,1,IF(N19<=uxb_works!$B$121,2,IF(N19<=uxb_works!$B$120,3,4)))) -> 0 | M19: =iSummary!AM13 ->  | N19: =iSummary!AN13 ->  | P19: =iSummary!BE13 -> 0 | Q19: =IF(P19=0,0,IF(U19<=uxb_works!$B$122,1,IF(U19<=uxb_works!$B$121,2,IF(U19<=uxb_works!$B$120,3,4)))) -> 0 | T19: =iSummary!BG13 ->  | U19: =iSummary!BH13 ->  | W19: =iSummary!BY13 -> 0 | X19: =IF(W19=0,0,IF(AB19<=uxb_works!$B$122,1,IF(AB19<=uxb_works!$B$121,2,IF(AB19<=uxb_works!$B$120,3,4)))) -> 0 | AA19: =iSummary!CA13 ->  | AB19: =iSummary!CB13 ->  | AD19: =iSummary!CS13 -> 0 | AE19: =IF(AD19=0,0,IF(AI19<=uxb_works!$B$122,1,IF(AI19<=uxb_works!$B$121,2,IF(AI19<=uxb_works!$B$120,3,4)))) -> 0 | AH19: =iSummary!CU13 ->  | AI19: =iSummary!CV13 ->  | AK19: =iSummary!DM13 -> 0 | AL19: =IF(AK19=0,0,IF(AP19<=uxb_works!$B$122,1,IF(AP19<=uxb_works!$B$121,2,IF(AP19<=uxb_works!$B$120,3,4)))) -> 0 | AO19: =iSummary!DO13 ->  | AP19: =iSummary!DP13 ->  | AR19: =iSummary!EG13 -> 0 | AS19: =IF(AR19=0,0,IF(AW19<=uxb_works!$B$122,1,IF(AW19<=uxb_works!$B$121,2,IF(AW19<=uxb_works!$B$120,3,4)))) -> 0 | AV19: =iSummary!EI13 ->  | AW19: =iSummary!EJ13 -> 

Sheet CityScoreCard
A1: =uxb_works!$B$92 -> Global Platform for Sustainable Cities | AC1: $C$30 | BA1: 1 | BB1: 2 | BC1: 1 | BD1: 2 | BF1: 1 | BG1: 2
BC2: 2 | BD2: 0
A6: =uxb_works!$C$5 -> The active weight profile has been changed from it's default setting
C13: =uxb_works!C26&iCntyScoreCard!E1 -> Melaka compared with Izmir | I13: =uxb_works!C26 -> Melaka
B14: 1 | C14: =iCSCtbl!C3 -> OVERVIEW | H14: =iCSCtbl!I3 -> 3 | I14: =iCSCtbl!J3 -> Advanced
B15: =iCSCtbl!F4 -> 1 | C15: =TRIM(iCSCtbl!C4) -> 1) GOVERNANCE AND INTEGRATED URBAN PLANNING | H15: =iCSCtbl!I4 -> 3 | I15: =iCSCtbl!J4 -> Advanced
B16: =iCSCtbl!F5 -> 1 | C16: =TRIM(iCSCtbl!C5) -> 2) FISCAL SUSTAINABILITY | H16: =iCSCtbl!I5 -> 2 | I16: =iCSCtbl!J5 -> Consolidating
B17: =iCSCtbl!F6 -> 1 | C17: =TRIM(iCSCtbl!C6) -> 3) URBAN ECONOMIES | H17: =iCSCtbl!I6 -> 2 | I17: =iCSCtbl!J6 -> Consolidating
B18: =iCSCtbl!F7 -> 1 | C18: =TRIM(iCSCtbl!C7) -> 4) NATURAL ENVIRONMENT AND RESOURCES | H18: =iCSCtbl!I7 -> 3 | I18: =iCSCtbl!J7 -> Advanced
B19: =iCSCtbl!F8 -> 1 | C19: =TRIM(iCSCtbl!C8) -> 5) CLIMATE ACTION AND RESILIENCE | H19: =iCSCtbl!I8 -> 2 | I19: =iCSCtbl!J8 -> Consolidating
B20: =iCSCtbl!F9 -> 1 | C20: =TRIM(iCSCtbl!C9) -> 6) INCLUSIVITY AND QUALITY OF LIFE | H20: =iCSCtbl!I9 -> 4 | I20: =iCSCtbl!J9 -> Sustainable
B136: =IF(C136="",0,1) ->  | C136: =TRIM(#REF!) ->  | D136: =#REF! ->  | F136: =IF(G136="",0,1) ->  | G136: =TRIM(#REF!) ->  | H136: =#REF! ->  | I136: =#REF! -> 
C137: =TRIM(#REF!) ->  | D137: =#REF! ->  | G137: =TRIM(#REF!) ->  | H137: =#REF! ->  | I137: =#REF! -> 
C138: =TRIM(#REF!) ->  | D138: =#REF! ->  | G138: =TRIM(#REF!) ->  | H138: =#REF! ->  | I138: =#REF! -> 
C139: =TRIM(#REF!) ->  | D139: =#REF! ->  | G139: =TRIM(#REF!) ->  | H139: =#REF! ->  | I139: =#REF! -> 
C140: =TRIM(#REF!) ->  | D140: =#REF! ->  | G140: =TRIM(#REF!) ->  | H140: =#REF! ->  | I140: =#REF! -> 
C141: =TRIM(#REF!) ->  | D141: =#REF! ->  | G141: =TRIM(#REF!) ->  | H141: =#REF! ->  | I141: =#REF! -> 
C142: =TRIM(#REF!) ->  | D142: =#REF! ->  | G142: =TRIM(#REF!) ->  | H142: =#REF! ->  | I142: =#REF! -> 
C143: =TRIM(#REF!) ->  | D143: =#REF! ->  | G143: =TRIM(#REF!) ->  | H143: =#REF! ->  | I143: =#REF! -> 
C144: =TRIM(#REF!) ->  | D144: =#REF! ->  | G144: =TRIM(#REF!) ->  | H144: =#REF! ->  | I144: =#REF! -> 
C145: =TRIM(#REF!) ->  | D145: =#REF! ->  | G145: =TRIM(#REF!) ->  | H145: =#REF! ->  | I145: =#REF! -> 
C146: =TRIM(#REF!) ->  | D146: =#REF! ->  | G146: =TRIM(#REF!) ->  | H146: =#REF! ->  | I146: =#REF! -> 
C147: =TRIM(#REF!) ->  | D147: =#REF! ->  | G147: =TRIM(#REF!) ->  | H147: =#REF! ->  | I147: =#REF! -> 
C148: =TRIM(#REF!) ->  | D148: =#REF! ->  | G148: =TRIM(#REF!) ->  | H148: =#REF! ->  | I148: =#REF! -> 
C149: =TRIM(#REF!) ->  | D149: =#REF! ->  | G149: =TRIM(#REF!) ->  | H149: =#REF! ->  | I149: =#REF! -> 
C150: =TRIM(#REF!) ->  | D150: =#REF! ->  | G150: =TRIM(#REF!) ->  | H150: =#REF! ->  | I150: =#REF! -> 
C151: =TRIM(#REF!) ->  | D151: =#REF! ->  | G151: =TRIM(#REF!) ->  | H151: =#REF! ->  | I151: =#REF! -> 
C152: =TRIM(#REF!) ->  | D152: =#REF! ->  | G152: =TRIM(#REF!) ->  | H152: =#REF! ->  | I152: =#REF! -> 
C153: =TRIM(#REF!) ->  | D153: =#REF! ->  | G153: =TRIM(#REF!) ->  | H153: =#REF! ->  | I153: =#REF! -> 
C154: =TRIM(#REF!) ->  | D154: =#REF! ->  | G154: =TRIM(#REF!) ->  | H154: =#REF! ->  | I154: =#REF! -> 
C155: =TRIM(#REF!) ->  | D155: =#REF! ->  | G155: =TRIM(#REF!) ->  | H155: =#REF! ->  | I155: =#REF! -> 
C156: =TRIM(#REF!) ->  | D156: =#REF! ->  | G156: =TRIM(#REF!) ->  | H156: =#REF! ->  | I156: =#REF! -> 
C157: =TRIM(#REF!) ->  | D157: =#REF! ->  | G157: =TRIM(#REF!) ->  | H157: =#REF! ->  | I157: =#REF! -> 
C158: =TRIM(#REF!) ->  | D158: =#REF! ->  | G158: =TRIM(#REF!) ->  | H158: =#REF! ->  | I158: =#REF! -> 
B159: =IF(C159="",0,1) ->  | C159: =TRIM(#REF!) ->  | D159: =#REF! ->  | F159: =IF(G159="",0,1) ->  | G159: =TRIM(#REF!) ->  | H159: =#REF! ->  | I159: =#REF! -> 
C160: =TRIM(#REF!) ->  | D160: =#REF! ->  | G160: =TRIM(#REF!) ->  | H160: =#REF! ->  | I160: =#REF! -> 
C161: =TRIM(#REF!) ->  | D161: =#REF! ->  | G161: =TRIM(#REF!) ->  | H161: =#REF! ->  | I161: =#REF! -> 
C162: =TRIM(#REF!) ->  | D162: =#REF! ->  | G162: =TRIM(#REF!) ->  | H162: =#REF! ->  | I162: =#REF! -> 
C163: =TRIM(#REF!) ->  | D163: =#REF! ->  | G163: =TRIM(#REF!) ->  | H163: =#REF! ->  | I163: =#REF! -> 
C164: =TRIM(#REF!) ->  | D164: =#REF! ->  | G164: =TRIM(#REF!) ->  | H164: =#REF! ->  | I164: =#REF! -> 
C165: =TRIM(#REF!) ->  | D165: =#REF! ->  | G165: =TRIM(#REF!) ->  | H165: =#REF! ->  | I165: =#REF! -> 
C166: =TRIM(#REF!) ->  | D166: =#REF! ->  | G166: =TRIM(#REF!) ->  | H166: =#REF! ->  | I166: =#REF! -> 
C167: =TRIM(#REF!) ->  | D167: =#REF! ->  | G167: =TRIM(#REF!) ->  | H167: =#REF! ->  | I167: =#REF! -> 
C168: =TRIM(#REF!) ->  | D168: =#REF! ->  | G168: =TRIM(#REF!) ->  | H168: =#REF! ->  | I168: =#REF! -> 
C169: =TRIM(#REF!) ->  | D169: =#REF! ->  | G169: =TRIM(#REF!) ->  | H169: =#REF! ->  | I169: =#REF! -> 
C170: =TRIM(#REF!) ->  | D170: =#REF! ->  | G170: =TRIM(#REF!) ->  | H170: =#REF! ->  | I170: =#REF! -> 
C171: =TRIM(#REF!) ->  | D171: =#REF! ->  | G171: =TRIM(#REF!) ->  | H171: =#REF! ->  | I171: =#REF! -> 
C172: =TRIM(#REF!) ->  | D172: =#REF! ->  | G172: =TRIM(#REF!) ->  | H172: =#REF! ->  | I172: =#REF! -> 
C173: =TRIM(#REF!) ->  | D173: =#REF! ->  | G173: =TRIM(#REF!) ->  | H173: =#REF! ->  | I173: =#REF! -> 
C174: =TRIM(#REF!) ->  | D174: =#REF! ->  | G174: =TRIM(#REF!) ->  | H174: =#REF! ->  | I174: =#REF! -> 
C175: =TRIM(#REF!) ->  | D175: =#REF! ->  | G175: =TRIM(#REF!) ->  | H175: =#REF! ->  | I175: =#REF! -> 

Sheet Indicator_Ranking
A1: =uxb_works!$B$92 -> Global Platform for Sustainable Cities | Z1: $W$24 | BA1: 1 | BB1: 3
AT2: =iIndiRank!V2 -> 0
A4: =iIndiRank!Q2 -> Description: Are there city-level health promotion intitiatives? Units: 0 = No 1 = Somewhat 2 = Yes Source: Policy Survey | AN4: 1600
C6: =uxb_works!$C$5 -> The active weight profile has been changed from it's default setting | AN6: 1000
C10: =iIndiRank!$G$2 -> 6) INCLUSIVITY AND QUALITY OF LIFE
C11: =iIndiRank!$F$2 -> 6.4) Health and Well-Being | BO11: =C11 -> 6.4) Health and Well-Being
C14: Forecast spend on defense equipment Source: Jane's Year: 2025-2027 Scoring Guidance: US$ million | E14: =iIndiRank!AO2 -> 0 | K14: =COUNT(J17:J21) -> 5 | V14: =IF(COUNTIF(V17:V21,"<>0")=0,1,COUNTIF(V17:V21,"<>0")) -> 3 | W14: =iIndiRank!AU1 -> 3 | Y14: =IF(COUNTIF(Y17:Y21,"<>0")=0,1,COUNTIF(Y17:Y21,"<>0")) -> 2 | Z14: =iIndiRank!AX1 -> 2 | AB14: =IF(COUNTIF(AB17:AB21,"<>0")=0,1,COUNTIF(AB17:AB21,"<>0")) -> 1 | AC14: =iIndiRank!BA1 -> 1 | AE14: =IF(COUNTIF(AE17:AE21,"<>0")=0,1,COUNTIF(AE17:AE21,"<>0")) -> 1 | AF14: =iIndiRank!BD1 -> 0 | AH14: =IF(COUNTIF(AH17:AH21,"<>0")=0,1,COUNTIF(AH17:AH21,"<>0")) -> 1 | AI14: =iIndiRank!BG1 -> 0
B15: =iIndiRank!P4 -> 11 | W15: =IF(W14<>0,iIndiRank!AU3,"") -> Yes | Z15: =IF(Z14<>0,iIndiRank!AX3,"") -> Somewhat | AC15: =IF(AC14<>0,iIndiRank!BA3,"") -> No | AF15: =IF(AF14<>0,iIndiRank!BD3,"") ->  | AI15: =IF(AI14<>0,iIndiRank!BG3,"") -> 
C16: Description: Are there city-level health promotion intitiatives? Units: 0 = No 1 = Somewhat 2 = Yes Source: Policy Survey | J16: =IF(uxb_works!$J$21=1,COUNTIF(J17:J21,">0"),MAX(V16,Indicator_Ranking!Y16,Indicator_Ranking!AB16,Indicator_Ranking!AE16,Indicator_Ranking!AH16)) -> 3 | L16: Rank | N16: Country | O16: Score / 100 | P16: Score / 100 | Q16: Visualisation | R16: =iIndiRank!S5 -> Data | V16: =COUNTIF(V17:V21,">0") -> 3 | Y16: =COUNTIF(Y17:Y21,">0") -> 2 | AB16: =COUNTIF(AB17:AB21,">0") -> 0 | AE16: =COUNTIF(AE17:AE21,">0") -> 0 | AH16: =COUNTIF(AH17:AH21,">0") -> 0 | BA16: =W15 -> Yes | BD16: =Z15 -> Somewhat | BG16: =AC15 -> No | BJ16: =AF15 ->  | BM16: =AI15 -> 
J17: =iIndiRank!L6 -> 1 | K17: =IF(J17=0,4,IF(P17<=uxb_works!$B$122,0,IF(P17<=uxb_works!$B$121,1,IF(P17<=uxb_works!$B$120,2,3)))) -> 1 | M17: =iIndiRank!P6 -> =4 | N17: =iIndiRank!Q6 -> Izmir | O17: =iIndiRank!R6 -> 50 | P17: =iIndiRank!T6 -> 50 | Q17: =IF(ISNUMBER(O17),REPT("|",O17/3),"") -> |||||||||||||||| | R17: =TEXT(iIndiRank!S6,iIndiRank!$E$2) -> 1 | V17: =iIndiRank!AT6 -> 1 | W17: =iIndiRank!AU6 -> Lisbon | Y17: =iIndiRank!AW6 -> 1 | Z17: =iIndiRank!AX6 -> Izmir | AB17: =iIndiRank!AZ6 -> 0 | AC17: =iIndiRank!BA6 ->  | AE17: =iIndiRank!BC6 -> 0 | AF17: =iIndiRank!BD6 ->  | AH17: =iIndiRank!BF6 -> 0 | AI17: =iIndiRank!BG6 -> 
J18: =iIndiRank!L7 -> 1 | K18: =IF(J18=0,4,IF(P18<=uxb_works!$B$122,0,IF(P18<=uxb_works!$B$121,1,IF(P18<=uxb_works!$B$120,2,3)))) -> 3 | M18: =iIndiRank!P7 -> =1 | N18: =iIndiRank!Q7 -> Lisbon | O18: =iIndiRank!R7 -> 100 | P18: =iIndiRank!T7 -> 100 | Q18: =IF(ISNUMBER(O18),REPT("|",O18/3),"") -> ||||||||||||||||||||||||||||||||| | R18: =TEXT(iIndiRank!S7,iIndiRank!$E$2) -> 2 | V18: =iIndiRank!AT7 -> 1 | W18: =iIndiRank!AU7 -> Recife | Y18: =iIndiRank!AW7 -> 3 | Z18: =iIndiRank!AX7 -> Melaka | AB18: =iIndiRank!AZ7 -> 0 | AC18: =iIndiRank!BA7 ->  | AE18: =iIndiRank!BC7 -> 0 | AF18: =iIndiRank!BD7 ->  | AH18: =iIndiRank!BF7 -> 0 | AI18: =iIndiRank!BG7 -> 
J19: =iIndiRank!L8 -> 3 | K19: =IF(J19=0,4,IF(P19<=uxb_works!$B$122,0,IF(P19<=uxb_works!$B$121,1,IF(P19<=uxb_works!$B$120,2,3)))) -> 1 | M19: =iIndiRank!P8 -> =4 | N19: =iIndiRank!Q8 -> Melaka | O19: =iIndiRank!R8 -> 50 | P19: =iIndiRank!T8 -> 50 | Q19: |||||||||||||||| | R19: =TEXT(iIndiRank!S8,iIndiRank!$E$2) -> 1 | V19: =iIndiRank!AT8 -> 1 | W19: =iIndiRank!AU8 -> Singapore | Y19: =iIndiRank!AW8 -> 0 | Z19: =iIndiRank!AX8 ->  | AB19: =iIndiRank!AZ8 -> 0 | AC19: =iIndiRank!BA8 ->  | AE19: =iIndiRank!BC8 -> 0 | AF19: =iIndiRank!BD8 ->  | AH19: =iIndiRank!BF8 -> 0 | AI19: =iIndiRank!BG8 -> 
J20: =iIndiRank!L9 -> 1 | K20: =IF(J20=0,4,IF(P20<=uxb_works!$B$122,0,IF(P20<=uxb_works!$B$121,1,IF(P20<=uxb_works!$B$120,2,3)))) -> 3 | M20: =iIndiRank!P9 -> =1 | N20: =iIndiRank!Q9 -> Recife | O20: =iIndiRank!R9 -> 100 | P20: =iIndiRank!T9 -> 100 | Q20: ||||||||||||||||||||||||||||||||| | R20: =TEXT(iIndiRank!S9,iIndiRank!$E$2) -> 2 | V20: =iIndiRank!AT9 -> 0 | W20: =iIndiRank!AU9 ->  | Y20: =iIndiRank!AW9 -> 0 | Z20: =iIndiRank!AX9 ->  | AB20: =iIndiRank!AZ9 -> 0 | AC20: =iIndiRank!BA9 ->  | AE20: =iIndiRank!BC9 -> 0 | AF20: =iIndiRank!BD9 ->  | AH20: =iIndiRank!BF9 -> 0 | AI20: =iIndiRank!BG9 -> 
J21: =iIndiRank!L10 -> 1 | K21: =IF(J21=0,4,IF(P21<=uxb_works!$B$122,0,IF(P21<=uxb_works!$B$121,1,IF(P21<=uxb_works!$B$120,2,3)))) -> 3 | M21: =iIndiRank!P10 -> =1 | N21: =iIndiRank!Q10 -> Singapore | O21: =iIndiRank!R10 -> 100 | P21: =iIndiRank!T10 -> 100 | Q21: ||||||||||||||||||||||||||||||||| | R21: =TEXT(iIndiRank!S10,iIndiRank!$E$2) -> 2 | V21: =iIndiRank!AT10 -> 0 | W21: =iIndiRank!AU10 ->  | Y21: =iIndiRank!AW10 -> 0 | Z21: =iIndiRank!AX10 ->  | AB21: =iIndiRank!AZ10 -> 0 | AC21: =iIndiRank!BA10 ->  | AE21: =iIndiRank!BC10 -> 0 | AF21: =iIndiRank!BD10 ->  | AH21: =iIndiRank!BF10 -> 0 | AI21: =iIndiRank!BG10 -> 
A23: =IF(AND(uxb_works!R21=1,uxb_works!B6>1),1,0) -> 1
D24: ="Score justifications for "&uxb_works!$C$6 -> Score justifications for Melaka | F24: ="References for "&uxb_works!$C$6 -> References for Melaka
D25: =iIndiRank!U3 -> Health promotion is a federal government responsibility. The country aims to be free from HIV by 2030, and Melaka has been selected as the first state to lead this initiative [3]. The Ministry of Health also enforced smoke-free zones in five areas across Melaka State in 2011 [4]. | F25: =iIndiRank!V3 -> [1] Sinar Harian. 2018. "Kes HIV di Melaka Catat Penurunan." [http://www.sinarharian.com.my/edisi/melaka-ns/kes-hiv-di-melaka-catat-penurunan-1.876116]. [2] Melaka Bebas Asap Rokok (MBAR). 2018. "Zon MBAR." [http://www.mbar.gov.my/2/page.php?s=zon-bebas-asap-rokok&id=607]. | AN25: =uxb_works!F146 -> Health promotion is a federal government responsibility. The country aims to be free from HIV | AO25: =uxb_works!G146 -> [1] Sinar Harian. 2018. "Kes HIV di Melaka Catat Penurunan." [http://www.sinarharian.com.my/edisi/melaka-ns/kes-hiv-di-melaka-catat-pe
AN26: =uxb_works!F147 -> by 2030, and Melaka has been selected as the first state to lead this initiative [3]. The Mi | AO26: =uxb_works!G147 -> nurunan-1.876116].
AN27: =uxb_works!F148 -> istry of Health also enforced smoke-free zones in five areas across Melaka State in 2011 [4]. | AO27: =uxb_works!G148 -> [http://www.mbar.gov.my/2/page.php?s=zon-bebas-asap-rokok&id=607].

Sheet CityProfile
A1: =uxb_works!$B$92 -> Global Platform for Sustainable Cities | AF1: $C$30 | BA1: 1 | BB1: 4 | BD1: 1 | BE1: 4 | BF1: 1 | BG1: 2 | BI1: 1 | BJ1: 2
BF2: 2 | BG2: 0
A6: =uxb_works!$C$5 -> The active weight profile has been changed from it's default setting
L11: =iCountryComp!B4 -> 1
B12: =COUNTIF(B14:B23,">0") -> 6 | G12: =uxb_works!C26 -> Melaka | L12: =iCountryComp!C4 -> Izmir
B14: =iCountryComp!AC22 -> 1 | C14: =iCountryComp!AD22 -> 2) FISCAL SUSTAINABILITY | F14: =iCountryComp!AG22 -> 2 | G14: =iCountryComp!AH22 -> Consolidating | K14: =iCountryComp!AO22 -> 4 | L14: =iCountryComp!AP22 -> Sustainable
B15: =iCountryComp!AC23 -> 1 | C15: =iCountryComp!AD23 -> 2.1) Accountability and Transparency | F15: =iCountryComp!AG23 -> 2 | G15: =iCountryComp!AH23 -> Consolidating | K15: =iCountryComp!AO23 -> 4 | L15: =iCountryComp!AP23 -> Sustainable
B16: =iCountryComp!AC24 -> 2 | C16: =iCountryComp!AD24 -> 2.2) Creditworthiness | F16: =iCountryComp!AG24 -> 1 | G16: =iCountryComp!AH24 -> Emerging | K16: =iCountryComp!AO24 -> 4 | L16: =iCountryComp!AP24 -> Sustainable
B17: =iCountryComp!AC25 -> 1 | C17: =iCountryComp!AD25 -> 2.3) Revenue and Financial Autonomy | F17: =iCountryComp!AG25 -> 2 | G17: =iCountryComp!AH25 -> Consolidating | K17: =iCountryComp!AO25 -> 2 | L17: =iCountryComp!AP25 -> Consolidating
B18: =iCountryComp!AC26 -> 1 | C18: =iCountryComp!AD26 -> 2.4) Expenditure Management | F18: =iCountryComp!AG26 -> 1 | G18: =iCountryComp!AH26 -> Emerging | K18: =iCountryComp!AO26 -> 4 | L18: =iCountryComp!AP26 -> Sustainable
B19: =iCountryComp!AC27 -> 1 | C19: =iCountryComp!AD27 -> 2.5) Management of Debt and Other Obligations | F19: =iCountryComp!AG27 -> 2 | G19: =iCountryComp!AH27 -> Consolidating | K19: =iCountryComp!AO27 -> 2 | L19: =iCountryComp!AP27 -> Consolidating
B20: =iCountryComp!AC28 -> 0 | C20: =iCountryComp!AD28 ->  | F20: =iCountryComp!AG28 ->  | G20: =iCountryComp!AH28 ->  | K20: =iCountryComp!AO28 ->  | L20: =iCountryComp!AP28 -> 
B21: =iCountryComp!AC29 -> 0 | C21: =iCountryComp!AD29 ->  | F21: =iCountryComp!AG29 ->  | G21: =iCountryComp!AH29 ->  | K21: =iCountryComp!AO29 ->  | L21: =iCountryComp!AP29 -> 
B22: =iCountryComp!AC30 -> 0 | C22: =iCountryComp!AD30 ->  | F22: =iCountryComp!AG30 ->  | G22: =iCountryComp!AH30 ->  | K22: =iCountryComp!AO30 ->  | L22: =iCountryComp!AP30 -> 
B23: =iCountryComp!AC31 -> 0 | C23: =iCountryComp!AD31 ->  | F23: =iCountryComp!AG31 ->  | G23: =iCountryComp!AH31 ->  | K23: =iCountryComp!AO31 ->  | L23: =iCountryComp!AP31 -> 
B136: =IF(C136="",0,1) ->  | C136: =TRIM(#REF!) ->  | E136: =#REF! ->  | G136: =IF(H136="",0,1) ->  | H136: =TRIM(#REF!) ->  | K136: =#REF! ->  | L136: =#REF! -> 
C137: =TRIM(#REF!) ->  | E137: =#REF! ->  | H137: =TRIM(#REF!) ->  | K137: =#REF! ->  | L137: =#REF! -> 
C138: =TRIM(#REF!) ->  | E138: =#REF! ->  | H138: =TRIM(#REF!) ->  | K138: =#REF! ->  | L138: =#REF! -> 
C139: =TRIM(#REF!) ->  | E139: =#REF! ->  | H139: =TRIM(#REF!) ->  | K139: =#REF! ->  | L139: =#REF! -> 
C140: =TRIM(#REF!) ->  | E140: =#REF! ->  | H140: =TRIM(#REF!) ->  | K140: =#REF! ->  | L140: =#REF! -> 
C141: =TRIM(#REF!) ->  | E141: =#REF! ->  | H141: =TRIM(#REF!) ->  | K141: =#REF! ->  | L141: =#REF! -> 
C142: =TRIM(#REF!) ->  | E142: =#REF! ->  | H142: =TRIM(#REF!) ->  | K142: =#REF! ->  | L142: =#REF! -> 
C143: =TRIM(#REF!) ->  | E143: =#REF! ->  | H143: =TRIM(#REF!) ->  | K143: =#REF! ->  | L143: =#REF! -> 
C144: =TRIM(#REF!) ->  | E144: =#REF! ->  | H144: =TRIM(#REF!) ->  | K144: =#REF! ->  | L144: =#REF! -> 
C145: =TRIM(#REF!) ->  | E145: =#REF! ->  | H145: =TRIM(#REF!) ->  | K145: =#REF! ->  | L145: =#REF! -> 
C146: =TRIM(#REF!) ->  | E146: =#REF! ->  | H146: =TRIM(#REF!) ->  | K146: =#REF! ->  | L146: =#REF! -> 
C147: =TRIM(#REF!) ->  | E147: =#REF! ->  | H147: =TRIM(#REF!) ->  | K147: =#REF! ->  | L147: =#REF! -> 
C148: =TRIM(#REF!) ->  | E148: =#REF! ->  | H148: =TRIM(#REF!) ->  | K148: =#REF! ->  | L148: =#REF! -> 
C149: =TRIM(#REF!) ->  | E149: =#REF! ->  | H149: =TRIM(#REF!) ->  | K149: =#REF! ->  | L149: =#REF! -> 
C150: =TRIM(#REF!) ->  | E150: =#REF! ->  | H150: =TRIM(#REF!) ->  | K150: =#REF! ->  | L150: =#REF! -> 
C151: =TRIM(#REF!) ->  | E151: =#REF! ->  | H151: =TRIM(#REF!) ->  | K151: =#REF! ->  | L151: =#REF! -> 
C152: =TRIM(#REF!) ->  | E152: =#REF! ->  | H152: =TRIM(#REF!) ->  | K152: =#REF! ->  | L152: =#REF! -> 
C153: =TRIM(#REF!) ->  | E153: =#REF! ->  | H153: =TRIM(#REF!) ->  | K153: =#REF! ->  | L153: =#REF! -> 
C154: =TRIM(#REF!) ->  | E154: =#REF! ->  | H154: =TRIM(#REF!) ->  | K154: =#REF! ->  | L154: =#REF! -> 
C155: =TRIM(#REF!) ->  | E155: =#REF! ->  | H155: =TRIM(#REF!) ->  | K155: =#REF! ->  | L155: =#REF! -> 
C156: =TRIM(#REF!) ->  | E156: =#REF! ->  | H156: =TRIM(#REF!) ->  | K156: =#REF! ->  | L156: =#REF! -> 
C157: =TRIM(#REF!) ->  | E157: =#REF! ->  | H157: =TRIM(#REF!) ->  | K157: =#REF! ->  | L157: =#REF! -> 
C158: =TRIM(#REF!) ->  | E158: =#REF! ->  | H158: =TRIM(#REF!) ->  | K158: =#REF! ->  | L158: =#REF! -> 
C159: =TRIM(#REF!) ->  | E159: =#REF! ->  | H159: =TRIM(#REF!) ->  | K159: =#REF! ->  | L159: =#REF! -> 
C160: =TRIM(#REF!) ->  | E160: =#REF! ->  | H160: =TRIM(#REF!) ->  | K160: =#REF! ->  | L160: =#REF! -> 
C161: =TRIM(#REF!) ->  | E161: =#REF! ->  | H161: =TRIM(#REF!) ->  | K161: =#REF! ->  | L161: =#REF! -> 
C162: =TRIM(#REF!) ->  | E162: =#REF! ->  | H162: =TRIM(#REF!) ->  | K162: =#REF! ->  | L162: =#REF! -> 
C163: =TRIM(#REF!) ->  | E163: =#REF! ->  | H163: =TRIM(#REF!) ->  | K163: =#REF! ->  | L163: =#REF! -> 
C164: =TRIM(#REF!) ->  | E164: =#REF! ->  | H164: =TRIM(#REF!) ->  | K164: =#REF! ->  | L164: =#REF! -> 
C165: =TRIM(#REF!) ->  | E165: =#REF! ->  | H165: =TRIM(#REF!) ->  | K165: =#REF! ->  | L165: =#REF! -> 
C166: =TRIM(#REF!) ->  | E166: =#REF! ->  | H166: =TRIM(#REF!) ->  | K166: =#REF! ->  | L166: =#REF! -> 
C167: =TRIM(#REF!) ->  | E167: =#REF! ->  | H167: =TRIM(#REF!) ->  | K167: =#REF! ->  | L167: =#REF! -> 
C168: =TRIM(#REF!) ->  | E168: =#REF! ->  | H168: =TRIM(#REF!) ->  | K168: =#REF! ->  | L168: =#REF! -> 
C169: =TRIM(#REF!) ->  | E169: =#REF! ->  | H169: =TRIM(#REF!) ->  | K169: =#REF! ->  | L169: =#REF! -> 
C170: =TRIM(#REF!) ->  | E170: =#REF! ->  | H170: =TRIM(#REF!) ->  | K170: =#REF! ->  | L170: =#REF! -> 
C171: =TRIM(#REF!) ->  | E171: =#REF! ->  | H171: =TRIM(#REF!) ->  | K171: =#REF! ->  | L171: =#REF! -> 
C172: =TRIM(#REF!) ->  | E172: =#REF! ->  | H172: =TRIM(#REF!) ->  | K172: =#REF! ->  | L172: =#REF! -> 
C173: =TRIM(#REF!) ->  | E173: =#REF! ->  | H173: =TRIM(#REF!) ->  | K173: =#REF! ->  | L173: =#REF! -> 
C174: =TRIM(#REF!) ->  | E174: =#REF! ->  | H174: =TRIM(#REF!) ->  | K174: =#REF! ->  | L174: =#REF! -> 
C175: =TRIM(#REF!) ->  | E175: =#REF! ->  | H175: =TRIM(#REF!) ->  | K175: =#REF! ->  | L175: =#REF! -> 

Sheet Scatter
A1: =uxb_works!B92 -> Global Platform for Sustainable Cities | BA1: 1 | BB1: 5
B6: =uxb_works!$C$5 -> The active weight profile has been changed from it's default setting
B11: =iScatter!G1 -> OVERVIEW | H11: =iScatter!G2 -> City's GDP per capita (US$/capita)
B12: =IF(iScatter!B1=1,"",iScatter!F1) ->  | H12: =iScatter!F2 -> US$/capita

Sheet BG_Indicators
A1: =uxb_works!B92 -> Global Platform for Sustainable Cities | BA1: 1 | BB1: 6
D6: =uxb_works!$C$5 -> The active weight profile has been changed from it's default setting
B11: 0 | F11: =IF($B$11=1,iBG_Indicators!E6,0) -> 0 | G11: =IF($B$11=1,iBG_Indicators!F6,0) -> 0 | H11: =IF($B$11=1,iBG_Indicators!G6,0) -> 0 | I11: =IF($B$11=1,iBG_Indicators!H6,0) -> 0 | J11: =IF($B$11=1,iBG_Indicators!I6,0) -> 0
F12: =iBG_Indicators!E7 -> 1 | G12: =iBG_Indicators!F7 -> 2 | H12: =iBG_Indicators!G7 -> 3 | I12: =iBG_Indicators!H7 -> 4 | J12: =iBG_Indicators!I7 -> 5
D13: BACKGROUND INDICATORS | F13: =iBG_Indicators!E8 -> Izmir | G13: =iBG_Indicators!F8 -> Lisbon | H13: Melaka State | I13: =iBG_Indicators!H8 -> Recife | J13: =iBG_Indicators!I8 -> Singapore
B15: =IF($B$11=1,iBG_Indicators!B9,0) -> 0 | C15: =iBG_Indicators!C9 -> 1 | D15: =iBG_Indicators!D9 -> Population | F15: =iBG_Indicators!E9 -> 4279677 | G15: =iBG_Indicators!F9 -> 506088 | H15: =iBG_Indicators!G9 -> 901700 | I15: =iBG_Indicators!H9 -> 1637834 | J15: =iBG_Indicators!I9 -> 5612250 | O15: =IF($B$11=1,iBG_Indicators!AF9,0) -> 0 | P15: =IF($B$11=1,iBG_Indicators!AG9,0) -> 0 | Q15: =IF($B$11=1,iBG_Indicators!AH9,0) -> 0 | R15: =IF($B$11=1,iBG_Indicators!AI9,0) -> 0 | S15: =IF($B$11=1,iBG_Indicators!AJ9,0) -> 0
B16: =IF($B$11=1,iBG_Indicators!B10,0) -> 0 | C16: =iBG_Indicators!C10 -> 2 | D16: =iBG_Indicators!D10 -> Annual growth rate of the local population (%) | F16: =iBG_Indicators!E10 -> 1.32 | G16: =iBG_Indicators!F10 -> 0.2 | H16: =iBG_Indicators!G10 -> 1.4 | I16: =iBG_Indicators!H10 -> 0.25 | J16: =iBG_Indicators!I10 -> 0.1 | O16: =IF($B$11=1,iBG_Indicators!AF10,0) -> 0 | P16: =IF($B$11=1,iBG_Indicators!AG10,0) -> 0 | Q16: =IF($B$11=1,iBG_Indicators!AH10,0) -> 0 | R16: =IF($B$11=1,iBG_Indicators!AI10,0) -> 0 | S16: =IF($B$11=1,iBG_Indicators!AJ10,0) -> 0
B17: =IF($B$11=1,iBG_Indicators!B11,0) -> 0 | C17: =iBG_Indicators!C11 -> 3 | D17: =iBG_Indicators!D11 -> Age dependency ratio (% of working-age population) | F17: =iBG_Indicators!E11 -> 41.7 | G17: =iBG_Indicators!F11 -> 79.2 | H17: =iBG_Indicators!G11 -> 44.8 | I17: =iBG_Indicators!H11 -> 40.9 | J17: =iBG_Indicators!I11 -> 38.7 | O17: =IF($B$11=1,iBG_Indicators!AF11,0) -> 0 | P17: =IF($B$11=1,iBG_Indicators!AG11,0) -> 0 | Q17: =IF($B$11=1,iBG_Indicators!AH11,0) -> 0 | R17: =IF($B$11=1,iBG_Indicators!AI11,0) -> 0 | S17: =IF($B$11=1,iBG_Indicators!AJ11,0) -> 0
B18: =IF($B$11=1,iBG_Indicators!B12,0) -> 0 | C18: =iBG_Indicators!C12 -> 4 | D18: =iBG_Indicators!D12 -> Years since land use plan was reviewed and updated (Years) | F18: =iBG_Indicators!E12 -> 0 | G18: =iBG_Indicators!F12 -> 0 | H18: =iBG_Indicators!G12 -> 0 | I18: =iBG_Indicators!H12 -> 10 | J18: =iBG_Indicators!I12 -> 4 | O18: =IF($B$11=1,iBG_Indicators!AF12,0) -> 0 | P18: =IF($B$11=1,iBG_Indicators!AG12,0) -> 0 | Q18: =IF($B$11=1,iBG_Indicators!AH12,0) -> 0 | R18: =IF($B$11=1,iBG_Indicators!AI12,0) -> 0 | S18: =IF($B$11=1,iBG_Indicators!AJ12,0) -> 0
B19: =IF($B$11=1,iBG_Indicators!B13,0) -> 0 | C19: =iBG_Indicators!C13 -> 5 | D19: =iBG_Indicators!D13 -> Total city built up area (km2) | F19: =iBG_Indicators!E13 -> - | G19: =iBG_Indicators!F13 -> - | H19: =iBG_Indicators!G13 -> - | I19: =iBG_Indicators!H13 -> 38.475 | J19: =iBG_Indicators!I13 -> - | O19: =IF($B$11=1,iBG_Indicators!AF13,0) -> 0 | P19: =IF($B$11=1,iBG_Indicators!AG13,0) -> 0 | Q19: =IF($B$11=1,iBG_Indicators!AH13,0) -> 0 | R19: =IF($B$11=1,iBG_Indicators!AI13,0) -> 0 | S19: =IF($B$11=1,iBG_Indicators!AJ13,0) -> 0
B20: =IF($B$11=1,iBG_Indicators!B14,0) -> 0 | C20: =iBG_Indicators!C14 -> 6 | D20: =iBG_Indicators!D14 -> Percentage of urban population living in slums (%) | F20: =iBG_Indicators!E14 -> - | G20: =iBG_Indicators!F14 -> - | H20: =iBG_Indicators!G14 -> - | I20: =iBG_Indicators!H14 -> 22.9 | J20: =iBG_Indicators!I14 -> 0 | O20: =IF($B$11=1,iBG_Indicators!AF14,0) -> 0 | P20: =IF($B$11=1,iBG_Indicators!AG14,0) -> 0 | Q20: =IF($B$11=1,iBG_Indicators!AH14,0) -> 0 | R20: =IF($B$11=1,iBG_Indicators!AI14,0) -> 0 | S20: =IF($B$11=1,iBG_Indicators!AJ14,0) -> 0
B21: =IF($B$11=1,iBG_Indicators!B15,0) -> 0 | C21: =iBG_Indicators!C15 -> 7 | D21: =iBG_Indicators!D15 -> Percentage of households that declare they have access to public means of transport within 0.5 km. (%) | F21: =iBG_Indicators!E15 -> - | G21: =iBG_Indicators!F15 -> - | H21: =iBG_Indicators!G15 -> - | I21: =iBG_Indicators!H15 -> - | J21: =iBG_Indicators!I15 -> - | O21: =IF($B$11=1,iBG_Indicators!AF15,0) -> 0 | P21: =IF($B$11=1,iBG_Indicators!AG15,0) -> 0 | Q21: =IF($B$11=1,iBG_Indicators!AH15,0) -> 0 | R21: =IF($B$11=1,iBG_Indicators!AI15,0) -> 0 | S21: =IF($B$11=1,iBG_Indicators!AJ15,0) -> 0
B22: =IF($B$11=1,iBG_Indicators!B16,0) -> 0 | C22: =iBG_Indicators!C16 -> 8 | D22: =iBG_Indicators!D16 -> Number of World Heritage sites within 100 km (UNESCO World Heritage Sites) | F22: =iBG_Indicators!E16 -> 2 | G22: =iBG_Indicators!F16 -> 5 | H22: =iBG_Indicators!G16 -> 1 | I22: =iBG_Indicators!H16 -> 1 | J22: =iBG_Indicators!I16 -> 1 | O22: =IF($B$11=1,iBG_Indicators!AF16,0) -> 0 | P22: =IF($B$11=1,iBG_Indicators!AG16,0) -> 0 | Q22: =IF($B$11=1,iBG_Indicators!AH16,0) -> 0 | R22: =IF($B$11=1,iBG_Indicators!AI16,0) -> 0 | S22: =IF($B$11=1,iBG_Indicators!AJ16,0) -> 0
B23: =IF($B$11=1,iBG_Indicators!B17,0) -> 0 | C23: =iBG_Indicators!C17 -> 9 | D23: =iBG_Indicators!D17 -> Credit rating or shadow credit rating on the national credit rating scale of the country (rating - agency) | F23: =iBG_Indicators!E17 -> Ba3 - Moody's BB (Negative) - Fitch | G23: =iBG_Indicators!F17 -> - | H23: =iBG_Indicators!G17 -> - | I23: =iBG_Indicators!H17 -> - | J23: =iBG_Indicators!I17 -> Moody’s: Aaa; S&P: AAA; Fitch: AAA; | O23: =IF($B$11=1,iBG_Indicators!AF17,0) -> 0 | P23: =IF($B$11=1,iBG_Indicators!AG17,0) -> 0 | Q23: =IF($B$11=1,iBG_Indicators!AH17,0) -> 0 | R23: =IF($B$11=1,iBG_Indicators!AI17,0) -> 0 | S23: =IF($B$11=1,iBG_Indicators!AJ17,0) -> 0
B24: =IF($B$11=1,iBG_Indicators!B18,0) -> 0 | C24: =iBG_Indicators!C18 -> 10 | D24: =iBG_Indicators!D18 -> Own source revenue (million US$) | F24: =iBG_Indicators!E18 -> 701.63 | G24: =iBG_Indicators!F18 -> - | H24: =iBG_Indicators!G18 -> - | I24: =iBG_Indicators!H18 -> 598.83 | J24: =iBG_Indicators!I18 -> 45600 | O24: =IF($B$11=1,iBG_Indicators!AF18,0) -> 0 | P24: =IF($B$11=1,iBG_Indicators!AG18,0) -> 0 | Q24: =IF($B$11=1,iBG_Indicators!AH18,0) -> 0 | R24: =IF($B$11=1,iBG_Indicators!AI18,0) -> 0 | S24: =IF($B$11=1,iBG_Indicators!AJ18,0) -> 0
B25: =IF($B$11=1,iBG_Indicators!B19,0) -> 0 | C25: =iBG_Indicators!C19 -> 11 | D25: =iBG_Indicators!D19 -> Total capital expenditures (million US$) | F25: =iBG_Indicators!E19 -> 423.86 | G25: =iBG_Indicators!F19 -> 632.17 | H25: =iBG_Indicators!G19 -> - | I25: =iBG_Indicators!H19 -> 463.52 | J25: =iBG_Indicators!I19 -> 9500 | O25: =IF($B$11=1,iBG_Indicators!AF19,0) -> 0 | P25: =IF($B$11=1,iBG_Indicators!AG19,0) -> 0 | Q25: =IF($B$11=1,iBG_Indicators!AH19,0) -> 0 | R25: =IF($B$11=1,iBG_Indicators!AI19,0) -> 0 | S25: =IF($B$11=1,iBG_Indicators!AJ19,0) -> 0
B26: =IF($B$11=1,iBG_Indicators!B20,0) -> 0 | C26: =iBG_Indicators!C20 -> 12 | D26: =iBG_Indicators!D20 -> Debt service payments (million US$) | F26: =iBG_Indicators!E20 -> 43.07 | G26: =iBG_Indicators!F20 -> - | H26: =iBG_Indicators!G20 -> 0.24 | I26: =iBG_Indicators!H20 -> 19 | J26: =iBG_Indicators!I20 -> 0 | O26: =IF($B$11=1,iBG_Indicators!AF20,0) -> 0 | P26: =IF($B$11=1,iBG_Indicators!AG20,0) -> 0 | Q26: =IF($B$11=1,iBG_Indicators!AH20,0) -> 0 | R26: =IF($B$11=1,iBG_Indicators!AI20,0) -> 0 | S26: =IF($B$11=1,iBG_Indicators!AJ20,0) -> 0
B27: =IF($B$11=1,iBG_Indicators!B21,0) -> 0 | C27: =iBG_Indicators!C21 -> 13 | D27: =iBG_Indicators!D21 -> City's GDP per capita (US$/capita) | F27: =iBG_Indicators!E21 -> 14257 | G27: =iBG_Indicators!F21 -> 34480 | H27: =iBG_Indicators!G21 -> 9507 | I27: =iBG_Indicators!H21 -> 7942 | J27: =iBG_Indicators!I21 -> 57714 | O27: =IF($B$11=1,iBG_Indicators!AF21,0) -> 0 | P27: =IF($B$11=1,iBG_Indicators!AG21,0) -> 0 | Q27: =IF($B$11=1,iBG_Indicators!AH21,0) -> 0 | R27: =IF($B$11=1,iBG_Indicators!AI21,0) -> 0 | S27: =IF($B$11=1,iBG_Indicators!AJ21,0) -> 0
B28: =IF($B$11=1,iBG_Indicators!B22,0) -> 0 | C28: =iBG_Indicators!C22 -> 14 | D28: =iBG_Indicators!D22 -> Average annual growth (GDP) rate in the past 10 years (%) | F28: =iBG_Indicators!E22 -> 13.1 | G28: =iBG_Indicators!F22 -> 0 | H28: =iBG_Indicators!G22 -> 5.8 | I28: =iBG_Indicators!H22 -> 10.2 | J28: =iBG_Indicators!I22 -> 3.5 | O28: =IF($B$11=1,iBG_Indicators!AF22,0) -> 0 | P28: =IF($B$11=1,iBG_Indicators!AG22,0) -> 0 | Q28: =IF($B$11=1,iBG_Indicators!AH22,0) -> 0 | R28: =IF($B$11=1,iBG_Indicators!AI22,0) -> 0 | S28: =IF($B$11=1,iBG_Indicators!AJ22,0) -> 0
B29: =IF($B$11=1,iBG_Indicators!B23,0) -> 0 | C29: =iBG_Indicators!C23 -> 15 | D29: =iBG_Indicators!D23 -> Number of days to obtain a business license (days) | F29: =iBG_Indicators!E23 -> - | G29: =iBG_Indicators!F23 -> - | H29: =iBG_Indicators!G23 -> - | I29: =iBG_Indicators!H23 -> - | J29: =iBG_Indicators!I23 -> 3 | O29: =IF($B$11=1,iBG_Indicators!AF23,0) -> 0 | P29: =IF($B$11=1,iBG_Indicators!AG23,0) -> 0 | Q29: =IF($B$11=1,iBG_Indicators!AH23,0) -> 0 | R29: =IF($B$11=1,iBG_Indicators!AI23,0) -> 0 | S29: =IF($B$11=1,iBG_Indicators!AJ23,0) -> 0
B30: =IF($B$11=1,iBG_Indicators!B24,0) -> 0 | C30: =iBG_Indicators!C24 -> 16 | D30: =iBG_Indicators!D24 -> Labor force by education level (% / level) | F30: =iBG_Indicators!E24 -> 43.4%/ Basic education 49.3%/Secondary education 66.5%/Tertiary education | G30: =iBG_Indicators!F24 -> 55.8%/Basic education 66.8%/Secondary education 76.7%/Tertiary education | H30: =iBG_Indicators!G24 -> - | I30: =iBG_Indicators!H24 -> - | J30: =iBG_Indicators!I24 -> - | O30: =IF($B$11=1,iBG_Indicators!AF24,0) -> 0 | P30: =IF($B$11=1,iBG_Indicators!AG24,0) -> 0 | Q30: =IF($B$11=1,iBG_Indicators!AH24,0) -> 0 | R30: =IF($B$11=1,iBG_Indicators!AI24,0) -> 0 | S30: =IF($B$11=1,iBG_Indicators!AJ24,0) -> 0
B31: =IF($B$11=1,iBG_Indicators!B25,0) -> 0 | C31: =iBG_Indicators!C25 -> 17 | D31: =iBG_Indicators!D25 -> Unemployment rate as a share of the labor force (%) | F31: =iBG_Indicators!E25 -> 14 | G31: =iBG_Indicators!F25 -> 9.5 | H31: =iBG_Indicators!G25 -> 0.9 | I31: =iBG_Indicators!H25 -> - | J31: =iBG_Indicators!I25 -> 2.2 | O31: =IF($B$11=1,iBG_Indicators!AF25,0) -> 0 | P31: =IF($B$11=1,iBG_Indicators!AG25,0) -> 0 | Q31: =IF($B$11=1,iBG_Indicators!AH25,0) -> 0 | R31: =IF($B$11=1,iBG_Indicators!AI25,0) -> 0 | S31: =IF($B$11=1,iBG_Indicators!AJ25,0) -> 0
B32: =IF($B$11=1,iBG_Indicators!B26,0) -> 0 | C32: =iBG_Indicators!C26 -> 18 | D32: =iBG_Indicators!D26 -> Income Gini coefficient | F32: =iBG_Indicators!E26 -> 0.39 | G32: =iBG_Indicators!F26 -> - | H32: =iBG_Indicators!G26 -> - | I32: =iBG_Indicators!H26 -> 0.68 | J32: =iBG_Indicators!I26 -> 0.46 | O32: =IF($B$11=1,iBG_Indicators!AF26,0) -> 0 | P32: =IF($B$11=1,iBG_Indicators!AG26,0) -> 0 | Q32: =IF($B$11=1,iBG_Indicators!AH26,0) -> 0 | R32: =IF($B$11=1,iBG_Indicators!AI26,0) -> 0 | S32: =IF($B$11=1,iBG_Indicators!AJ26,0) -> 0
B33: =IF($B$11=1,iBG_Indicators!B27,0) -> 0 | C33: =iBG_Indicators!C27 -> 19 | D33: =iBG_Indicators!D27 -> Hectares of permanent green space per 100,000 city residents (ha) | F33: =iBG_Indicators!E27 -> - | G33: =iBG_Indicators!F27 -> - | H33: =iBG_Indicators!G27 -> 5137.6 | I33: =iBG_Indicators!H27 -> - | J33: =iBG_Indicators!I27 -> - | O33: =IF($B$11=1,iBG_Indicators!AF27,0) -> 0 | P33: =IF($B$11=1,iBG_Indicators!AG27,0) -> 0 | Q33: =IF($B$11=1,iBG_Indicators!AH27,0) -> 0 | R33: =IF($B$11=1,iBG_Indicators!AI27,0) -> 0 | S33: =IF($B$11=1,iBG_Indicators!AJ27,0) -> 0
B34: =IF($B$11=1,iBG_Indicators!B28,0) -> 0 | C34: =iBG_Indicators!C28 -> 20 | D34: =iBG_Indicators!D28 -> Annual mean level of fine particulate matter in the city (Annual mean, ug/m3 PM2.5 and PM10) | F34: =iBG_Indicators!E28 -> 30 (PM2.5) 49 (PM10) | G34: =iBG_Indicators!F28 -> 12 (PM2.5) 25.2 (PM10) | H34: =iBG_Indicators!G28 -> - | I34: =iBG_Indicators!H28 -> - | J34: =iBG_Indicators!I28 -> 30 (PM 2.5) 18 (PM 10) | O34: =IF($B$11=1,iBG_Indicators!AF28,0) -> 0 | P34: =IF($B$11=1,iBG_Indicators!AG28,0) -> 0 | Q34: =IF($B$11=1,iBG_Indicators!AH28,0) -> 0 | R34: =IF($B$11=1,iBG_Indicators!AI28,0) -> 0 | S34: =IF($B$11=1,iBG_Indicators!AJ28,0) -> 0
B35: =IF($B$11=1,iBG_Indicators!B29,0) -> 0 | C35: =iBG_Indicators!C29 -> 21 | D35: =iBG_Indicators!D29 -> Annual household water consumption for all sectors (US$ Million) | F35: =iBG_Indicators!E29 -> 187,08 | G35: =iBG_Indicators!F29 -> - | H35: =iBG_Indicators!G29 -> - | I35: =iBG_Indicators!H29 -> - | J35: =iBG_Indicators!I29 -> - | O35: =IF($B$11=1,iBG_Indicators!AF29,0) -> 0 | P35: =IF($B$11=1,iBG_Indicators!AG29,0) -> 0 | Q35: =IF($B$11=1,iBG_Indicators!AH29,0) -> 0 | R35: =IF($B$11=1,iBG_Indicators!AI29,0) -> 0 | S35: =IF($B$11=1,iBG_Indicators!AJ29,0) -> 0
B36: =IF($B$11=1,iBG_Indicators!B30,0) -> 0 | C36: =iBG_Indicators!C30 -> 22 | D36: =iBG_Indicators!D30 -> Total solid waste generation per capita (kg /capita/day) | F36: =iBG_Indicators!E30 -> 1.32 | G36: =iBG_Indicators!F30 -> 1.46 | H36: =iBG_Indicators!G30 -> 0.33 | I36: =iBG_Indicators!H30 -> - | J36: =iBG_Indicators!I30 -> 0.86 | O36: =IF($B$11=1,iBG_Indicators!AF30,0) -> 0 | P36: =IF($B$11=1,iBG_Indicators!AG30,0) -> 0 | Q36: =IF($B$11=1,iBG_Indicators!AH30,0) -> 0 | R36: =IF($B$11=1,iBG_Indicators!AI30,0) -> 0 | S36: =IF($B$11=1,iBG_Indicators!AJ30,0) -> 0
B37: =IF($B$11=1,iBG_Indicators!B31,0) -> 0 | C37: =iBG_Indicators!C31 -> 23 | D37: =iBG_Indicators!D31 -> Material footprint per capita (metric tons) | F37: =iBG_Indicators!E31 -> - | G37: =iBG_Indicators!F31 -> - | H37: =iBG_Indicators!G31 -> - | I37: =iBG_Indicators!H31 -> - | J37: =iBG_Indicators!I31 -> 70.47 | O37: =IF($B$11=1,iBG_Indicators!AF31,0) -> 0 | P37: =IF($B$11=1,iBG_Indicators!AG31,0) -> 0 | Q37: =IF($B$11=1,iBG_Indicators!AH31,0) -> 0 | R37: =IF($B$11=1,iBG_Indicators!AI31,0) -> 0 | S37: =IF($B$11=1,iBG_Indicators!AJ31,0) -> 0
B38: =IF($B$11=1,iBG_Indicators!B32,0) -> 0 | C38: =iBG_Indicators!C32 -> 24 | D38: =iBG_Indicators!D32 -> Annual CO2 equivalent emissions per capita (tCO2/capita) | F38: =iBG_Indicators!E32 -> 5.31 | G38: =iBG_Indicators!F32 -> 3.8 | H38: =iBG_Indicators!G32 -> 2.29 | I38: =iBG_Indicators!H32 -> 1.77 | J38: =iBG_Indicators!I32 -> 10.31 | O38: =IF($B$11=1,iBG_Indicators!AF32,0) -> 0 | P38: =IF($B$11=1,iBG_Indicators!AG32,0) -> 0 | Q38: =IF($B$11=1,iBG_Indicators!AH32,0) -> 0 | R38: =IF($B$11=1,iBG_Indicators!AI32,0) -> 0 | S38: =IF($B$11=1,iBG_Indicators!AJ32,0) -> 0
B39: =IF($B$11=1,iBG_Indicators!B33,0) -> 0 | C39: =iBG_Indicators!C33 -> 25 | D39: =iBG_Indicators!D33 -> Total final energy consumption (GJ per capita) | F39: =iBG_Indicators!E33 -> - | G39: =iBG_Indicators!F33 -> 21.54 | H39: =iBG_Indicators!G33 -> - | I39: =iBG_Indicators!H33 -> 7.215849958 | J39: =iBG_Indicators!I33 -> 214.45 | O39: =IF($B$11=1,iBG_Indicators!AF33,0) -> 0 | P39: =IF($B$11=1,iBG_Indicators!AG33,0) -> 0 | Q39: =IF($B$11=1,iBG_Indicators!AH33,0) -> 0 | R39: =IF($B$11=1,iBG_Indicators!AI33,0) -> 0 | S39: =IF($B$11=1,iBG_Indicators!AJ33,0) -> 0
B40: =IF($B$11=1,iBG_Indicators!B34,0) -> 0 | C40: =iBG_Indicators!C34 -> 26 | D40: =iBG_Indicators!D34 -> Percentage of total energy derived from renewable sources, as share of city’s total final energy consumption (%) | F40: =iBG_Indicators!E34 -> - | G40: =iBG_Indicators!F34 -> - | H40: =iBG_Indicators!G34 -> - | I40: =iBG_Indicators!H34 -> - | J40: =iBG_Indicators!I34 -> 0.71 | O40: =IF($B$11=1,iBG_Indicators!AF34,0) -> 0 | P40: =IF($B$11=1,iBG_Indicators!AG34,0) -> 0 | Q40: =IF($B$11=1,iBG_Indicators!AH34,0) -> 0 | R40: =IF($B$11=1,iBG_Indicators!AI34,0) -> 0 | S40: =IF($B$11=1,iBG_Indicators!AJ34,0) -> 0
B41: =IF($B$11=1,iBG_Indicators!B35,0) -> 0 | C41: =iBG_Indicators!C35 -> 27 | D41: =iBG_Indicators!D35 -> 10-year average of direct disaster economic loss (,000 US$) | F41: =iBG_Indicators!E35 -> - | G41: =iBG_Indicators!F35 -> - | H41: =iBG_Indicators!G35 -> - | I41: =iBG_Indicators!H35 -> - | J41: =iBG_Indicators!I35 -> - | O41: =IF($B$11=1,iBG_Indicators!AF35,0) -> 0 | P41: =IF($B$11=1,iBG_Indicators!AG35,0) -> 0 | Q41: =IF($B$11=1,iBG_Indicators!AH35,0) -> 0 | R41: =IF($B$11=1,iBG_Indicators!AI35,0) -> 0 | S41: =IF($B$11=1,iBG_Indicators!AJ35,0) -> 0
B42: =IF($B$11=1,iBG_Indicators!B36,0) -> 0 | C42: =iBG_Indicators!C36 -> 28 | D42: =iBG_Indicators!D36 -> Housing shortage (number of housing units/number of households) | F42: =iBG_Indicators!E36 -> - | G42: =iBG_Indicators!F36 -> - | H42: =iBG_Indicators!G36 -> - | I42: =iBG_Indicators!H36 -> - | J42: =iBG_Indicators!I36 -> - | O42: =IF($B$11=1,iBG_Indicators!AF36,0) -> 0 | P42: =IF($B$11=1,iBG_Indicators!AG36,0) -> 0 | Q42: =IF($B$11=1,iBG_Indicators!AH36,0) -> 0 | R42: =IF($B$11=1,iBG_Indicators!AI36,0) -> 0 | S42: =IF($B$11=1,iBG_Indicators!AJ36,0) -> 0
B43: =IF($B$11=1,iBG_Indicators!B37,0) -> 0 | C43: =iBG_Indicators!C37 -> 29 | D43: =iBG_Indicators!D37 -> Percentage of malnourished children under five (% of children under five) | F43: =iBG_Indicators!E37 -> - | G43: =iBG_Indicators!F37 -> - | H43: =iBG_Indicators!G37 -> - | I43: =iBG_Indicators!H37 -> 0.0052 | J43: =iBG_Indicators!I37 -> - | O43: =IF($B$11=1,iBG_Indicators!AF37,0) -> 0 | P43: =IF($B$11=1,iBG_Indicators!AG37,0) -> 0 | Q43: =IF($B$11=1,iBG_Indicators!AH37,0) -> 0 | R43: =IF($B$11=1,iBG_Indicators!AI37,0) -> 0 | S43: =IF($B$11=1,iBG_Indicators!AJ37,0) -> 0
B44: =IF($B$11=1,iBG_Indicators!B38,0) -> 0 | C44: =iBG_Indicators!C38 -> 30 | D44: =iBG_Indicators!D38 -> People using safely managed drinking water services (% of population) | F44: =iBG_Indicators!E38 -> - | G44: =iBG_Indicators!F38 -> - | H44: =iBG_Indicators!G38 -> - | I44: =iBG_Indicators!H38 -> - | J44: =iBG_Indicators!I38 -> 100 | O44: =IF($B$11=1,iBG_Indicators!AF38,0) -> 0 | P44: =IF($B$11=1,iBG_Indicators!AG38,0) -> 0 | Q44: =IF($B$11=1,iBG_Indicators!AH38,0) -> 0 | R44: =IF($B$11=1,iBG_Indicators!AI38,0) -> 0 | S44: =IF($B$11=1,iBG_Indicators!AJ38,0) -> 0
B45: =IF($B$11=1,iBG_Indicators!B39,0) -> 0 | C45: =iBG_Indicators!C39 -> 31 | D45: =iBG_Indicators!D39 -> Total public and primary private health insurance coverage (% of total population covered) | F45: =iBG_Indicators!E39 -> - | G45: =iBG_Indicators!F39 -> 100 | H45: =iBG_Indicators!G39 -> - | I45: =iBG_Indicators!H39 -> 100 | J45: =iBG_Indicators!I39 -> - | O45: =IF($B$11=1,iBG_Indicators!AF39,0) -> 0 | P45: =IF($B$11=1,iBG_Indicators!AG39,0) -> 0 | Q45: =IF($B$11=1,iBG_Indicators!AH39,0) -> 0 | R45: =IF($B$11=1,iBG_Indicators!AI39,0) -> 0 | S45: =IF($B$11=1,iBG_Indicators!AJ39,0) -> 0

Sheet iBG_Indicators (hidden)
A1: =uxb_works!A152 -> City_Selected | B1: =uxb_works!B152 -> 3 | C1: =uxb_works!C152 -> Melaka | D1: Unit | E1: Year | F1: Source | G1: Notes | I1: Output
A2: =uxb_works!A153 -> Indicator_Selected | B2: =uxb_works!B153 -> 6 | D2: 5 | E2: 6 | F2: 7 | G2: 8 | S2: VERTICAL | Y2: Horizonal | AF2: Combo
A3: =uxb_works!A156 -> SELECTED_CELL | B3: =uxb_works!B156 -> $H$20 | D3: =IF(INDEX(aBG_All_Info,$C$5,D2)="","n/a",INDEX(aBG_All_Info,$C$5,D2)) -> % | E3: =IF(INDEX(aBG_All_Info,$C$5,E2)="","n/a",INDEX(aBG_All_Info,$C$5,E2)) -> n/a | F3: =IF(INDEX(aBG_All_Info,$C$5,F2)="","n/a",INDEX(aBG_All_Info,$C$5,F2)) -> n/a | G3: =IF(INDEX(aBG_All_Info,$C$5,G2)="","n/a",INDEX(aBG_All_Info,$C$5,G2)) -> No official city/state-level data was found. | I3: ="Units: "&D3&" "&"Year: "&E3&" "&"Source: "&F3&" "&"Notes: "&G3 -> Units: % Year: n/a Source: n/a Notes: No official city/state-level data was found.
L4: =IF(ISERROR(MATCH(1,L$9:L$39,0)),0,MATCH(1,L$9:L$39,0)) -> 0 | M4: =IF(ISERROR(MATCH(1,M$9:M$39,0)),0,MATCH(1,M$9:M$39,0)) -> 0 | N4: 6 | O4: 0 | P4: 0 | S4: =L4 -> 0 | T4: =M4 -> 0 | U4: 6 | V4: 0 | W4: 0
A5: row | B5: =C1&B2 -> Melaka6 | C5: =MATCH(B5,Background_indicators!A2:A156,0) -> 130
E6: =IF($B$1=E7,1,0) -> 0 | F6: =IF($B$1=F7,1,0) -> 0 | G6: 1 | H6: 0 | I6: 0 | L6: =E6 -> 0 | M6: =F6 -> 0 | N6: 1 | O6: 0 | P6: 0 | Z6: 1 | AA6: 2 | AB6: 3 | AC6: 4 | AD6: 5
E7: 1 | F7: 2 | G7: 3 | H7: 4 | I7: 5
E8: =INDEX(luCities,E7) -> Izmir | F8: =INDEX(luCities,F7) -> Lisbon | G8: =INDEX(luCities,G7) -> Melaka | H8: =INDEX(luCities,H7) -> Recife | I8: =INDEX(luCities,I7) -> Singapore | L8: =E8 -> Izmir | M8: =F8 -> Lisbon | N8: Melaka | O8: Recife | P8: Singapore | S8: =L8 -> Izmir | T8: =M8 -> Lisbon | U8: Melaka | V8: Recife | W8: Singapore | Z8: =S8 -> Izmir | AA8: =T8 -> Lisbon | AB8: Melaka | AC8: Recife | AD8: Singapore | AF8: =Z8 -> Izmir | AG8: =AA8 -> Lisbon | AH8: Melaka | AI8: Recife | AJ8: Singapore
B9: =IF($B$2=C9,1,0) -> 0 | C9: =tblIndiSets!A238 -> 1 | D9: =tblIndiSets!B238 -> Population | E9: =IF(INDEX(Background_indicators!$F$2:$F$156,MATCH(E$8&$C9,Background_indicators!$A$2:$A$156,0))="","-",INDEX(Background_indicators!$F$2:$F$156,MATCH(E$8&$C9,Background_indicators!$A$2:$A$156,0))) -> 4279677 | F9: =IF(INDEX(Background_indicators!$F$2:$F$156,MATCH(F$8&$C9,Background_indicators!$A$2:$A$156,0))="","-",INDEX(Background_indicators!$F$2:$F$156,MATCH(F$8&$C9,Background_indicators!$A$2:$A$156,0))) -> 506088 | G9: =IF(INDEX(Background_indicators!$F$2:$F$156,MATCH(G$8&$C9,Background_indicators!$A$2:$A$156,0))="","-",INDEX(Background_indicators!$F$2:$F$156,MATCH(G$8&$C9,Background_indicators!$A$2:$A$156,0))) -> 901700 | H9: =IF(INDEX(Background_indicators!$F$2:$F$156,MATCH(H$8&$C9,Background_indicators!$A$2:$A$156,0))="","-",INDEX(Background_indicators!$F$2:$F$156,MATCH(H$8&$C9,Background_indicators!$A$2:$A$156,0))) -> 1637834 | I9: =IF(INDEX(Background_indicators!$F$2:$F$156,MATCH(I$8&$C9,Background_indicators!$A$2:$A$156,0))="","-",INDEX(Background_indicators!$F$2:$F$156,MATCH(I$8&$C9,Background_indicators!$A$2:$A$156,0))) -> 5612250 | K9: =IF(ISERROR(MATCH(1,L9:P9,0)),0,MATCH(1,L9:P9,0)) -> 0 | L9: =IF(AND(L$6=1,$B9=1),1,0) -> 0 | M9: =IF(AND(M$6=1,$B9=1),1,0) -> 0 | N9: 0 | O9: 0 | P9: 0 | R9: 1 | S9: =IF(S$4=0,0,IF(S$4>=$R9,1,0)) -> 0 | T9: =IF(T$4=0,0,IF(T$4>=$R9,1,0)) -> 0 | U9: 1 | V9: 0 | W9: 0 | Z9: =IF($K9=0,0,IF($K9>=Z$6,1,0)) -> 0 | AA9: =IF($K9=0,0,IF($K9>=AA$6,1,0)) -> 0 | AB9: 0 | AC9: 0 | AD9: 0 | AF9: =S9+Z9 -> 0 | AG9: =T9+AA9 -> 0 | AH9: 1 | AI9: 0 | AJ9: 0
B10: =IF($B$2=C10,1,0) -> 0 | C10: =tblIndiSets!A239 -> 2 | D10: =tblIndiSets!B239 -> Annual growth rate of the local population (%) | E10: =IF(INDEX(Background_indicators!$F$2:$F$156,MATCH(E$8&$C10,Background_indicators!$A$2:$A$156,0))="","-",INDEX(Background_indicators!$F$2:$F$156,MATCH(E$8&$C10,Background_indicators!$A$2:$A$156,0))) -> 1.32 | F10: =IF(INDEX(Background_indicators!$F$2:$F$156,MATCH(F$8&$C10,Background_indicators!$A$2:$A$156,0))="","-",INDEX(Background_indicators!$F$2:$F$156,MATCH(F$8&$C10,Background_indicators!$A$2:$A$156,0))) -> 0.2 | G10: =IF(INDEX(Background_indicators!$F$2:$F$156,MATCH(G$8&$C10,Background_indicators!$A$2:$A$156,0))="","-",INDEX(Background_indicators!$F$2:$F$156,MATCH(G$8&$C10,Background_indicators!$A$2:$A$156,0))) -> 1.4 | H10: =IF(INDEX(Background_indicators!$F$2:$F$156,MATCH(H$8&$C10,Background_indicators!$A$2:$A$156,0))="","-",INDEX(Background_indicators!$F$2:$F$156,MATCH(H$8&$C10,Background_indicators!$A$2:$A$156,0))) -> 0.25 | I10: =IF(INDEX(Background_indicators!$F$2:$F$156,MATCH(I$8&$C10,Background_indicators!$A$2:$A$156,0))="","-",INDEX(Background_indicators!$F$2:$F$156,MATCH(I$8&$C10,Background_indicators!$A$2:$A$156,0))) -> 0.1 | K10: =IF(ISERROR(MATCH(1,L10:P10,0)),0,MATCH(1,L10:P10,0)) -> 0 | L10: =IF(AND(L$6=1,$B10=1),1,0) -> 0 | M10: 0 | N10: 0 | O10: 0 | P10: 0 | R10: 2 | S10: =IF(S$4=0,0,IF(S$4>=$R10,1,0)) -> 0 | T10: 0 | U10: 1 | V10: 0 | W10: 0 | Z10: =IF($K10=0,0,IF($K10>=Z$6,1,0)) -> 0 | AA10: 0 | AB10: 0 | AC10: 0 | AD10: 0 | AF10: =S10+Z10 -> 0 | AG10: =T10+AA10 -> 0 | AH10: =U10+AB10 -> 1 | AI10: =V10+AC10 -> 0 | AJ10: =W10+AD10 -> 0
B11: 0 | C11: =tblIndiSets!A240 -> 3 | D11: =tblIndiSets!B240 -> Age dependency ratio (% of working-age population) | E11: =IF(INDEX(Background_indicators!$F$2:$F$156,MATCH(E$8&$C11,Background_indicators!$A$2:$A$156,0))="","-",INDEX(Background_indicators!$F$2:$F$156,MATCH(E$8&$C11,Background_indicators!$A$2:$A$156,0))) -> 41.7 | F11: =IF(INDEX(Background_indicators!$F$2:$F$156,MATCH(F$8&$C11,Background_indicators!$A$2:$A$156,0))="","-",INDEX(Background_indicators!$F$2:$F$156,MATCH(F$8&$C11,Background_indicators!$A$2:$A$156,0))) -> 79.2 | G11: =IF(INDEX(Background_indicators!$F$2:$F$156,MATCH(G$8&$C11,Background_indicators!$A$2:$A$156,0))="","-",INDEX(Background_indicators!$F$2:$F$156,MATCH(G$8&$C11,Background_indicators!$A$2:$A$156,0))) -> 44.8 | H11: =IF(INDEX(Background_indicators!$F$2:$F$156,MATCH(H$8&$C11,Background_indicators!$A$2:$A$156,0))="","-",INDEX(Background_indicators!$F$2:$F$156,MATCH(H$8&$C11,Background_indicators!$A$2:$A$156,0))) -> 40.9 | I11: =IF(INDEX(Background_indicators!$F$2:$F$156,MATCH(I$8&$C11,Background_indicators!$A$2:$A$156,0))="","-",INDEX(Background_indicators!$F$2:$F$156,MATCH(I$8&$C11,Background_indicators!$A$2:$A$156,0))) -> 38.7 | K11: 0 | L11: 0 | M11: 0 | N11: 0 | O11: 0 | P11: 0 | R11: 3 | S11: 0 | T11: 0 | U11: 1 | V11: 0 | W11: 0 | Z11: 0 | AA11: 0 | AB11: 0 | AC11: 0 | AD11: 0 | AF11: 0 | AG11: 0 | AH11: 1 | AI11: 0 | AJ11: 0
B12: 0 | C12: =tblIndiSets!A241 -> 4 | D12: =tblIndiSets!B241 -> Years since land use plan was reviewed and updated (Years) | E12: =IF(INDEX(Background_indicators!$F$2:$F$156,MATCH(E$8&$C12,Background_indicators!$A$2:$A$156,0))="","-",INDEX(Background_indicators!$F$2:$F$156,MATCH(E$8&$C12,Background_indicators!$A$2:$A$156,0))) -> 0 | F12: =IF(INDEX(Background_indicators!$F$2:$F$156,MATCH(F$8&$C12,Background_indicators!$A$2:$A$156,0))="","-",INDEX(Background_indicators!$F$2:$F$156,MATCH(F$8&$C12,Background_indicators!$A$2:$A$156,0))) -> 0 | G12: =IF(INDEX(Background_indicators!$F$2:$F$156,MATCH(G$8&$C12,Background_indicators!$A$2:$A$156,0))="","-",INDEX(Background_indicators!$F$2:$F$156,MATCH(G$8&$C12,Background_indicators!$A$2:$A$156,0))) -> 0 | H12: =IF(INDEX(Background_indicators!$F$2:$F$156,MATCH(H$8&$C12,Background_indicators!$A$2:$A$156,0))="","-",INDEX(Background_indicators!$F$2:$F$156,MATCH(H$8&$C12,Background_indicators!$A$2:$A$156,0))) -> 10 | I12: =IF(INDEX(Background_indicators!$F$2:$F$156,MATCH(I$8&$C12,Background_indicators!$A$2:$A$156,0))="","-",INDEX(Background_indicators!$F$2:$F$156,MATCH(I$8&$C12,Background_indicators!$A$2:$A$156,0))) -> 4 | K12: 0 | L12: 0 | M12: 0 | N12: 0 | O12: 0 | P12: 0 | R12: 4 | S12: 0 | T12: 0 | U12: 1 | V12: 0 | W12: 0 | Z12: 0 | AA12: 0 | AB12: 0 | AC12: 0 | AD12: 0 | AF12: 0 | AG12: 0 | AH12: 1 | AI12: 0 | AJ12: 0
B13: 0 | C13: =tblIndiSets!A242 -> 5 | D13: =tblIndiSets!B242 -> Total city built up area (km2) | E13: =IF(INDEX(Background_indicators!$F$2:$F$156,MATCH(E$8&$C13,Background_indicators!$A$2:$A$156,0))="","-",INDEX(Background_indicators!$F$2:$F$156,MATCH(E$8&$C13,Background_indicators!$A$2:$A$156,0))) -> - | F13: =IF(INDEX(Background_indicators!$F$2:$F$156,MATCH(F$8&$C13,Background_indicators!$A$2:$A$156,0))="","-",INDEX(Background_indicators!$F$2:$F$156,MATCH(F$8&$C13,Background_indicators!$A$2:$A$156,0))) -> - | G13: =IF(INDEX(Background_indicators!$F$2:$F$156,MATCH(G$8&$C13,Background_indicators!$A$2:$A$156,0))="","-",INDEX(Background_indicators!$F$2:$F$156,MATCH(G$8&$C13,Background_indicators!$A$2:$A$156,0))) -> - | H13: =IF(INDEX(Background_indicators!$F$2:$F$156,MATCH(H$8&$C13,Background_indicators!$A$2:$A$156,0))="","-",INDEX(Background_indicators!$F$2:$F$156,MATCH(H$8&$C13,Background_indicators!$A$2:$A$156,0))) -> 38.475 | I13: =IF(INDEX(Background_indicators!$F$2:$F$156,MATCH(I$8&$C13,Background_indicators!$A$2:$A$156,0))="","-",INDEX(Background_indicators!$F$2:$F$156,MATCH(I$8&$C13,Background_indicators!$A$2:$A$156,0))) -> - | K13: 0 | L13: 0 | M13: 0 | N13: 0 | O13: 0 | P13: 0 | R13: 5 | S13: 0 | T13: 0 | U13: 1 | V13: 0 | W13: 0 | Z13: 0 | AA13: 0 | AB13: 0 | AC13: 0 | AD13: 0 | AF13: 0 | AG13: 0 | AH13: 1 | AI13: 0 | AJ13: 0
B14: 1 | C14: =tblIndiSets!A243 -> 6 | D14: =tblIndiSets!B243 -> Percentage of urban population living in slums (%) | E14: =IF(INDEX(Background_indicators!$F$2:$F$156,MATCH(E$8&$C14,Background_indicators!$A$2:$A$156,0))="","-",INDEX(Background_indicators!$F$2:$F$156,MATCH(E$8&$C14,Background_indicators!$A$2:$A$156,0))) -> - | F14: =IF(INDEX(Background_indicators!$F$2:$F$156,MATCH(F$8&$C14,Background_indicators!$A$2:$A$156,0))="","-",INDEX(Background_indicators!$F$2:$F$156,MATCH(F$8&$C14,Background_indicators!$A$2:$A$156,0))) -> - | G14: =IF(INDEX(Background_indicators!$F$2:$F$156,MATCH(G$8&$C14,Background_indicators!$A$2:$A$156,0))="","-",INDEX(Background_indicators!$F$2:$F$156,MATCH(G$8&$C14,Background_indicators!$A$2:$A$156,0))) -> - | H14: =IF(INDEX(Background_indicators!$F$2:$F$156,MATCH(H$8&$C14,Background_indicators!$A$2:$A$156,0))="","-",INDEX(Background_indicators!$F$2:$F$156,MATCH(H$8&$C14,Background_indicators!$A$2:$A$156,0))) -> 22.9 | I14: =IF(INDEX(Background_indicators!$F$2:$F$156,MATCH(I$8&$C14,Background_indicators!$A$2:$A$156,0))="","-",INDEX(Background_indicators!$F$2:$F$156,MATCH(I$8&$C14,Background_indicators!$A$2:$A$156,0))) -> 0 | K14: 3 | L14: 0 | M14: 0 | N14: 1 | O14: 0 | P14: 0 | R14: 6 | S14: 0 | T14: 0 | U14: 1 | V14: 0 | W14: 0 | Z14: 1 | AA14: 1 | AB14: 1 | AC14: 0 | AD14: 0 | AF14: 1 | AG14: 1 | AH14: 2 | AI14: 0 | AJ14: 0
B15: 0 | C15: =tblIndiSets!A244 -> 7 | D15: =tblIndiSets!B244 -> Percentage of households that declare they have access to public means of transport within 0.5 km. (%) | E15: =IF(INDEX(Background_indicators!$F$2:$F$156,MATCH(E$8&$C15,Background_indicators!$A$2:$A$156,0))="","-",INDEX(Background_indicators!$F$2:$F$156,MATCH(E$8&$C15,Background_indicators!$A$2:$A$156,0))) -> - | F15: =IF(INDEX(Background_indicators!$F$2:$F$156,MATCH(F$8&$C15,Background_indicators!$A$2:$A$156,0))="","-",INDEX(Background_indicators!$F$2:$F$156,MATCH(F$8&$C15,Background_indicators!$A$2:$A$156,0))) -> - | G15: =IF(INDEX(Background_indicators!$F$2:$F$156,MATCH(G$8&$C15,Background_indicators!$A$2:$A$156,0))="","-",INDEX(Background_indicators!$F$2:$F$156,MATCH(G$8&$C15,Background_indicators!$A$2:$A$156,0))) -> - | H15: =IF(INDEX(Background_indicators!$F$2:$F$156,MATCH(H$8&$C15,Background_indicators!$A$2:$A$156,0))="","-",INDEX(Background_indicators!$F$2:$F$156,MATCH(H$8&$C15,Background_indicators!$A$2:$A$156,0))) -> - | I15: =IF(INDEX(Background_indicators!$F$2:$F$156,MATCH(I$8&$C15,Background_indicators!$A$2:$A$156,0))="","-",INDEX(Background_indicators!$F$2:$F$156,MATCH(I$8&$C15,Background_indicators!$A$2:$A$156,0))) -> - | K15: 0 | L15: 0 | M15: 0 | N15: 0 | O15: 0 | P15: 0 | R15: 7 | S15: 0 | T15: 0 | U15: 0 | V15: 0 | W15: 0 | Z15: 0 | AA15: 0 | AB15: 0 | AC15: 0 | AD15: 0 | AF15: 0 | AG15: 0 | AH15: 0 | AI15: 0 | AJ15: 0
B16: 0 | C16: =tblIndiSets!A245 -> 8 | D16: =tblIndiSets!B245 -> Number of World Heritage sites within 100 km (UNESCO World Heritage Sites) | E16: =IF(INDEX(Background_indicators!$F$2:$F$156,MATCH(E$8&$C16,Background_indicators!$A$2:$A$156,0))="","-",INDEX(Background_indicators!$F$2:$F$156,MATCH(E$8&$C16,Background_indicators!$A$2:$A$156,0))) -> 2 | F16: =IF(INDEX(Background_indicators!$F$2:$F$156,MATCH(F$8&$C16,Background_indicators!$A$2:$A$156,0))="","-",INDEX(Background_indicators!$F$2:$F$156,MATCH(F$8&$C16,Background_indicators!$A$2:$A$156,0))) -> 5 | G16: =IF(INDEX(Background_indicators!$F$2:$F$156,MATCH(G$8&$C16,Background_indicators!$A$2:$A$156,0))="","-",INDEX(Background_indicators!$F$2:$F$156,MATCH(G$8&$C16,Background_indicators!$A$2:$A$156,0))) -> 1 | H16: =IF(INDEX(Background_indicators!$F$2:$F$156,MATCH(H$8&$C16,Background_indicators!$A$2:$A$156,0))="","-",INDEX(Background_indicators!$F$2:$F$156,MATCH(H$8&$C16,Background_indicators!$A$2:$A$156,0))) -> 1 | I16: =IF(INDEX(Background_indicators!$F$2:$F$156,MATCH(I$8&$C16,Background_indicators!$A$2:$A$156,0))="","-",INDEX(Background_indicators!$F$2:$F$156,MATCH(I$8&$C16,Background_indicators!$A$2:$A$156,0))) -> 1 | K16: 0 | L16: 0 | M16: 0 | N16: 0 | O16: 0 | P16: 0 | R16: 8 | S16: 0 | T16: 0 | U16: 0 | V16: 0 | W16: 0 | Z16: 0 | AA16: 0 | AB16: 0 | AC16: 0 | AD16: 0 | AF16: 0 | AG16: 0 | AH16: 0 | AI16: 0 | AJ16: 0
B17: 0 | C17: =tblIndiSets!A246 -> 9 | D17: =tblIndiSets!B246 -> Credit rating or shadow credit rating on the national credit rating scale of the country (rating - agency) | E17: =IF(INDEX(Background_indicators!$F$2:$F$156,MATCH(E$8&$C17,Background_indicators!$A$2:$A$156,0))="","-",INDEX(Background_indicators!$F$2:$F$156,MATCH(E$8&$C17,Background_indicators!$A$2:$A$156,0))) -> Ba3 - Moody's BB (Negative) - Fitch | F17: =IF(INDEX(Background_indicators!$F$2:$F$156,MATCH(F$8&$C17,Background_indicators!$A$2:$A$156,0))="","-",INDEX(Background_indicators!$F$2:$F$156,MATCH(F$8&$C17,Background_indicators!$A$2:$A$156,0))) -> - | G17: =IF(INDEX(Background_indicators!$F$2:$F$156,MATCH(G$8&$C17,Background_indicators!$A$2:$A$156,0))="","-",INDEX(Background_indicators!$F$2:$F$156,MATCH(G$8&$C17,Background_indicators!$A$2:$A$156,0))) -> - | H17: =IF(INDEX(Background_indicators!$F$2:$F$156,MATCH(H$8&$C17,Background_indicators!$A$2:$A$156,0))="","-",INDEX(Background_indicators!$F$2:$F$156,MATCH(H$8&$C17,Background_indicators!$A$2:$A$156,0))) -> - | I17: =IF(INDEX(Background_indicators!$F$2:$F$156,MATCH(I$8&$C17,Background_indicators!$A$2:$A$156,0))="","-",INDEX(Background_indicators!$F$2:$F$156,MATCH(I$8&$C17,Background_indicators!$A$2:$A$156,0))) -> Moody’s: Aaa; S&P: AAA; Fitch: AAA; | K17: 0 | L17: 0 | M17: 0 | N17: 0 | O17: 0 | P17: 0 | R17: 9 | S17: 0 | T17: 0 | U17: 0 | V17: 0 | W17: 0 | Z17: 0 | AA17: 0 | AB17: 0 | AC17: 0 | AD17: 0 | AF17: 0 | AG17: 0 | AH17: 0 | AI17: 0 | AJ17: 0
B18: 0 | C18: =tblIndiSets!A247 -> 10 | D18: =tblIndiSets!B247 -> Own source revenue (million US$) | E18: =IF(INDEX(Background_indicators!$F$2:$F$156,MATCH(E$8&$C18,Background_indicators!$A$2:$A$156,0))="","-",INDEX(Background_indicators!$F$2:$F$156,MATCH(E$8&$C18,Background_indicators!$A$2:$A$156,0))) -> 701.63 | F18: =IF(INDEX(Background_indicators!$F$2:$F$156,MATCH(F$8&$C18,Background_indicators!$A$2:$A$156,0))="","-",INDEX(Background_indicators!$F$2:$F$156,MATCH(F$8&$C18,Background_indicators!$A$2:$A$156,0))) -> - | G18: =IF(INDEX(Background_indicators!$F$2:$F$156,MATCH(G$8&$C18,Background_indicators!$A$2:$A$156,0))="","-",INDEX(Background_indicators!$F$2:$F$156,MATCH(G$8&$C18,Background_indicators!$A$2:$A$156,0))) -> - | H18: =IF(INDEX(Background_indicators!$F$2:$F$156,MATCH(H$8&$C18,Background_indicators!$A$2:$A$156,0))="","-",INDEX(Background_indicators!$F$2:$F$156,MATCH(H$8&$C18,Background_indicators!$A$2:$A$156,0))) -> 598.83 | I18: =IF(INDEX(Background_indicators!$F$2:$F$156,MATCH(I$8&$C18,Background_indicators!$A$2:$A$156,0))="","-",INDEX(Background_indicators!$F$2:$F$156,MATCH(I$8&$C18,Background_indicators!$A$2:$A$156,0))) -> 45600 | K18: 0 | L18: 0 | M18: 0 | N18: 0 | O18: 0 | P18: 0 | R18: 10 | S18: 0 | T18: 0 | U18: 0 | V18: 0 | W18: 0 | Z18: 0 | AA18: 0 | AB18: 0 | AC18: 0 | AD18: 0 | AF18: 0 | AG18: 0 | AH18: 0 | AI18: 0 | AJ18: 0
B19: 0 | C19: =tblIndiSets!A248 -> 11 | D19: =tblIndiSets!B248 -> Total capital expenditures (million US$) | E19: =IF(INDEX(Background_indicators!$F$2:$F$156,MATCH(E$8&$C19,Background_indicators!$A$2:$A$156,0))="","-",INDEX(Background_indicators!$F$2:$F$156,MATCH(E$8&$C19,Background_indicators!$A$2:$A$156,0))) -> 423.86 | F19: =IF(INDEX(Background_indicators!$F$2:$F$156,MATCH(F$8&$C19,Background_indicators!$A$2:$A$156,0))="","-",INDEX(Background_indicators!$F$2:$F$156,MATCH(F$8&$C19,Background_indicators!$A$2:$A$156,0))) -> 632.17 | G19: =IF(INDEX(Background_indicators!$F$2:$F$156,MATCH(G$8&$C19,Background_indicators!$A$2:$A$156,0))="","-",INDEX(Background_indicators!$F$2:$F$156,MATCH(G$8&$C19,Background_indicators!$A$2:$A$156,0))) -> - | H19: =IF(INDEX(Background_indicators!$F$2:$F$156,MATCH(H$8&$C19,Background_indicators!$A$2:$A$156,0))="","-",INDEX(Background_indicators!$F$2:$F$156,MATCH(H$8&$C19,Background_indicators!$A$2:$A$156,0))) -> 463.52 | I19: =IF(INDEX(Background_indicators!$F$2:$F$156,MATCH(I$8&$C19,Background_indicators!$A$2:$A$156,0))="","-",INDEX(Background_indicators!$F$2:$F$156,MATCH(I$8&$C19,Background_indicators!$A$2:$A$156,0))) -> 9500 | K19: 0 | L19: 0 | M19: 0 | N19: 0 | O19: 0 | P19: 0 | R19: 11 | S19: 0 | T19: 0 | U19: 0 | V19: 0 | W19: 0 | Z19: 0 | AA19: 0 | AB19: 0 | AC19: 0 | AD19: 0 | AF19: 0 | AG19: 0 | AH19: 0 | AI19: 0 | AJ19: 0
B20: 0 | C20: =tblIndiSets!A249 -> 12 | D20: =tblIndiSets!B249 -> Debt service payments (million US$) | E20: =IF(INDEX(Background_indicators!$F$2:$F$156,MATCH(E$8&$C20,Background_indicators!$A$2:$A$156,0))="","-",INDEX(Background_indicators!$F$2:$F$156,MATCH(E$8&$C20,Background_indicators!$A$2:$A$156,0))) -> 43.07 | F20: =IF(INDEX(Background_indicators!$F$2:$F$156,MATCH(F$8&$C20,Background_indicators!$A$2:$A$156,0))="","-",INDEX(Background_indicators!$F$2:$F$156,MATCH(F$8&$C20,Background_indicators!$A$2:$A$156,0))) -> - | G20: =IF(INDEX(Background_indicators!$F$2:$F$156,MATCH(G$8&$C20,Background_indicators!$A$2:$A$156,0))="","-",INDEX(Background_indicators!$F$2:$F$156,MATCH(G$8&$C20,Background_indicators!$A$2:$A$156,0))) -> 0.24 | H20: =IF(INDEX(Background_indicators!$F$2:$F$156,MATCH(H$8&$C20,Background_indicators!$A$2:$A$156,0))="","-",INDEX(Background_indicators!$F$2:$F$156,MATCH(H$8&$C20,Background_indicators!$A$2:$A$156,0))) -> 19 | I20: =IF(INDEX(Background_indicators!$F$2:$F$156,MATCH(I$8&$C20,Background_indicators!$A$2:$A$156,0))="","-",INDEX(Background_indicators!$F$2:$F$156,MATCH(I$8&$C20,Background_indicators!$A$2:$A$156,0))) -> 0 | K20: 0 | L20: 0 | M20: 0 | N20: 0 | O20: 0 | P20: 0 | R20: 12 | S20: 0 | T20: 0 | U20: 0 | V20: 0 | W20: 0 | Z20: 0 | AA20: 0 | AB20: 0 | AC20: 0 | AD20: 0 | AF20: 0 | AG20: 0 | AH20: 0 | AI20: 0 | AJ20: 0
B21: 0 | C21: =tblIndiSets!A250 -> 13 | D21: =tblIndiSets!B250 -> City's GDP per capita (US$/capita) | E21: =IF(INDEX(Background_indicators!$F$2:$F$156,MATCH(E$8&$C21,Background_indicators!$A$2:$A$156,0))="","-",INDEX(Background_indicators!$F$2:$F$156,MATCH(E$8&$C21,Background_indicators!$A$2:$A$156,0))) -> 14257 | F21: =IF(INDEX(Background_indicators!$F$2:$F$156,MATCH(F$8&$C21,Background_indicators!$A$2:$A$156,0))="","-",INDEX(Background_indicators!$F$2:$F$156,MATCH(F$8&$C21,Background_indicators!$A$2:$A$156,0))) -> 34480 | G21: =IF(INDEX(Background_indicators!$F$2:$F$156,MATCH(G$8&$C21,Background_indicators!$A$2:$A$156,0))="","-",INDEX(Background_indicators!$F$2:$F$156,MATCH(G$8&$C21,Background_indicators!$A$2:$A$156,0))) -> 9507 | H21: =IF(INDEX(Background_indicators!$F$2:$F$156,MATCH(H$8&$C21,Background_indicators!$A$2:$A$156,0))="","-",INDEX(Background_indicators!$F$2:$F$156,MATCH(H$8&$C21,Background_indicators!$A$2:$A$156,0))) -> 7942 | I21: =IF(INDEX(Background_indicators!$F$2:$F$156,MATCH(I$8&$C21,Background_indicators!$A$2:$A$156,0))="","-",INDEX(Background_indicators!$F$2:$F$156,MATCH(I$8&$C21,Background_indicators!$A$2:$A$156,0))) -> 57714 | K21: 0 | L21: 0 | M21: 0 | N21: 0 | O21: 0 | P21: 0 | R21: 13 | S21: 0 | T21: 0 | U21: 0 | V21: 0 | W21: 0 | Z21: 0 | AA21: 0 | AB21: 0 | AC21: 0 | AD21: 0 | AF21: 0 | AG21: 0 | AH21: 0 | AI21: 0 | AJ21: 0
B22: 0 | C22: =tblIndiSets!A251 -> 14 | D22: =tblIndiSets!B251 -> Average annual growth (GDP) rate in the past 10 years (%) | E22: =IF(INDEX(Background_indicators!$F$2:$F$156,MATCH(E$8&$C22,Background_indicators!$A$2:$A$156,0))="","-",INDEX(Background_indicators!$F$2:$F$156,MATCH(E$8&$C22,Background_indicators!$A$2:$A$156,0))) -> 13.1 | F22: =IF(INDEX(Background_indicators!$F$2:$F$156,MATCH(F$8&$C22,Background_indicators!$A$2:$A$156,0))="","-",INDEX(Background_indicators!$F$2:$F$156,MATCH(F$8&$C22,Background_indicators!$A$2:$A$156,0))) -> 0 | G22: =IF(INDEX(Background_indicators!$F$2:$F$156,MATCH(G$8&$C22,Background_indicators!$A$2:$A$156,0))="","-",INDEX(Background_indicators!$F$2:$F$156,MATCH(G$8&$C22,Background_indicators!$A$2:$A$156,0))) -> 5.8 | H22: =IF(INDEX(Background_indicators!$F$2:$F$156,MATCH(H$8&$C22,Background_indicators!$A$2:$A$156,0))="","-",INDEX(Background_indicators!$F$2:$F$156,MATCH(H$8&$C22,Background_indicators!$A$2:$A$156,0))) -> 10.2 | I22: =IF(INDEX(Background_indicators!$F$2:$F$156,MATCH(I$8&$C22,Background_indicators!$A$2:$A$156,0))="","-",INDEX(Background_indicators!$F$2:$F$156,MATCH(I$8&$C22,Background_indicators!$A$2:$A$156,0))) -> 3.5 | K22: 0 | L22: 0 | M22: 0 | N22: 0 | O22: 0 | P22: 0 | R22: 14 | S22: 0 | T22: 0 | U22: 0 | V22: 0 | W22: 0 | Z22: 0 | AA22: 0 | AB22: 0 | AC22: 0 | AD22: 0 | AF22: 0 | AG22: 0 | AH22: 0 | AI22: 0 | AJ22: 0
B23: 0 | C23: =tblIndiSets!A252 -> 15 | D23: =tblIndiSets!B252 -> Number of days to obtain a business license (days) | E23: =IF(INDEX(Background_indicators!$F$2:$F$156,MATCH(E$8&$C23,Background_indicators!$A$2:$A$156,0))="","-",INDEX(Background_indicators!$F$2:$F$156,MATCH(E$8&$C23,Background_indicators!$A$2:$A$156,0))) -> - | F23: =IF(INDEX(Background_indicators!$F$2:$F$156,MATCH(F$8&$C23,Background_indicators!$A$2:$A$156,0))="","-",INDEX(Background_indicators!$F$2:$F$156,MATCH(F$8&$C23,Background_indicators!$A$2:$A$156,0))) -> - | G23: =IF(INDEX(Background_indicators!$F$2:$F$156,MATCH(G$8&$C23,Background_indicators!$A$2:$A$156,0))="","-",INDEX(Background_indicators!$F$2:$F$156,MATCH(G$8&$C23,Background_indicators!$A$2:$A$156,0))) -> - | H23: =IF(INDEX(Background_indicators!$F$2:$F$156,MATCH(H$8&$C23,Background_indicators!$A$2:$A$156,0))="","-",INDEX(Background_indicators!$F$2:$F$156,MATCH(H$8&$C23,Background_indicators!$A$2:$A$156,0))) -> - | I23: =IF(INDEX(Background_indicators!$F$2:$F$156,MATCH(I$8&$C23,Background_indicators!$A$2:$A$156,0))="","-",INDEX(Background_indicators!$F$2:$F$156,MATCH(I$8&$C23,Background_indicators!$A$2:$A$156,0))) -> 3 | K23: 0 | L23: 0 | M23: 0 | N23: 0 | O23: 0 | P23: 0 | R23: 15 | S23: 0 | T23: 0 | U23: 0 | V23: 0 | W23: 0 | Z23: 0 | AA23: 0 | AB23: 0 | AC23: 0 | AD23: 0 | AF23: 0 | AG23: 0 | AH23: 0 | AI23: 0 | AJ23: 0
B24: 0 | C24: =tblIndiSets!A253 -> 16 | D24: =tblIndiSets!B253 -> Labor force by education level (% / level) | E24: =IF(INDEX(Background_indicators!$F$2:$F$156,MATCH(E$8&$C24,Background_indicators!$A$2:$A$156,0))="","-",INDEX(Background_indicators!$F$2:$F$156,MATCH(E$8&$C24,Background_indicators!$A$2:$A$156,0))) -> 43.4%/ Basic education 49.3%/Secondary education 66.5%/Tertiary education | F24: =IF(INDEX(Background_indicators!$F$2:$F$156,MATCH(F$8&$C24,Background_indicators!$A$2:$A$156,0))="","-",INDEX(Background_indicators!$F$2:$F$156,MATCH(F$8&$C24,Background_indicators!$A$2:$A$156,0))) -> 55.8%/Basic education 66.8%/Secondary education 76.7%/Tertiary education | G24: =IF(INDEX(Background_indicators!$F$2:$F$156,MATCH(G$8&$C24,Background_indicators!$A$2:$A$156,0))="","-",INDEX(Background_indicators!$F$2:$F$156,MATCH(G$8&$C24,Background_indicators!$A$2:$A$156,0))) -> - | H24: =IF(INDEX(Background_indicators!$F$2:$F$156,MATCH(H$8&$C24,Background_indicators!$A$2:$A$156,0))="","-",INDEX(Background_indicators!$F$2:$F$156,MATCH(H$8&$C24,Background_indicators!$A$2:$A$156,0))) -> - | I24: =IF(INDEX(Background_indicators!$F$2:$F$156,MATCH(I$8&$C24,Background_indicators!$A$2:$A$156,0))="","-",INDEX(Background_indicators!$F$2:$F$156,MATCH(I$8&$C24,Background_indicators!$A$2:$A$156,0))) -> - | K24: 0 | L24: 0 | M24: 0 | N24: 0 | O24: 0 | P24: 0 | R24: 16 | S24: 0 | T24: 0 | U24: 0 | V24: 0 | W24: 0 | Z24: 0 | AA24: 0 | AB24: 0 | AC24: 0 | AD24: 0 | AF24: 0 | AG24: 0 | AH24: 0 | AI24: 0 | AJ24: 0
B25: 0 | C25: =tblIndiSets!A254 -> 17 | D25: =tblIndiSets!B254 -> Unemployment rate as a share of the labor force (%) | E25: =IF(INDEX(Background_indicators!$F$2:$F$156,MATCH(E$8&$C25,Background_indicators!$A$2:$A$156,0))="","-",INDEX(Background_indicators!$F$2:$F$156,MATCH(E$8&$C25,Background_indicators!$A$2:$A$156,0))) -> 14 | F25: =IF(INDEX(Background_indicators!$F$2:$F$156,MATCH(F$8&$C25,Background_indicators!$A$2:$A$156,0))="","-",INDEX(Background_indicators!$F$2:$F$156,MATCH(F$8&$C25,Background_indicators!$A$2:$A$156,0))) -> 9.5 | G25: =IF(INDEX(Background_indicators!$F$2:$F$156,MATCH(G$8&$C25,Background_indicators!$A$2:$A$156,0))="","-",INDEX(Background_indicators!$F$2:$F$156,MATCH(G$8&$C25,Background_indicators!$A$2:$A$156,0))) -> 0.9 | H25: =IF(INDEX(Background_indicators!$F$2:$F$156,MATCH(H$8&$C25,Background_indicators!$A$2:$A$156,0))="","-",INDEX(Background_indicators!$F$2:$F$156,MATCH(H$8&$C25,Background_indicators!$A$2:$A$156,0))) -> - | I25: =IF(INDEX(Background_indicators!$F$2:$F$156,MATCH(I$8&$C25,Background_indicators!$A$2:$A$156,0))="","-",INDEX(Background_indicators!$F$2:$F$156,MATCH(I$8&$C25,Background_indicators!$A$2:$A$156,0))) -> 2.2 | K25: 0 | L25: 0 | M25: 0 | N25: 0 | O25: 0 | P25: 0 | R25: 17 | S25: 0 | T25: 0 | U25: 0 | V25: 0 | W25: 0 | Z25: 0 | AA25: 0 | AB25: 0 | AC25: 0 | AD25: 0 | AF25: 0 | AG25: 0 | AH25: 0 | AI25: 0 | AJ25: 0
B26: 0 | C26: =tblIndiSets!A255 -> 18 | D26: =tblIndiSets!B255 -> Income Gini coefficient | E26: =IF(INDEX(Background_indicators!$F$2:$F$156,MATCH(E$8&$C26,Background_indicators!$A$2:$A$156,0))="","-",INDEX(Background_indicators!$F$2:$F$156,MATCH(E$8&$C26,Background_indicators!$A$2:$A$156,0))) -> 0.39 | F26: =IF(INDEX(Background_indicators!$F$2:$F$156,MATCH(F$8&$C26,Background_indicators!$A$2:$A$156,0))="","-",INDEX(Background_indicators!$F$2:$F$156,MATCH(F$8&$C26,Background_indicators!$A$2:$A$156,0))) -> - | G26: =IF(INDEX(Background_indicators!$F$2:$F$156,MATCH(G$8&$C26,Background_indicators!$A$2:$A$156,0))="","-",INDEX(Background_indicators!$F$2:$F$156,MATCH(G$8&$C26,Background_indicators!$A$2:$A$156,0))) -> - | H26: =IF(INDEX(Background_indicators!$F$2:$F$156,MATCH(H$8&$C26,Background_indicators!$A$2:$A$156,0))="","-",INDEX(Background_indicators!$F$2:$F$156,MATCH(H$8&$C26,Background_indicators!$A$2:$A$156,0))) -> 0.68 | I26: =IF(INDEX(Background_indicators!$F$2:$F$156,MATCH(I$8&$C26,Background_indicators!$A$2:$A$156,0))="","-",INDEX(Background_indicators!$F$2:$F$156,MATCH(I$8&$C26,Background_indicators!$A$2:$A$156,0))) -> 0.46 | K26: 0 | L26: 0 | M26: 0 | N26: 0 | O26: 0 | P26: 0 | R26: 18 | S26: 0 | T26: 0 | U26: 0 | V26: 0 | W26: 0 | Z26: 0 | AA26: 0 | AB26: 0 | AC26: 0 | AD26: 0 | AF26: 0 | AG26: 0 | AH26: 0 | AI26: 0 | AJ26: 0
B27: 0 | C27: =tblIndiSets!A256 -> 19 | D27: =tblIndiSets!B256 -> Hectares of permanent green space per 100,000 city residents (ha) | E27: =IF(INDEX(Background_indicators!$F$2:$F$156,MATCH(E$8&$C27,Background_indicators!$A$2:$A$156,0))="","-",INDEX(Background_indicators!$F$2:$F$156,MATCH(E$8&$C27,Background_indicators!$A$2:$A$156,0))) -> - | F27: =IF(INDEX(Background_indicators!$F$2:$F$156,MATCH(F$8&$C27,Background_indicators!$A$2:$A$156,0))="","-",INDEX(Background_indicators!$F$2:$F$156,MATCH(F$8&$C27,Background_indicators!$A$2:$A$156,0))) -> - | G27: =IF(INDEX(Background_indicators!$F$2:$F$156,MATCH(G$8&$C27,Background_indicators!$A$2:$A$156,0))="","-",INDEX(Background_indicators!$F$2:$F$156,MATCH(G$8&$C27,Background_indicators!$A$2:$A$156,0))) -> 5137.6 | H27: =IF(INDEX(Background_indicators!$F$2:$F$156,MATCH(H$8&$C27,Background_indicators!$A$2:$A$156,0))="","-",INDEX(Background_indicators!$F$2:$F$156,MATCH(H$8&$C27,Background_indicators!$A$2:$A$156,0))) -> - | I27: =IF(INDEX(Background_indicators!$F$2:$F$156,MATCH(I$8&$C27,Background_indicators!$A$2:$A$156,0))="","-",INDEX(Background_indicators!$F$2:$F$156,MATCH(I$8&$C27,Background_indicators!$A$2:$A$156,0))) -> - | K27: 0 | L27: 0 | M27: 0 | N27: 0 | O27: 0 | P27: 0 | R27: 19 | S27: 0 | T27: 0 | U27: 0 | V27: 0 | W27: 0 | Z27: 0 | AA27: 0 | AB27: 0 | AC27: 0 | AD27: 0 | AF27: 0 | AG27: 0 | AH27: 0 | AI27: 0 | AJ27: 0
B28: 0 | C28: =tblIndiSets!A257 -> 20 | D28: =tblIndiSets!B257 -> Annual mean level of fine particulate matter in the city (Annual mean, ug/m3 PM2.5 and PM10) | E28: =IF(INDEX(Background_indicators!$F$2:$F$156,MATCH(E$8&$C28,Background_indicators!$A$2:$A$156,0))="","-",INDEX(Background_indicators!$F$2:$F$156,MATCH(E$8&$C28,Background_indicators!$A$2:$A$156,0))) -> 30 (PM2.5) 49 (PM10) | F28: =IF(INDEX(Background_indicators!$F$2:$F$156,MATCH(F$8&$C28,Background_indicators!$A$2:$A$156,0))="","-",INDEX(Background_indicators!$F$2:$F$156,MATCH(F$8&$C28,Background_indicators!$A$2:$A$156,0))) -> 12 (PM2.5) 25.2 (PM10) | G28: =IF(INDEX(Background_indicators!$F$2:$F$156,MATCH(G$8&$C28,Background_indicators!$A$2:$A$156,0))="","-",INDEX(Background_indicators!$F$2:$F$156,MATCH(G$8&$C28,Background_indicators!$A$2:$A$156,0))) -> - | H28: =IF(INDEX(Background_indicators!$F$2:$F$156,MATCH(H$8&$C28,Background_indicators!$A$2:$A$156,0))="","-",INDEX(Background_indicators!$F$2:$F$156,MATCH(H$8&$C28,Background_indicators!$A$2:$A$156,0))) -> - | I28: =IF(INDEX(Background_indicators!$F$2:$F$156,MATCH(I$8&$C28,Background_indicators!$A$2:$A$156,0))="","-",INDEX(Background_indicators!$F$2:$F$156,MATCH(I$8&$C28,Background_indicators!$A$2:$A$156,0))) -> 30 (PM 2.5) 18 (PM 10) | K28: 0 | L28: 0 | M28: 0 | N28: 0 | O28: 0 | P28: 0 | R28: 20 | S28: 0 | T28: 0 | U28: 0 | V28: 0 | W28: 0 | Z28: 0 | AA28: 0 | AB28: 0 | AC28: 0 | AD28: 0 | AF28: 0 | AG28: 0 | AH28: 0 | AI28: 0 | AJ28: 0
B29: 0 | C29: =tblIndiSets!A258 -> 21 | D29: =tblIndiSets!B258 -> Annual household water consumption for all sectors (US$ Million) | E29: =IF(INDEX(Background_indicators!$F$2:$F$156,MATCH(E$8&$C29,Background_indicators!$A$2:$A$156,0))="","-",INDEX(Background_indicators!$F$2:$F$156,MATCH(E$8&$C29,Background_indicators!$A$2:$A$156,0))) -> 187,08 | F29: =IF(INDEX(Background_indicators!$F$2:$F$156,MATCH(F$8&$C29,Background_indicators!$A$2:$A$156,0))="","-",INDEX(Background_indicators!$F$2:$F$156,MATCH(F$8&$C29,Background_indicators!$A$2:$A$156,0))) -> - | G29: =IF(INDEX(Background_indicators!$F$2:$F$156,MATCH(G$8&$C29,Background_indicators!$A$2:$A$156,0))="","-",INDEX(Background_indicators!$F$2:$F$156,MATCH(G$8&$C29,Background_indicators!$A$2:$A$156,0))) -> - | H29: =IF(INDEX(Background_indicators!$F$2:$F$156,MATCH(H$8&$C29,Background_indicators!$A$2:$A$156,0))="","-",INDEX(Background_indicators!$F$2:$F$156,MATCH(H$8&$C29,Background_indicators!$A$2:$A$156,0))) -> - | I29: =IF(INDEX(Background_indicators!$F$2:$F$156,MATCH(I$8&$C29,Background_indicators!$A$2:$A$156,0))="","-",INDEX(Background_indicators!$F$2:$F$156,MATCH(I$8&$C29,Background_indicators!$A$2:$A$156,0))) -> - | K29: 0 | L29: 0 | M29: 0 | N29: 0 | O29: 0 | P29: 0 | R29: 21 | S29: 0 | T29: 0 | U29: 0 | V29: 0 | W29: 0 | Z29: 0 | AA29: 0 | AB29: 0 | AC29: 0 | AD29: 0 | AF29: 0 | AG29: 0 | AH29: 0 | AI29: 0 | AJ29: 0
B30: 0 | C30: =tblIndiSets!A259 -> 22 | D30: =tblIndiSets!B259 -> Total solid waste generation per capita (kg /capita/day) | E30: =IF(INDEX(Background_indicators!$F$2:$F$156,MATCH(E$8&$C30,Background_indicators!$A$2:$A$156,0))="","-",INDEX(Background_indicators!$F$2:$F$156,MATCH(E$8&$C30,Background_indicators!$A$2:$A$156,0))) -> 1.32 | F30: =IF(INDEX(Background_indicators!$F$2:$F$156,MATCH(F$8&$C30,Background_indicators!$A$2:$A$156,0))="","-",INDEX(Background_indicators!$F$2:$F$156,MATCH(F$8&$C30,Background_indicators!$A$2:$A$156,0))) -> 1.46 | G30: =IF(INDEX(Background_indicators!$F$2:$F$156,MATCH(G$8&$C30,Background_indicators!$A$2:$A$156,0))="","-",INDEX(Background_indicators!$F$2:$F$156,MATCH(G$8&$C30,Background_indicators!$A$2:$A$156,0))) -> 0.33 | H30: =IF(INDEX(Background_indicators!$F$2:$F$156,MATCH(H$8&$C30,Background_indicators!$A$2:$A$156,0))="","-",INDEX(Background_indicators!$F$2:$F$156,MATCH(H$8&$C30,Background_indicators!$A$2:$A$156,0))) -> - | I30: =IF(INDEX(Background_indicators!$F$2:$F$156,MATCH(I$8&$C30,Background_indicators!$A$2:$A$156,0))="","-",INDEX(Background_indicators!$F$2:$F$156,MATCH(I$8&$C30,Background_indicators!$A$2:$A$156,0))) -> 0.86 | K30: 0 | L30: 0 | M30: 0 | N30: 0 | O30: 0 | P30: 0 | R30: 22 | S30: 0 | T30: 0 | U30: 0 | V30: 0 | W30: 0 | Z30: 0 | AA30: 0 | AB30: 0 | AC30: 0 | AD30: 0 | AF30: 0 | AG30: 0 | AH30: 0 | AI30: 0 | AJ30: 0
B31: 0 | C31: =tblIndiSets!A260 -> 23 | D31: =tblIndiSets!B260 -> Material footprint per capita (metric tons) | E31: =IF(INDEX(Background_indicators!$F$2:$F$156,MATCH(E$8&$C31,Background_indicators!$A$2:$A$156,0))="","-",INDEX(Background_indicators!$F$2:$F$156,MATCH(E$8&$C31,Background_indicators!$A$2:$A$156,0))) -> - | F31: =IF(INDEX(Background_indicators!$F$2:$F$156,MATCH(F$8&$C31,Background_indicators!$A$2:$A$156,0))="","-",INDEX(Background_indicators!$F$2:$F$156,MATCH(F$8&$C31,Background_indicators!$A$2:$A$156,0))) -> - | G31: =IF(INDEX(Background_indicators!$F$2:$F$156,MATCH(G$8&$C31,Background_indicators!$A$2:$A$156,0))="","-",INDEX(Background_indicators!$F$2:$F$156,MATCH(G$8&$C31,Background_indicators!$A$2:$A$156,0))) -> - | H31: =IF(INDEX(Background_indicators!$F$2:$F$156,MATCH(H$8&$C31,Background_indicators!$A$2:$A$156,0))="","-",INDEX(Background_indicators!$F$2:$F$156,MATCH(H$8&$C31,Background_indicators!$A$2:$A$156,0))) -> - | I31: =IF(INDEX(Background_indicators!$F$2:$F$156,MATCH(I$8&$C31,Background_indicators!$A$2:$A$156,0))="","-",INDEX(Background_indicators!$F$2:$F$156,MATCH(I$8&$C31,Background_indicators!$A$2:$A$156,0))) -> 70.47 | K31: 0 | L31: 0 | M31: 0 | N31: 0 | O31: 0 | P31: 0 | R31: 23 | S31: 0 | T31: 0 | U31: 0 | V31: 0 | W31: 0 | Z31: 0 | AA31: 0 | AB31: 0 | AC31: 0 | AD31: 0 | AF31: 0 | AG31: 0 | AH31: 0 | AI31: 0 | AJ31: 0
B32: 0 | C32: =tblIndiSets!A261 -> 24 | D32: =tblIndiSets!B261 -> Annual CO2 equivalent emissions per capita (tCO2/capita) | E32: =IF(INDEX(Background_indicators!$F$2:$F$156,MATCH(E$8&$C32,Background_indicators!$A$2:$A$156,0))="","-",INDEX(Background_indicators!$F$2:$F$156,MATCH(E$8&$C32,Background_indicators!$A$2:$A$156,0))) -> 5.31 | F32: =IF(INDEX(Background_indicators!$F$2:$F$156,MATCH(F$8&$C32,Background_indicators!$A$2:$A$156,0))="","-",INDEX(Background_indicators!$F$2:$F$156,MATCH(F$8&$C32,Background_indicators!$A$2:$A$156,0))) -> 3.8 | G32: =IF(INDEX(Background_indicators!$F$2:$F$156,MATCH(G$8&$C32,Background_indicators!$A$2:$A$156,0))="","-",INDEX(Background_indicators!$F$2:$F$156,MATCH(G$8&$C32,Background_indicators!$A$2:$A$156,0))) -> 2.29 | H32: =IF(INDEX(Background_indicators!$F$2:$F$156,MATCH(H$8&$C32,Background_indicators!$A$2:$A$156,0))="","-",INDEX(Background_indicators!$F$2:$F$156,MATCH(H$8&$C32,Background_indicators!$A$2:$A$156,0))) -> 1.77 | I32: =IF(INDEX(Background_indicators!$F$2:$F$156,MATCH(I$8&$C32,Background_indicators!$A$2:$A$156,0))="","-",INDEX(Background_indicators!$F$2:$F$156,MATCH(I$8&$C32,Background_indicators!$A$2:$A$156,0))) -> 10.31 | K32: 0 | L32: 0 | M32: 0 | N32: 0 | O32: 0 | P32: 0 | R32: 24 | S32: 0 | T32: 0 | U32: 0 | V32: 0 | W32: 0 | Z32: 0 | AA32: 0 | AB32: 0 | AC32: 0 | AD32: 0 | AF32: 0 | AG32: 0 | AH32: 0 | AI32: 0 | AJ32: 0
B33: 0 | C33: =tblIndiSets!A262 -> 25 | D33: =tblIndiSets!B262 -> Total final energy consumption (GJ per capita) | E33: =IF(INDEX(Background_indicators!$F$2:$F$156,MATCH(E$8&$C33,Background_indicators!$A$2:$A$156,0))="","-",INDEX(Background_indicators!$F$2:$F$156,MATCH(E$8&$C33,Background_indicators!$A$2:$A$156,0))) -> - | F33: =IF(INDEX(Background_indicators!$F$2:$F$156,MATCH(F$8&$C33,Background_indicators!$A$2:$A$156,0))="","-",INDEX(Background_indicators!$F$2:$F$156,MATCH(F$8&$C33,Background_indicators!$A$2:$A$156,0))) -> 21.54 | G33: =IF(INDEX(Background_indicators!$F$2:$F$156,MATCH(G$8&$C33,Background_indicators!$A$2:$A$156,0))="","-",INDEX(Background_indicators!$F$2:$F$156,MATCH(G$8&$C33,Background_indicators!$A$2:$A$156,0))) -> - | H33: =IF(INDEX(Background_indicators!$F$2:$F$156,MATCH(H$8&$C33,Background_indicators!$A$2:$A$156,0))="","-",INDEX(Background_indicators!$F$2:$F$156,MATCH(H$8&$C33,Background_indicators!$A$2:$A$156,0))) -> 7.215849958 | I33: =IF(INDEX(Background_indicators!$F$2:$F$156,MATCH(I$8&$C33,Background_indicators!$A$2:$A$156,0))="","-",INDEX(Background_indicators!$F$2:$F$156,MATCH(I$8&$C33,Background_indicators!$A$2:$A$156,0))) -> 214.45 | K33: 0 | L33: 0 | M33: 0 | N33: 0 | O33: 0 | P33: 0 | R33: 25 | S33: 0 | T33: 0 | U33: 0 | V33: 0 | W33: 0 | Z33: 0 | AA33: 0 | AB33: 0 | AC33: 0 | AD33: 0 | AF33: 0 | AG33: 0 | AH33: 0 | AI33: 0 | AJ33: 0
B34: 0 | C34: =tblIndiSets!A263 -> 26 | D34: =tblIndiSets!B263 -> Percentage of total energy derived from renewable sources, as share of city’s total final energy consumption (%) | E34: =IF(INDEX(Background_indicators!$F$2:$F$156,MATCH(E$8&$C34,Background_indicators!$A$2:$A$156,0))="","-",INDEX(Background_indicators!$F$2:$F$156,MATCH(E$8&$C34,Background_indicators!$A$2:$A$156,0))) -> - | F34: =IF(INDEX(Background_indicators!$F$2:$F$156,MATCH(F$8&$C34,Background_indicators!$A$2:$A$156,0))="","-",INDEX(Background_indicators!$F$2:$F$156,MATCH(F$8&$C34,Background_indicators!$A$2:$A$156,0))) -> - | G34: =IF(INDEX(Background_indicators!$F$2:$F$156,MATCH(G$8&$C34,Background_indicators!$A$2:$A$156,0))="","-",INDEX(Background_indicators!$F$2:$F$156,MATCH(G$8&$C34,Background_indicators!$A$2:$A$156,0))) -> - | H34: =IF(INDEX(Background_indicators!$F$2:$F$156,MATCH(H$8&$C34,Background_indicators!$A$2:$A$156,0))="","-",INDEX(Background_indicators!$F$2:$F$156,MATCH(H$8&$C34,Background_indicators!$A$2:$A$156,0))) -> - | I34: =IF(INDEX(Background_indicators!$F$2:$F$156,MATCH(I$8&$C34,Background_indicators!$A$2:$A$156,0))="","-",INDEX(Background_indicators!$F$2:$F$156,MATCH(I$8&$C34,Background_indicators!$A$2:$A$156,0))) -> 0.71 | K34: 0 | L34: 0 | M34: 0 | N34: 0 | O34: 0 | P34: 0 | R34: 26 | S34: 0 | T34: 0 | U34: 0 | V34: 0 | W34: 0 | Z34: 0 | AA34: 0 | AB34: 0 | AC34: 0 | AD34: 0 | AF34: 0 | AG34: 0 | AH34: 0 | AI34: 0 | AJ34: 0
B35: 0 | C35: =tblIndiSets!A264 -> 27 | D35: =tblIndiSets!B264 -> 10-year average of direct disaster economic loss (,000 US$) | E35: =IF(INDEX(Background_indicators!$F$2:$F$156,MATCH(E$8&$C35,Background_indicators!$A$2:$A$156,0))="","-",INDEX(Background_indicators!$F$2:$F$156,MATCH(E$8&$C35,Background_indicators!$A$2:$A$156,0))) -> - | F35: =IF(INDEX(Background_indicators!$F$2:$F$156,MATCH(F$8&$C35,Background_indicators!$A$2:$A$156,0))="","-",INDEX(Background_indicators!$F$2:$F$156,MATCH(F$8&$C35,Background_indicators!$A$2:$A$156,0))) -> - | G35: =IF(INDEX(Background_indicators!$F$2:$F$156,MATCH(G$8&$C35,Background_indicators!$A$2:$A$156,0))="","-",INDEX(Background_indicators!$F$2:$F$156,MATCH(G$8&$C35,Background_indicators!$A$2:$A$156,0))) -> - | H35: =IF(INDEX(Background_indicators!$F$2:$F$156,MATCH(H$8&$C35,Background_indicators!$A$2:$A$156,0))="","-",INDEX(Background_indicators!$F$2:$F$156,MATCH(H$8&$C35,Background_indicators!$A$2:$A$156,0))) -> - | I35: =IF(INDEX(Background_indicators!$F$2:$F$156,MATCH(I$8&$C35,Background_indicators!$A$2:$A$156,0))="","-",INDEX(Background_indicators!$F$2:$F$156,MATCH(I$8&$C35,Background_indicators!$A$2:$A$156,0))) -> - | K35: 0 | L35: 0 | M35: 0 | N35: 0 | O35: 0 | P35: 0 | R35: 27 | S35: 0 | T35: 0 | U35: 0 | V35: 0 | W35: 0 | Z35: 0 | AA35: 0 | AB35: 0 | AC35: 0 | AD35: 0 | AF35: 0 | AG35: 0 | AH35: 0 | AI35: 0 | AJ35: 0
B36: 0 | C36: =tblIndiSets!A265 -> 28 | D36: =tblIndiSets!B265 -> Housing shortage (number of housing units/number of households) | E36: =IF(INDEX(Background_indicators!$F$2:$F$156,MATCH(E$8&$C36,Background_indicators!$A$2:$A$156,0))="","-",INDEX(Background_indicators!$F$2:$F$156,MATCH(E$8&$C36,Background_indicators!$A$2:$A$156,0))) -> - | F36: =IF(INDEX(Background_indicators!$F$2:$F$156,MATCH(F$8&$C36,Background_indicators!$A$2:$A$156,0))="","-",INDEX(Background_indicators!$F$2:$F$156,MATCH(F$8&$C36,Background_indicators!$A$2:$A$156,0))) -> - | G36: =IF(INDEX(Background_indicators!$F$2:$F$156,MATCH(G$8&$C36,Background_indicators!$A$2:$A$156,0))="","-",INDEX(Background_indicators!$F$2:$F$156,MATCH(G$8&$C36,Background_indicators!$A$2:$A$156,0))) -> - | H36: =IF(INDEX(Background_indicators!$F$2:$F$156,MATCH(H$8&$C36,Background_indicators!$A$2:$A$156,0))="","-",INDEX(Background_indicators!$F$2:$F$156,MATCH(H$8&$C36,Background_indicators!$A$2:$A$156,0))) -> - | I36: =IF(INDEX(Background_indicators!$F$2:$F$156,MATCH(I$8&$C36,Background_indicators!$A$2:$A$156,0))="","-",INDEX(Background_indicators!$F$2:$F$156,MATCH(I$8&$C36,Background_indicators!$A$2:$A$156,0))) -> - | K36: 0 | L36: 0 | M36: 0 | N36: 0 | O36: 0 | P36: 0 | R36: 28 | S36: 0 | T36: 0 | U36: 0 | V36: 0 | W36: 0 | Z36: 0 | AA36: 0 | AB36: 0 | AC36: 0 | AD36: 0 | AF36: 0 | AG36: 0 | AH36: 0 | AI36: 0 | AJ36: 0
B37: 0 | C37: =tblIndiSets!A266 -> 29 | D37: =tblIndiSets!B266 -> Percentage of malnourished children under five (% of children under five) | E37: =IF(INDEX(Background_indicators!$F$2:$F$156,MATCH(E$8&$C37,Background_indicators!$A$2:$A$156,0))="","-",INDEX(Background_indicators!$F$2:$F$156,MATCH(E$8&$C37,Background_indicators!$A$2:$A$156,0))) -> - | F37: =IF(INDEX(Background_indicators!$F$2:$F$156,MATCH(F$8&$C37,Background_indicators!$A$2:$A$156,0))="","-",INDEX(Background_indicators!$F$2:$F$156,MATCH(F$8&$C37,Background_indicators!$A$2:$A$156,0))) -> - | G37: =IF(INDEX(Background_indicators!$F$2:$F$156,MATCH(G$8&$C37,Background_indicators!$A$2:$A$156,0))="","-",INDEX(Background_indicators!$F$2:$F$156,MATCH(G$8&$C37,Background_indicators!$A$2:$A$156,0))) -> - | H37: =IF(INDEX(Background_indicators!$F$2:$F$156,MATCH(H$8&$C37,Background_indicators!$A$2:$A$156,0))="","-",INDEX(Background_indicators!$F$2:$F$156,MATCH(H$8&$C37,Background_indicators!$A$2:$A$156,0))) -> 0.0052 | I37: =IF(INDEX(Background_indicators!$F$2:$F$156,MATCH(I$8&$C37,Background_indicators!$A$2:$A$156,0))="","-",INDEX(Background_indicators!$F$2:$F$156,MATCH(I$8&$C37,Background_indicators!$A$2:$A$156,0))) -> - | K37: 0 | L37: 0 | M37: 0 | N37: 0 | O37: 0 | P37: 0 | R37: 29 | S37: 0 | T37: 0 | U37: 0 | V37: 0 | W37: 0 | Z37: 0 | AA37: 0 | AB37: 0 | AC37: 0 | AD37: 0 | AF37: 0 | AG37: 0 | AH37: 0 | AI37: 0 | AJ37: 0
B38: 0 | C38: =tblIndiSets!A267 -> 30 | D38: =tblIndiSets!B267 -> People using safely managed drinking water services (% of population) | E38: =IF(INDEX(Background_indicators!$F$2:$F$156,MATCH(E$8&$C38,Background_indicators!$A$2:$A$156,0))="","-",INDEX(Background_indicators!$F$2:$F$156,MATCH(E$8&$C38,Background_indicators!$A$2:$A$156,0))) -> - | F38: =IF(INDEX(Background_indicators!$F$2:$F$156,MATCH(F$8&$C38,Background_indicators!$A$2:$A$156,0))="","-",INDEX(Background_indicators!$F$2:$F$156,MATCH(F$8&$C38,Background_indicators!$A$2:$A$156,0))) -> - | G38: =IF(INDEX(Background_indicators!$F$2:$F$156,MATCH(G$8&$C38,Background_indicators!$A$2:$A$156,0))="","-",INDEX(Background_indicators!$F$2:$F$156,MATCH(G$8&$C38,Background_indicators!$A$2:$A$156,0))) -> - | H38: =IF(INDEX(Background_indicators!$F$2:$F$156,MATCH(H$8&$C38,Background_indicators!$A$2:$A$156,0))="","-",INDEX(Background_indicators!$F$2:$F$156,MATCH(H$8&$C38,Background_indicators!$A$2:$A$156,0))) -> - | I38: =IF(INDEX(Background_indicators!$F$2:$F$156,MATCH(I$8&$C38,Background_indicators!$A$2:$A$156,0))="","-",INDEX(Background_indicators!$F$2:$F$156,MATCH(I$8&$C38,Background_indicators!$A$2:$A$156,0))) -> 100 | K38: 0 | L38: 0 | M38: 0 | N38: 0 | O38: 0 | P38: 0 | R38: 30 | S38: 0 | T38: 0 | U38: 0 | V38: 0 | W38: 0 | Z38: 0 | AA38: 0 | AB38: 0 | AC38: 0 | AD38: 0 | AF38: 0 | AG38: 0 | AH38: 0 | AI38: 0 | AJ38: 0
B39: 0 | C39: =tblIndiSets!A268 -> 31 | D39: =tblIndiSets!B268 -> Total public and primary private health insurance coverage (% of total population covered) | E39: =IF(INDEX(Background_indicators!$F$2:$F$156,MATCH(E$8&$C39,Background_indicators!$A$2:$A$156,0))="","-",INDEX(Background_indicators!$F$2:$F$156,MATCH(E$8&$C39,Background_indicators!$A$2:$A$156,0))) -> - | F39: =IF(INDEX(Background_indicators!$F$2:$F$156,MATCH(F$8&$C39,Background_indicators!$A$2:$A$156,0))="","-",INDEX(Background_indicators!$F$2:$F$156,MATCH(F$8&$C39,Background_indicators!$A$2:$A$156,0))) -> 100 | G39: =IF(INDEX(Background_indicators!$F$2:$F$156,MATCH(G$8&$C39,Background_indicators!$A$2:$A$156,0))="","-",INDEX(Background_indicators!$F$2:$F$156,MATCH(G$8&$C39,Background_indicators!$A$2:$A$156,0))) -> - | H39: =IF(INDEX(Background_indicators!$F$2:$F$156,MATCH(H$8&$C39,Background_indicators!$A$2:$A$156,0))="","-",INDEX(Background_indicators!$F$2:$F$156,MATCH(H$8&$C39,Background_indicators!$A$2:$A$156,0))) -> 100 | I39: =IF(INDEX(Background_indicators!$F$2:$F$156,MATCH(I$8&$C39,Background_indicators!$A$2:$A$156,0))="","-",INDEX(Background_indicators!$F$2:$F$156,MATCH(I$8&$C39,Background_indicators!$A$2:$A$156,0))) -> - | K39: 0 | L39: 0 | M39: 0 | N39: 0 | O39: 0 | P39: 0 | R39: 31 | S39: 0 | T39: 0 | U39: 0 | V39: 0 | W39: 0 | Z39: 0 | AA39: 0 | AB39: 0 | AC39: 0 | AD39: 0 | AF39: 0 | AG39: 0 | AH39: 0 | AI39: 0 | AJ39: 0

Sheet iScatterZoom (hidden)
B35: TRUE
D53: 0 | E53: 0
A54: Counter | B54: 1
C55: Max | D55: 100 | E55: 70000
A56: 2 | C56: Min | D56: 0 | E56: 0
B58: 1 | C58: 4 | D58: =D55 -> 100 | E58: =E55 -> 70000 | G58: =$D$58/4+G59 -> 100 | H58: =$E$58/4+H59 -> 70000 | K58: =CHOOSE($A$56,D58,G58) -> 100 | L58: =CHOOSE($A$56,E58,H58) -> 70000
B59: 0.75 | C59: 3 | D59: =QUARTILE(IF(ISNUMBER(iScatter!$D$19:$D$23),iScatter!$D$19:$D$23),C59) -> 76.48148148 | E59: =QUARTILE(IF(ISNUMBER(iScatter!$E$19:$E$23),iScatter!$E$19:$E$23),C59) -> 34480 | G59: =$D$58/4+G60 -> 75 | H59: =$E$58/4+H60 -> 52500 | K59: =CHOOSE($A$56,D59,G59) -> 75 | L59: 52500
B60: 0.5 | C60: 2 | D60: =QUARTILE(IF(ISNUMBER(iScatter!$D$19:$D$23),iScatter!$D$19:$D$23),C60) -> 71.2962963 | E60: =QUARTILE(IF(ISNUMBER(iScatter!$E$19:$E$23),iScatter!$E$19:$E$23),C60) -> 14257 | G60: =$D$58/4+G61 -> 50 | H60: 35000 | K60: 50 | L60: 35000
A61: 4 | B61: 0.25 | C61: 1 | D61: =QUARTILE(IF(ISNUMBER(iScatter!$D$19:$D$23),iScatter!$D$19:$D$23),C61) -> 70.37037037 | E61: =QUARTILE(IF(ISNUMBER(iScatter!$E$19:$E$23),iScatter!$E$19:$E$23),C61) -> 9507 | G61: =$D$58/4+G62 -> 25 | H61: 17500 | K61: 25 | L61: 17500
B62: 0 | C62: 0 | D62: =D56 -> 0 | E62: =E56 -> 0 | G62: 0 | H62: 0 | K62: 0 | L62: 0
C64: X1 | D64: X2 | E64: Y1 | F64: Y2
B65: 1 | C65: =$K$62 -> 0 | D65: =$K$61 -> 25 | E65: =$L$62 -> 0 | F65: =$L$61 -> 17500
B66: 2 | C66: =$K$61 -> 25 | D66: =$K$60 -> 50 | E66: =$L$62 -> 0 | F66: =$L$61 -> 17500
B67: 3 | C67: =$K$60 -> 50 | D67: =$K$59 -> 75 | E67: 0 | F67: 17500
B68: 4 | C68: =$K$59 -> 75 | D68: =$K$58 -> 100 | E68: 0 | F68: 17500
B69: 5 | C69: =$K$62 -> 0 | D69: =$K$61 -> 25 | E69: =$L$61 -> 17500 | F69: =$L$60 -> 35000
B70: 6 | C70: =$K$61 -> 25 | D70: =$K$60 -> 50 | E70: =$L$61 -> 17500 | F70: =$L$60 -> 35000
B71: 7 | C71: =$K$60 -> 50 | D71: =$K$59 -> 75 | E71: 17500 | F71: 35000
B72: 8 | C72: =$K$59 -> 75 | D72: =$K$58 -> 100 | E72: 17500 | F72: 35000
B73: 9 | C73: =$K$62 -> 0 | D73: =$K$61 -> 25 | E73: =$L$60 -> 35000 | F73: =$L$59 -> 52500
B74: 10 | C74: =$K$61 -> 25 | D74: =$K$60 -> 50 | E74: =$L$60 -> 35000 | F74: =$L$59 -> 52500 | H74: 13 | I74: 14 | J74: 15 | K74: 16
B75: 11 | C75: =$K$60 -> 50 | D75: =$K$59 -> 75 | E75: 35000 | F75: 52500 | H75: 9 | I75: 10 | J75: 11 | K75: 12
B76: 12 | C76: =$K$59 -> 75 | D76: =$K$58 -> 100 | E76: 35000 | F76: 52500 | H76: 5 | I76: 6 | J76: 7 | K76: 8
B77: 13 | C77: =$K$62 -> 0 | D77: =$K$61 -> 25 | E77: =$L$59 -> 52500 | F77: =$L$58 -> 70000 | H77: 1 | I77: 2 | J77: 3 | K77: 4
B78: 14 | C78: =$K$61 -> 25 | D78: =$K$60 -> 50 | E78: =$L$59 -> 52500 | F78: =$L$58 -> 70000
B79: 15 | C79: =$K$60 -> 50 | D79: =$K$59 -> 75 | E79: 52500 | F79: 70000
B80: 16 | C80: =$K$59 -> 75 | D80: =$K$58 -> 100 | E80: 52500 | F80: 70000
B82: input | C82: output
A83: Zoom_3 | B83: =VALUE(RIGHT(A83, LEN(A83)-5)) -> 3 | C83: =ROUNDDOWN(INDEX(C65:C80,$B$83),0) -> 50 | D83: =ROUNDUP(INDEX(D65:D80,$B$83),0) -> 75 | E83: =ROUNDDOWN(INDEX(E65:E80,$B$83),1) -> 0 | F83: =ROUNDUP(INDEX(F65:F80,$B$83),1) -> 17500

Sheet uxb_works (hidden)
A1: TERRITORY_COUNT | B1: =COUNTA(LuCountry) -> 5 | C1: =B1 -> 5
A2: REGION COUNT | B2: 8
A3: MAIN_DP | B3: 1
A4: WEIGHT_PROFILE_ID | B4: 1
A5: SHOW_WEIGHT_CHANGE | B5: =iWeights1!W3 -> 0 | C5: The active weight profile has been changed from it's default setting | D5: ignore none | E5: Country Code | F5: Cnt Number | K5: LAST SAVED
A6: COUNTRY_HIGHLIGHT_DD | B6: 4 | C6: =INDEX(LuCountryPlusNone,B6) -> Melaka | D6: =INDEX(LuCountry,B6) -> Recife | E6: SGP | F6: =IF(ISERROR(MATCH($E6,tblTerritories!$B$3:$B$7,0)+1),1,MATCH($E6,tblTerritories!$B$3:$B$7,0)+1) -> 6 | H6: <none> | K6: 4
A7: COUNTRY_HIGHLIGHT_ID | B7: =B6-1 -> 3
A8: GROUP_HIGHLIGHT_DD_PLUS_NONE | B8: 1 | C8: =INDEX(tblTerritories!$AD$3:$AD$7,B8) -> 0 | D8: 4
A9: GROUP_HIGHLIGHT_DD | B9: 1 | C9: =INDEX(tblTerritories!S4:S7,B9) -> All Groups
A10: GROUP_FILTER_ID1 | B10: 1 | D10: 4
B11: =B10-1 -> 0
B12: 1
A13: DATA_INDIS_ONLY | B13: 3
B14: 6
A15: SUMMARY_LABELS | B15: 5 | C15: =INDEX(tblIndiSets!C5:C12,uxb_works!B15)&" "&E15 -> 4) NATURAL ENVIRONMENT AND RESOURCES The dimension score is the weighted sum of the following focus areas scores: 4.1) Ecosystems and Biodiversity 4.2) Air Quality 4.3) Water Resources Management 4.4) Solid Waste Management 4.5) Consumption and Production Patterns | D15: =INDEX(tblIndiSets!$B$5:$B$11,B15) -> 24 | E15: =INDEX(tblIndicators!$O$2:$O$42,D15) -> The dimension score is the weighted sum of the following focus areas scores: 4.1) Ecosystems and Biodiversity 4.2) Air Quality 4.3) Water Resources Management 4.4) Solid Waste Management 4.5) Consumption and Production Patterns
A17: Regional_Group_Select | B17: =IF(I17,FALSE,TRUE) -> FALSE | C17: =IF(B17,1,2) -> 2 | D17: =INDEX(G17:H17,C17) -> ORGANISATION FILTER | G17: REGION FILTER | H17: ORGANISATION FILTER | I17: TRUE
A18: NUMBER_OF_INDICATORS+SUBS | B18: =tblIndiSets!AA2 -> 41 | C18: =tblIndiSets!A13 -> 41
A19: NUMBER_OF_QUAL_INDI | B19: =COUNT(tblIndiSets!B123:B124) -> 0 | L19: 1 | M19: 2 | N19: 3 | O19: 4 | P19: 5
A20: Indicator Ranking | B20: =INDEX(tblIndiSets!$AA$4:$AA$57,uxb_works!$B$23) -> 40 | C20: Indi Name | D20: Indi Level | E20: Format | F20: Child | G20: Parent | H20: Ref | I20: Qual_Or_Quant | J20: Band | K20: High is good | L20: 0 | M20: 1 | N20: 2 | O20: 3 | P20: 4 | Q20: =tblIndicators!AF1 -> NORM_ID (1=sumproduct, 2=min max set by data values, 3=min max set by user here) | R20: Extra Notes | S20: Extra Notes Line
A21: INDI_ID | B21: =INDEX(tblIndiSets!$AA$4:$AA$57,uxb_works!$B$23) -> 40 | C21: =INDEX(tblIndiSets!$E$15:$E$55,$B21) -> 6.4) Health and Well-Being | D21: =INDEX(tblIndiSets!$D$15:$D$55,$B21) -> 2 | E21: =INDEX(tblIndicators!$AB$2:$AB$42,$B21) -> 0 | F21: =IF(B21=1,"",INDEX(tblIndicators!$AK$2:$AM$42,$B21,1)) -> 6.4) Health and Well-Being | G21: =INDEX(tblIndicators!$AK$2:$AM$42,$B21,3) -> 6) INCLUSIVITY AND QUALITY OF LIFE | H21: =INDEX(tblIndicators!$H$2:$H$42,$B$21) -> 6_4 | I21: =INDEX(tblIndicators!$V$2:$V$42,$B$21) -> 2 | J21: =INDEX(tblIndicators!$AQ$2:$AQ$42,$B$21) -> 3 | K21: =INDEX(tblIndicators!$AE$2:$AE$42,$B$21) -> 0 | L21: =INDEX(tblIndicators!$AR$2:$AV$42,uxb_works!$B$21,uxb_works!L19) -> Yes | M21: =INDEX(tblIndicators!$AR$2:$AV$42,uxb_works!$B$21,uxb_works!M19) -> Somewhat | N21: =INDEX(tblIndicators!$AR$2:$AV$42,uxb_works!$B$21,uxb_works!N19) -> No | O21: =INDEX(tblIndicators!$AR$2:$AV$42,uxb_works!$B$21,uxb_works!O19) -> 0 | P21: =INDEX(tblIndicators!$AR$2:$AV$42,uxb_works!$B$21,uxb_works!P19) -> 0 | Q21: =INDEX(tblIndicators!$AF$2:$AF$42,$B$21) -> 3 | R21: =IF(INDEX(tblIndicators!$U$2:$U$42,$B$21)<>0,1,0) -> 1 | S21: =INDEX(tblIndicators!$U$2:$U$42,$B$21) -> 1
C22: 1 | K22: LAST SAVED
B23: 40 | K23: 3
A24: SAVED_INDI_VALUE | B24: 5
A25: COUNTRY PROFILE | C25: Country
A26: COUNTRY1_ID | B26: 3 | C26: =INDEX(LuCountry,B26) -> Melaka | D26: =B26 -> 3
A27: COUNTRY2_ID | B27: 2 | C27: =INDEX(LuCountry,B27) -> Lisbon | D27: =B27 -> 2
A28: COUNTRY3_ID | B28: 2 | C28: =INDEX(LuCountryVar2,B28) -> Izmir | D28: =MATCH(C28,LuCountryPlusNone,0) -> 2
A29: COUNTRY4_ID | B29: 1 | C29: =INDEX(LuCountryPlusNone,B29) -> <none> | D29: =B29-1 -> 0
A30: COUNTRY5_ID | B30: 1 | C30: =INDEX(LuCountryPlusNone,B30) -> <none> | D30: =B30-1 -> 0
A31: COUNTRY6_ID | B31: 1 | C31: =INDEX(LuCountryPlusNone,B31) -> <none> | D31: 0
A32: CATEGORY_SELECT | B32: 3 | C32: =COUNT(tblIndiSets!B105:B111) -> 7 | D32: =INDEX(tblIndiSets!$C$105:$C$111,B32) -> 2) FISCAL SUSTAINABILITY | E32: =INDEX(tblIndiSets!$D$105:$D$111,B32) -> 1
A33: IND_SUB_INDI | B33: 2
B34: 5 | C34: 1 | D34: 2 | E34: 3 | F34: 4 | G34: 5 | I34: isBG | J34: =tblIndicators!AB1 -> Format | K34: units | M34: Nearest related Perfermance Indicator
A35: INDI_1 | B35: 1 | C35: =COUNTA(lu_Scatter_X) -> 41 | D35: =OFFSET(INDEX(lu_Scatter_X,B35),0,-3) -> 1 | E35: 24 | F35: =INDEX(tblIndicators!$AK$2:$AM$43,$D$35,1) -> OVERVIEW | G35: =INDEX(tblIndicators!$AK$2:$AM$43,$D$35,3) -> OVERVIEW | I35: =iScatter!B7 -> 0 | K35: =INDEX(tblIndicators!$Y$2:$Y$42,D35) ->  | M35: =INDEX(tblIndicators!$S$2:$S$42,uxb_works!D35) -> - | N35: =IF(M35="-",0,1) -> 0
A36: INDI_2 | B36: 2 | C36: =COUNTA(lu_Scatter_Y) -> 5 | D36: =OFFSET(INDEX(lu_Scatter_Y,B36),0,-3) -> 2 | E36: 24 | F36: =INDEX(tblIndicators!$AK$44:$AM$54,$D$36,1) -> PI02) City's GDP per capita (US$/capita) | G36: =INDEX(tblIndicators!$AK$43:$AM$1014,$D$36,3) -> Performance Indicators | I36: 1 | J36: =INDEX(tblIndicators!$AB$44:$AB$48,uxb_works!B36) -> #,##0
A37: BG_DATA | B37: 140
A38: SHOW_LABELS | B38: FALSE
A39: SHOW_OUTLIERS | B39: FALSE
A41: Country_profile_extras
A42: Indi_ID | B42: 1
A43: Averages | B43: =B10 -> 1 | C43: =INDEX(tblIndiSets!$C$121:$C$124,uxb_works!B43) -> All Country Average
A44: Show_High_Low | B44: 1 | C44: =IF(B44,1,0) -> 1
B45: TRUE
A46: View_Level | B46: 5 | C46: =COUNTA(tblIndiSets!A115:A119) -> 5
A47: DATA_SCORE_Toggle | B47: 2 | D47: DATA | H47: Show units | I47: Hide units
A48: SHOW_HIDE_UNITS | B48: 1 | C48: =INDEX($H$47:$I$48,B47,B48) -> Show weights | D48: SCORES | H48: Show weights | I48: Hide weights
A49: SHOW_AVERAGES | B49: FALSE
A50: SHOW_SOURCE | B50: 1 | C50: =INDEX($D$50:$E$50,B50) -> Show Source | D50: Show Source | E50: Hide Source
A51: INPUT/OUTPUT | B51: FALSE | C51: =IF(B51,1,0) -> 0 | E51: =IF(B51,1,0) -> 0
B53: 70% (recommended for 1024 width displays) | C53: 70
B54: 0.8 | C54: 80
B55: 0.9 | C55: 90
B56: 100% (recommended for wide screen displays) | C56: 100
B57: 1.25 | C57: 125
B59: 4 | C59: =INDEX(C53:C57,B59) -> 100
A60: ZOOM | B60: =C59 -> 100
A61: MODE | B61: PRODUCTION
A63: Weight_Compare
A65: COUNTRY_PROFILE_HIGH_LOW | B65: FALSE
A66: COUNTRY_SCORECARDS
A67: REGION_AVERAGE_SHOW | B67: 1 | C67: =INDEX(tblIndiSets!D121:D124,B67) -> All Country Average
A68: JUMP_NUMBER | B68: 2 | C68: =INDEX(iCSCtbl!$B$3:$B$9,B68) -> 2
A69: CSC_CHART_SWITCH | B69: TRUE | C69: =IF(B69,1,0) -> 1
A70: CSC_LINE_COUNT | B70: 10
A71: nav_historyID | B71: 5
A72: PAGE_HOME | B72: Home,
A73: SHEET_SET_ON_OPEN | B73: Home,
A74: SHEET_SET_0 | B74: Home,
A75: SHEET_SET_1 | B75: Map,Summary,CityScoreCard,Indicator_Ranking,CityProfile,Scatter,BG_Indicators,
A76: SHEET_SET_2
A77: SHEET_SET_3
A78: SHEET_SET_4
A79: SHEET_SET_5
A80: SHEET_SET_6
A81: SHEET_SET_7
A82: SHEET_SET_8
A83: SHEET_SET_9
A84: SHEET_SET_10
A87: Text 1 | B87: Normalised scores 0-100, where 100 = most favourable conditions
A88: Text 2 | B88: ="Rank out of "&B1&" countries, 1=best; '=' denotes tied rank between two or more countries" -> Rank out of 5 countries, 1=best; '=' denotes tied rank between two or more countries
A89: SCORE_TEXT | B89: Notes … | C89: =LEN(B89) -> 7
A90: WEIGHT_TEXT
A92: TITLE | B92: Global Platform for Sustainable Cities
A93: TITLE_PRINT_OUT | B93: Global Platform for Sustainable Cities: Benchmarking city-level sustainability | C93: Benchmarking city-level sustainability
A94: HEADER_01 | B94: MAP
A95: HEADER_02 | B95: SUMMARY
A96: HEADER_03 | B96: CITY SCORECARD
A97: HEADER_04 | B97: INDICATOR EXPLORER
A98: HEADER_05 | B98: CITY PROFILE
A99: HEADER_06 | B99: SCATTER
A100: HEADER_07 | B100: BACKGROUND DATA
A101: HEADER_08
A102: HEADER_09
A103: HEADER_10
A105: TEST_FOR_WIN_MAC | B105: TRUE
A107: Country_Compare
A108: Indicator_Selecr | B108: 54
A109: Position Select | B109: 6
A111: SHOW_EXTRA_MENU | B111: FALSE | C111: =IF(B111,E111,D111) -> Show extra menus | D111: Show extra menus | E111: Hide extra menus
A112: SHOW_HELP_BAR | B112: FALSE | C112: =IF(B112,E112,D112) -> Show help bar | D112: Show help bar | E112: Hide help bar
A115: BOLD_TEXT | B115: 1
A116: BOLD_TEXT_COUNT | B116: =tblIndiSets!C208 -> 8
A117: BOLD_TEXT_VALUE | B117: =INDEX(Bold_Text,C117) -> References: | C117: 8
A119: Bucket Values | B119: 100 | D119: 4 | E119: 0
B120: 75 | D120: 3 | E120: 1
B121: 50 | D121: 2 | E121: 2
B122: 25 | D122: 1 | E122: 3
B123: 0 | D123: 0 | E123: 4
A134: BOX_SUMMARY | B134: =Summary!B13 -> 5
A135: BOX_MAP | B135: =Map!A45 -> 3 | D135: Lines of Greater / less than
A136: BOX_CityProfile | B136: =CityProfile!B12 -> 6
A138: BOX_INDIRANK | B138: =MAX(Indicator_Ranking!J16,C138,15) -> 15 | C138: =Indicator_Ranking!B15 -> 11 | D138: =MAX(iIndiRank!P4+2,15) -> 15
A139: CCOMP_ACTIVE | B139: =iCountryComp!B10 -> 3
C142: Min | D142: Difference | F142: Ref | G142: Just
A143: HEIGHT_Main_Section | B143: =iIndiRank!R2 -> 159 | C143: 175 | D143: =IF(B143-C143<0,25,B143-C143) -> 25 | E143: full | F143: =LEN(iIndiRank!U3) -> 280 | G143: =LEN(iIndiRank!V3) -> 402
F144: =F143/3 -> 93.33333333 | G144: =G143/3 -> 134
F145: =(iIndiRank!U3) -> Health promotion is a federal government responsibility. The country aims to be free from HIV by 2030, and Melaka has been selected as the first state to lead this initiative [3]. The Ministry of Health also enforced smoke-free zones in five areas across Melaka State in 2011 [4]. | G145: =(iIndiRank!V3) -> [1] Sinar Harian. 2018. "Kes HIV di Melaka Catat Penurunan." [http://www.sinarharian.com.my/edisi/melaka-ns/kes-hiv-di-melaka-catat-penurunan-1.876116]. [2] Melaka Bebas Asap Rokok (MBAR). 2018. "Zon MBAR." [http://www.mbar.gov.my/2/page.php?s=zon-bebas-asap-rokok&id=607].
E146: 1st | F146: =LEFT($F$145,$F$144) -> Health promotion is a federal government responsibility. The country aims to be free from HIV | G146: =LEFT($G$145,$G$144) -> [1] Sinar Harian. 2018. "Kes HIV di Melaka Catat Penurunan." [http://www.sinarharian.com.my/edisi/melaka-ns/kes-hiv-di-melaka-catat-pe
E147: 2nd | F147: =RIGHT(LEFT($F$145,$F$144*2),F144) -> by 2030, and Melaka has been selected as the first state to lead this initiative [3]. The Mi | G147: =RIGHT(LEFT($G$145,$G$144*2),G144) -> nurunan-1.876116].
E148: 3rd | F148: =RIGHT($F$145,$F$144) -> istry of Health also enforced smoke-free zones in five areas across Melaka State in 2011 [4]. | G148: =RIGHT($G$145,$G$144/2) -> [http://www.mbar.gov.my/2/page.php?s=zon-bebas-asap-rokok&id=607].
A150: BACKGROUND_INFO
A152: City_Selected | B152: =IFERROR(E156,1) -> 3 | C152: =INDEX(luCities,B152) -> Melaka
A153: Indicator_Selected | B153: =IFERROR(C156,1) -> 6
C155: Row | E155: Column
A156: SELECTED_CELL | B156: $H$20 | C156: =INDEX(BG_Indicators!$C$1:$C$45,VALUE(RIGHT(B156,2))) -> 6 | D156: =LEFT(B156,3)&12 -> $H$12 | E156: =INDIRECT("BG_Indicators!"&D156) -> 3
A157: OUTPUT | B157: =IFERROR(iBG_Indicators!I3,"-") -> Units: % Year: n/a Source: n/a Notes: No official city/state-level data was found.
A167: RC_REGION_SELECT | B167: 3 | C167: max | D167: actual
A168: REGION_COMPARE_INDICATOR | B168: 1 | C168: =tblIndiSets!AK3 -> 1 | D168: =INDEX(tblIndiSets!AK4:AK55,B168) -> 1 | E168: =INDEX(tblIndiSets!AN4:AN55,B168) -> OVERVIEW | F168: 1.2.1) Quality of policies to address food loss | G168: =MATCH(F168,tblIndiSets!AN4:AN55,0) ->  | I168: =IF($B$167=1,LEFT(TRIM(F168),1),LEFT(TRIM(F168),3)) -> 1.2 | J168: =MATCH(I168,tblIndiSets!$AP$4:$AP$55,0) -> 
A169: SORT_BY_REGION | B169: 1
A170: REGION_COMPARE_LIST | B170: 1 | C170: =INDEX(luRegions,B170) -> Group B1
A171: REGION_COMPARE_TEXT
A176: SHEET_CLICKS | B176: cell ref | C176: cell identify | D176: position count | E176: Var_List adjust | F176: spare | G176: spare | H176: output
A178: IR_CLICK_THROUGH | B178: $Z$18 | C178: =INDIRECT("Indicator_Ranking!"&B178) -> Melaka | D178: =MATCH(C178,tblTerritories!$C$2:$C$7,0) -> 4 | H178: =D178 -> 4
A181: CP_CLICK_THROUGH | B181: $C$16 | C181: =TRIM(INDIRECT("CityProfile!"&LEFT(B181,5))) -> 2.2) Creditworthiness | D181: =MATCH(C181,tblIndiSets!$F$15:$F$55,0) -> 14 | E181: $C$15 | F181: =INDIRECT("CityProfile!"&B181) -> 2.2) Creditworthiness | G181: =INDEX(tblIndicators!$O$2:$O$42,MATCH(C181,tblIndiSets!$F$15:$F$55,0)) -> Does this city have a credit rating? | H181: =C181&" "&G181 -> 2.2) Creditworthiness Does this city have a credit rating?
A184: CSC_CLICK_THROUGH | B184: $C$30 | C184: =TRIM(INDIRECT("CityScoreCard!"&B184)) ->  | D184: =MATCH(C184,tblIndiSets!$AB$4:$AB$55,0) -> 42
J189: saved
C192: Country | D192: Indicator | E192: Name | F192: Score | G192: Rank | H192: Has Notes | I192: Notes | K192: Title | L192: Text | N192: 1 | O192: 2 | P192: 3 | Q192: description | R192: question | S192: just | T192: ref
A193: MAP_CLICK | B193: =B6 -> 4 | C193: =INDEX(LuCountryPlusNone,B193) -> Melaka | D193: =B21 -> 40 | E193: =TRIM(C21) -> 6.4) Health and Well-Being | F193: =IF(B193=1,"-","Scored: "&INDEX(aScoresRounded,$D193,$B193-1)) -> Scored: 50 | G193: =IF(B193=1,"-","Ranked: "&INDEX(aRank,$D193,$B193-1)) -> Ranked: =4 | H193: =INDEX(tblIndicators!$U$2:$U$42,B21) -> 1 | I193: =iIndiRank!U2&" "&iIndiRank!V2 ->  | K193: =UPPER(C193) -> MELAKA | L193: =INDEX(N193:P193,M193) -> 6.4) Health and Well-Being Scored: 50 and Ranked: =4 Question: Are there city-level health promotion intitiatives? Notes; Health promotion is a federal government responsibility. The country aims to be free from HIV by 2030, and Melaka has been selected as the first state to lead this initiative [3]. The Ministry of Health also enforced smoke-free zones in five areas across Melaka State in 2011 [4]. | M193: =iIndiRank!W2 -> 2 | N193: =$E$193&" "&$F$193&" and "&$G$193&" "&$Q$193 -> 6.4) Health and Well-Being Scored: 50 and Ranked: =4 Description: Are there city-level health promotion intitiatives? | O193: =$E$193&" "&$F$193&" and "&$G$193&" "&$R$193&" "&S193 -> 6.4) Health and Well-Being Scored: 50 and Ranked: =4 Question: Are there city-level health promotion intitiatives? Notes; Health promotion is a federal government responsibility. The country aims to be free from HIV by 2030, and Melaka has been selected as the first state to lead this initiative [3]. The Ministry of Health also enforced smoke-free zones in five areas across Melaka State in 2011 [4]. | P193: =$E$193&" "&$F$193&" and "&$G$193&" "&$R$193&" "&$S$193&" "&$T$193 -> 6.4) Health and Well-Being Scored: 50 and Ranked: =4 Question: Are there city-level health promotion intitiatives? Notes; Health promotion is a federal government responsibility. The country aims to be free from HIV by 2030, and Melaka has been selected as the first state to lead this initiative [3]. The Ministry of Health also enforced smoke-free zones in five areas across Melaka State in 2011 [4]. 0 | Q193: =iIndiRank!L2 -> Description: Are there city-level health promotion intitiatives? | R193: =iIndiRank!AD2 -> Question: Are there city-level health promotion intitiatives? | S193: =IF(INDEX(iJustification,$D$193,B193-1)="","","Notes; "&INDEX(iJustification,$D$193,B193-1)) -> Notes; Health promotion is a federal government responsibility. The country aims to be free from HIV by 2030, and Melaka has been selected as the first state to lead this initiative [3]. The Ministry of Health also enforced smoke-free zones in five areas across Melaka State in 2011 [4]. | T193: =iIndiRank!V2 -> 0
A196: S_CLICK_THROUGH | B196: $T$18 | C196: =INDIRECT("Summary!"&B196) -> Singapore | D196: =MATCH(C196,tblTerritories!$C$2:$C$7,0) -> 6
B324: 2

Sheet tblCountryList (hidden)
A1: All tiers | B1: =uxb_works!B8 -> 1 | I1: =COUNT(G8:G12) -> 5 | M1: City List 2 | R1: =COUNT(P8:P12)+1 -> 5
B2: =uxb_works!B10 -> 1 | M2: =uxb_works!A26 -> COUNTRY1_ID | N2: =uxb_works!B26 -> 3 | O2: =uxb_works!C26 -> Melaka
A3: Rounding | B3: 2
D7: ActiveStatus | E7: All Tiers | F7: Score | G7: Rank | H7: LU | I7: <none> | J7: Map_Click | K7: =I7 -> <none> | M7: ActiveStatus | N7: All Tiers | O7: Score | P7: Rank | Q7: LU | R7: <none>
A8: =tblTerritories!A3 -> 1 | B8: =tblTerritories!F3 -> 1 | C8: =tblTerritories!C3 -> Izmir | D8: 1 | E8: 1000 | F8: =IF($D8=0,"",E8) -> 1000 | G8: =IF($D8=0,"",RANK(F8,F$8:F$17,0)+COUNTIF(F$8:F8,F8)-1) -> 1 | H8: =IF(ISERROR(MATCH($A8,G$8:G$17,0)),"",MATCH($A8,G$8:G$17,0)) -> 1 | I8: =IF(H8="","",INDEX($C$8:$C$17,H8)) -> Izmir | J8: =IF(H8="","",INDEX($B$8:$B$17,H8)) -> 1 | K8: =I8 -> Izmir | L8: =RIGHT(J8,3) -> 1 | M8: =IF($O$2=K8,0,IF(K8="",0,1)) -> 1 | N8: 1000 | O8: =IF($M8=0,"",N8) -> 1000 | P8: =IF($M8=0,"",RANK(O8,O$8:O$17,0)+COUNTIF(O$8:O8,O8)-1) -> 1 | Q8: =IF(ISERROR(MATCH($A8,P$8:P$17,0)),"",MATCH($A8,P$8:P$17,0)) -> 1 | R8: =IF(Q8="","",INDEX($K$8:$K$17,Q8)) -> Izmir | S8: =MATCH(R8,$C$8:$C$12,0) -> 1
A9: =tblTerritories!A4 -> 2 | B9: =tblTerritories!F4 -> 1 | C9: =tblTerritories!C4 -> Lisbon | D9: 1 | E9: 1000 | F9: =IF($D9=0,"",E9) -> 1000 | G9: =IF($D9=0,"",RANK(F9,F$8:F$17,0)+COUNTIF(F$8:F9,F9)-1) -> 2 | H9: =IF(ISERROR(MATCH($A9,G$8:G$17,0)),"",MATCH($A9,G$8:G$17,0)) -> 2 | I9: =IF(H9="","",INDEX($C$8:$C$17,H9)) -> Lisbon | J9: =IF(H9="","",INDEX($B$8:$B$17,H9)) -> 1 | K9: Lisbon | L9: =RIGHT(J9,3) -> 1 | M9: =IF($O$2=K9,0,IF(K9="",0,1)) -> 1 | N9: 1000 | O9: =IF($M9=0,"",N9) -> 1000 | P9: =IF($M9=0,"",RANK(O9,O$8:O$17,0)+COUNTIF(O$8:O9,O9)-1) -> 2 | Q9: =IF(ISERROR(MATCH($A9,P$8:P$17,0)),"",MATCH($A9,P$8:P$17,0)) -> 2 | R9: =IF(Q9="","",INDEX($K$8:$K$17,Q9)) -> Lisbon | S9: =MATCH(R9,$C$8:$C$12,0) -> 2
A10: =tblTerritories!A5 -> 3 | B10: =tblTerritories!F5 -> 3 | C10: =tblTerritories!C5 -> Melaka | D10: 1 | E10: 1000 | F10: 1000 | G10: =IF($D10=0,"",RANK(F10,F$8:F$17,0)+COUNTIF(F$8:F10,F10)-1) -> 3 | H10: =IF(ISERROR(MATCH($A10,G$8:G$17,0)),"",MATCH($A10,G$8:G$17,0)) -> 3 | I10: =IF(H10="","",INDEX($C$8:$C$17,H10)) -> Melaka | J10: =IF(H10="","",INDEX($B$8:$B$17,H10)) -> 3 | K10: Melaka | L10: 3 | M10: 0 | N10: 1000 | P10: =IF($M10=0,"",RANK(O10,O$8:O$17,0)+COUNTIF(O$8:O10,O10)-1) ->  | Q10: =IF(ISERROR(MATCH($A10,P$8:P$17,0)),"",MATCH($A10,P$8:P$17,0)) -> 4 | R10: =IF(Q10="","",INDEX($K$8:$K$17,Q10)) -> Recife | S10: =MATCH(R10,$C$8:$C$12,0) -> 4
A11: =tblTerritories!A6 -> 4 | B11: =tblTerritories!F6 -> 1 | C11: =tblTerritories!C6 -> Recife | D11: 1 | E11: 1000 | F11: 1000 | G11: =IF($D11=0,"",RANK(F11,F$8:F$17,0)+COUNTIF(F$8:F11,F11)-1) -> 4 | H11: =IF(ISERROR(MATCH($A11,G$8:G$17,0)),"",MATCH($A11,G$8:G$17,0)) -> 4 | I11: =IF(H11="","",INDEX($C$8:$C$17,H11)) -> Recife | J11: =IF(H11="","",INDEX($B$8:$B$17,H11)) -> 1 | K11: Recife | L11: 1 | M11: 1 | N11: 1000 | O11: 1000 | P11: =IF($M11=0,"",RANK(O11,O$8:O$17,0)+COUNTIF(O$8:O11,O11)-1) -> 3 | Q11: =IF(ISERROR(MATCH($A11,P$8:P$17,0)),"",MATCH($A11,P$8:P$17,0)) -> 5 | R11: =IF(Q11="","",INDEX($K$8:$K$17,Q11)) -> Singapore | S11: =MATCH(R11,$C$8:$C$12,0) -> 5
A12: =tblTerritories!A7 -> 5 | B12: =tblTerritories!F7 -> 1 | C12: =tblTerritories!C7 -> Singapore | D12: 1 | E12: 1000 | F12: 1000 | G12: =IF($D12=0,"",RANK(F12,F$8:F$17,0)+COUNTIF(F$8:F12,F12)-1) -> 5 | H12: =IF(ISERROR(MATCH($A12,G$8:G$17,0)),"",MATCH($A12,G$8:G$17,0)) -> 5 | I12: =IF(H12="","",INDEX($C$8:$C$17,H12)) -> Singapore | J12: =IF(H12="","",INDEX($B$8:$B$17,H12)) -> 1 | K12: Singapore | L12: 1 | M12: 1 | N12: 1000 | O12: 1000 | P12: =IF($M12=0,"",RANK(O12,O$8:O$17,0)+COUNTIF(O$8:O12,O12)-1) -> 4 | Q12: =IF(ISERROR(MATCH($A12,P$8:P$17,0)),"",MATCH($A12,P$8:P$17,0)) ->  | R12: =IF(Q12="","",INDEX($K$8:$K$17,Q12)) ->  | S12: =MATCH(R12,$C$8:$C$12,0) -> 

Sheet iSummary (hidden)
A1: All tiers | B1: =uxb_works!B8 -> 1
B2: =uxb_works!B10 -> 1
A3: Rounding | B3: =uxb_works!B3 -> 1 | H3: Active group | M3: Compare With | AB3: Active group | AG3: Compare With | AV3: Active group | BA3: Compare With | BP3: Active group | BU3: Compare With | CJ3: Active group | CO3: Compare With | DD3: Active group | DI3: Compare With | DX3: Active group | EC3: Compare With
B4: FALSE | H4: =H5-1 -> 0 | AB4: =AB5-1 -> 1 | AV4: =AV5-1 -> 2 | BP4: =BP5-1 -> 3 | CJ4: =CJ5-1 -> 4 | DD4: =DD5-1 -> 5 | DX4: =DX5-1 -> 6
H5: 1 | AB5: 2 | AV5: 3 | AW5: =IF($B5=0,"",RANK(AV5,AV$8:AV$13,0)+COUNTIF(AV5:AV$8,AV5)-1) ->  | BP5: 4 | CJ5: 5 | DD5: 6 | DX5: 7
H6: =INDEX(tblIndiSets!$B$5:$B$13,H5) -> 1 | R6: =INDEX(tblIndiSets!$C$5:$C$13,H5) -> OVERVIEW | U6: A | W6: Change in Score | X6: Up/Down | Y6: Change in Rank | Z6: Up/Down | AA6: Compare | AB6: =INDEX(tblIndiSets!$B$5:$B$13,AB5) -> 2 | AL6: =INDEX(tblIndiSets!$C$5:$C$13,AB5) -> 1) GOVERNANCE AND INTEGRATED URBAN PLANNING | AO6: A | AQ6: Change in Score | AR6: Up/Down | AS6: Change in Rank | AT6: Up/Down | AU6: Compare | AV6: =INDEX(tblIndiSets!$B$5:$B$13,AV5) -> 12 | BF6: =INDEX(tblIndiSets!$C$5:$C$13,AV5) -> 2) FISCAL SUSTAINABILITY | BI6: A | BK6: Change in Score | BL6: Up/Down | BM6: Change in Rank | BN6: Up/Down | BO6: Compare | BP6: =INDEX(tblIndiSets!$B$5:$B$13,BP5) -> 18 | BZ6: =INDEX(tblIndiSets!$C$5:$C$13,BP5) -> 3) URBAN ECONOMIES | CC6: A | CE6: Change in Score | CF6: Up/Down | CG6: Change in Rank | CH6: Up/Down | CI6: Compare | CJ6: =INDEX(tblIndiSets!$B$5:$B$13,CJ5) -> 24 | CT6: =INDEX(tblIndiSets!$C$5:$C$13,CJ5) -> 4) NATURAL ENVIRONMENT AND RESOURCES | CW6: A | CY6: Change in Score | CZ6: Up/Down | DA6: Change in Rank | DB6: Up/Down | DC6: Compare | DD6: =INDEX(tblIndiSets!$B$5:$B$13,DD5) -> 30 | DN6: =INDEX(tblIndiSets!$C$5:$C$13,DD5) -> 5) CLIMATE ACTION AND RESILIENCE | DQ6: A | DS6: Change in Score | DT6: Up/Down | DU6: Change in Rank | DV6: Up/Down | DW6: Compare | DX6: =INDEX(tblIndiSets!$B$5:$B$13,DX5) -> 36 | EH6: =INDEX(tblIndiSets!$C$5:$C$13,DX5) -> 6) INCLUSIVITY AND QUALITY OF LIFE | EK6: A | EM6: Change in Score | EN6: Up/Down | EO6: Change in Rank | EP6: Up/Down | EQ6: Compare
B7: IN/OUT Group | D7: IsRegion | E7: ActiveStatus | F7: All Tiers | H7: Score | I7: Rank | J7: LU | K7: remove Aerage | L7: = | M7: Score | N7: Rank | P7: Change in Rank | Q7: display status | T7: Score | V7: score | AB7: Score | AC7: Rank | AD7: LU | AE7: remove Aerage | AF7: = | AG7: Score | AH7: Rank | AJ7: Change in Rank | AK7: display status | AN7: Score | AP7: score | AV7: Score | AW7: Rank | AX7: LU | AY7: remove Aerage | AZ7: = | BA7: Score | BB7: Rank | BD7: Change in Rank | BE7: display status | BH7: Score | BJ7: score | BP7: Score | BQ7: Rank | BR7: LU | BS7: remove Aerage | BT7: = | BU7: Score | BV7: Rank | BX7: Change in Rank | BY7: display status | CB7: Score | CD7: score | CJ7: Score | CK7: Rank | CL7: LU | CM7: remove Aerage | CN7: = | CO7: Score | CP7: Rank | CR7: Change in Rank | CS7: display status | CV7: Score | CX7: score | DD7: Score | DE7: Rank | DF7: LU | DG7: remove Aerage | DH7: = | DI7: Score | DJ7: Rank | DL7: Change in Rank | DM7: display status | DP7: Score | DR7: score | DX7: Score | DY7: Rank | DZ7: LU | EA7: remove Aerage | EB7: = | EC7: Score | ED7: Rank | EF7: Change in Rank | EG7: display status | EJ7: Score | EL7: score
A8: =tblTerritories!A3 -> 1 | B8: =IF(tblTerritories!L3="",0,tblTerritories!L3) -> 1 | C8: =tblTerritories!C3 -> Izmir | D8: =tblTerritories!D3 -> 1 | E8: =tblTerritories!K3 -> 1 | F8: =IF($A8="","",VLOOKUP(C8,tblTerritories!$J$3:$P$7,7,FALSE)+10) -> 13 | G8: =IF(B8=0,"",A8) -> 1 | H8: =IF($B8=0,"",ROUND(INDEX(aScores,H$6,$A8),$B$3)) -> 71.3 | I8: =IF($B8=0,"",RANK($G8,$G$8:$G$13,1)+COUNTIF($G$8:$G8,$G8)-1) -> 1 | J8: =IF(ISERROR(MATCH($A8,I$8:I$13,0)),"",MATCH($A8,I$8:I$13,0)) -> 1 | K8: =IF(ISERROR(RANK(U8,U$8:U$13)),"",IF(OR($A8="",J8=""),"",RANK(U8,U$8:U$13))) -> 3 | L8: =IF(J8="","",COUNTIF(U$8:U$13,U8)) -> 1 | M8: =IF($B8=0,"",ROUND(INDEX(aScoresRounded,H$6,$A8),$B$3)) -> 71.3 | N8: =IF($B8=0,"",RANK(M8,M$8:M$13,0)+COUNTIF(M$8:M8,M8)-1) -> 3 | P8: =N8-I8 -> 2 | Q8: =IF(J8="",0,INDEX($B$8:$B$13,J8)) -> 1 | R8: =IF(OR(S8="AVERAGE",J8=""),"",IF(L8>1,CONCATENATE("=",K8),K8)) -> 3 | S8: =IF(J8="","",INDEX($C$8:$C$13,J8)) -> Izmir | T8: =IF(J8="","",INDEX(H$8:H$13,J8)) -> 71.3 | U8: =IF(S8=$C$13,"",T8) -> 71.3 | V8: =IF(OR(S8=$C$13,J8=""),"",INDEX(M$8:M$13,J8)) -> 71.3 | W8: =IF(R8="","",IF(U8-V8=0,"=",U8-V8)) -> = | X8: =IF(OR($B$4,W8="=",S8=$C$13,R8=""),"",IF(W8>0,"p",IF(W8<0,"q",""))) ->  | Y8: =IF(OR(S8=$C$13,J8=""),"",INDEX(P$8:P$13,J8)) -> 2 | Z8: =IF($B$4,"",IF(Y8="","",IF(Y8=0,1,IF(Y8>0,"p",IF(Y8<0,"q",""))))) -> p | AB8: =IF($B8=0,"",ROUND(INDEX(aScores,AB$6,$A8),$B$3)) -> 77.8 | AC8: =IF($B8=0,"",RANK($G8,$G$8:$G$13,1)+COUNTIF($G$8:$G8,$G8)-1) -> 1 | AD8: =IF(ISERROR(MATCH($A8,AC$8:AC$13,0)),"",MATCH($A8,AC$8:AC$13,0)) -> 1 | AE8: =IF(ISERROR(RANK(AO8,AO$8:AO$13)),"",IF(OR($A8="",AD8=""),"",RANK(AO8,AO$8:AO$13))) -> 3 | AF8: =IF(AD8="","",COUNTIF(AO$8:AO$13,AO8)) -> 1 | AG8: =IF($B8=0,"",ROUND(INDEX(aScoresRounded,AB$6,$A8),$B$3)) -> 77.8 | AH8: =IF($B8=0,"",RANK(AG8,AG$8:AG$13,0)+COUNTIF(AG$8:AG8,AG8)-1) -> 3 | AJ8: =AH8-AC8 -> 2 | AK8: =IF(AD8="",0,INDEX($B$8:$B$13,AD8)) -> 1 | AL8: =IF(OR(AM8="AVERAGE",AD8=""),"",IF(AF8>1,CONCATENATE("=",AE8),AE8)) -> 3 | AM8: =IF(AD8="","",INDEX($C$8:$C$13,AD8)) -> Izmir | AN8: =IF(AD8="","",INDEX(AB$8:AB$13,AD8)) -> 77.8 | AO8: =IF(AM8=$C$13,"",AN8) -> 77.8 | AP8: =IF(OR(AM8=$C$13,AD8=""),"",INDEX(AG$8:AG$13,AD8)) -> 77.8 | AQ8: =IF(AL8="","",IF(AO8-AP8=0,"=",AO8-AP8)) -> = | AR8: =IF(OR($B$4,AQ8="=",AM8=$C$13,AL8=""),"",IF(AQ8>0,"p",IF(AQ8<0,"q",""))) ->  | AS8: =IF(OR(AM8=$C$13,AD8=""),"",INDEX(AJ$8:AJ$13,AD8)) -> 2 | AT8: =IF($B$4,"",IF(AS8="","",IF(AS8=0,1,IF(AS8>0,"p",IF(AS8<0,"q",""))))) -> p | AV8: =IF($B8=0,"",ROUND(INDEX(aScores,AV$6,$A8),$B$3)) -> 80 | AW8: =IF($B8=0,"",RANK($G8,$G$8:$G$13,1)+COUNTIF($G$8:$G8,$G8)-1) -> 1 | AX8: =IF(ISERROR(MATCH($A8,AW$8:AW$13,0)),"",MATCH($A8,AW$8:AW$13,0)) -> 1 | AY8: =IF(ISERROR(RANK(BI8,BI$8:BI$13)),"",IF(OR($A8="",AX8=""),"",RANK(BI8,BI$8:BI$13))) -> 2 | AZ8: =IF(AX8="","",COUNTIF(BI$8:BI$13,BI8)) -> 1 | BA8: =IF($B8=0,"",ROUND(INDEX(aScoresRounded,AV$6,$A8),$B$3)) -> 80 | BB8: =IF($B8=0,"",RANK(BA8,BA$8:BA$13,0)+COUNTIF(BA$8:BA8,BA8)-1) -> 2 | BD8: =BB8-AW8 -> 1 | BE8: =IF(AX8="",0,INDEX($B$8:$B$13,AX8)) -> 1 | BF8: =IF(OR(BG8="AVERAGE",AX8=""),"",IF(AZ8>1,CONCATENATE("=",AY8),AY8)) -> 2 | BG8: =IF(AX8="","",INDEX($C$8:$C$13,AX8)) -> Izmir | BH8: =IF(AX8="","",INDEX(AV$8:AV$13,AX8)) -> 80 | BI8: =IF(BG8=$C$13,"",BH8) -> 80 | BJ8: =IF(OR(BG8=$C$13,AX8=""),"",INDEX(BA$8:BA$13,AX8)) -> 80 | BK8: =IF(BF8="","",IF(BI8-BJ8=0,"=",BI8-BJ8)) -> = | BL8: =IF(OR($B$4,BK8="=",BG8=$C$13,BF8=""),"",IF(BK8>0,"p",IF(BK8<0,"q",""))) ->  | BM8: =IF(OR(BG8=$C$13,AX8=""),"",INDEX(BD$8:BD$13,AX8)) -> 1 | BN8: =IF($B$4,"",IF(BM8="","",IF(BM8=0,1,IF(BM8>0,"p",IF(BM8<0,"q",""))))) -> p | BP8: =IF($B8=0,"",ROUND(INDEX(aScores,BP$6,$A8),$B$3)) -> 60 | BQ8: =IF($B8=0,"",RANK($G8,$G$8:$G$13,1)+COUNTIF($G$8:$G8,$G8)-1) -> 1 | BR8: =IF(ISERROR(MATCH($A8,BQ$8:BQ$13,0)),"",MATCH($A8,BQ$8:BQ$13,0)) -> 1 | BS8: =IF(ISERROR(RANK(CC8,CC$8:CC$13)),"",IF(OR($A8="",BR8=""),"",RANK(CC8,CC$8:CC$13))) -> 4 | BT8: =IF(BR8="","",COUNTIF(CC$8:CC$13,CC8)) -> 1 | BU8: =IF($B8=0,"",ROUND(INDEX(aScoresRounded,BP$6,$A8),$B$3)) -> 60 | BV8: =IF($B8=0,"",RANK(BU8,BU$8:BU$13,0)+COUNTIF(BU$8:BU8,BU8)-1) -> 4 | BX8: =BV8-BQ8 -> 3 | BY8: =IF(BR8="",0,INDEX($B$8:$B$13,BR8)) -> 1 | BZ8: =IF(OR(CA8="AVERAGE",BR8=""),"",IF(BT8>1,CONCATENATE("=",BS8),BS8)) -> 4 | CA8: =IF(BR8="","",INDEX($C$8:$C$13,BR8)) -> Izmir | CB8: =IF(BR8="","",INDEX(BP$8:BP$13,BR8)) -> 60 | CC8: =IF(CA8=$C$13,"",CB8) -> 60 | CD8: =IF(OR(CA8=$C$13,BR8=""),"",INDEX(BU$8:BU$13,BR8)) -> 60 | CE8: =IF(BZ8="","",IF(CC8-CD8=0,"=",CC8-CD8)) -> = | CF8: =IF(OR($B$4,CE8="=",CA8=$C$13,BZ8=""),"",IF(CE8>0,"p",IF(CE8<0,"q",""))) ->  | CG8: =IF(OR(CA8=$C$13,BR8=""),"",INDEX(BX$8:BX$13,BR8)) -> 3 | CH8: =IF($B$4,"",IF(CG8="","",IF(CG8=0,1,IF(CG8>0,"p",IF(CG8<0,"q",""))))) -> p | CJ8: =IF($B8=0,"",ROUND(INDEX(aScores,CJ$6,$A8),$B$3)) -> 70 | CK8: =IF($B8=0,"",RANK($G8,$G$8:$G$13,1)+COUNTIF($G$8:$G8,$G8)-1) -> 1 | CL8: =IF(ISERROR(MATCH($A8,CK$8:CK$13,0)),"",MATCH($A8,CK$8:CK$13,0)) -> 1 | CM8: =IF(ISERROR(RANK(CW8,CW$8:CW$13)),"",IF(OR($A8="",CL8=""),"",RANK(CW8,CW$8:CW$13))) -> 3 | CN8: =IF(CL8="","",COUNTIF(CW$8:CW$13,CW8)) -> 3 | CO8: =IF($B8=0,"",ROUND(INDEX(aScoresRounded,CJ$6,$A8),$B$3)) -> 70 | CP8: =IF($B8=0,"",RANK(CO8,CO$8:CO$13,0)+COUNTIF(CO$8:CO8,CO8)-1) -> 3 | CR8: =CP8-CK8 -> 2 | CS8: =IF(CL8="",0,INDEX($B$8:$B$13,CL8)) -> 1 | CT8: =IF(OR(CU8="AVERAGE",CL8=""),"",IF(CN8>1,CONCATENATE("=",CM8),CM8)) -> =3 | CU8: =IF(CL8="","",INDEX($C$8:$C$13,CL8)) -> Izmir | CV8: =IF(CL8="","",INDEX(CJ$8:CJ$13,CL8)) -> 70 | CW8: =IF(CU8=$C$13,"",CV8) -> 70 | CX8: =IF(OR(CU8=$C$13,CL8=""),"",INDEX(CO$8:CO$13,CL8)) -> 70 | CY8: =IF(CT8="","",IF(CW8-CX8=0,"=",CW8-CX8)) -> = | CZ8: =IF(OR($B$4,CY8="=",CU8=$C$13,CT8=""),"",IF(CY8>0,"p",IF(CY8<0,"q",""))) ->  | DA8: =IF(OR(CU8=$C$13,CL8=""),"",INDEX(CR$8:CR$13,CL8)) -> 2 | DB8: =IF($B$4,"",IF(DA8="","",IF(DA8=0,1,IF(DA8>0,"p",IF(DA8<0,"q",""))))) -> p | DD8: =IF($B8=0,"",ROUND(INDEX(aScores,DD$6,$A8),$B$3)) -> 90 | DE8: =IF($B8=0,"",RANK($G8,$G$8:$G$13,1)+COUNTIF($G$8:$G8,$G8)-1) -> 1 | DF8: =IF(ISERROR(MATCH($A8,DE$8:DE$13,0)),"",MATCH($A8,DE$8:DE$13,0)) -> 1 | DG8: =IF(ISERROR(RANK(DQ8,DQ$8:DQ$13)),"",IF(OR($A8="",DF8=""),"",RANK(DQ8,DQ$8:DQ$13))) -> 2 | DH8: =IF(DF8="","",COUNTIF(DQ$8:DQ$13,DQ8)) -> 2 | DI8: =IF($B8=0,"",ROUND(INDEX(aScoresRounded,DD$6,$A8),$B$3)) -> 90 | DJ8: =IF($B8=0,"",RANK(DI8,DI$8:DI$13,0)+COUNTIF(DI$8:DI8,DI8)-1) -> 2 | DL8: =DJ8-DE8 -> 1 | DM8: =IF(DF8="",0,INDEX($B$8:$B$13,DF8)) -> 1 | DN8: =IF(OR(DO8="AVERAGE",DF8=""),"",IF(DH8>1,CONCATENATE("=",DG8),DG8)) -> =2 | DO8: =IF(DF8="","",INDEX($C$8:$C$13,DF8)) -> Izmir | DP8: =IF(DF8="","",INDEX(DD$8:DD$13,DF8)) -> 90 | DQ8: =IF(DO8=$C$13,"",DP8) -> 90 | DR8: =IF(OR(DO8=$C$13,DF8=""),"",INDEX(DI$8:DI$13,DF8)) -> 90 | DS8: =IF(DN8="","",IF(DQ8-DR8=0,"=",DQ8-DR8)) -> = | DT8: =IF(OR($B$4,DS8="=",DO8=$C$13,DN8=""),"",IF(DS8>0,"p",IF(DS8<0,"q",""))) ->  | DU8: =IF(OR(DO8=$C$13,DF8=""),"",INDEX(DL$8:DL$13,DF8)) -> 1 | DV8: =IF($B$4,"",IF(DU8="","",IF(DU8=0,1,IF(DU8>0,"p",IF(DU8<0,"q",""))))) -> p | DX8: =IF($B8=0,"",ROUND(INDEX(aScores,DX$6,$A8),$B$3)) -> 50 | DY8: =IF($B8=0,"",RANK($G8,$G$8:$G$13,1)+COUNTIF($G$8:$G8,$G8)-1) -> 1 | DZ8: =IF(ISERROR(MATCH($A8,DY$8:DY$13,0)),"",MATCH($A8,DY$8:DY$13,0)) -> 1 | EA8: =IF(ISERROR(RANK(EK8,EK$8:EK$13)),"",IF(OR($A8="",DZ8=""),"",RANK(EK8,EK$8:EK$13))) -> 5 | EB8: =IF(DZ8="","",COUNTIF(EK$8:EK$13,EK8)) -> 1 | EC8: =IF($B8=0,"",ROUND(INDEX(aScoresRounded,DX$6,$A8),$B$3)) -> 50 | ED8: 1 | EF8: =ED8-DY8 -> 0 | EG8: =IF(DZ8="",0,INDEX($B$8:$B$13,DZ8)) -> 1 | EH8: =IF(OR(EI8="AVERAGE",DZ8=""),"",IF(EB8>1,CONCATENATE("=",EA8),EA8)) -> 5 | EI8: =IF(DZ8="","",INDEX($C$8:$C$13,DZ8)) -> Izmir | EJ8: =IF(DZ8="","",INDEX(DX$8:DX$13,DZ8)) -> 50 | EK8: =IF(EI8=$C$13,"",EJ8) -> 50 | EL8: =IF(OR(EI8=$C$13,DZ8=""),"",INDEX(EC$8:EC$13,DZ8)) -> 50 | EM8: =IF(EH8="","",IF(EK8-EL8=0,"=",EK8-EL8)) -> = | EN8: =IF(OR($B$4,EM8="=",EI8=$C$13,EH8=""),"",IF(EM8>0,"p",IF(EM8<0,"q",""))) ->  | EO8: =IF(OR(EI8=$C$13,DZ8=""),"",INDEX(EF$8:EF$13,DZ8)) -> 0 | EP8: =IF($B$4,"",IF(EO8="","",IF(EO8=0,1,IF(EO8>0,"p",IF(EO8<0,"q",""))))) -> 1
A9: =tblTerritories!A4 -> 2 | B9: =IF(tblTerritories!L4="",0,tblTerritories!L4) -> 1 | C9: =tblTerritories!C4 -> Lisbon | D9: =tblTerritories!D4 -> 1 | E9: =tblTerritories!K4 -> 1 | F9: =IF($A9="","",VLOOKUP(C9,tblTerritories!$J$3:$P$7,7,FALSE)+10) -> 11 | G9: =IF(B9=0,"",A9) -> 2 | H9: 76.5 | I9: =IF($B9=0,"",RANK($G9,$G$8:$G$13,1)+COUNTIF($G$8:$G9,$G9)-1) -> 2 | J9: 2 | K9: 2 | L9: 1 | M9: 76.5 | N9: =IF($B9=0,"",RANK(M9,M$8:M$13,0)+COUNTIF(M$8:M9,M9)-1) -> 2 | P9: =N9-I9 -> 0 | Q9: 1 | R9: 2 | S9: Lisbon | T9: 76.5 | U9: =IF(S9=$C$13,"",T9) -> 76.5 | V9: 76.5 | W9: = | Y9: 0 | Z9: =IF($B$4,"",IF(Y9="","",IF(Y9=0,1,IF(Y9>0,"p",IF(Y9<0,"q",""))))) -> 1 | AB9: 88.9 | AC9: =IF($B9=0,"",RANK($G9,$G$8:$G$13,1)+COUNTIF($G$8:$G9,$G9)-1) -> 2 | AD9: 2 | AE9: 2 | AF9: 1 | AG9: 88.9 | AH9: =IF($B9=0,"",RANK(AG9,AG$8:AG$13,0)+COUNTIF(AG$8:AG9,AG9)-1) -> 2 | AJ9: =AH9-AC9 -> 0 | AK9: 1 | AL9: 2 | AM9: Lisbon | AN9: 88.9 | AO9: 88.9 | AP9: 88.9 | AQ9: = | AS9: 0 | AT9: =IF($B$4,"",IF(AS9="","",IF(AS9=0,1,IF(AS9>0,"p",IF(AS9<0,"q",""))))) -> 1 | AV9: 70 | AW9: =IF($B9=0,"",RANK($G9,$G$8:$G$13,1)+COUNTIF($G$8:$G9,$G9)-1) -> 2 | AX9: 2 | AY9: 3 | AZ9: 1 | BA9: 70 | BB9: =IF($B9=0,"",RANK(BA9,BA$8:BA$13,0)+COUNTIF(BA$8:BA9,BA9)-1) -> 3 | BD9: =BB9-AW9 -> 1 | BE9: 1 | BF9: 3 | BG9: Lisbon | BH9: 70 | BI9: 70 | BJ9: 70 | BK9: = | BM9: 1 | BN9: =IF($B$4,"",IF(BM9="","",IF(BM9=0,1,IF(BM9>0,"p",IF(BM9<0,"q",""))))) -> p | BP9: 70 | BQ9: =IF($B9=0,"",RANK($G9,$G$8:$G$13,1)+COUNTIF($G$8:$G9,$G9)-1) -> 2 | BR9: 2 | BS9: 2 | BT9: 2 | BU9: 70 | BV9: =IF($B9=0,"",RANK(BU9,BU$8:BU$13,0)+COUNTIF(BU$8:BU9,BU9)-1) -> 2 | BX9: =BV9-BQ9 -> 0 | BY9: 1 | BZ9: =2 | CA9: Lisbon | CB9: 70 | CC9: 70 | CD9: 70 | CE9: = | CG9: 0 | CH9: =IF($B$4,"",IF(CG9="","",IF(CG9=0,1,IF(CG9>0,"p",IF(CG9<0,"q",""))))) -> 1 | CJ9: 90 | CK9: =IF($B9=0,"",RANK($G9,$G$8:$G$13,1)+COUNTIF($G$8:$G9,$G9)-1) -> 2 | CL9: 2 | CM9: 2 | CN9: 1 | CO9: 90 | CP9: =IF($B9=0,"",RANK(CO9,CO$8:CO$13,0)+COUNTIF(CO$8:CO9,CO9)-1) -> 2 | CR9: =CP9-CK9 -> 0 | CS9: 1 | CT9: 2 | CU9: Lisbon | CV9: 90 | CW9: 90 | CX9: 90 | CY9: = | DA9: 0 | DB9: =IF($B$4,"",IF(DA9="","",IF(DA9=0,1,IF(DA9>0,"p",IF(DA9<0,"q",""))))) -> 1 | DD9: 60 | DE9: =IF($B9=0,"",RANK($G9,$G$8:$G$13,1)+COUNTIF($G$8:$G9,$G9)-1) -> 2 | DF9: 2 | DG9: 4 | DH9: 1 | DI9: 60 | DJ9: =IF($B9=0,"",RANK(DI9,DI$8:DI$13,0)+COUNTIF(DI$8:DI9,DI9)-1) -> 4 | DL9: =DJ9-DE9 -> 2 | DM9: 1 | DN9: 4 | DO9: Lisbon | DP9: 60 | DQ9: 60 | DR9: 60 | DS9: = | DU9: 2 | DV9: =IF($B$4,"",IF(DU9="","",IF(DU9=0,1,IF(DU9>0,"p",IF(DU9<0,"q",""))))) -> p | DX9: 80 | DY9: =IF($B9=0,"",RANK($G9,$G$8:$G$13,1)+COUNTIF($G$8:$G9,$G9)-1) -> 2 | DZ9: 2 | EA9: 3 | EB9: 1 | EC9: 80 | ED9: 2 | EF9: =ED9-DY9 -> 0 | EG9: 1 | EH9: 3 | EI9: Lisbon | EJ9: 80 | EK9: 80 | EL9: 80 | EM9: = | EO9: 0 | EP9: =IF($B$4,"",IF(EO9="","",IF(EO9=0,1,IF(EO9>0,"p",IF(EO9<0,"q",""))))) -> 1
A10: =tblTerritories!A5 -> 3 | B10: =IF(tblTerritories!L5="",0,tblTerritories!L5) -> 1 | C10: =tblTerritories!C5 -> Melaka | D10: =tblTerritories!D5 -> 1 | E10: =tblTerritories!K5 -> 3 | F10: =IF($A10="","",VLOOKUP(C10,tblTerritories!$J$3:$P$7,7,FALSE)+10) -> 12 | G10: 3 | H10: 58.5 | I10: =IF($B10=0,"",RANK($G10,$G$8:$G$13,1)+COUNTIF($G$8:$G10,$G10)-1) -> 3 | J10: 3 | K10: 5 | L10: 1 | M10: 58.5 | N10: =IF($B10=0,"",RANK(M10,M$8:M$13,0)+COUNTIF(M$8:M10,M10)-1) -> 5 | P10: 2 | Q10: 1 | R10: 5 | S10: Melaka | T10: 58.5 | U10: =IF(S10=$C$13,"",T10) -> 58.5 | V10: 58.5 | W10: = | Y10: 2 | Z10: p | AB10: 61.1 | AC10: =IF($B10=0,"",RANK($G10,$G$8:$G$13,1)+COUNTIF($G$8:$G10,$G10)-1) -> 3 | AD10: 3 | AE10: 5 | AF10: 1 | AG10: 61.1 | AH10: =IF($B10=0,"",RANK(AG10,AG$8:AG$13,0)+COUNTIF(AG$8:AG10,AG10)-1) -> 5 | AJ10: 2 | AK10: 1 | AL10: 5 | AM10: Melaka | AN10: 61.1 | AO10: 61.1 | AP10: 61.1 | AQ10: = | AS10: 2 | AT10: p | AV10: 30 | AW10: =IF($B10=0,"",RANK($G10,$G$8:$G$13,1)+COUNTIF($G$8:$G10,$G10)-1) -> 3 | AX10: 3 | AY10: 5 | AZ10: 1 | BA10: 30 | BB10: =IF($B10=0,"",RANK(BA10,BA$8:BA$13,0)+COUNTIF(BA$8:BA10,BA10)-1) -> 5 | BD10: 2 | BE10: 1 | BF10: 5 | BG10: Melaka | BH10: 30 | BI10: 30 | BJ10: 30 | BK10: = | BM10: 2 | BN10: p | BP10: 50 | BQ10: =IF($B10=0,"",RANK($G10,$G$8:$G$13,1)+COUNTIF($G$8:$G10,$G10)-1) -> 3 | BR10: 3 | BS10: 5 | BT10: 1 | BU10: 50 | BV10: =IF($B10=0,"",RANK(BU10,BU$8:BU$13,0)+COUNTIF(BU$8:BU10,BU10)-1) -> 5 | BX10: 2 | BY10: 1 | BZ10: 5 | CA10: Melaka | CB10: 50 | CC10: 50 | CD10: 50 | CE10: = | CG10: 2 | CH10: p | CJ10: 70 | CK10: =IF($B10=0,"",RANK($G10,$G$8:$G$13,1)+COUNTIF($G$8:$G10,$G10)-1) -> 3 | CL10: 3 | CM10: 3 | CN10: 3 | CO10: 70 | CP10: =IF($B10=0,"",RANK(CO10,CO$8:CO$13,0)+COUNTIF(CO$8:CO10,CO10)-1) -> 4 | CR10: 1 | CS10: 1 | CT10: =3 | CU10: Melaka | CV10: 70 | CW10: 70 | CX10: 70 | CY10: = | DA10: 1 | DB10: p | DD10: 50 | DE10: =IF($B10=0,"",RANK($G10,$G$8:$G$13,1)+COUNTIF($G$8:$G10,$G10)-1) -> 3 | DF10: 3 | DG10: 5 | DH10: 1 | DI10: 50 | DJ10: =IF($B10=0,"",RANK(DI10,DI$8:DI$13,0)+COUNTIF(DI$8:DI10,DI10)-1) -> 5 | DL10: 2 | DM10: 1 | DN10: 5 | DO10: Melaka | DP10: 50 | DQ10: 50 | DR10: 50 | DS10: = | DU10: 2 | DV10: p | DX10: 90 | DY10: =IF($B10=0,"",RANK($G10,$G$8:$G$13,1)+COUNTIF($G$8:$G10,$G10)-1) -> 3 | DZ10: 3 | EA10: 2 | EB10: 1 | EC10: 90 | ED10: 3 | EF10: 0 | EG10: 1 | EH10: 2 | EI10: Melaka | EJ10: 90 | EK10: 90 | EL10: 90 | EM10: = | EO10: 0 | EP10: 1
A11: =tblTerritories!A6 -> 4 | B11: =IF(tblTerritories!L6="",0,tblTerritories!L6) -> 1 | C11: =tblTerritories!C6 -> Recife | D11: =tblTerritories!D6 -> 1 | E11: =tblTerritories!K6 -> 1 | F11: =IF($A11="","",VLOOKUP(C11,tblTerritories!$J$3:$P$7,7,FALSE)+10) -> 12 | G11: 4 | H11: 70.4 | I11: =IF($B11=0,"",RANK($G11,$G$8:$G$13,1)+COUNTIF($G$8:$G11,$G11)-1) -> 4 | J11: 4 | K11: 4 | L11: 1 | M11: 70.4 | N11: =IF($B11=0,"",RANK(M11,M$8:M$13,0)+COUNTIF(M$8:M11,M11)-1) -> 4 | P11: 0 | Q11: 1 | R11: 4 | S11: Recife | T11: 70.4 | U11: =IF(S11=$C$13,"",T11) -> 70.4 | V11: 70.4 | W11: = | Y11: 0 | Z11: 1 | AB11: 72.2 | AC11: =IF($B11=0,"",RANK($G11,$G$8:$G$13,1)+COUNTIF($G$8:$G11,$G11)-1) -> 4 | AD11: 4 | AE11: 4 | AF11: 1 | AG11: 72.2 | AH11: =IF($B11=0,"",RANK(AG11,AG$8:AG$13,0)+COUNTIF(AG$8:AG11,AG11)-1) -> 4 | AJ11: 0 | AK11: 1 | AL11: 4 | AM11: Recife | AN11: 72.2 | AO11: 72.2 | AP11: 72.2 | AQ11: = | AS11: 0 | AT11: 1 | AV11: 60 | AW11: =IF($B11=0,"",RANK($G11,$G$8:$G$13,1)+COUNTIF($G$8:$G11,$G11)-1) -> 4 | AX11: 4 | AY11: 4 | AZ11: 1 | BA11: 60 | BB11: =IF($B11=0,"",RANK(BA11,BA$8:BA$13,0)+COUNTIF(BA$8:BA11,BA11)-1) -> 4 | BD11: 0 | BE11: 1 | BF11: 4 | BG11: Recife | BH11: 60 | BI11: 60 | BJ11: 60 | BK11: = | BM11: 0 | BN11: 1 | BP11: 70 | BQ11: =IF($B11=0,"",RANK($G11,$G$8:$G$13,1)+COUNTIF($G$8:$G11,$G11)-1) -> 4 | BR11: 4 | BS11: 2 | BT11: 2 | BU11: 70 | BV11: =IF($B11=0,"",RANK(BU11,BU$8:BU$13,0)+COUNTIF(BU$8:BU11,BU11)-1) -> 3 | BX11: -1 | BY11: 1 | BZ11: =2 | CA11: Recife | CB11: 70 | CC11: 70 | CD11: 70 | CE11: = | CG11: -1 | CH11: q | CJ11: 70 | CK11: =IF($B11=0,"",RANK($G11,$G$8:$G$13,1)+COUNTIF($G$8:$G11,$G11)-1) -> 4 | CL11: 4 | CM11: 3 | CN11: 3 | CO11: 70 | CP11: =IF($B11=0,"",RANK(CO11,CO$8:CO$13,0)+COUNTIF(CO$8:CO11,CO11)-1) -> 5 | CR11: 1 | CS11: 1 | CT11: =3 | CU11: Recife | CV11: 70 | CW11: 70 | CX11: 70 | CY11: = | DA11: 1 | DB11: p | DD11: 90 | DE11: =IF($B11=0,"",RANK($G11,$G$8:$G$13,1)+COUNTIF($G$8:$G11,$G11)-1) -> 4 | DF11: 4 | DG11: 2 | DH11: 2 | DI11: 90 | DJ11: =IF($B11=0,"",RANK(DI11,DI$8:DI$13,0)+COUNTIF(DI$8:DI11,DI11)-1) -> 3 | DL11: -1 | DM11: 1 | DN11: =2 | DO11: Recife | DP11: 90 | DQ11: 90 | DR11: 90 | DS11: = | DU11: -1 | DV11: q | DX11: 60 | DY11: =IF($B11=0,"",RANK($G11,$G$8:$G$13,1)+COUNTIF($G$8:$G11,$G11)-1) -> 4 | DZ11: 4 | EA11: 4 | EB11: 1 | EC11: 60 | ED11: 4 | EF11: 0 | EG11: 1 | EH11: 4 | EI11: Recife | EJ11: 60 | EK11: 60 | EL11: 60 | EM11: = | EO11: 0 | EP11: 1
A12: =tblTerritories!A7 -> 5 | B12: =IF(tblTerritories!L7="",0,tblTerritories!L7) -> 1 | C12: =tblTerritories!C7 -> Singapore | D12: =tblTerritories!D7 -> 1 | E12: =tblTerritories!K7 -> 1 | F12: =IF($A12="","",VLOOKUP(C12,tblTerritories!$J$3:$P$7,7,FALSE)+10) -> 13 | G12: 5 | H12: 97.4 | I12: =IF($B12=0,"",RANK($G12,$G$8:$G$13,1)+COUNTIF($G$8:$G12,$G12)-1) -> 5 | J12: 5 | K12: 1 | L12: 1 | M12: 97.4 | N12: =IF($B12=0,"",RANK(M12,M$8:M$13,0)+COUNTIF(M$8:M12,M12)-1) -> 1 | P12: -4 | Q12: 1 | R12: 1 | S12: Singapore | T12: 97.4 | U12: =IF(S12=$C$13,"",T12) -> 97.4 | V12: 97.4 | W12: = | Y12: -4 | Z12: q | AB12: 94.4 | AC12: =IF($B12=0,"",RANK($G12,$G$8:$G$13,1)+COUNTIF($G$8:$G12,$G12)-1) -> 5 | AD12: 5 | AE12: 1 | AF12: 1 | AG12: 94.4 | AH12: =IF($B12=0,"",RANK(AG12,AG$8:AG$13,0)+COUNTIF(AG$8:AG12,AG12)-1) -> 1 | AJ12: -4 | AK12: 1 | AL12: 1 | AM12: Singapore | AN12: 94.4 | AO12: 94.4 | AP12: 94.4 | AQ12: = | AS12: -4 | AT12: q | AV12: 100 | AW12: =IF($B12=0,"",RANK($G12,$G$8:$G$13,1)+COUNTIF($G$8:$G12,$G12)-1) -> 5 | AX12: 5 | AY12: 1 | AZ12: 1 | BA12: 100 | BB12: =IF($B12=0,"",RANK(BA12,BA$8:BA$13,0)+COUNTIF(BA$8:BA12,BA12)-1) -> 1 | BD12: -4 | BE12: 1 | BF12: 1 | BG12: Singapore | BH12: 100 | BI12: 100 | BJ12: 100 | BK12: = | BM12: -4 | BN12: q | BP12: 90 | BQ12: =IF($B12=0,"",RANK($G12,$G$8:$G$13,1)+COUNTIF($G$8:$G12,$G12)-1) -> 5 | BR12: 5 | BS12: 1 | BT12: 1 | BU12: 90 | BV12: =IF($B12=0,"",RANK(BU12,BU$8:BU$13,0)+COUNTIF(BU$8:BU12,BU12)-1) -> 1 | BX12: -4 | BY12: 1 | BZ12: 1 | CA12: Singapore | CB12: 90 | CC12: 90 | CD12: 90 | CE12: = | CG12: -4 | CH12: q | CJ12: 100 | CK12: =IF($B12=0,"",RANK($G12,$G$8:$G$13,1)+COUNTIF($G$8:$G12,$G12)-1) -> 5 | CL12: 5 | CM12: 1 | CN12: 1 | CO12: 100 | CP12: =IF($B12=0,"",RANK(CO12,CO$8:CO$13,0)+COUNTIF(CO$8:CO12,CO12)-1) -> 1 | CR12: -4 | CS12: 1 | CT12: 1 | CU12: Singapore | CV12: 100 | CW12: 100 | CX12: 100 | CY12: = | DA12: -4 | DB12: q | DD12: 100 | DE12: =IF($B12=0,"",RANK($G12,$G$8:$G$13,1)+COUNTIF($G$8:$G12,$G12)-1) -> 5 | DF12: 5 | DG12: 1 | DH12: 1 | DI12: 100 | DJ12: =IF($B12=0,"",RANK(DI12,DI$8:DI$13,0)+COUNTIF(DI$8:DI12,DI12)-1) -> 1 | DL12: -4 | DM12: 1 | DN12: 1 | DO12: Singapore | DP12: 100 | DQ12: 100 | DR12: 100 | DS12: = | DU12: -4 | DV12: q | DX12: 100 | DY12: =IF($B12=0,"",RANK($G12,$G$8:$G$13,1)+COUNTIF($G$8:$G12,$G12)-1) -> 5 | DZ12: 5 | EA12: 1 | EB12: 1 | EC12: 100 | ED12: 5 | EF12: 0 | EG12: 1 | EH12: 1 | EI12: Singapore | EJ12: 100 | EK12: 100 | EL12: 100 | EM12: = | EO12: 0 | EP12: 1
A13: 6 | B13: =IF(uxb_works!$B$49,4,0) -> 0 | C13: AVERAGE | D13: =tblTerritories!D67 -> 0 | E13: =IF(uxb_works!$B$49,4,0) -> 0 | H13: =IF($B13=0,"",ROUND(SUM(H$8:H$12)/COUNTIF($B$8:$B$12,">0"),$B$3)) ->  | I13: =IF($B13=0,"",RANK(H13,H$8:H$13,0)+COUNTIF(H$8:H13,H13)-1) ->  | M13: =IF($B13=0,"",ROUND(SUM(M$8:M$12)/COUNTIF($B$8:$B$12,">0"),$B$3)) ->  | N13: =IF($B13=0,"",RANK(M13,M$8:M$13,0)+COUNTIF(M$8:M13,M13)-1) ->  | P13: =N13-I13 ->  | Q13: 0 | R13: =IF(OR(S13="AVERAGE",J13=""),"",IF(L13>1,CONCATENATE("=",K13),K13)) ->  | U13: =IF(S13=$C$13,"",T13) ->  | W13: =IF(R13="","",IF(U13-V13=0,"=",U13-V13)) ->  | Z13: =IF($B$4,"",IF(Y13="","",IF(Y13=0,1,IF(Y13>0,"p",IF(Y13<0,"q",""))))) ->  | AB13: =IF($B13=0,"",ROUND(SUM(AB$8:AB$12)/COUNTIF($B$8:$B$12,">0"),$B$3)) ->  | AC13: =IF($B13=0,"",RANK(AB13,AB$8:AB$13,0)+COUNTIF(AB$8:AB13,AB13)-1) ->  | AG13: =IF($B13=0,"",ROUND(SUM(AG$8:AG$12)/COUNTIF($B$8:$B$12,">0"),$B$3)) ->  | AH13: =IF($B13=0,"",RANK(AG13,AG$8:AG$13,0)+COUNTIF(AG$8:AG13,AG13)-1) ->  | AJ13: =AH13-AC13 ->  | AK13: 0 | AL13: =IF(OR(AM13="AVERAGE",AD13=""),"",IF(AF13>1,CONCATENATE("=",AE13),AE13)) ->  | AQ13: =IF(AL13="","",IF(AO13-AP13=0,"=",AO13-AP13)) ->  | AT13: =IF($B$4,"",IF(AS13="","",IF(AS13=0,1,IF(AS13>0,"p",IF(AS13<0,"q",""))))) ->  | AV13: =IF($B13=0,"",ROUND(SUM(AV$8:AV$12)/COUNTIF($B$8:$B$12,">0"),$B$3)) ->  | AW13: =IF($B13=0,"",RANK(AV13,AV$8:AV$13,0)+COUNTIF(AV$8:AV13,AV13)-1) ->  | BA13: =IF($B13=0,"",ROUND(SUM(BA$8:BA$12)/COUNTIF($B$8:$B$12,">0"),$B$3)) ->  | BB13: =IF($B13=0,"",RANK(BA13,BA$8:BA$13,0)+COUNTIF(BA$8:BA13,BA13)-1) ->  | BD13: =BB13-AW13 ->  | BE13: 0 | BF13: =IF(OR(BG13="AVERAGE",AX13=""),"",IF(AZ13>1,CONCATENATE("=",AY13),AY13)) ->  | BK13: =IF(BF13="","",IF(BI13-BJ13=0,"=",BI13-BJ13)) ->  | BN13: =IF($B$4,"",IF(BM13="","",IF(BM13=0,1,IF(BM13>0,"p",IF(BM13<0,"q",""))))) ->  | BP13: =IF($B13=0,"",ROUND(SUM(BP$8:BP$12)/COUNTIF($B$8:$B$12,">0"),$B$3)) ->  | BQ13: =IF($B13=0,"",RANK(BP13,BP$8:BP$13,0)+COUNTIF(BP$8:BP13,BP13)-1) ->  | BU13: =IF($B13=0,"",ROUND(SUM(BU$8:BU$12)/COUNTIF($B$8:$B$12,">0"),$B$3)) ->  | BV13: =IF($B13=0,"",RANK(BU13,BU$8:BU$13,0)+COUNTIF(BU$8:BU13,BU13)-1) ->  | BX13: =BV13-BQ13 ->  | BY13: 0 | BZ13: =IF(OR(CA13="AVERAGE",BR13=""),"",IF(BT13>1,CONCATENATE("=",BS13),BS13)) ->  | CE13: =IF(BZ13="","",IF(CC13-CD13=0,"=",CC13-CD13)) ->  | CH13: =IF($B$4,"",IF(CG13="","",IF(CG13=0,1,IF(CG13>0,"p",IF(CG13<0,"q",""))))) ->  | CJ13: =IF($B13=0,"",ROUND(SUM(CJ$8:CJ$12)/COUNTIF($B$8:$B$12,">0"),$B$3)) ->  | CK13: =IF($B13=0,"",RANK(CJ13,CJ$8:CJ$13,0)+COUNTIF(CJ$8:CJ13,CJ13)-1) ->  | CO13: =IF($B13=0,"",ROUND(SUM(CO$8:CO$12)/COUNTIF($B$8:$B$12,">0"),$B$3)) ->  | CP13: =IF($B13=0,"",RANK(CO13,CO$8:CO$13,0)+COUNTIF(CO$8:CO13,CO13)-1) ->  | CS13: 0 | DD13: =IF($B13=0,"",ROUND(SUM(DD$8:DD$12)/COUNTIF($B$8:$B$12,">0"),$B$3)) ->  | DE13: =IF($B13=0,"",RANK(DD13,DD$8:DD$13,0)+COUNTIF(DD$8:DD13,DD13)-1) ->  | DI13: =IF($B13=0,"",ROUND(SUM(DI$8:DI$12)/COUNTIF($B$8:$B$12,">0"),$B$3)) ->  | DJ13: =IF($B13=0,"",RANK(DI13,DI$8:DI$13,0)+COUNTIF(DI$8:DI13,DI13)-1) ->  | DM13: 0 | DX13: =IF($B13=0,"",ROUND(SUM(DX$8:DX$12)/COUNTIF($B$8:$B$12,">0"),$B$3)) ->  | DY13: =IF($B13=0,"",RANK(DX13,DX$8:DX$13,0)+COUNTIF(DX$8:DX13,DX13)-1) ->  | EC13: =IF($B13=0,"",ROUND(SUM(EC$8:EC$12)/COUNTIF($B$8:$B$12,">0"),$B$3)) ->  | ED13: =IF($B13=0,"",RANK(EC13,EC$8:EC$13,0)+COUNTIF(EC$8:EC13,EC13)-1) ->  | EG13: 0

Sheet iIndiRank (hidden)
A1: =uxb_works!A20 -> Indicator Ranking | C1: =uxb_works!C20 -> Indi Name | D1: =uxb_works!D20 -> Indi Level | E1: =uxb_works!E20 -> Format | F1: =uxb_works!F20 -> Child | G1: =uxb_works!G20 -> Parent | H1: =uxb_works!H20 -> Ref | I1: =uxb_works!I20 -> Qual_Or_Quant | J1: Year | L1: Description | M1: Scoring Guidance | N1: Units | O1: Source | P1: =uxb_works!Q20 -> NORM_ID (1=sumproduct, 2=min max set by data values, 3=min max set by user here) | Q1: NOTES | R1: Row Heigh | T1: Has Notes | U1: Country Specific Notes | V1: Country Specific Ref | X1: 1 | Y1: 2 | Z1: 3 | AA1: 4 | AB1: 5 | AD1: Question (Survey) | AM1: Quant or Qual | AN1: band | AO1: Qual YES/No reverse | AT1: =I2 -> 2 | AU1: =IF($AN$2=1,0,AM4+1) -> 3 | AX1: =IF($AN$2=1,0,AN4+1) -> 2 | BA1: =IF(OR(AN2=1,AO4="-"),0,AO4+1) -> 1 | BD1: =IF(OR(AN2=1,AP4="-"),0,AP4+1) -> 0 | BG1: =IF(OR(AN2=1,AQ4="-"),0,AQ4+1) -> 0
A2: =uxb_works!A21 -> INDI_ID | B2: =uxb_works!B21 -> 40 | C2: =uxb_works!C21 -> 6.4) Health and Well-Being | D2: =uxb_works!D21 -> 2 | E2: =uxb_works!E21 -> 0 | F2: =INDEX(tblIndicators!$AL$2:$AL$42,B2) -> 6.4) Health and Well-Being | G2: =uxb_works!G21 -> 6) INCLUSIVITY AND QUALITY OF LIFE | H2: =uxb_works!H21 -> 6_4 | I2: =uxb_works!I21 -> 2 | J2: =IF(INDEX(tblIndicators!Z2:Z42,$B$2)="","","Year: "&INDEX(tblIndicators!Z2:Z42,$B$2)) ->  | K2: =IF(D2=4,2,1) -> 1 | L2: =IF(INDEX(tblIndicators!O2:O42,$B$2)="","","Description: "&INDEX(tblIndicators!O2:O42,$B$2)) -> Description: Are there city-level health promotion intitiatives? | M2: =IF(OR(INDEX(tblIndicators!Q2:Q42,$B$2)="",INDEX(tblIndicators!Q2:Q42,$B$2)="-"),"","Scoring Guidance: "&INDEX(tblIndicators!Q2:Q42,$B$2)) -> Scoring Guidance: These iniatives can be related to curving the incidence of a particular disease among the local population. They can also include a scheme to give coverage to residents of the city in addition to the national health system. | N2: =IF(OR(INDEX(tblIndicators!Y2:Y42,$B$2)="",INDEX(tblIndicators!Y2:Y42,$B$2)="-"),"","Units: "&INDEX(tblIndicators!Y2:Y42,$B$2)) -> Units: 0 = No 1 = Somewhat 2 = Yes | O2: =IF(OR(INDEX(tblIndicators!T2:T42,$B$2)="",INDEX(tblIndicators!T2:T42,$B$2)="-"),"","Source: "&INDEX(tblIndicators!T2:T42,$B$2)) -> Source: Policy Survey | P2: =uxb_works!Q21 -> 3 | Q2: =INDEX(X2:AB2,W2) -> Description: Are there city-level health promotion intitiatives? Units: 0 = No 1 = Somewhat 2 = Yes Source: Policy Survey | R2: =RowHeight2(Q2) -> 159 | T2: =INDEX(tblIndicators!U2:U42,B2) -> 1 | W2: =INDEX(tblIndicators!$V$2:$V$42,B2) -> 2 | X2: =""&L2&" "&O2&"" -> Description: Are there city-level health promotion intitiatives? Source: Policy Survey | Y2: =""&L2&" "&N2&" "&O2&" "&J2&"" -> Description: Are there city-level health promotion intitiatives? Units: 0 = No 1 = Somewhat 2 = Yes Source: Policy Survey | AA2: =X2 -> Description: Are there city-level health promotion intitiatives? Source: Policy Survey | AD2: ="Question: "&INDEX(tblIndicators!$O$2:$O$42,B2) -> Question: Are there city-level health promotion intitiatives? | AM2: =INDEX(tblIndicators!$W$2:$W$42,iIndiRank!B2) -> 2 | AN2: =uxb_works!J21 -> 3 | AO2: =INDEX(tblIndicators!$AD$2:$AD$42,iIndiRank!B2) -> 0 | AR2: =INDEX(tblIndicators!$R$2:$R$42,B2) -> 33 | AS2: =IF(AR2=0,0,1) -> 1
A3: INDI_IS_NATIONAL | H3: =IF(F3=0,"",RANK(G3,G$6:G$10,0)+COUNTIF(G3:G$6,G3)-1) ->  | Q3: =LEN(Q2) -> 127 | U3: =IF(ISERROR(INDEX(iJustification,$B$2,uxb_works!$B$7)),"",INDEX(iJustification,$B$2,uxb_works!$B$7)) -> Health promotion is a federal government responsibility. The country aims to be free from HIV by 2030, and Melaka has been selected as the first state to lead this initiative [3]. The Ministry of Health also enforced smoke-free zones in five areas across Melaka State in 2011 [4]. | V3: =IF(ISERROR(INDEX(iReference,$B$2,uxb_works!$B$7)),"",INDEX(iReference,$B$2,uxb_works!$B$7)) -> [1] Sinar Harian. 2018. "Kes HIV di Melaka Catat Penurunan." [http://www.sinarharian.com.my/edisi/melaka-ns/kes-hiv-di-melaka-catat-penurunan-1.876116]. [2] Melaka Bebas Asap Rokok (MBAR). 2018. "Zon MBAR." [http://www.mbar.gov.my/2/page.php?s=zon-bebas-asap-rokok&id=607]. | AD3: eg: A 1-2 sentence conclusion will be provided for each country explaining why they receive or do not receive credit for this indicator. For example, Uganda does not have market-based instruments for end-user level food waste. | AN3: 3 | AU3: =INDEX(tblIndicators!$AR$2:$AV$42,iIndiRank!$B$2,iIndiRank!AU4+1) -> Yes | AX3: =INDEX(tblIndicators!$AR$2:$AV$42,iIndiRank!$B$2,iIndiRank!AX4+1) -> Somewhat | BA3: =INDEX(tblIndicators!$AR$2:$AV$42,iIndiRank!$B$2,iIndiRank!BA4+1) -> No | BD3: =INDEX(tblIndicators!$AR$2:$AV$42,iIndiRank!$B$2,iIndiRank!BD4+1) -> 0 | BG3: =INDEX(tblIndicators!$AR$2:$AV$42,iIndiRank!$B$2,iIndiRank!BG4+1) -> 0
A4: SHOW_DATA | B4: =IF(P2=1,FALSE,TRUE) -> TRUE | D4: =uxb_works!A6 -> COUNTRY_HIGHLIGHT_DD | E4: =uxb_works!B6 -> 4 | F4: =uxb_works!C6 -> Melaka | I4: All Tiers | J4: =uxb_works!B8 -> 1 | P4: =LEN(Q2)-LEN(SUBSTITUTE(Q2,CHAR(10),""))+1 -> 11 | Q4: =IF(ISERROR(RIGHT(Q2,LEN(Q2)-800)),"-",RIGHT(Q2,LEN(Q2)-800)) -> - | U4: =LEN(U2)-LEN(SUBSTITUTE(U2,CHAR(10),""))+1 -> 1 | V4: =LEN(V2)-LEN(SUBSTITUTE(V2,CHAR(10),""))+1 -> 1 | AA4: REGION HIGHLIGHT DATAPOINTS | AD4: City HIGHLIGHT | AM4: =CHOOSE(AN2,"",1,2,3,4,6) -> 2 | AN4: =CHOOSE($AN$2,"",0,1,2,3,5,6) -> 1 | AO4: =CHOOSE($AN$2,"","-",0,1,2) -> 0 | AP4: =CHOOSE($AN$2,"","-","-",0,1,1) -> - | AQ4: =CHOOSE($AN$2,"","-","-","-",0,1) -> - | AU4: 0 | AX4: 1 | BA4: 2 | BD4: 3 | BG4: 4
A5: =uxb_works!A57 -> 0 | B5: =uxb_works!B57 -> 1.25 | D5: IsRegion | E5: Status | F5: ActiveStatus | G5: Score 2018 (unrounded) | H5: Rank unrounded | I5: LU | J5: yScatter | K5: RankRounded | R5: Score | S5: =IF($B$4,"Data","") -> Data | T5: Score Display | V5: X | W5: Y | Y5: HAS_SUB_INDICATORS | AH5: Buckets | AI5: Data Point | AM5: 0 | AN5: 0 | AO5: 0 | AP5: 0 | AQ5: 0 | AU5: 0 | AX5: 0 | BA5: 0 | BD5: 0 | BG5: 0
A6: =tblTerritories!A3 -> 1 | B6: =IF(F6=0,"",-A6*100) -> -100 | C6: =tblTerritories!C3 -> Izmir | D6: =tblTerritories!D3 -> 1 | E6: =IF(AND(OR(tblTerritories!$K$5=4,tblTerritories!$K$5=5),$G$2=3),0,IF(AND(OR(tblTerritories!$K$5=2,tblTerritories!$K$5=3),$G$2=3),tblTerritories!G3,IF(AND($G$2=3,tblTerritories!$K$5=1),Z6,tblTerritories!G3))) -> 1 | F6: =tblTerritories!G3 -> 1 | G6: =IF(F6=0,"",INDEX(aScoresRounded,$B$2,$A6)) -> 50 | H6: =IF(F6=0,"",RANK(B6,B$6:B$10,0)+COUNTIF(B6:B$6,B6)-1) -> 1 | I6: =IF(ISERROR(MATCH($A6,H$6:H$10,0)),"",MATCH($A6,H$6:H$10,0)) -> 1 | J6: =IF(I6="","",1) -> 1 | K6: =IF(I6="","",RANK(R6,R$6:R$10,0)) -> 4 | L6: =IF(I6="",0,INDEX($F$6:$F$10,I6)) -> 1 | M6: =IF(J6="","",COUNTIF(R$6:R$10,R6)) -> 2 | P6: =IF(J6="","",IF(M6>1,CONCATENATE("=",K6),K6)) -> =4 | Q6: =IF(I6="","",INDEX($C$6:$C$10,I6)) -> Izmir | R6: =IF(I6="","",INDEX(aScoresRounded,$B$2,I6)) -> 50 | S6: =IF(I6="","",IF($B$4=FALSE,"",INDEX(aData,$B$2,I6))) -> 1 | T6: =IF(L6=0,"",IF($C$2=1,"-",R6)) -> 50 | V6: =IF(ISNUMBER(R6),R6,NA()) -> 50 | W6: =1 -> 1 | Y6: 0 | Z6: =IF(Y6=1,tblTerritories!G3,0) -> 0 | AA6: =IF(L6=2,V6,NA()) ->  | AB6: =IF(L6=2,1,NA()) ->  | AD6: =IF(L6=3,V6,NA()) ->  | AE6: =IF(L6=3,1,NA()) ->  | AH6: =IF(R6="","",IF(R6<=uxb_works!$B$122,0,IF(R6<=uxb_works!$B$121,1,IF(R6<=uxb_works!$B$120,2,3)))) -> 1 | AI6: =IF($I6="","",IF($AN$2=4,AH6,INDEX(aData,$B$2,$I6))) -> 1 | AM6: =AM5+MATCH(AM$4,OFFSET($AI$6:$AI$10,AM5,0),0) -> 2 | AN6: 1 | AT6: =IF($AN$2=1,0,IF(ISNUMBER(AM6),INDEX($L$6:$L$10,AM6),0)) -> 1 | AU6: =CHOOSE($AM$2,IF(ISNUMBER(AM6),INDEX($Q$6:$Q$10,AM6),""),IF(ISNUMBER(AM6),INDEX($Q$6:$Q$10,AM6),"")) -> Lisbon | AW6: =IF(ISNUMBER(AN6),INDEX($L$6:$L$10,AN6),0) -> 1 | AX6: =IF(ISNUMBER(AN6),INDEX($Q$6:$Q$10,AN6),"") -> Izmir | AZ6: =IF(ISNUMBER(AO6),INDEX($L$6:$L$10,AO6),0) -> 0 | BA6: =IF(ISNUMBER(AO6),INDEX($Q$6:$Q$10,AO6),"") ->  | BC6: =IF(ISNUMBER(AP6),INDEX($L$6:$L$10,AP6),0) -> 0 | BD6: =IF(ISNUMBER(AP6),INDEX($Q$6:$Q$10,AP6),"") ->  | BF6: =IF(ISNUMBER(AQ6),INDEX($L$6:$L$10,AQ6),0) -> 0 | BG6: =IF(ISNUMBER(AQ6),INDEX($Q$6:$Q$10,AQ6),"") -> 
A7: =tblTerritories!A4 -> 2 | B7: =IF(F7=0,"",-A7*100) -> -200 | C7: =tblTerritories!C4 -> Lisbon | D7: =tblTerritories!D4 -> 1 | E7: =IF(AND(OR(tblTerritories!$K$5=4,tblTerritories!$K$5=5),$G$2=3),0,IF(AND(OR(tblTerritories!$K$5=2,tblTerritories!$K$5=3),$G$2=3),tblTerritories!G4,IF(AND($G$2=3,tblTerritories!$K$5=1),Z7,tblTerritories!G4))) -> 1 | F7: =tblTerritories!G4 -> 1 | G7: =IF(F7=0,"",INDEX(aScoresRounded,$B$2,$A7)) -> 100 | H7: =IF(F7=0,"",RANK(B7,B$6:B$10,0)+COUNTIF(B$6:B7,B7)-1) -> 2 | I7: =IF(ISERROR(MATCH($A7,H$6:H$10,0)),"",MATCH($A7,H$6:H$10,0)) -> 2 | J7: =IF(I7="","",1) -> 1 | K7: =IF(I7="","",RANK(R7,R$6:R$10,0)) -> 1 | L7: =IF(I7="",0,INDEX($F$6:$F$10,I7)) -> 1 | M7: =IF(J7="","",COUNTIF(R$6:R$10,R7)) -> 3 | P7: =IF(J7="","",IF(M7>1,CONCATENATE("=",K7),K7)) -> =1 | Q7: =IF(I7="","",INDEX($C$6:$C$10,I7)) -> Lisbon | R7: =IF(I7="","",INDEX(aScoresRounded,$B$2,I7)) -> 100 | S7: =IF(I7="","",IF($B$4=FALSE,"",INDEX(aData,$B$2,I7))) -> 2 | T7: =IF(L7=0,"",IF($C$2=1,"-",R7)) -> 100 | V7: =IF(ISNUMBER(R7),R7,NA()) -> 100 | W7: =1 -> 1 | Y7: 0 | Z7: =IF(Y7=1,tblTerritories!G4,0) -> 0 | AA7: =IF(L7=2,V7,NA()) ->  | AB7: =IF(L7=2,1,NA()) ->  | AD7: =IF(L7=3,V7,NA()) ->  | AE7: =IF(L7=3,1,NA()) ->  | AH7: =IF(R7="","",IF(R7<=uxb_works!$B$122,0,IF(R7<=uxb_works!$B$121,1,IF(R7<=uxb_works!$B$120,2,3)))) -> 3 | AI7: =IF($I7="","",IF($AN$2=4,AH7,INDEX(aData,$B$2,$I7))) -> 2 | AM7: =AM6+MATCH(AM$4,OFFSET($AI$6:$AI$10,AM6,0),0) -> 4 | AN7: =AN6+MATCH(AN$4,OFFSET($AI$6:$AI$10,AN6,0),0) -> 3 | AO7: =AO6+MATCH(AO$4,OFFSET($AI$6:$AI$10,AO6,0),0) ->  | AP7: =AP6+MATCH(AP$4,OFFSET($AI$6:$AI$10,AP6,0),0) ->  | AQ7: =AQ6+MATCH(AQ$4,OFFSET($AI$6:$AI$10,AQ6,0),0) ->  | AT7: =IF($AN$2=1,0,IF(ISNUMBER(AM7),INDEX($L$6:$L$10,AM7),0)) -> 1 | AU7: =CHOOSE($AM$2,IF(ISNUMBER(AM7),INDEX($Q$6:$Q$10,AM7),""),IF(ISNUMBER(AM7),INDEX($Q$6:$Q$10,AM7),"")) -> Recife | AW7: =IF(ISNUMBER(AN7),INDEX($L$6:$L$10,AN7),0) -> 3 | AX7: =IF(ISNUMBER(AN7),INDEX($Q$6:$Q$10,AN7),"") -> Melaka | AZ7: =IF(ISNUMBER(AO7),INDEX($L$6:$L$10,AO7),0) -> 0 | BA7: =IF(ISNUMBER(AO7),INDEX($Q$6:$Q$10,AO7),"") ->  | BC7: =IF(ISNUMBER(AP7),INDEX($L$6:$L$10,AP7),0) -> 0 | BD7: =IF(ISNUMBER(AP7),INDEX($Q$6:$Q$10,AP7),"") ->  | BF7: =IF(ISNUMBER(AQ7),INDEX($L$6:$L$10,AQ7),0) -> 0 | BG7: =IF(ISNUMBER(AQ7),INDEX($Q$6:$Q$10,AQ7),"") -> 
A8: =tblTerritories!A5 -> 3 | B8: -300 | C8: =tblTerritories!C5 -> Melaka | D8: =tblTerritories!D5 -> 1 | E8: =IF(AND(OR(tblTerritories!$K$5=4,tblTerritories!$K$5=5),$G$2=3),0,IF(AND(OR(tblTerritories!$K$5=2,tblTerritories!$K$5=3),$G$2=3),tblTerritories!G5,IF(AND($G$2=3,tblTerritories!$K$5=1),Z8,tblTerritories!G5))) -> 3 | F8: =tblTerritories!G5 -> 3 | G8: 50 | H8: =IF(F8=0,"",RANK(B8,B$6:B$10,0)+COUNTIF(B$6:B8,B8)-1) -> 3 | I8: 3 | J8: 1 | K8: 4 | L8: 3 | M8: 2 | P8: =4 | Q8: Melaka | R8: 50 | S8: 1 | T8: 50 | V8: 50 | W8: =1 -> 1 | Y8: 0 | Z8: =IF(Y8=1,tblTerritories!G5,0) -> 0 | AD8: 50 | AE8: 1 | AH8: =IF(R8="","",IF(R8<=uxb_works!$B$122,0,IF(R8<=uxb_works!$B$121,1,IF(R8<=uxb_works!$B$120,2,3)))) -> 1 | AI8: =IF($I8="","",IF($AN$2=4,AH8,INDEX(aData,$B$2,$I8))) -> 1 | AM8: 5 | AT8: 1 | AU8: Singapore | AW8: 0 | AZ8: 0 | BC8: 0 | BF8: 0
A9: =tblTerritories!A6 -> 4 | B9: -400 | C9: =tblTerritories!C6 -> Recife | D9: =tblTerritories!D6 -> 1 | E9: =IF(AND(OR(tblTerritories!$K$5=4,tblTerritories!$K$5=5),$G$2=3),0,IF(AND(OR(tblTerritories!$K$5=2,tblTerritories!$K$5=3),$G$2=3),tblTerritories!G6,IF(AND($G$2=3,tblTerritories!$K$5=1),Z9,tblTerritories!G6))) -> 1 | F9: =tblTerritories!G6 -> 1 | G9: 100 | H9: =IF(F9=0,"",RANK(B9,B$6:B$10,0)+COUNTIF(B$6:B9,B9)-1) -> 4 | I9: 4 | J9: 1 | K9: 1 | L9: 1 | M9: 3 | P9: =1 | Q9: Recife | R9: 100 | S9: 2 | T9: 100 | V9: 100 | W9: =1 -> 1 | Y9: 0 | Z9: =IF(Y9=1,tblTerritories!G6,0) -> 0 | AH9: =IF(R9="","",IF(R9<=uxb_works!$B$122,0,IF(R9<=uxb_works!$B$121,1,IF(R9<=uxb_works!$B$120,2,3)))) -> 3 | AI9: =IF($I9="","",IF($AN$2=4,AH9,INDEX(aData,$B$2,$I9))) -> 2 | AT9: 0 | AW9: 0 | AZ9: 0 | BC9: 0 | BF9: 0
A10: =tblTerritories!A7 -> 5 | B10: -500 | C10: =tblTerritories!C7 -> Singapore | D10: =tblTerritories!D7 -> 1 | E10: =IF(AND(OR(tblTerritories!$K$5=4,tblTerritories!$K$5=5),$G$2=3),0,IF(AND(OR(tblTerritories!$K$5=2,tblTerritories!$K$5=3),$G$2=3),tblTerritories!G7,IF(AND($G$2=3,tblTerritories!$K$5=1),Z10,tblTerritories!G7))) -> 1 | F10: =tblTerritories!G7 -> 1 | G10: 100 | H10: =IF(F10=0,"",RANK(B10,B$6:B$10,0)+COUNTIF(B$6:B10,B10)-1) -> 5 | I10: 5 | J10: 1 | K10: 1 | L10: 1 | M10: 3 | P10: =1 | Q10: Singapore | R10: 100 | S10: 2 | T10: 100 | V10: 100 | W10: =1 -> 1 | Y10: 0 | Z10: =IF(Y10=1,tblTerritories!G7,0) -> 0 | AH10: =IF(R10="","",IF(R10<=uxb_works!$B$122,0,IF(R10<=uxb_works!$B$121,1,IF(R10<=uxb_works!$B$120,2,3)))) -> 3 | AI10: =IF($I10="","",IF($AN$2=4,AH10,INDEX(aData,$B$2,$I10))) -> 2 | AT10: 0 | AW10: 0 | AZ10: 0 | BC10: 0 | BF10: 0
A12: Region | B12: =INDEX(tblTerritories!O4:O7,uxb_works!B8) -> 1
A13: Average
J14: 1 | R14: =IF(uxb_works!B6>1,INDEX(G5:G10,uxb_works!B6),NA()) -> 50
AD16: Less Than

Sheet iCntyScoreCard (hidden)
A1: =uxb_works!A1 -> TERRITORY_COUNT | B1: =uxb_works!B1 -> 5 | C1: =uxb_works!C1 -> 5 | E1: =IF(B4=1,""," compared with "&C5) -> compared with Izmir
A2: =uxb_works!A19 -> NUMBER_OF_QUAL_INDI | B2: 1
A3: =uxb_works!A26 -> COUNTRY1_ID | B3: =uxb_works!B26 -> 3 | C3: =uxb_works!C26 -> Melaka | D3: =uxb_works!D26 -> 3
A4: =uxb_works!A28 -> COUNTRY3_ID | B4: =uxb_works!B28 -> 2 | C4: =INDEX(LuCountryVar2,B4) -> Izmir | D4: =uxb_works!A6 -> COUNTRY_HIGHLIGHT_DD | E4: =uxb_works!B6 -> 4 | I4: All Tiers | J4: =uxb_works!B8 -> 1 | N4: 1 | O4: =INDEX(iCSCtbl!$A$3:$A$23,iCntyScoreCard!N4) -> 1 | P4: =INDEX(iCSCtbl!$C$3:$C$23,iCntyScoreCard!N4) -> OVERVIEW | T4: =N4+1 -> 2 | U4: =INDEX(iCSCtbl!$A$3:$A$23,iCntyScoreCard!T4) -> 2 | V4: =INDEX(iCSCtbl!$C$3:$C$23,iCntyScoreCard!T4) -> 1) GOVERNANCE AND INTEGRATED URBAN PLANNING | Z4: =T4+1 -> 3 | AA4: =INDEX(iCSCtbl!$A$3:$A$23,iCntyScoreCard!Z4) -> 12 | AB4: =INDEX(iCSCtbl!$C$3:$C$23,iCntyScoreCard!Z4) -> 2) FISCAL SUSTAINABILITY | AF4: =Z4+1 -> 4 | AG4: =INDEX(iCSCtbl!$A$3:$A$23,iCntyScoreCard!AF4) -> 18 | AH4: =INDEX(iCSCtbl!$C$3:$C$23,iCntyScoreCard!AF4) -> 3) URBAN ECONOMIES | AL4: =AF4+1 -> 5 | AM4: =INDEX(iCSCtbl!$A$3:$A$23,iCntyScoreCard!AL4) -> 24 | AN4: =INDEX(iCSCtbl!$C$3:$C$23,iCntyScoreCard!AL4) -> 4) NATURAL ENVIRONMENT AND RESOURCES | AR4: =AL4+1 -> 6 | AS4: =INDEX(iCSCtbl!$A$3:$A$23,iCntyScoreCard!AR4) -> 30 | AT4: =INDEX(iCSCtbl!$C$3:$C$23,iCntyScoreCard!AR4) -> 5) CLIMATE ACTION AND RESILIENCE | AX4: =AR4+1 -> 7 | AY4: =INDEX(iCSCtbl!$A$3:$A$23,iCntyScoreCard!AX4) -> 36 | AZ4: =INDEX(iCSCtbl!$C$3:$C$23,iCntyScoreCard!AX4) -> 6) INCLUSIVITY AND QUALITY OF LIFE
A5: =MATCH(C4,LuCountryPlusNone,0) -> 2 | B5: =A5 -> 2 | C5: =C4 -> Izmir | D5: IsRegion | E5: Status | F5: ActiveStatus | G5: Score (unrounded) | H5: Rank unrounded | I5: LU | J5: yScatter | O5: Score | P5: X | Q5: Y | R5: X-Highlight | U5: Score | V5: X | W5: Y | X5: X-Highlight | AA5: Score | AB5: X | AC5: Y | AD5: X-Highlight | AG5: Score | AH5: X | AI5: Y | AJ5: X-Highlight | AM5: Score | AN5: X | AO5: Y | AP5: X-Highlight | AS5: Score | AT5: X | AU5: Y | AV5: X-Highlight | AY5: Score | AZ5: X | BA5: Y | BB5: X-Highlight
A6: =tblTerritories!A3 -> 1 | B6: =tblTerritories!B3 -> TUR | C6: =tblTerritories!C3 -> Izmir | D6: =tblTerritories!K3 -> 1 | E6: =IF(OR(A6=$B$4,A6=$B$3),1,0) -> 0 | F6: =IF(E6=1,1,IF(tblTerritories!F3="",0,tblTerritories!F3)) -> 1 | G6: =IF(F6=0,"",ROUND(INDEX(aScoresRounded,$B$2,$A6),5)) -> 71.3 | H6: =IF(F6=0,"",RANK(G6,G$6:G$10,0)+COUNTIF(G$6:G6,G6)-1) -> 3 | I6: =IF(ISERROR(MATCH($A6,H$6:H$10,0)),"",MATCH($A6,H$6:H$10,0)) -> 5 | J6: =IF(I6="","",1) -> 1 | N6: =IF(C6="","",INDEX($C$6:$C$10,$I6)) -> Singapore | O6: =IF($C6="","",INDEX(aScoresRounded,O$4,$I6)) -> 97.4 | P6: =IF(ISNUMBER(O6),O6,NA()) -> 97.4 | Q6: =1 -> 1 | R6: =IF($L6=2,P6,NA()) ->  | T6: =IF(I6="","",INDEX($C$6:$C$10,$I6)) -> Singapore | U6: =IF($C6="","",INDEX(aScoresRounded,U$4,$I6)) -> 94.4 | V6: =IF(ISNUMBER(U6),U6,NA()) -> 94.4 | W6: =1 -> 1 | X6: =IF($L6=2,V6,NA()) ->  | Z6: =IF(U6="","",INDEX($C$6:$C$10,$I6)) -> Singapore | AA6: =IF($C6="","",INDEX(aScoresRounded,AA$4,$I6)) -> 100 | AB6: =IF(ISNUMBER(AA6),AA6,NA()) -> 100 | AC6: 1 | AD6: =IF($L6=2,AB6,NA()) ->  | AF6: =IF(AA6="","",INDEX($C$6:$C$10,$I6)) -> Singapore | AG6: =IF($C6="","",INDEX(aScoresRounded,AG$4,$I6)) -> 90 | AH6: =IF(ISNUMBER(AG6),AG6,NA()) -> 90 | AI6: =1 -> 1 | AJ6: =IF($L6=2,AH6,NA()) ->  | AL6: =IF(AG6="","",INDEX($C$6:$C$10,$I6)) -> Singapore | AM6: =IF($C6="","",INDEX(aScoresRounded,AM$4,$I6)) -> 100 | AN6: =IF(ISNUMBER(AM6),AM6,NA()) -> 100 | AO6: =1 -> 1 | AP6: =IF($L6=2,AN6,NA()) ->  | AR6: =IF(AM6="","",INDEX($C$6:$C$10,$I6)) -> Singapore | AS6: =IF($C6="","",INDEX(aScoresRounded,AS$4,$I6)) -> 100 | AT6: =IF(ISNUMBER(AS6),AS6,NA()) -> 100 | AU6: =1 -> 1 | AV6: =IF($L6=2,AT6,NA()) ->  | AX6: =IF(AS6="","",INDEX($C$6:$C$10,$I6)) -> Singapore | AY6: =IF($C6="","",INDEX(aScoresRounded,AY$4,$I6)) -> 100 | AZ6: =IF(ISNUMBER(AY6),AY6,NA()) -> 100 | BA6: =1 -> 1 | BB6: =IF($L6=2,AZ6,NA()) -> 
A7: =tblTerritories!A4 -> 2 | B7: =tblTerritories!B4 -> PRT | C7: =tblTerritories!C4 -> Lisbon | D7: =tblTerritories!K4 -> 1 | E7: =IF(OR(A7=$B$4,A7=$B$3),1,0) -> 1 | F7: =IF(E7=1,1,IF(tblTerritories!F4="",0,tblTerritories!F4)) -> 1 | G7: 76.5 | H7: =IF(F7=0,"",RANK(G7,G$6:G$10,0)+COUNTIF(G$6:G7,G7)-1) -> 2 | I7: =IF(ISERROR(MATCH($A7,H$6:H$10,0)),"",MATCH($A7,H$6:H$10,0)) -> 2 | J7: =IF(I7="","",1) -> 1 | N7: =IF(C7="","",INDEX($C$6:$C$10,$I7)) -> Lisbon | O7: 76.5 | P7: =IF(ISNUMBER(O7),O7,NA()) -> 76.5 | Q7: =1 -> 1 | R7: =IF($L7=2,P7,NA()) ->  | T7: =IF(I7="","",INDEX($C$6:$C$10,$I7)) -> Lisbon | U7: 88.9 | V7: =IF(ISNUMBER(U7),U7,NA()) -> 88.9 | W7: =1 -> 1 | X7: =IF($L7=2,V7,NA()) ->  | Z7: =IF(U7="","",INDEX($C$6:$C$10,$I7)) -> Lisbon | AA7: 70 | AB7: =IF(ISNUMBER(AA7),AA7,NA()) -> 70 | AC7: 1 | AD7: =IF($L7=2,AB7,NA()) ->  | AF7: =IF(AA7="","",INDEX($C$6:$C$10,$I7)) -> Lisbon | AG7: 70 | AH7: =IF(ISNUMBER(AG7),AG7,NA()) -> 70 | AI7: =1 -> 1 | AJ7: =IF($L7=2,AH7,NA()) ->  | AL7: =IF(AG7="","",INDEX($C$6:$C$10,$I7)) -> Lisbon | AM7: 90 | AN7: =IF(ISNUMBER(AM7),AM7,NA()) -> 90 | AO7: =1 -> 1 | AP7: =IF($L7=2,AN7,NA()) ->  | AR7: =IF(AM7="","",INDEX($C$6:$C$10,$I7)) -> Lisbon | AS7: 60 | AT7: =IF(ISNUMBER(AS7),AS7,NA()) -> 60 | AU7: =1 -> 1 | AV7: =IF($L7=2,AT7,NA()) ->  | AX7: =IF(AS7="","",INDEX($C$6:$C$10,$I7)) -> Lisbon | AY7: 80 | AZ7: =IF(ISNUMBER(AY7),AY7,NA()) -> 80 | BA7: =1 -> 1 | BB7: =IF($L7=2,AZ7,NA()) -> 
A8: =tblTerritories!A5 -> 3 | B8: =tblTerritories!B5 -> MYS | C8: =tblTerritories!C5 -> Melaka | D8: =tblTerritories!K5 -> 3 | E8: 1 | F8: =IF(E8=1,1,IF(tblTerritories!F5="",0,tblTerritories!F5)) -> 1 | G8: 58.5 | H8: =IF(F8=0,"",RANK(G8,G$6:G$10,0)+COUNTIF(G$6:G8,G8)-1) -> 5 | I8: =IF(ISERROR(MATCH($A8,H$6:H$10,0)),"",MATCH($A8,H$6:H$10,0)) -> 1 | J8: 1 | N8: =IF(C8="","",INDEX($C$6:$C$10,$I8)) -> Izmir | O8: 71.3 | P8: 71.3 | Q8: =1 -> 1 | T8: =IF(I8="","",INDEX($C$6:$C$10,$I8)) -> Izmir | U8: 77.8 | V8: 77.8 | W8: =1 -> 1 | Z8: =IF(U8="","",INDEX($C$6:$C$10,$I8)) -> Izmir | AA8: 80 | AB8: 80 | AC8: 1 | AF8: =IF(AA8="","",INDEX($C$6:$C$10,$I8)) -> Izmir | AG8: 60 | AH8: 60 | AI8: =1 -> 1 | AL8: =IF(AG8="","",INDEX($C$6:$C$10,$I8)) -> Izmir | AM8: 70 | AN8: 70 | AO8: =1 -> 1 | AR8: =IF(AM8="","",INDEX($C$6:$C$10,$I8)) -> Izmir | AS8: 90 | AT8: 90 | AU8: =1 -> 1 | AX8: =IF(AS8="","",INDEX($C$6:$C$10,$I8)) -> Izmir | AY8: 50 | AZ8: 50 | BA8: =1 -> 1
A9: =tblTerritories!A6 -> 4 | B9: =tblTerritories!B6 -> BRA | C9: =tblTerritories!C6 -> Recife | D9: =tblTerritories!K6 -> 1 | E9: 0 | F9: =IF(E9=1,1,IF(tblTerritories!F6="",0,tblTerritories!F6)) -> 1 | G9: 70.4 | H9: =IF(F9=0,"",RANK(G9,G$6:G$10,0)+COUNTIF(G$6:G9,G9)-1) -> 4 | I9: =IF(ISERROR(MATCH($A9,H$6:H$10,0)),"",MATCH($A9,H$6:H$10,0)) -> 4 | J9: 1 | N9: =IF(C9="","",INDEX($C$6:$C$10,$I9)) -> Recife | O9: 70.4 | P9: 70.4 | Q9: =1 -> 1 | T9: =IF(I9="","",INDEX($C$6:$C$10,$I9)) -> Recife | U9: 72.2 | V9: 72.2 | W9: =1 -> 1 | Z9: =IF(U9="","",INDEX($C$6:$C$10,$I9)) -> Recife | AA9: 60 | AB9: 60 | AC9: 1 | AF9: =IF(AA9="","",INDEX($C$6:$C$10,$I9)) -> Recife | AG9: 70 | AH9: 70 | AI9: =1 -> 1 | AL9: =IF(AG9="","",INDEX($C$6:$C$10,$I9)) -> Recife | AM9: 70 | AN9: 70 | AO9: =1 -> 1 | AR9: =IF(AM9="","",INDEX($C$6:$C$10,$I9)) -> Recife | AS9: 90 | AT9: 90 | AU9: =1 -> 1 | AX9: =IF(AS9="","",INDEX($C$6:$C$10,$I9)) -> Recife | AY9: 60 | AZ9: 60 | BA9: =1 -> 1
A10: =tblTerritories!A7 -> 5 | B10: =tblTerritories!B7 -> SGP | C10: =tblTerritories!C7 -> Singapore | D10: =tblTerritories!K7 -> 1 | E10: 0 | F10: =IF(E10=1,1,IF(tblTerritories!F7="",0,tblTerritories!F7)) -> 1 | G10: 97.4 | H10: =IF(F10=0,"",RANK(G10,G$6:G$10,0)+COUNTIF(G$6:G10,G10)-1) -> 1 | I10: =IF(ISERROR(MATCH($A10,H$6:H$10,0)),"",MATCH($A10,H$6:H$10,0)) -> 3 | J10: 1 | N10: =IF(C10="","",INDEX($C$6:$C$10,$I10)) -> Melaka | O10: 58.5 | P10: 58.5 | Q10: =1 -> 1 | T10: =IF(I10="","",INDEX($C$6:$C$10,$I10)) -> Melaka | U10: 61.1 | V10: 61.1 | W10: =1 -> 1 | Z10: =IF(U10="","",INDEX($C$6:$C$10,$I10)) -> Melaka | AA10: 30 | AB10: 30 | AC10: 1 | AF10: =IF(AA10="","",INDEX($C$6:$C$10,$I10)) -> Melaka | AG10: 50 | AH10: 50 | AI10: =1 -> 1 | AL10: =IF(AG10="","",INDEX($C$6:$C$10,$I10)) -> Melaka | AM10: 70 | AN10: 70 | AO10: =1 -> 1 | AR10: =IF(AM10="","",INDEX($C$6:$C$10,$I10)) -> Melaka | AS10: 50 | AT10: 50 | AU10: =1 -> 1 | AX10: =IF(AS10="","",INDEX($C$6:$C$10,$I10)) -> Melaka | AY10: 90 | AZ10: 90 | BA10: =1 -> 1
A12: Region | B12: =uxb_works!C8 -> 0
A13: =uxb_works!A67 -> REGION_AVERAGE_SHOW | B13: =uxb_works!B67 -> 1 | C13: =uxb_works!C67 -> All Country Average | D13: =INDEX(tblIndiSets!A121:A124,iCntyScoreCard!B13) -> All countries
C14: Highlight Country | N14: 1 | O14: =INDEX(O6:O10,MATCH(uxb_works!$C$26,iCntyScoreCard!N$6:N$10,0)) -> 58.5 | T14: 1 | U14: =INDEX(U6:U10,MATCH(uxb_works!$C$26,iCntyScoreCard!T6:T10,0)) -> 61.1 | Z14: =T14 -> 1 | AA14: =INDEX(AA6:AA10,MATCH(uxb_works!$C$26,iCntyScoreCard!Z6:Z10,0)) -> 30 | AF14: =Z14 -> 1 | AG14: =INDEX(AG6:AG10,MATCH(uxb_works!$C$26,iCntyScoreCard!AF6:AF10,0)) -> 50 | AL14: =AF14 -> 1 | AM14: =INDEX(AM6:AM10,MATCH(uxb_works!$C$26,iCntyScoreCard!AL6:AL10,0)) -> 70 | AR14: =AL14 -> 1 | AS14: =INDEX(AS6:AS10,MATCH(uxb_works!$C$26,iCntyScoreCard!AR6:AR10,0)) -> 50 | AX14: =AR14 -> 1 | AY14: =INDEX(AY6:AY10,MATCH(uxb_works!$C$26,iCntyScoreCard!AX6:AX10,0)) -> 90
C15: Highlight Country 2 | N15: 1 | O15: =INDEX(O6:O10,MATCH(C4,iCntyScoreCard!N6:N10,0)) -> 71.3 | T15: 1 | U15: =INDEX(U6:U10,MATCH(C4,iCntyScoreCard!T6:T10,0)) -> 77.8 | Z15: 1 | AA15: =INDEX(AA6:AA10,MATCH(C4,iCntyScoreCard!Z6:Z10,0)) -> 80 | AF15: 1 | AG15: =INDEX(AG6:AG10,MATCH(C4,iCntyScoreCard!AF6:AF10,0)) -> 60 | AL15: 1 | AM15: =INDEX(AM6:AM10,MATCH(C4,iCntyScoreCard!AL6:AL10,0)) -> 70 | AR15: 1 | AS15: =INDEX(AS6:AS10,MATCH(C4,iCntyScoreCard!AR6:AR10,0)) -> 90 | AX15: 1 | AY15: =INDEX(AY6:AY10,MATCH(C4,iCntyScoreCard!AX6:AX10,0)) -> 50
C16: Highlight Region | N16: 60 | O16: =INDEX(aAverages,O4,$B$13) -> 74.8 | P16: =D13 -> All countries | T16: =$N$16 -> 60 | U16: =INDEX(aAverages,U4,$B$13) -> 78.9 | V16: =P16 -> All countries | Z16: =$N$16 -> 60 | AA16: =INDEX(aAverages,AA4,$B$13) -> 68 | AB16: =V16 -> All countries | AF16: =$N$16 -> 60 | AG16: =INDEX(aAverages,AG4,$B$13) -> 68 | AH16: =AB16 -> All countries | AL16: =$N$16 -> 60 | AM16: =INDEX(aAverages,AM4,$B$13) -> 80 | AN16: =AH16 -> All countries | AR16: =$N$16 -> 60 | AS16: =INDEX(aAverages,AS4,$B$13) -> 78 | AT16: =AN16 -> All countries | AX16: =$N$16 -> 60 | AY16: =INDEX(aAverages,AY4,$B$13) -> 76 | AZ16: =AT16 -> All countries
C17: Min | N17: 50 | O17: =MIN(OFFSET(aScoresRounded,O$4-1,0,1,$B$1)) -> 58.5 | T17: =$N$17 -> 50 | U17: =MIN(OFFSET(aScoresRounded,U$4-1,0,1,$B$1)) -> 61.1 | Z17: =$N$17 -> 50 | AA17: =MIN(OFFSET(aScoresRounded,AA$4-1,0,1,$B$1)) -> 30 | AF17: =$N$17 -> 50 | AG17: =MIN(OFFSET(aScoresRounded,AG$4-1,0,1,$B$1)) -> 50 | AL17: =$N$17 -> 50 | AM17: =MIN(OFFSET(aScoresRounded,AM$4-1,0,1,$B$1)) -> 70 | AR17: =$N$17 -> 50 | AS17: =MIN(OFFSET(aScoresRounded,AS$4-1,0,1,$B$1)) -> 50 | AX17: =$N$17 -> 50 | AY17: =MIN(OFFSET(aScoresRounded,AY$4-1,0,1,$B$1)) -> 50
C18: Max | N18: 50 | O18: =MAX(OFFSET(aScoresRounded,O$4-1,0,1,$B$1)) -> 97.4 | T18: =$N$18 -> 50 | U18: =MAX(OFFSET(aScoresRounded,U$4-1,0,1,$B$1)) -> 94.4 | Z18: =$N$18 -> 50 | AA18: =MAX(OFFSET(aScoresRounded,AA$4-1,0,1,$B$1)) -> 100 | AF18: =$N$18 -> 50 | AG18: =MAX(OFFSET(aScoresRounded,AG$4-1,0,1,$B$1)) -> 90 | AL18: =$N$18 -> 50 | AM18: =MAX(OFFSET(aScoresRounded,AM$4-1,0,1,$B$1)) -> 100 | AR18: =$N$18 -> 50 | AS18: =MAX(OFFSET(aScoresRounded,AS$4-1,0,1,$B$1)) -> 100 | AX18: =$N$18 -> 50 | AY18: =MAX(OFFSET(aScoresRounded,AY$4-1,0,1,$B$1)) -> 100

Sheet iCountryComp (hidden)
A1: Country_COUNT | B1: =uxb_works!B1 -> 5 | C1: =uxb_works!C1 -> 5
A2: =uxb_works!A26 -> COUNTRY1_ID | B2: =uxb_works!D26 -> 3 | C2: =uxb_works!C26 -> Melaka | D2: =uxb_works!D26 -> 3
A3: =uxb_works!A27 -> COUNTRY2_ID | B3: =uxb_works!D27 -> 2 | C3: =uxb_works!C27 -> Lisbon | D3: =uxb_works!D27 -> 2
A4: =uxb_works!A28 -> COUNTRY3_ID | B4: =uxb_works!D28-1 -> 1 | C4: =uxb_works!C28 -> Izmir | D4: =uxb_works!D28 -> 2
A5: =uxb_works!A29 -> COUNTRY4_ID | B5: =uxb_works!D29 -> 0 | C5: =uxb_works!C29 -> <none> | D5: =uxb_works!D29 -> 0
A10: Active countries | B10: =COUNTIF(D2:D7,">0") -> 3
AC14: =uxb_works!C181 -> 2.2) Creditworthiness
AM16: 1 | AN16: 2 | AO16: 3 | AQ16: 1 | AR16: 2 | AS16: 3 | AT16: 1 | AU16: 2 | AV16: 3 | AW16: 1 | AX16: 2
AM17: =IF($D$4=0,0,AM16) -> 1 | AN17: =IF($D$4=0,0,AN16) -> 2 | AO17: =IF(AND($D$4=0,$D$5=0),0,AO16) -> 3 | AQ17: =IF($D$5=0,0,AQ16) -> 0 | AR17: =IF($D$5=0,0,AR16) -> 0 | AS17: =IF(AND($D$5=0,$D$6=0),0,AS16) -> 0 | AT17: =IF($D$6=0,0,AT16) -> 0 | AU17: =IF($D$6=0,0,AU16) -> 0 | AV17: =IF(AND($D$6=0,$D$7=0),0,AV16) -> 0 | AW17: =IF($D$7=0,0,AW16) -> 0 | AX17: =IF($D$7=0,0,AX16) -> 0
AA18: Extract Active Category
AE19: 1 | AF19: 2 | AI19: 4 | AJ19: 5 | AM19: 7 | AN19: 8 | AQ19: 10 | AR19: 11 | AT19: 13 | AU19: 14 | AW19: 16 | AX19: 17
H20: Country 1 | K20: Country 2 | N20: Country 3 | Q20: Country 4 | T20: Country 5 | W20: Country 6 | AA20: 1 | AE20: Country 1 | AI20: Country 2 | AM20: Country 3 | AQ20: Country 4 | AT20: Country 5 | AW20: Country 6
A21: =A22 -> 1 | H21: Score / 100 | I21: =CONCATENATE("Rank / ",$C$1) -> Rank / 5 | J21: rank equal | AA21: 0
A22: =IF(ISEVEN(tblIndicators!C2),1,2) -> 1 | B22: =tblIndiSets!B15 -> 1 | C22: 5 | D22: =tblCategories!AN5 -> 0 | E22: =tblIndiSets!E15 -> OVERVIEW | H22: =IF(B22="","",INDEX(aScoresRounded,B22,$B$2)) -> 58.5 | I22: =IF($B22="","",IF(J22=1,"","=")&RANK(H22,OFFSET(aScoresRounded,$B22-1,0,1,$C$1))) -> 5 | J22: =IF($B22="","",COUNTIF(OFFSET(aScoresRounded,$B22-1,0,1,$C$1),H22)) -> 1 | K22: =IF($B22="","",INDEX(aScoresRounded,$B22,$B$3)) -> 76.5 | L22: =IF($B22="","",IF(M22=1,"","=")&RANK(K22,OFFSET(aScoresRounded,$B22-1,0,1,$C$1))) -> 2 | M22: =IF($B22="","",COUNTIF(OFFSET(aScoresRounded,$B22-1,0,1,$C$1),K22)) -> 1 | N22: =IF($B$4=0,"",IF($B22="","",INDEX(aScoresRounded,$B22,$B$4))) -> 71.3 | O22: =IF(OR(N22="",$B22=""),"",IF(P22=1,"","=")&RANK(N22,OFFSET(aScoresRounded,$B22-1,0,1,$C$1))) -> 3 | P22: =IF($B22="","",COUNTIF(OFFSET(aScoresRounded,$B22-1,0,1,$C$1),N22)) -> 1 | Q22: =IF($B$5=0,"",IF($B22="","",INDEX(aScoresRounded,$B22,$B$5))) ->  | R22: =IF(OR(Q22="",$B22=""),"",IF(S22=1,"","=")&RANK(Q22,OFFSET(aScoresRounded,$B22-1,0,1,$C$1))) ->  | S22: =IF($B22="","",COUNTIF(OFFSET(aScoresRounded,$B22-1,0,1,$C$1),Q22)) -> 0 | T22: =IF($D$6=0,"",IF($B22="","",INDEX(aScores,$B22,$D$6))) ->  | U22: =IF(OR(T22="",$B22=""),"",IF(V22=1,"","=")&RANK(T22,OFFSET(aScores,$B22-1,0,1,$C$1))) ->  | V22: =IF($B22="","",COUNTIF(OFFSET(aScores,$B22-1,0,1,$C$1),T22)) -> 0 | W22: =IF($D$7=0,"",IF($B22="","",INDEX(aScores,$B22,$D$7))) ->  | X22: =IF(OR(W22="",$B22=""),"",IF(Y22=1,"","=")&RANK(W22,OFFSET(aScores,$B22-1,0,1,$C$1))) ->  | Y22: =IF($B22="","",COUNTIF(OFFSET(aScores,$B22-1,0,1,$C$1),W22)) -> 0 | AA22: =AA21+MATCH(AA$20,OFFSET($D$22:$D$62,AA21,0),0) -> 12 | AB22: =IF(uxb_works!$B$32=1,2,IF(ISNA(AA22),0,IF(uxb_works!$B$32=1,IF(ISEVEN(LEFT(TRIM(AD22),1)),2,1),INDEX($C$22:$C$62,AA22)))) -> 1 | AC22: =IF(AD22="",0,IF($AC$14=TRIM(AD22),2,1)) -> 1 | AD22: =IF(ISNUMBER($AA22),INDEX(E$22:E$62,$AA22),"") -> 2) FISCAL SUSTAINABILITY | AE22: =IF(ISNUMBER($AA22),INDEX($H$22:$R$62,$AA22,AE$19),"") -> 30 | AF22: 5 | AG22: =IF(AE22="","",IF(AE22<=uxb_works!$B$122,1,IF(AE22<=uxb_works!$B$121,2,IF(AE22<=uxb_works!$B$120,3,4)))) -> 2 | AH22: =IF(AG22="","",INDEX(tblIndiSets!$A$227:$A$230,AG22)) -> Consolidating | AI22: =IF(ISNUMBER($AA22),INDEX($H$22:$R$62,$AA22,AI$19),"") -> 70 | AJ22: 3 | AK22: =IF(AI22="","",IF(AI22<=uxb_works!$B$122,1,IF(AI22<=uxb_works!$B$121,2,IF(AI22<=uxb_works!$B$120,3,4)))) -> 3 | AL22: =IF(AK22="","",INDEX(tblIndiSets!$A$227:$A$230,AK22)) -> Advanced | AM22: =IF(ISNUMBER($AA22),INDEX($H$22:$R$62,$AA22,AM$19),"") -> 80 | AN22: 2 | AO22: =IF(AM22="","",IF(AM22<=uxb_works!$B$122,1,IF(AM22<=uxb_works!$B$121,2,IF(AM22<=uxb_works!$B$120,3,4)))) -> 4 | AP22: =IF(AO22="","",INDEX(tblIndiSets!$A$227:$A$230,AO22)) -> Sustainable | AQ22: =IF(ISNUMBER($AA22),INDEX($H$22:$X$62,$AA22,AQ$19),"") ->  | AT22: =IF(ISNUMBER($AA22),INDEX($H$22:$X$62,$AA22,AT$19),"") ->  | AW22: =IF(ISNUMBER($AA22),INDEX($H$22:$X$62,$AA22,AW$19),"") -> 
A23: =IF(ISEVEN(tblIndicators!C3),1,2) -> 2 | B23: =tblIndiSets!B16 -> 2 | C23: =tblIndiSets!D16 -> 1 | D23: =tblCategories!AN6 -> 0 | E23: =tblIndiSets!E16 -> 1) GOVERNANCE AND INTEGRATED URBAN PLANNING | H23: 61.1 | I23: 5 | J23: 1 | K23: 88.9 | L23: 2 | M23: 1 | N23: 77.8 | O23: 3 | P23: 1 | S23: 0 | V23: =IF($B23="","",COUNTIF(OFFSET(aScores,$B23-1,0,1,$C$1),T23)) -> 0 | Y23: =IF($B23="","",COUNTIF(OFFSET(aScores,$B23-1,0,1,$C$1),W23)) -> 0 | AA23: =AA22+MATCH(AA$20,OFFSET($D$22:$D$62,AA22,0),0) -> 13 | AB23: =IF(ISNA(AA23),0,IF(uxb_works!$B$32=1,IF(ISEVEN(LEFT(TRIM(AD23),1)),2,1),INDEX($C$22:$C$62,AA23))) -> 2 | AC23: =IF(AD23="",0,IF($AC$14=TRIM(AD23),2,1)) -> 1 | AD23: =IF(ISNUMBER($AA23),INDEX(E$22:E$62,$AA23),"") -> 2.1) Accountability and Transparency | AE23: 50 | AF23: =4 | AG23: =IF(AE23="","",IF(AE23<=uxb_works!$B$122,1,IF(AE23<=uxb_works!$B$121,2,IF(AE23<=uxb_works!$B$120,3,4)))) -> 2 | AH23: =IF(AG23="","",INDEX(tblIndiSets!$A$227:$A$230,AG23)) -> Consolidating | AI23: 50 | AJ23: =4 | AK23: =IF(AI23="","",IF(AI23<=uxb_works!$B$122,1,IF(AI23<=uxb_works!$B$121,2,IF(AI23<=uxb_works!$B$120,3,4)))) -> 2 | AL23: =IF(AK23="","",INDEX(tblIndiSets!$A$227:$A$230,AK23)) -> Consolidating | AM23: 100 | AN23: =1 | AO23: =IF(AM23="","",IF(AM23<=uxb_works!$B$122,1,IF(AM23<=uxb_works!$B$121,2,IF(AM23<=uxb_works!$B$120,3,4)))) -> 4 | AP23: =IF(AO23="","",INDEX(tblIndiSets!$A$227:$A$230,AO23)) -> Sustainable
A24: =IF(ISEVEN(tblIndicators!C4),1,2) -> 2 | B24: =tblIndiSets!B17 -> 3 | C24: =tblIndiSets!D17 -> 2 | D24: =tblCategories!AN7 -> 0 | E24: =tblIndiSets!E17 -> 1.1) Vision and Long-term Strategic Planning | H24: =IF(B24="","",INDEX(aScoresRounded,B24,$B$2)) -> 50 | I24: =IF($B24="","",IF(J24=1,"","=")&RANK(H24,OFFSET(aScoresRounded,$B24-1,0,1,$C$1))) -> =3 | J24: =IF($B24="","",COUNTIF(OFFSET(aScoresRounded,$B24-1,0,1,$C$1),H24)) -> 3 | K24: 50 | L24: =IF($B24="","",IF(M24=1,"","=")&RANK(K24,OFFSET(aScoresRounded,$B24-1,0,1,$C$1))) -> =3 | M24: =IF($B24="","",COUNTIF(OFFSET(aScoresRounded,$B24-1,0,1,$C$1),K24)) -> 3 | N24: 100 | O24: =IF(OR(N24="",$B24=""),"",IF(P24=1,"","=")&RANK(N24,OFFSET(aScoresRounded,$B24-1,0,1,$C$1))) -> =1 | P24: =IF($B24="","",COUNTIF(OFFSET(aScoresRounded,$B24-1,0,1,$C$1),N24)) -> 2 | R24: =IF(OR(Q24="",$B24=""),"",IF(S24=1,"","=")&RANK(Q24,OFFSET(aScoresRounded,$B24-1,0,1,$C$1))) ->  | S24: =IF($B24="","",COUNTIF(OFFSET(aScoresRounded,$B24-1,0,1,$C$1),Q24)) -> 0 | U24: =IF(OR(T24="",$B24=""),"",IF(V24=1,"","=")&RANK(T24,OFFSET(aScores,$B24-1,0,1,$C$1))) ->  | V24: =IF($B24="","",COUNTIF(OFFSET(aScores,$B24-1,0,1,$C$1),T24)) -> 0 | X24: =IF(OR(W24="",$B24=""),"",IF(Y24=1,"","=")&RANK(W24,OFFSET(aScores,$B24-1,0,1,$C$1))) ->  | Y24: =IF($B24="","",COUNTIF(OFFSET(aScores,$B24-1,0,1,$C$1),W24)) -> 0 | AA24: =AA23+MATCH(AA$20,OFFSET($D$22:$D$62,AA23,0),0) -> 14 | AB24: =IF(ISNA(AA24),0,IF(uxb_works!$B$32=1,IF(ISEVEN(LEFT(TRIM(AD24),1)),2,1),INDEX($C$22:$C$62,AA24))) -> 2 | AC24: =IF(AD24="",0,IF($AC$14=TRIM(AD24),2,1)) -> 2 | AD24: =IF(ISNUMBER($AA24),INDEX(E$22:E$62,$AA24),"") -> 2.2) Creditworthiness | AE24: 0 | AF24: =3 | AG24: =IF(AE24="","",IF(AE24<=uxb_works!$B$122,1,IF(AE24<=uxb_works!$B$121,2,IF(AE24<=uxb_works!$B$120,3,4)))) -> 1 | AH24: =IF(AG24="","",INDEX(tblIndiSets!$A$227:$A$230,AG24)) -> Emerging | AI24: 0 | AJ24: =3 | AK24: =IF(AI24="","",IF(AI24<=uxb_works!$B$122,1,IF(AI24<=uxb_works!$B$121,2,IF(AI24<=uxb_works!$B$120,3,4)))) -> 1 | AL24: =IF(AK24="","",INDEX(tblIndiSets!$A$227:$A$230,AK24)) -> Emerging | AM24: 100 | AN24: =1 | AO24: =IF(AM24="","",IF(AM24<=uxb_works!$B$122,1,IF(AM24<=uxb_works!$B$121,2,IF(AM24<=uxb_works!$B$120,3,4)))) -> 4 | AP24: =IF(AO24="","",INDEX(tblIndiSets!$A$227:$A$230,AO24)) -> Sustainable
A25: =IF(ISEVEN(tblIndicators!C5),1,2) -> 2 | B25: =tblIndiSets!B18 -> 4 | C25: =tblIndiSets!D18 -> 2 | D25: =tblCategories!AN8 -> 0 | E25: =tblIndiSets!E18 -> 1.2) Stakeholder participation | H25: 100 | I25: =1 | J25: 4 | K25: 100 | L25: =1 | M25: 4 | N25: 100 | O25: =1 | P25: 4 | S25: 0 | V25: 0 | Y25: 0 | AA25: =AA24+MATCH(AA$20,OFFSET($D$22:$D$62,AA24,0),0) -> 15 | AB25: =IF(ISNA(AA25),0,IF(uxb_works!$B$32=1,IF(ISEVEN(LEFT(TRIM(AD25),1)),2,1),INDEX($C$22:$C$62,AA25))) -> 2 | AC25: 1 | AD25: =IF(ISNUMBER($AA25),INDEX(E$22:E$62,$AA25),"") -> 2.3) Revenue and Financial Autonomy | AE25: 50 | AF25: =3 | AG25: =IF(AE25="","",IF(AE25<=uxb_works!$B$122,1,IF(AE25<=uxb_works!$B$121,2,IF(AE25<=uxb_works!$B$120,3,4)))) -> 2 | AH25: =IF(AG25="","",INDEX(tblIndiSets!$A$227:$A$230,AG25)) -> Consolidating | AI25: 100 | AJ25: =1 | AK25: =IF(AI25="","",IF(AI25<=uxb_works!$B$122,1,IF(AI25<=uxb_works!$B$121,2,IF(AI25<=uxb_works!$B$120,3,4)))) -> 4 | AL25: =IF(AK25="","",INDEX(tblIndiSets!$A$227:$A$230,AK25)) -> Sustainable | AM25: 50 | AN25: =3 | AO25: =IF(AM25="","",IF(AM25<=uxb_works!$B$122,1,IF(AM25<=uxb_works!$B$121,2,IF(AM25<=uxb_works!$B$120,3,4)))) -> 2 | AP25: =IF(AO25="","",INDEX(tblIndiSets!$A$227:$A$230,AO25)) -> Consolidating
A26: =IF(ISEVEN(tblIndicators!C6),1,2) -> 2 | B26: =tblIndiSets!B19 -> 5 | C26: =tblIndiSets!D19 -> 2 | D26: =tblCategories!AN9 -> 0 | E26: =tblIndiSets!E19 -> 1.3) Data Management | H26: =IF(B26="","",INDEX(aScoresRounded,B26,$B$2)) -> 100 | I26: =IF($B26="","",IF(J26=1,"","=")&RANK(H26,OFFSET(aScoresRounded,$B26-1,0,1,$C$1))) -> =1 | J26: =IF($B26="","",COUNTIF(OFFSET(aScoresRounded,$B26-1,0,1,$C$1),H26)) -> 5 | K26: 100 | L26: =IF($B26="","",IF(M26=1,"","=")&RANK(K26,OFFSET(aScoresRounded,$B26-1,0,1,$C$1))) -> =1 | M26: =IF($B26="","",COUNTIF(OFFSET(aScoresRounded,$B26-1,0,1,$C$1),K26)) -> 5 | N26: 100 | O26: =IF(OR(N26="",$B26=""),"",IF(P26=1,"","=")&RANK(N26,OFFSET(aScoresRounded,$B26-1,0,1,$C$1))) -> =1 | P26: =IF($B26="","",COUNTIF(OFFSET(aScoresRounded,$B26-1,0,1,$C$1),N26)) -> 5 | R26: =IF(OR(Q26="",$B26=""),"",IF(S26=1,"","=")&RANK(Q26,OFFSET(aScoresRounded,$B26-1,0,1,$C$1))) ->  | S26: =IF($B26="","",COUNTIF(OFFSET(aScoresRounded,$B26-1,0,1,$C$1),Q26)) -> 0 | U26: =IF(OR(T26="",$B26=""),"",IF(V26=1,"","=")&RANK(T26,OFFSET(aScores,$B26-1,0,1,$C$1))) ->  | V26: =IF($B26="","",COUNTIF(OFFSET(aScores,$B26-1,0,1,$C$1),T26)) -> 0 | X26: =IF(OR(W26="",$B26=""),"",IF(Y26=1,"","=")&RANK(W26,OFFSET(aScores,$B26-1,0,1,$C$1))) ->  | Y26: =IF($B26="","",COUNTIF(OFFSET(aScores,$B26-1,0,1,$C$1),W26)) -> 0 | AA26: =AA25+MATCH(AA$20,OFFSET($D$22:$D$62,AA25,0),0) -> 16 | AB26: =IF(ISNA(AA26),0,IF(uxb_works!$B$32=1,IF(ISEVEN(LEFT(TRIM(AD26),1)),2,1),INDEX($C$22:$C$62,AA26))) -> 2 | AC26: =IF(AD26="",0,IF($AC$14=TRIM(AD26),2,1)) -> 1 | AD26: =IF(ISNUMBER($AA26),INDEX(E$22:E$62,$AA26),"") -> 2.4) Expenditure Management | AE26: =IF(ISNUMBER($AA26),INDEX($H$22:$R$62,$AA26,AE$19),"") -> 0 | AF26: 5 | AG26: =IF(AE26="","",IF(AE26<=uxb_works!$B$122,1,IF(AE26<=uxb_works!$B$121,2,IF(AE26<=uxb_works!$B$120,3,4)))) -> 1 | AH26: =IF(AG26="","",INDEX(tblIndiSets!$A$227:$A$230,AG26)) -> Emerging | AI26: =IF(ISNUMBER($AA26),INDEX($H$22:$R$62,$AA26,AI$19),"") -> 100 | AJ26: =1 | AK26: =IF(AI26="","",IF(AI26<=uxb_works!$B$122,1,IF(AI26<=uxb_works!$B$121,2,IF(AI26<=uxb_works!$B$120,3,4)))) -> 4 | AL26: =IF(AK26="","",INDEX(tblIndiSets!$A$227:$A$230,AK26)) -> Sustainable | AM26: =IF(ISNUMBER($AA26),INDEX($H$22:$R$62,$AA26,AM$19),"") -> 100 | AN26: =1 | AO26: =IF(AM26="","",IF(AM26<=uxb_works!$B$122,1,IF(AM26<=uxb_works!$B$121,2,IF(AM26<=uxb_works!$B$120,3,4)))) -> 4 | AP26: =IF(AO26="","",INDEX(tblIndiSets!$A$227:$A$230,AO26)) -> Sustainable | AQ26: =IF(ISNUMBER($AA26),INDEX($H$22:$X$62,$AA26,AQ$19),"") ->  | AT26: =IF(ISNUMBER($AA26),INDEX($H$22:$X$62,$AA26,AT$19),"") ->  | AW26: =IF(ISNUMBER($AA26),INDEX($H$22:$X$62,$AA26,AW$19),"") -> 
A27: =IF(ISEVEN(tblIndicators!C7),1,2) -> 2 | B27: =tblIndiSets!B20 -> 6 | C27: =tblIndiSets!D20 -> 2 | D27: =tblCategories!AN10 -> 0 | E27: =tblIndiSets!E20 -> 1.4) Trend Analyses | H27: 50 | I27: =3 | J27: 3 | K27: 50 | L27: =3 | M27: 3 | N27: 100 | O27: =1 | P27: 2 | S27: 0 | V27: 0 | Y27: 0 | AA27: 17 | AB27: =IF(ISNA(AA27),0,IF(uxb_works!$B$32=1,IF(ISEVEN(LEFT(TRIM(AD27),1)),2,1),INDEX($C$22:$C$62,AA27))) -> 2 | AC27: 1 | AD27: 2.5) Management of Debt and Other Obligations | AE27: 50 | AF27: =3 | AG27: =IF(AE27="","",IF(AE27<=uxb_works!$B$122,1,IF(AE27<=uxb_works!$B$121,2,IF(AE27<=uxb_works!$B$120,3,4)))) -> 2 | AH27: =IF(AG27="","",INDEX(tblIndiSets!$A$227:$A$230,AG27)) -> Consolidating | AI27: 100 | AJ27: =1 | AK27: =IF(AI27="","",IF(AI27<=uxb_works!$B$122,1,IF(AI27<=uxb_works!$B$121,2,IF(AI27<=uxb_works!$B$120,3,4)))) -> 4 | AL27: =IF(AK27="","",INDEX(tblIndiSets!$A$227:$A$230,AK27)) -> Sustainable | AM27: 50 | AN27: =3 | AO27: =IF(AM27="","",IF(AM27<=uxb_works!$B$122,1,IF(AM27<=uxb_works!$B$121,2,IF(AM27<=uxb_works!$B$120,3,4)))) -> 2 | AP27: =IF(AO27="","",INDEX(tblIndiSets!$A$227:$A$230,AO27)) -> Consolidating
A28: =IF(ISEVEN(tblIndicators!C8),1,2) -> 2 | B28: =tblIndiSets!B21 -> 7 | C28: =tblIndiSets!D21 -> 2 | D28: =tblCategories!AN11 -> 0 | E28: =tblIndiSets!E21 -> 1.5) Land Use and Zoning | H28: 50 | I28: =4 | J28: 2 | K28: 100 | L28: =1 | M28: 3 | N28: 100 | O28: =1 | P28: 3 | S28: 0 | V28: 0 | Y28: 0 | AB28: =IF(ISNA(AA28),0,IF(uxb_works!$B$32=1,IF(ISEVEN(LEFT(TRIM(AD28),1)),2,1),INDEX($C$22:$C$62,AA28))) -> 0 | AC28: 0 | AG28: =IF(AE28="","",IF(AE28<=uxb_works!$B$122,1,IF(AE28<=uxb_works!$B$121,2,IF(AE28<=uxb_works!$B$120,3,4)))) ->  | AH28: =IF(AG28="","",INDEX(tblIndiSets!$A$227:$A$230,AG28)) ->  | AK28: =IF(AI28="","",IF(AI28<=uxb_works!$B$122,1,IF(AI28<=uxb_works!$B$121,2,IF(AI28<=uxb_works!$B$120,3,4)))) ->  | AL28: =IF(AK28="","",INDEX(tblIndiSets!$A$227:$A$230,AK28)) ->  | AO28: =IF(AM28="","",IF(AM28<=uxb_works!$B$122,1,IF(AM28<=uxb_works!$B$121,2,IF(AM28<=uxb_works!$B$120,3,4)))) ->  | AP28: =IF(AO28="","",INDEX(tblIndiSets!$A$227:$A$230,AO28)) -> 
A29: =IF(ISEVEN(tblIndicators!C9),1,2) -> 2 | B29: =tblIndiSets!B22 -> 8 | C29: =tblIndiSets!D22 -> 2 | D29: =tblCategories!AN12 -> 0 | E29: =tblIndiSets!E22 -> 1.6) Urban Growth Patterns | H29: 0 | I29: 5 | J29: 1 | K29: 100 | L29: =1 | M29: 3 | N29: 50 | O29: 4 | P29: 1 | S29: 0 | V29: 0 | Y29: 0 | AB29: =IF(ISNA(AA29),0,IF(uxb_works!$B$32=1,IF(ISEVEN(LEFT(TRIM(AD29),1)),2,1),INDEX($C$22:$C$62,AA29))) -> 0 | AC29: 0 | AG29: =IF(AE29="","",IF(AE29<=uxb_works!$B$122,1,IF(AE29<=uxb_works!$B$121,2,IF(AE29<=uxb_works!$B$120,3,4)))) ->  | AH29: =IF(AG29="","",INDEX(tblIndiSets!$A$227:$A$230,AG29)) ->  | AK29: =IF(AI29="","",IF(AI29<=uxb_works!$B$122,1,IF(AI29<=uxb_works!$B$121,2,IF(AI29<=uxb_works!$B$120,3,4)))) ->  | AL29: =IF(AK29="","",INDEX(tblIndiSets!$A$227:$A$230,AK29)) ->  | AO29: =IF(AM29="","",IF(AM29<=uxb_works!$B$122,1,IF(AM29<=uxb_works!$B$121,2,IF(AM29<=uxb_works!$B$120,3,4)))) ->  | AP29: =IF(AO29="","",INDEX(tblIndiSets!$A$227:$A$230,AO29)) -> 
A30: =IF(ISEVEN(tblIndicators!C10),1,2) -> 2 | B30: =tblIndiSets!B23 -> 9 | C30: =tblIndiSets!D23 -> 2 | D30: =tblCategories!AN13 -> 0 | E30: =tblIndiSets!E23 -> 1.7) Informal Settlements | H30: 100 | I30: =1 | J30: 3 | K30: 100 | L30: =1 | M30: 3 | N30: 50 | O30: =4 | P30: 2 | S30: 0 | V30: 0 | Y30: 0 | AB30: =IF(ISNA(AA30),0,IF(uxb_works!$B$32=1,IF(ISEVEN(LEFT(TRIM(AD30),1)),2,1),INDEX($C$22:$C$62,AA30))) -> 0 | AC30: 0 | AG30: =IF(AE30="","",IF(AE30<=uxb_works!$B$122,1,IF(AE30<=uxb_works!$B$121,2,IF(AE30<=uxb_works!$B$120,3,4)))) ->  | AH30: =IF(AG30="","",INDEX(tblIndiSets!$A$227:$A$230,AG30)) ->  | AK30: =IF(AI30="","",IF(AI30<=uxb_works!$B$122,1,IF(AI30<=uxb_works!$B$121,2,IF(AI30<=uxb_works!$B$120,3,4)))) ->  | AL30: =IF(AK30="","",INDEX(tblIndiSets!$A$227:$A$230,AK30)) ->  | AO30: =IF(AM30="","",IF(AM30<=uxb_works!$B$122,1,IF(AM30<=uxb_works!$B$121,2,IF(AM30<=uxb_works!$B$120,3,4)))) ->  | AP30: =IF(AO30="","",INDEX(tblIndiSets!$A$227:$A$230,AO30)) -> 
A31: =IF(ISEVEN(tblIndicators!C11),1,2) -> 2 | B31: =tblIndiSets!B24 -> 10 | C31: =tblIndiSets!D24 -> 2 | D31: =tblCategories!AN14 -> 0 | E31: =tblIndiSets!E24 -> 1.8) Transport and Mobility Integrated with Land Use | H31: 0 | I31: 5 | J31: 1 | K31: 100 | L31: =1 | M31: 2 | N31: 50 | O31: =3 | P31: 2 | S31: 0 | V31: 0 | Y31: 0 | AB31: =IF(ISNA(AA31),0,IF(uxb_works!$B$32=1,IF(ISEVEN(LEFT(TRIM(AD31),1)),2,1),INDEX($C$22:$C$62,AA31))) -> 0 | AC31: 0 | AG31: =IF(AE31="","",IF(AE31<=uxb_works!$B$122,1,IF(AE31<=uxb_works!$B$121,2,IF(AE31<=uxb_works!$B$120,3,4)))) ->  | AH31: =IF(AG31="","",INDEX(tblIndiSets!$A$227:$A$230,AG31)) ->  | AK31: =IF(AI31="","",IF(AI31<=uxb_works!$B$122,1,IF(AI31<=uxb_works!$B$121,2,IF(AI31<=uxb_works!$B$120,3,4)))) ->  | AL31: =IF(AK31="","",INDEX(tblIndiSets!$A$227:$A$230,AK31)) ->  | AO31: =IF(AM31="","",IF(AM31<=uxb_works!$B$122,1,IF(AM31<=uxb_works!$B$121,2,IF(AM31<=uxb_works!$B$120,3,4)))) ->  | AP31: =IF(AO31="","",INDEX(tblIndiSets!$A$227:$A$230,AO31)) -> 
A32: =IF(ISEVEN(tblIndicators!C12),1,2) -> 2 | B32: =tblIndiSets!B25 -> 11 | C32: =tblIndiSets!D25 -> 2 | D32: =tblCategories!AN15 -> 0 | E32: =tblIndiSets!E25 -> 1.9) Cultural Heritage | H32: 100 | I32: =1 | J32: 4 | K32: 100 | L32: =1 | M32: 4 | N32: 50 | O32: 5 | P32: 1 | S32: 0 | V32: 0 | Y32: 0 | AB32: =IF(ISNA(AA32),0,IF(uxb_works!$B$32=1,IF(ISEVEN(LEFT(TRIM(AD32),1)),2,1),INDEX($C$22:$C$62,AA32))) -> 0 | AC32: 0 | AG32: =IF(AE32="","",IF(AE32<=uxb_works!$B$122,1,IF(AE32<=uxb_works!$B$121,2,IF(AE32<=uxb_works!$B$120,3,4)))) ->  | AH32: =IF(AG32="","",INDEX(tblIndiSets!$A$227:$A$230,AG32)) ->  | AK32: =IF(AI32="","",IF(AI32<=uxb_works!$B$122,1,IF(AI32<=uxb_works!$B$121,2,IF(AI32<=uxb_works!$B$120,3,4)))) ->  | AL32: =IF(AK32="","",INDEX(tblIndiSets!$A$227:$A$230,AK32)) ->  | AO32: =IF(AM32="","",IF(AM32<=uxb_works!$B$122,1,IF(AM32<=uxb_works!$B$121,2,IF(AM32<=uxb_works!$B$120,3,4)))) ->  | AP32: =IF(AO32="","",INDEX(tblIndiSets!$A$227:$A$230,AO32)) -> 
A33: =IF(ISEVEN(tblIndicators!C13),1,2) -> 1 | B33: =tblIndiSets!B26 -> 12 | C33: =tblIndiSets!D26 -> 1 | D33: =tblCategories!AN16 -> 1 | E33: =tblIndiSets!E26 -> 2) FISCAL SUSTAINABILITY | H33: 30 | I33: 5 | J33: 1 | K33: 70 | L33: 3 | M33: 1 | N33: 80 | O33: 2 | P33: 1 | S33: 0 | V33: 0 | Y33: 0 | AB33: =IF(ISNA(AA33),0,IF(uxb_works!$B$32=1,IF(ISEVEN(LEFT(TRIM(AD33),1)),2,1),INDEX($C$22:$C$62,AA33))) -> 0 | AC33: 0 | AG33: =IF(AE33="","",IF(AE33<=uxb_works!$B$122,1,IF(AE33<=uxb_works!$B$121,2,IF(AE33<=uxb_works!$B$120,3,4)))) ->  | AH33: =IF(AG33="","",INDEX(tblIndiSets!$A$227:$A$230,AG33)) ->  | AK33: =IF(AI33="","",IF(AI33<=uxb_works!$B$122,1,IF(AI33<=uxb_works!$B$121,2,IF(AI33<=uxb_works!$B$120,3,4)))) ->  | AL33: =IF(AK33="","",INDEX(tblIndiSets!$A$227:$A$230,AK33)) ->  | AO33: =IF(AM33="","",IF(AM33<=uxb_works!$B$122,1,IF(AM33<=uxb_works!$B$121,2,IF(AM33<=uxb_works!$B$120,3,4)))) ->  | AP33: =IF(AO33="","",INDEX(tblIndiSets!$A$227:$A$230,AO33)) -> 
A34: =IF(ISEVEN(tblIndicators!C14),1,2) -> 1 | B34: =tblIndiSets!B27 -> 13 | C34: =tblIndiSets!D27 -> 2 | D34: =tblCategories!AN17 -> 1 | E34: =tblIndiSets!E27 -> 2.1) Accountability and Transparency | H34: 50 | I34: =4 | J34: 2 | K34: 50 | L34: =4 | M34: 2 | N34: 100 | O34: =1 | P34: 3 | S34: 0 | V34: 0 | Y34: 0 | AB34: =IF(ISNA(AA34),0,IF(uxb_works!$B$32=1,IF(ISEVEN(LEFT(TRIM(AD34),1)),2,1),INDEX($C$22:$C$62,AA34))) -> 0 | AC34: 0 | AG34: =IF(AE34="","",IF(AE34<=uxb_works!$B$122,1,IF(AE34<=uxb_works!$B$121,2,IF(AE34<=uxb_works!$B$120,3,4)))) ->  | AH34: =IF(AG34="","",INDEX(tblIndiSets!$A$227:$A$230,AG34)) ->  | AK34: =IF(AI34="","",IF(AI34<=uxb_works!$B$122,1,IF(AI34<=uxb_works!$B$121,2,IF(AI34<=uxb_works!$B$120,3,4)))) ->  | AL34: =IF(AK34="","",INDEX(tblIndiSets!$A$227:$A$230,AK34)) ->  | AO34: =IF(AM34="","",IF(AM34<=uxb_works!$B$122,1,IF(AM34<=uxb_works!$B$121,2,IF(AM34<=uxb_works!$B$120,3,4)))) ->  | AP34: =IF(AO34="","",INDEX(tblIndiSets!$A$227:$A$230,AO34)) -> 
A35: =IF(ISEVEN(tblIndicators!C15),1,2) -> 1 | B35: =tblIndiSets!B28 -> 14 | C35: =tblIndiSets!D28 -> 2 | D35: =tblCategories!AN18 -> 1 | E35: =tblIndiSets!E28 -> 2.2) Creditworthiness | H35: 0 | I35: =3 | J35: 3 | K35: 0 | L35: =3 | M35: 3 | N35: 100 | O35: =1 | P35: 2 | S35: 0 | V35: 0 | Y35: 0 | AB35: =IF(ISNA(AA35),0,IF(uxb_works!$B$32=1,IF(ISEVEN(LEFT(TRIM(AD35),1)),2,1),INDEX($C$22:$C$62,AA35))) -> 0 | AC35: 0 | AG35: =IF(AE35="","",IF(AE35<=uxb_works!$B$122,1,IF(AE35<=uxb_works!$B$121,2,IF(AE35<=uxb_works!$B$120,3,4)))) ->  | AH35: =IF(AG35="","",INDEX(tblIndiSets!$A$227:$A$230,AG35)) ->  | AK35: =IF(AI35="","",IF(AI35<=uxb_works!$B$122,1,IF(AI35<=uxb_works!$B$121,2,IF(AI35<=uxb_works!$B$120,3,4)))) ->  | AL35: =IF(AK35="","",INDEX(tblIndiSets!$A$227:$A$230,AK35)) ->  | AO35: =IF(AM35="","",IF(AM35<=uxb_works!$B$122,1,IF(AM35<=uxb_works!$B$121,2,IF(AM35<=uxb_works!$B$120,3,4)))) ->  | AP35: =IF(AO35="","",INDEX(tblIndiSets!$A$227:$A$230,AO35)) -> 
A36: =IF(ISEVEN(tblIndicators!C16),1,2) -> 1 | B36: =tblIndiSets!B29 -> 15 | C36: =tblIndiSets!D29 -> 2 | D36: =tblCategories!AN19 -> 1 | E36: =tblIndiSets!E29 -> 2.3) Revenue and Financial Autonomy | H36: 50 | I36: =3 | J36: 3 | K36: 100 | L36: =1 | M36: 2 | N36: 50 | O36: =3 | P36: 3 | S36: 0 | V36: 0 | Y36: 0 | AB36: =IF(ISNA(AA36),0,IF(uxb_works!$B$32=1,IF(ISEVEN(LEFT(TRIM(AD36),1)),2,1),INDEX($C$22:$C$62,AA36))) -> 0 | AC36: 0 | AG36: =IF(AE36="","",IF(AE36<=uxb_works!$B$122,1,IF(AE36<=uxb_works!$B$121,2,IF(AE36<=uxb_works!$B$120,3,4)))) ->  | AH36: =IF(AG36="","",INDEX(tblIndiSets!$A$227:$A$230,AG36)) ->  | AK36: =IF(AI36="","",IF(AI36<=uxb_works!$B$122,1,IF(AI36<=uxb_works!$B$121,2,IF(AI36<=uxb_works!$B$120,3,4)))) ->  | AL36: =IF(AK36="","",INDEX(tblIndiSets!$A$227:$A$230,AK36)) ->  | AO36: =IF(AM36="","",IF(AM36<=uxb_works!$B$122,1,IF(AM36<=uxb_works!$B$121,2,IF(AM36<=uxb_works!$B$120,3,4)))) ->  | AP36: =IF(AO36="","",INDEX(tblIndiSets!$A$227:$A$230,AO36)) -> 
A37: =IF(ISEVEN(tblIndicators!C17),1,2) -> 1 | B37: =tblIndiSets!B30 -> 16 | C37: =tblIndiSets!D30 -> 2 | D37: =tblCategories!AN20 -> 1 | E37: =tblIndiSets!E30 -> 2.4) Expenditure Management | H37: 0 | I37: 5 | J37: 1 | K37: 100 | L37: =1 | M37: 4 | N37: 100 | O37: =1 | P37: 4 | S37: 0 | V37: 0 | Y37: 0 | AB37: =IF(ISNA(AA37),0,IF(uxb_works!$B$32=1,IF(ISEVEN(LEFT(TRIM(AD37),1)),2,1),INDEX($C$22:$C$62,AA37))) -> 0 | AC37: 0 | AG37: =IF(AE37="","",IF(AE37<=uxb_works!$B$122,1,IF(AE37<=uxb_works!$B$121,2,IF(AE37<=uxb_works!$B$120,3,4)))) ->  | AH37: =IF(AG37="","",INDEX(tblIndiSets!$A$227:$A$230,AG37)) ->  | AK37: =IF(AI37="","",IF(AI37<=uxb_works!$B$122,1,IF(AI37<=uxb_works!$B$121,2,IF(AI37<=uxb_works!$B$120,3,4)))) ->  | AL37: =IF(AK37="","",INDEX(tblIndiSets!$A$227:$A$230,AK37)) ->  | AO37: =IF(AM37="","",IF(AM37<=uxb_works!$B$122,1,IF(AM37<=uxb_works!$B$121,2,IF(AM37<=uxb_works!$B$120,3,4)))) ->  | AP37: =IF(AO37="","",INDEX(tblIndiSets!$A$227:$A$230,AO37)) -> 
A38: =IF(ISEVEN(tblIndicators!C18),1,2) -> 1 | B38: =tblIndiSets!B31 -> 17 | C38: =tblIndiSets!D31 -> 2 | D38: =tblCategories!AN21 -> 1 | E38: =tblIndiSets!E31 -> 2.5) Management of Debt and Other Obligations | H38: 50 | I38: =3 | J38: 3 | K38: 100 | L38: =1 | M38: 2 | N38: 50 | O38: =3 | P38: 3 | S38: 0 | V38: 0 | Y38: 0 | AB38: =IF(ISNA(AA38),0,IF(uxb_works!$B$32=1,IF(ISEVEN(LEFT(TRIM(AD38),1)),2,1),INDEX($C$22:$C$62,AA38))) -> 0 | AC38: 0 | AG38: =IF(AE38="","",IF(AE38<=uxb_works!$B$122,1,IF(AE38<=uxb_works!$B$121,2,IF(AE38<=uxb_works!$B$120,3,4)))) ->  | AH38: =IF(AG38="","",INDEX(tblIndiSets!$A$227:$A$230,AG38)) ->  | AK38: =IF(AI38="","",IF(AI38<=uxb_works!$B$122,1,IF(AI38<=uxb_works!$B$121,2,IF(AI38<=uxb_works!$B$120,3,4)))) ->  | AL38: =IF(AK38="","",INDEX(tblIndiSets!$A$227:$A$230,AK38)) ->  | AO38: =IF(AM38="","",IF(AM38<=uxb_works!$B$122,1,IF(AM38<=uxb_works!$B$121,2,IF(AM38<=uxb_works!$B$120,3,4)))) ->  | AP38: =IF(AO38="","",INDEX(tblIndiSets!$A$227:$A$230,AO38)) -> 
A39: =IF(ISEVEN(tblIndicators!C19),1,2) -> 2 | B39: =tblIndiSets!B32 -> 18 | C39: =tblIndiSets!D32 -> 1 | D39: =tblCategories!AN22 -> 0 | E39: =tblIndiSets!E32 -> 3) URBAN ECONOMIES | H39: 50 | I39: 5 | J39: 1 | K39: 70 | L39: =2 | M39: 2 | N39: 60 | O39: 4 | P39: 1 | S39: 0 | V39: 0 | Y39: 0 | AB39: =IF(ISNA(AA39),0,IF(uxb_works!$B$32=1,IF(ISEVEN(LEFT(TRIM(AD39),1)),2,1),INDEX($C$22:$C$62,AA39))) -> 0 | AC39: 0 | AG39: =IF(AE39="","",IF(AE39<=uxb_works!$B$122,1,IF(AE39<=uxb_works!$B$121,2,IF(AE39<=uxb_works!$B$120,3,4)))) ->  | AH39: =IF(AG39="","",INDEX(tblIndiSets!$A$227:$A$230,AG39)) ->  | AK39: =IF(AI39="","",IF(AI39<=uxb_works!$B$122,1,IF(AI39<=uxb_works!$B$121,2,IF(AI39<=uxb_works!$B$120,3,4)))) ->  | AL39: =IF(AK39="","",INDEX(tblIndiSets!$A$227:$A$230,AK39)) ->  | AO39: =IF(AM39="","",IF(AM39<=uxb_works!$B$122,1,IF(AM39<=uxb_works!$B$121,2,IF(AM39<=uxb_works!$B$120,3,4)))) ->  | AP39: =IF(AO39="","",INDEX(tblIndiSets!$A$227:$A$230,AO39)) -> 
A40: =IF(ISEVEN(tblIndicators!C20),1,2) -> 2 | B40: =tblIndiSets!B33 -> 19 | C40: =tblIndiSets!D33 -> 2 | D40: =tblCategories!AN23 -> 0 | E40: =tblIndiSets!E33 -> 3.1) Economic Performance | H40: 50 | I40: 5 | J40: 1 | K40: 100 | L40: =1 | M40: 4 | N40: 100 | O40: =1 | P40: 4 | S40: 0 | V40: 0 | Y40: 0 | AB40: =IF(ISNA(AA40),0,IF(uxb_works!$B$32=1,IF(ISEVEN(LEFT(TRIM(AD40),1)),2,1),INDEX($C$22:$C$62,AA40))) -> 0 | AC40: 0 | AG40: =IF(AE40="","",IF(AE40<=uxb_works!$B$122,1,IF(AE40<=uxb_works!$B$121,2,IF(AE40<=uxb_works!$B$120,3,4)))) ->  | AH40: =IF(AG40="","",INDEX(tblIndiSets!$A$227:$A$230,AG40)) ->  | AK40: =IF(AI40="","",IF(AI40<=uxb_works!$B$122,1,IF(AI40<=uxb_works!$B$121,2,IF(AI40<=uxb_works!$B$120,3,4)))) ->  | AL40: =IF(AK40="","",INDEX(tblIndiSets!$A$227:$A$230,AK40)) ->  | AO40: =IF(AM40="","",IF(AM40<=uxb_works!$B$122,1,IF(AM40<=uxb_works!$B$121,2,IF(AM40<=uxb_works!$B$120,3,4)))) ->  | AP40: =IF(AO40="","",INDEX(tblIndiSets!$A$227:$A$230,AO40)) -> 
A41: =IF(ISEVEN(tblIndicators!C21),1,2) -> 2 | B41: =tblIndiSets!B34 -> 20 | C41: =tblIndiSets!D34 -> 2 | D41: =tblCategories!AN24 -> 0 | E41: =tblIndiSets!E34 -> 3.2) Business Climate, Innovation, and Entrepreneurship | H41: 100 | I41: =1 | J41: 2 | K41: 50 | L41: =3 | M41: 2 | N41: 50 | O41: =3 | P41: 2 | S41: 0 | V41: 0 | Y41: 0 | AB41: =IF(ISNA(AA41),0,IF(uxb_works!$B$32=1,IF(ISEVEN(LEFT(TRIM(AD41),1)),2,1),INDEX($C$22:$C$62,AA41))) -> 0 | AC41: 0 | AG41: =IF(AE41="","",IF(AE41<=uxb_works!$B$122,1,IF(AE41<=uxb_works!$B$121,2,IF(AE41<=uxb_works!$B$120,3,4)))) ->  | AH41: =IF(AG41="","",INDEX(tblIndiSets!$A$227:$A$230,AG41)) ->  | AK41: =IF(AI41="","",IF(AI41<=uxb_works!$B$122,1,IF(AI41<=uxb_works!$B$121,2,IF(AI41<=uxb_works!$B$120,3,4)))) ->  | AL41: =IF(AK41="","",INDEX(tblIndiSets!$A$227:$A$230,AK41)) ->  | AO41: =IF(AM41="","",IF(AM41<=uxb_works!$B$122,1,IF(AM41<=uxb_works!$B$121,2,IF(AM41<=uxb_works!$B$120,3,4)))) ->  | AP41: =IF(AO41="","",INDEX(tblIndiSets!$A$227:$A$230,AO41)) -> 
A42: =IF(ISEVEN(tblIndicators!C22),1,2) -> 2 | B42: =tblIndiSets!B35 -> 21 | C42: =tblIndiSets!D35 -> 2 | D42: =tblCategories!AN25 -> 0 | E42: =tblIndiSets!E35 -> 3.3) Labor Force | H42: 50 | I42: 5 | J42: 1 | K42: 100 | L42: =1 | M42: 4 | N42: 100 | O42: =1 | P42: 4 | S42: 0 | V42: 0 | Y42: 0 | AB42: =IF(ISNA(AA42),0,IF(uxb_works!$B$32=1,IF(ISEVEN(LEFT(TRIM(AD42),1)),2,1),INDEX($C$22:$C$62,AA42))) -> 0 | AC42: 0 | AG42: =IF(AE42="","",IF(AE42<=uxb_works!$B$122,1,IF(AE42<=uxb_works!$B$121,2,IF(AE42<=uxb_works!$B$120,3,4)))) ->  | AH42: =IF(AG42="","",INDEX(tblIndiSets!$A$227:$A$230,AG42)) ->  | AK42: =IF(AI42="","",IF(AI42<=uxb_works!$B$122,1,IF(AI42<=uxb_works!$B$121,2,IF(AI42<=uxb_works!$B$120,3,4)))) ->  | AL42: =IF(AK42="","",INDEX(tblIndiSets!$A$227:$A$230,AK42)) ->  | AO42: =IF(AM42="","",IF(AM42<=uxb_works!$B$122,1,IF(AM42<=uxb_works!$B$121,2,IF(AM42<=uxb_works!$B$120,3,4)))) ->  | AP42: =IF(AO42="","",INDEX(tblIndiSets!$A$227:$A$230,AO42)) -> 
A43: =IF(ISEVEN(tblIndicators!C23),1,2) -> 2 | B43: =tblIndiSets!B36 -> 22 | C43: =tblIndiSets!D36 -> 2 | D43: =tblCategories!AN26 -> 0 | E43: =tblIndiSets!E36 -> 3.4) Livelihood Opportunities | H43: 0 | I43: =4 | J43: 2 | K43: 50 | L43: =1 | M43: 3 | N43: 0 | O43: =4 | P43: 2 | S43: 0 | V43: 0 | Y43: 0 | AB43: =IF(ISNA(AA43),0,IF(uxb_works!$B$32=1,IF(ISEVEN(LEFT(TRIM(AD43),1)),2,1),INDEX($C$22:$C$62,AA43))) -> 0 | AC43: 0 | AG43: =IF(AE43="","",IF(AE43<=uxb_works!$B$122,1,IF(AE43<=uxb_works!$B$121,2,IF(AE43<=uxb_works!$B$120,3,4)))) ->  | AH43: =IF(AG43="","",INDEX(tblIndiSets!$A$227:$A$230,AG43)) ->  | AK43: =IF(AI43="","",IF(AI43<=uxb_works!$B$122,1,IF(AI43<=uxb_works!$B$121,2,IF(AI43<=uxb_works!$B$120,3,4)))) ->  | AL43: =IF(AK43="","",INDEX(tblIndiSets!$A$227:$A$230,AK43)) ->  | AO43: =IF(AM43="","",IF(AM43<=uxb_works!$B$122,1,IF(AM43<=uxb_works!$B$121,2,IF(AM43<=uxb_works!$B$120,3,4)))) ->  | AP43: =IF(AO43="","",INDEX(tblIndiSets!$A$227:$A$230,AO43)) -> 
A44: =IF(ISEVEN(tblIndicators!C24),1,2) -> 2 | B44: =tblIndiSets!B37 -> 23 | C44: =tblIndiSets!D37 -> 2 | D44: =tblCategories!AN27 -> 0 | E44: =tblIndiSets!E37 -> 3.5) Income Equality and Shared Prosperity | H44: 50 | I44: =3 | J44: 3 | K44: 50 | L44: =3 | M44: 3 | N44: 50 | O44: =3 | P44: 3 | S44: 0 | V44: 0 | Y44: 0 | AB44: =IF(ISNA(AA44),0,IF(uxb_works!$B$32=1,IF(ISEVEN(LEFT(TRIM(AD44),1)),2,1),INDEX($C$22:$C$62,AA44))) -> 0 | AC44: 0 | AG44: =IF(AE44="","",IF(AE44<=uxb_works!$B$122,1,IF(AE44<=uxb_works!$B$121,2,IF(AE44<=uxb_works!$B$120,3,4)))) ->  | AH44: =IF(AG44="","",INDEX(tblIndiSets!$A$227:$A$230,AG44)) ->  | AK44: =IF(AI44="","",IF(AI44<=uxb_works!$B$122,1,IF(AI44<=uxb_works!$B$121,2,IF(AI44<=uxb_works!$B$120,3,4)))) ->  | AL44: =IF(AK44="","",INDEX(tblIndiSets!$A$227:$A$230,AK44)) ->  | AO44: =IF(AM44="","",IF(AM44<=uxb_works!$B$122,1,IF(AM44<=uxb_works!$B$121,2,IF(AM44<=uxb_works!$B$120,3,4)))) ->  | AP44: =IF(AO44="","",INDEX(tblIndiSets!$A$227:$A$230,AO44)) -> 
A45: =IF(ISEVEN(tblIndicators!C25),1,2) -> 1 | B45: =tblIndiSets!B38 -> 24 | C45: =tblIndiSets!D38 -> 1 | D45: =tblCategories!AN28 -> 0 | E45: =tblIndiSets!E38 -> 4) NATURAL ENVIRONMENT AND RESOURCES | H45: 70 | I45: =3 | J45: 3 | K45: 90 | L45: 2 | M45: 1 | N45: 70 | O45: =3 | P45: 3 | S45: 0 | V45: 0 | Y45: 0 | AB45: =IF(ISNA(AA45),0,IF(uxb_works!$B$32=1,IF(ISEVEN(LEFT(TRIM(AD45),1)),2,1),INDEX($C$22:$C$62,AA45))) -> 0 | AC45: 0 | AG45: =IF(AE45="","",IF(AE45<=uxb_works!$B$122,1,IF(AE45<=uxb_works!$B$121,2,IF(AE45<=uxb_works!$B$120,3,4)))) ->  | AH45: =IF(AG45="","",INDEX(tblIndiSets!$A$227:$A$230,AG45)) ->  | AK45: =IF(AI45="","",IF(AI45<=uxb_works!$B$122,1,IF(AI45<=uxb_works!$B$121,2,IF(AI45<=uxb_works!$B$120,3,4)))) ->  | AL45: =IF(AK45="","",INDEX(tblIndiSets!$A$227:$A$230,AK45)) ->  | AO45: =IF(AM45="","",IF(AM45<=uxb_works!$B$122,1,IF(AM45<=uxb_works!$B$121,2,IF(AM45<=uxb_works!$B$120,3,4)))) ->  | AP45: =IF(AO45="","",INDEX(tblIndiSets!$A$227:$A$230,AO45)) -> 
A46: =IF(ISEVEN(tblIndicators!C26),1,2) -> 1 | B46: =tblIndiSets!B39 -> 25 | C46: =tblIndiSets!D39 -> 2 | D46: =tblCategories!AN29 -> 0 | E46: =tblIndiSets!E39 -> 4.1) Ecosystems and Biodiversity | H46: 50 | I46: =4 | J46: 2 | K46: 100 | L46: =1 | M46: 3 | N46: 50 | O46: =4 | P46: 2 | S46: 0 | V46: 0 | Y46: 0 | AB46: =IF(ISNA(AA46),0,IF(uxb_works!$B$32=1,IF(ISEVEN(LEFT(TRIM(AD46),1)),2,1),INDEX($C$22:$C$62,AA46))) -> 0 | AC46: 0 | AG46: =IF(AE46="","",IF(AE46<=uxb_works!$B$122,1,IF(AE46<=uxb_works!$B$121,2,IF(AE46<=uxb_works!$B$120,3,4)))) ->  | AH46: =IF(AG46="","",INDEX(tblIndiSets!$A$227:$A$230,AG46)) ->  | AK46: =IF(AI46="","",IF(AI46<=uxb_works!$B$122,1,IF(AI46<=uxb_works!$B$121,2,IF(AI46<=uxb_works!$B$120,3,4)))) ->  | AL46: =IF(AK46="","",INDEX(tblIndiSets!$A$227:$A$230,AK46)) ->  | AO46: =IF(AM46="","",IF(AM46<=uxb_works!$B$122,1,IF(AM46<=uxb_works!$B$121,2,IF(AM46<=uxb_works!$B$120,3,4)))) ->  | AP46: =IF(AO46="","",INDEX(tblIndiSets!$A$227:$A$230,AO46)) -> 
A47: =IF(ISEVEN(tblIndicators!C27),1,2) -> 1 | B47: =tblIndiSets!B40 -> 26 | C47: =tblIndiSets!D40 -> 2 | D47: =tblCategories!AN30 -> 0 | E47: =tblIndiSets!E40 -> 4.2) Air Quality | H47: 50 | I47: 5 | J47: 1 | K47: 100 | L47: =1 | M47: 4 | N47: 100 | O47: =1 | P47: 4 | S47: 0 | V47: 0 | Y47: 0 | AB47: =IF(ISNA(AA47),0,IF(uxb_works!$B$32=1,IF(ISEVEN(LEFT(TRIM(AD47),1)),2,1),INDEX($C$22:$C$62,AA47))) -> 0 | AC47: 0 | AG47: =IF(AE47="","",IF(AE47<=uxb_works!$B$122,1,IF(AE47<=uxb_works!$B$121,2,IF(AE47<=uxb_works!$B$120,3,4)))) ->  | AH47: =IF(AG47="","",INDEX(tblIndiSets!$A$227:$A$230,AG47)) ->  | AK47: =IF(AI47="","",IF(AI47<=uxb_works!$B$122,1,IF(AI47<=uxb_works!$B$121,2,IF(AI47<=uxb_works!$B$120,3,4)))) ->  | AL47: =IF(AK47="","",INDEX(tblIndiSets!$A$227:$A$230,AK47)) ->  | AO47: =IF(AM47="","",IF(AM47<=uxb_works!$B$122,1,IF(AM47<=uxb_works!$B$121,2,IF(AM47<=uxb_works!$B$120,3,4)))) ->  | AP47: =IF(AO47="","",INDEX(tblIndiSets!$A$227:$A$230,AO47)) -> 
A48: =IF(ISEVEN(tblIndicators!C28),1,2) -> 1 | B48: =tblIndiSets!B41 -> 27 | C48: =tblIndiSets!D41 -> 2 | D48: =tblCategories!AN31 -> 0 | E48: =tblIndiSets!E41 -> 4.3) Water Resources Management | H48: 100 | I48: =1 | J48: 3 | K48: 100 | L48: =1 | M48: 3 | N48: 50 | O48: =4 | P48: 2 | S48: 0 | V48: 0 | Y48: 0 | AB48: =IF(ISNA(AA48),0,IF(uxb_works!$B$32=1,IF(ISEVEN(LEFT(TRIM(AD48),1)),2,1),INDEX($C$22:$C$62,AA48))) -> 0 | AC48: 0 | AG48: =IF(AE48="","",IF(AE48<=uxb_works!$B$122,1,IF(AE48<=uxb_works!$B$121,2,IF(AE48<=uxb_works!$B$120,3,4)))) ->  | AH48: =IF(AG48="","",INDEX(tblIndiSets!$A$227:$A$230,AG48)) ->  | AK48: =IF(AI48="","",IF(AI48<=uxb_works!$B$122,1,IF(AI48<=uxb_works!$B$121,2,IF(AI48<=uxb_works!$B$120,3,4)))) ->  | AL48: =IF(AK48="","",INDEX(tblIndiSets!$A$227:$A$230,AK48)) ->  | AO48: =IF(AM48="","",IF(AM48<=uxb_works!$B$122,1,IF(AM48<=uxb_works!$B$121,2,IF(AM48<=uxb_works!$B$120,3,4)))) ->  | AP48: =IF(AO48="","",INDEX(tblIndiSets!$A$227:$A$230,AO48)) -> 
A49: =IF(ISEVEN(tblIndicators!C29),1,2) -> 1 | B49: =tblIndiSets!B42 -> 28 | C49: =tblIndiSets!D42 -> 2 | D49: =tblCategories!AN32 -> 0 | E49: =tblIndiSets!E42 -> 4.4) Solid Waste Management | H49: 50 | I49: =3 | J49: 3 | K49: 100 | L49: =1 | M49: 2 | N49: 50 | O49: =3 | P49: 3 | S49: 0 | V49: 0 | Y49: 0 | AB49: =IF(ISNA(AA49),0,IF(uxb_works!$B$32=1,IF(ISEVEN(LEFT(TRIM(AD49),1)),2,1),INDEX($C$22:$C$62,AA49))) -> 0 | AC49: 0 | AG49: =IF(AE49="","",IF(AE49<=uxb_works!$B$122,1,IF(AE49<=uxb_works!$B$121,2,IF(AE49<=uxb_works!$B$120,3,4)))) ->  | AH49: =IF(AG49="","",INDEX(tblIndiSets!$A$227:$A$230,AG49)) ->  | AK49: =IF(AI49="","",IF(AI49<=uxb_works!$B$122,1,IF(AI49<=uxb_works!$B$121,2,IF(AI49<=uxb_works!$B$120,3,4)))) ->  | AL49: =IF(AK49="","",INDEX(tblIndiSets!$A$227:$A$230,AK49)) ->  | AO49: =IF(AM49="","",IF(AM49<=uxb_works!$B$122,1,IF(AM49<=uxb_works!$B$121,2,IF(AM49<=uxb_works!$B$120,3,4)))) ->  | AP49: =IF(AO49="","",INDEX(tblIndiSets!$A$227:$A$230,AO49)) -> 
A50: =IF(ISEVEN(tblIndicators!C30),1,2) -> 1 | B50: =tblIndiSets!B43 -> 29 | C50: =tblIndiSets!D43 -> 2 | D50: =tblCategories!AN33 -> 0 | E50: =tblIndiSets!E43 -> 4.5) Consumption and Production Patterns | H50: 100 | I50: =1 | J50: 3 | K50: 50 | L50: =4 | M50: 2 | N50: 100 | O50: =1 | P50: 3 | S50: 0 | V50: 0 | Y50: 0 | AB50: =IF(ISNA(AA50),0,IF(uxb_works!$B$32=1,IF(ISEVEN(LEFT(TRIM(AD50),1)),2,1),INDEX($C$22:$C$62,AA50))) -> 0 | AC50: 0 | AG50: =IF(AE50="","",IF(AE50<=uxb_works!$B$122,1,IF(AE50<=uxb_works!$B$121,2,IF(AE50<=uxb_works!$B$120,3,4)))) ->  | AH50: =IF(AG50="","",INDEX(tblIndiSets!$A$227:$A$230,AG50)) ->  | AK50: =IF(AI50="","",IF(AI50<=uxb_works!$B$122,1,IF(AI50<=uxb_works!$B$121,2,IF(AI50<=uxb_works!$B$120,3,4)))) ->  | AL50: =IF(AK50="","",INDEX(tblIndiSets!$A$227:$A$230,AK50)) ->  | AO50: =IF(AM50="","",IF(AM50<=uxb_works!$B$122,1,IF(AM50<=uxb_works!$B$121,2,IF(AM50<=uxb_works!$B$120,3,4)))) ->  | AP50: =IF(AO50="","",INDEX(tblIndiSets!$A$227:$A$230,AO50)) -> 
A51: =IF(ISEVEN(tblIndicators!C31),1,2) -> 2 | B51: =tblIndiSets!B44 -> 30 | C51: =tblIndiSets!D44 -> 1 | D51: =tblCategories!AN34 -> 0 | E51: =tblIndiSets!E44 -> 5) CLIMATE ACTION AND RESILIENCE | H51: 50 | I51: 5 | J51: 1 | K51: 60 | L51: 4 | M51: 1 | N51: 90 | O51: =2 | P51: 2 | S51: 0 | V51: 0 | Y51: 0 | AB51: =IF(ISNA(AA51),0,IF(uxb_works!$B$32=1,IF(ISEVEN(LEFT(TRIM(AD51),1)),2,1),INDEX($C$22:$C$62,AA51))) -> 0 | AC51: 0 | AG51: =IF(AE51="","",IF(AE51<=uxb_works!$B$122,1,IF(AE51<=uxb_works!$B$121,2,IF(AE51<=uxb_works!$B$120,3,4)))) ->  | AH51: =IF(AG51="","",INDEX(tblIndiSets!$A$227:$A$230,AG51)) ->  | AK51: =IF(AI51="","",IF(AI51<=uxb_works!$B$122,1,IF(AI51<=uxb_works!$B$121,2,IF(AI51<=uxb_works!$B$120,3,4)))) ->  | AL51: =IF(AK51="","",INDEX(tblIndiSets!$A$227:$A$230,AK51)) ->  | AO51: =IF(AM51="","",IF(AM51<=uxb_works!$B$122,1,IF(AM51<=uxb_works!$B$121,2,IF(AM51<=uxb_works!$B$120,3,4)))) ->  | AP51: =IF(AO51="","",INDEX(tblIndiSets!$A$227:$A$230,AO51)) -> 
A52: =IF(ISEVEN(tblIndicators!C32),1,2) -> 2 | B52: =tblIndiSets!B45 -> 31 | C52: =tblIndiSets!D45 -> 2 | D52: =tblCategories!AN35 -> 0 | E52: =tblIndiSets!E45 -> 5.1) Greenhouse gas inventory | H52: 50 | I52: =4 | J52: 2 | K52: 50 | L52: =4 | M52: 2 | N52: 100 | O52: =1 | P52: 3 | S52: 0 | V52: 0 | Y52: 0 | AB52: =IF(ISNA(AA52),0,IF(uxb_works!$B$32=1,IF(ISEVEN(LEFT(TRIM(AD52),1)),2,1),INDEX($C$22:$C$62,AA52))) -> 0 | AC52: 0 | AG52: =IF(AE52="","",IF(AE52<=uxb_works!$B$122,1,IF(AE52<=uxb_works!$B$121,2,IF(AE52<=uxb_works!$B$120,3,4)))) ->  | AH52: =IF(AG52="","",INDEX(tblIndiSets!$A$227:$A$230,AG52)) ->  | AK52: =IF(AI52="","",IF(AI52<=uxb_works!$B$122,1,IF(AI52<=uxb_works!$B$121,2,IF(AI52<=uxb_works!$B$120,3,4)))) ->  | AL52: =IF(AK52="","",INDEX(tblIndiSets!$A$227:$A$230,AK52)) ->  | AO52: =IF(AM52="","",IF(AM52<=uxb_works!$B$122,1,IF(AM52<=uxb_works!$B$121,2,IF(AM52<=uxb_works!$B$120,3,4)))) ->  | AP52: =IF(AO52="","",INDEX(tblIndiSets!$A$227:$A$230,AO52)) -> 
A53: =IF(ISEVEN(tblIndicators!C33),1,2) -> 2 | B53: =tblIndiSets!B46 -> 32 | C53: =tblIndiSets!D46 -> 2 | D53: =tblCategories!AN36 -> 0 | E53: =tblIndiSets!E46 -> 5.2) Energy efficiency | H53: 100 | I53: =1 | J53: 3 | K53: 50 | L53: =4 | M53: 2 | N53: 50 | O53: =4 | P53: 2 | S53: 0 | V53: 0 | Y53: 0 | AB53: =IF(ISNA(AA53),0,IF(uxb_works!$B$32=1,IF(ISEVEN(LEFT(TRIM(AD53),1)),2,1),INDEX($C$22:$C$62,AA53))) -> 0 | AC53: 0 | AG53: =IF(AE53="","",IF(AE53<=uxb_works!$B$122,1,IF(AE53<=uxb_works!$B$121,2,IF(AE53<=uxb_works!$B$120,3,4)))) ->  | AH53: =IF(AG53="","",INDEX(tblIndiSets!$A$227:$A$230,AG53)) ->  | AK53: =IF(AI53="","",IF(AI53<=uxb_works!$B$122,1,IF(AI53<=uxb_works!$B$121,2,IF(AI53<=uxb_works!$B$120,3,4)))) ->  | AL53: =IF(AK53="","",INDEX(tblIndiSets!$A$227:$A$230,AK53)) ->  | AO53: =IF(AM53="","",IF(AM53<=uxb_works!$B$122,1,IF(AM53<=uxb_works!$B$121,2,IF(AM53<=uxb_works!$B$120,3,4)))) ->  | AP53: =IF(AO53="","",INDEX(tblIndiSets!$A$227:$A$230,AO53)) -> 
A54: =IF(ISEVEN(tblIndicators!C34),1,2) -> 2 | B54: =tblIndiSets!B47 -> 33 | C54: =tblIndiSets!D47 -> 2 | D54: =tblCategories!AN37 -> 0 | E54: =tblIndiSets!E47 -> 5.3) Clean energy | H54: 50 | I54: =4 | J54: 2 | K54: 50 | L54: =4 | M54: 2 | N54: 100 | O54: =1 | P54: 3 | S54: 0 | V54: 0 | Y54: 0 | AB54: =IF(ISNA(AA54),0,IF(uxb_works!$B$32=1,IF(ISEVEN(LEFT(TRIM(AD54),1)),2,1),INDEX($C$22:$C$62,AA54))) -> 0 | AC54: 0 | AG54: =IF(AE54="","",IF(AE54<=uxb_works!$B$122,1,IF(AE54<=uxb_works!$B$121,2,IF(AE54<=uxb_works!$B$120,3,4)))) ->  | AH54: =IF(AG54="","",INDEX(tblIndiSets!$A$227:$A$230,AG54)) ->  | AK54: =IF(AI54="","",IF(AI54<=uxb_works!$B$122,1,IF(AI54<=uxb_works!$B$121,2,IF(AI54<=uxb_works!$B$120,3,4)))) ->  | AL54: =IF(AK54="","",INDEX(tblIndiSets!$A$227:$A$230,AK54)) ->  | AO54: =IF(AM54="","",IF(AM54<=uxb_works!$B$122,1,IF(AM54<=uxb_works!$B$121,2,IF(AM54<=uxb_works!$B$120,3,4)))) ->  | AP54: =IF(AO54="","",INDEX(tblIndiSets!$A$227:$A$230,AO54)) -> 
A55: =IF(ISEVEN(tblIndicators!C35),1,2) -> 2 | B55: =tblIndiSets!B48 -> 34 | C55: =tblIndiSets!D48 -> 2 | D55: =tblCategories!AN38 -> 0 | E55: =tblIndiSets!E48 -> 5.4) Climate change adaptation | H55: 0 | I55: 5 | J55: 1 | K55: 50 | L55: 4 | M55: 1 | N55: 100 | O55: =1 | P55: 3 | S55: 0 | V55: 0 | Y55: 0 | AB55: =IF(ISNA(AA55),0,IF(uxb_works!$B$32=1,IF(ISEVEN(LEFT(TRIM(AD55),1)),2,1),INDEX($C$22:$C$62,AA55))) -> 0 | AC55: 0 | AG55: =IF(AE55="","",IF(AE55<=uxb_works!$B$122,1,IF(AE55<=uxb_works!$B$121,2,IF(AE55<=uxb_works!$B$120,3,4)))) ->  | AH55: =IF(AG55="","",INDEX(tblIndiSets!$A$227:$A$230,AG55)) ->  | AK55: =IF(AI55="","",IF(AI55<=uxb_works!$B$122,1,IF(AI55<=uxb_works!$B$121,2,IF(AI55<=uxb_works!$B$120,3,4)))) ->  | AL55: =IF(AK55="","",INDEX(tblIndiSets!$A$227:$A$230,AK55)) ->  | AO55: =IF(AM55="","",IF(AM55<=uxb_works!$B$122,1,IF(AM55<=uxb_works!$B$121,2,IF(AM55<=uxb_works!$B$120,3,4)))) ->  | AP55: =IF(AO55="","",INDEX(tblIndiSets!$A$227:$A$230,AO55)) -> 
A56: =IF(ISEVEN(tblIndicators!C36),1,2) -> 2 | B56: =tblIndiSets!B49 -> 35 | C56: =tblIndiSets!D49 -> 2 | D56: =tblCategories!AN39 -> 0 | E56: =tblIndiSets!E49 -> 5.5) Disaster risk reduction | H56: 50 | I56: =4 | J56: 2 | K56: 100 | L56: =1 | M56: 3 | N56: 100 | O56: =1 | P56: 3 | S56: 0 | V56: 0 | Y56: 0 | AB56: =IF(ISNA(AA56),0,IF(uxb_works!$B$32=1,IF(ISEVEN(LEFT(TRIM(AD56),1)),2,1),INDEX($C$22:$C$62,AA56))) -> 0 | AC56: 0 | AG56: =IF(AE56="","",IF(AE56<=uxb_works!$B$122,1,IF(AE56<=uxb_works!$B$121,2,IF(AE56<=uxb_works!$B$120,3,4)))) ->  | AH56: =IF(AG56="","",INDEX(tblIndiSets!$A$227:$A$230,AG56)) ->  | AK56: =IF(AI56="","",IF(AI56<=uxb_works!$B$122,1,IF(AI56<=uxb_works!$B$121,2,IF(AI56<=uxb_works!$B$120,3,4)))) ->  | AL56: =IF(AK56="","",INDEX(tblIndiSets!$A$227:$A$230,AK56)) ->  | AO56: =IF(AM56="","",IF(AM56<=uxb_works!$B$122,1,IF(AM56<=uxb_works!$B$121,2,IF(AM56<=uxb_works!$B$120,3,4)))) ->  | AP56: =IF(AO56="","",INDEX(tblIndiSets!$A$227:$A$230,AO56)) -> 
A57: =IF(ISEVEN(tblIndicators!C37),1,2) -> 1 | B57: =tblIndiSets!B50 -> 36 | C57: =tblIndiSets!D50 -> 1 | D57: =tblCategories!AN40 -> 0 | E57: =tblIndiSets!E50 -> 6) INCLUSIVITY AND QUALITY OF LIFE | H57: 90 | I57: 2 | J57: 1 | K57: 80 | L57: 3 | M57: 1 | N57: 50 | O57: 5 | P57: 1 | S57: 0 | V57: 0 | Y57: 0 | AB57: =IF(ISNA(AA57),0,IF(uxb_works!$B$32=1,IF(ISEVEN(LEFT(TRIM(AD57),1)),2,1),INDEX($C$22:$C$62,AA57))) -> 0 | AC57: 0 | AG57: =IF(AE57="","",IF(AE57<=uxb_works!$B$122,1,IF(AE57<=uxb_works!$B$121,2,IF(AE57<=uxb_works!$B$120,3,4)))) ->  | AH57: =IF(AG57="","",INDEX(tblIndiSets!$A$227:$A$230,AG57)) ->  | AK57: =IF(AI57="","",IF(AI57<=uxb_works!$B$122,1,IF(AI57<=uxb_works!$B$121,2,IF(AI57<=uxb_works!$B$120,3,4)))) ->  | AL57: =IF(AK57="","",INDEX(tblIndiSets!$A$227:$A$230,AK57)) ->  | AO57: =IF(AM57="","",IF(AM57<=uxb_works!$B$122,1,IF(AM57<=uxb_works!$B$121,2,IF(AM57<=uxb_works!$B$120,3,4)))) ->  | AP57: =IF(AO57="","",INDEX(tblIndiSets!$A$227:$A$230,AO57)) -> 
A58: =IF(ISEVEN(tblIndicators!C38),1,2) -> 1 | B58: =tblIndiSets!B51 -> 37 | C58: =tblIndiSets!D51 -> 2 | D58: =tblCategories!AN41 -> 0 | E58: =tblIndiSets!E51 -> 6.1) Housing | H58: 100 | I58: =1 | J58: 3 | K58: 50 | L58: 4 | M58: 1 | N58: 0 | O58: 5 | P58: 1 | S58: 0 | V58: 0 | Y58: 0 | AB58: =IF(ISNA(AA58),0,IF(uxb_works!$B$32=1,IF(ISEVEN(LEFT(TRIM(AD58),1)),2,1),INDEX($C$22:$C$62,AA58))) -> 0 | AC58: 0 | AG58: =IF(AE58="","",IF(AE58<=uxb_works!$B$122,1,IF(AE58<=uxb_works!$B$121,2,IF(AE58<=uxb_works!$B$120,3,4)))) ->  | AH58: =IF(AG58="","",INDEX(tblIndiSets!$A$227:$A$230,AG58)) ->  | AK58: =IF(AI58="","",IF(AI58<=uxb_works!$B$122,1,IF(AI58<=uxb_works!$B$121,2,IF(AI58<=uxb_works!$B$120,3,4)))) ->  | AL58: =IF(AK58="","",INDEX(tblIndiSets!$A$227:$A$230,AK58)) ->  | AO58: =IF(AM58="","",IF(AM58<=uxb_works!$B$122,1,IF(AM58<=uxb_works!$B$121,2,IF(AM58<=uxb_works!$B$120,3,4)))) ->  | AP58: =IF(AO58="","",INDEX(tblIndiSets!$A$227:$A$230,AO58)) -> 
A59: =IF(ISEVEN(tblIndicators!C39),1,2) -> 1 | B59: =tblIndiSets!B52 -> 38 | C59: =tblIndiSets!D52 -> 2 | D59: =tblCategories!AN42 -> 0 | E59: =tblIndiSets!E52 -> 6.2) Poverty Reduction, Hunger Reduction, and Food Security | H59: 100 | I59: =1 | J59: 3 | K59: 50 | L59: =4 | M59: 2 | N59: 100 | O59: =1 | P59: 3 | S59: 0 | V59: 0 | Y59: 0 | AB59: =IF(ISNA(AA59),0,IF(uxb_works!$B$32=1,IF(ISEVEN(LEFT(TRIM(AD59),1)),2,1),INDEX($C$22:$C$62,AA59))) -> 0 | AC59: 0 | AG59: =IF(AE59="","",IF(AE59<=uxb_works!$B$122,1,IF(AE59<=uxb_works!$B$121,2,IF(AE59<=uxb_works!$B$120,3,4)))) ->  | AH59: =IF(AG59="","",INDEX(tblIndiSets!$A$227:$A$230,AG59)) ->  | AK59: =IF(AI59="","",IF(AI59<=uxb_works!$B$122,1,IF(AI59<=uxb_works!$B$121,2,IF(AI59<=uxb_works!$B$120,3,4)))) ->  | AL59: =IF(AK59="","",INDEX(tblIndiSets!$A$227:$A$230,AK59)) ->  | AO59: =IF(AM59="","",IF(AM59<=uxb_works!$B$122,1,IF(AM59<=uxb_works!$B$121,2,IF(AM59<=uxb_works!$B$120,3,4)))) ->  | AP59: =IF(AO59="","",INDEX(tblIndiSets!$A$227:$A$230,AO59)) -> 
A60: =IF(ISEVEN(tblIndicators!C40),1,2) -> 1 | B60: =tblIndiSets!B53 -> 39 | C60: =tblIndiSets!D53 -> 2 | D60: =tblCategories!AN43 -> 0 | E60: =tblIndiSets!E53 -> 6.3) Drinking Water and Sanitation | H60: 100 | I60: =1 | J60: 3 | K60: 100 | L60: =1 | M60: 3 | N60: 50 | O60: 4 | P60: 1 | S60: 0 | V60: 0 | Y60: 0 | AB60: =IF(ISNA(AA60),0,IF(uxb_works!$B$32=1,IF(ISEVEN(LEFT(TRIM(AD60),1)),2,1),INDEX($C$22:$C$62,AA60))) -> 0 | AC60: 0 | AG60: =IF(AE60="","",IF(AE60<=uxb_works!$B$122,1,IF(AE60<=uxb_works!$B$121,2,IF(AE60<=uxb_works!$B$120,3,4)))) ->  | AH60: =IF(AG60="","",INDEX(tblIndiSets!$A$227:$A$230,AG60)) ->  | AK60: =IF(AI60="","",IF(AI60<=uxb_works!$B$122,1,IF(AI60<=uxb_works!$B$121,2,IF(AI60<=uxb_works!$B$120,3,4)))) ->  | AL60: =IF(AK60="","",INDEX(tblIndiSets!$A$227:$A$230,AK60)) ->  | AO60: =IF(AM60="","",IF(AM60<=uxb_works!$B$122,1,IF(AM60<=uxb_works!$B$121,2,IF(AM60<=uxb_works!$B$120,3,4)))) ->  | AP60: =IF(AO60="","",INDEX(tblIndiSets!$A$227:$A$230,AO60)) -> 
A61: =IF(ISEVEN(tblIndicators!C41),1,2) -> 1 | B61: =tblIndiSets!B54 -> 40 | C61: =tblIndiSets!D54 -> 2 | D61: =tblCategories!AN44 -> 0 | E61: =tblIndiSets!E54 -> 6.4) Health and Well-Being | H61: 50 | I61: =4 | J61: 2 | K61: 100 | L61: =1 | M61: 3 | N61: 50 | O61: =4 | P61: 2 | S61: 0 | V61: 0 | Y61: 0 | AB61: =IF(ISNA(AA61),0,IF(uxb_works!$B$32=1,IF(ISEVEN(LEFT(TRIM(AD61),1)),2,1),INDEX($C$22:$C$62,AA61))) -> 0 | AC61: 0 | AG61: =IF(AE61="","",IF(AE61<=uxb_works!$B$122,1,IF(AE61<=uxb_works!$B$121,2,IF(AE61<=uxb_works!$B$120,3,4)))) ->  | AH61: =IF(AG61="","",INDEX(tblIndiSets!$A$227:$A$230,AG61)) ->  | AK61: =IF(AI61="","",IF(AI61<=uxb_works!$B$122,1,IF(AI61<=uxb_works!$B$121,2,IF(AI61<=uxb_works!$B$120,3,4)))) ->  | AL61: =IF(AK61="","",INDEX(tblIndiSets!$A$227:$A$230,AK61)) ->  | AO61: =IF(AM61="","",IF(AM61<=uxb_works!$B$122,1,IF(AM61<=uxb_works!$B$121,2,IF(AM61<=uxb_works!$B$120,3,4)))) ->  | AP61: =IF(AO61="","",INDEX(tblIndiSets!$A$227:$A$230,AO61)) -> 
A62: =IF(ISEVEN(tblIndicators!C42),1,2) -> 1 | B62: =tblIndiSets!B55 -> 41 | C62: =tblIndiSets!D55 -> 2 | D62: =tblCategories!AN45 -> 0 | E62: =tblIndiSets!E55 -> 6.5) Safety | H62: 100 | I62: =1 | J62: 3 | K62: 100 | L62: =1 | M62: 3 | N62: 50 | O62: =4 | P62: 2 | S62: 0 | V62: 0 | Y62: 0 | AB62: =IF(ISNA(AA62),0,IF(uxb_works!$B$32=1,IF(ISEVEN(LEFT(TRIM(AD62),1)),2,1),INDEX($C$22:$C$62,AA62))) -> 0 | AC62: 0 | AG62: =IF(AE62="","",IF(AE62<=uxb_works!$B$122,1,IF(AE62<=uxb_works!$B$121,2,IF(AE62<=uxb_works!$B$120,3,4)))) ->  | AH62: =IF(AG62="","",INDEX(tblIndiSets!$A$227:$A$230,AG62)) ->  | AK62: =IF(AI62="","",IF(AI62<=uxb_works!$B$122,1,IF(AI62<=uxb_works!$B$121,2,IF(AI62<=uxb_works!$B$120,3,4)))) ->  | AL62: =IF(AK62="","",INDEX(tblIndiSets!$A$227:$A$230,AK62)) ->  | AO62: =IF(AM62="","",IF(AM62<=uxb_works!$B$122,1,IF(AM62<=uxb_works!$B$121,2,IF(AM62<=uxb_works!$B$120,3,4)))) ->  | AP62: =IF(AO62="","",INDEX(tblIndiSets!$A$227:$A$230,AO62)) -> 

Sheet iScatter (hidden)
A1: INDI_X | B1: =uxb_works!D35 -> 1 | C1: =INDEX(tblIndicators!$F$2:$F$72,B1) -> OVERALL | D1: =uxb_works!B35 -> 1 | E1: =uxb_works!E35 -> 24 | F1: =CHOOSE(J1+1,uxb_works!F35,H1) -> OVERVIEW | G1: =uxb_works!G35 -> OVERVIEW | H1: =uxb_works!K35 ->  | J1: =B7 -> 0
A2: INDI_Y | B2: =uxb_works!D36 -> 2 | C2: =INDEX(tblIndicators!$F$2:$F$72,B2) -> OVERALL | D2: =uxb_works!B36 -> 2 | E2: =uxb_works!E36 -> 24 | F2: =INDEX(OFFSET(lu_Scatter_Y,0,2),D2) -> US$/capita | G2: =INDEX(lu_Scatter_Y,D2) -> City's GDP per capita (US$/capita) | H2: =uxb_works!K36 -> 0 | J2: =C7 -> 0
A3: Country_HIGHLIGHT_ID | B3: =uxb_works!B7 -> 3
A4: SHOW_LABELS | B4: =uxb_works!B38 -> FALSE
A5: SHOW_OUTLIERS | B5: =uxb_works!B39 -> FALSE
B6: X | C6: Y | M6: CountryHighlight
A7: iSbACKGROUND | B7: =INDEX(tblIndicators!$B$2:$B$42,B1) -> 0 | C7: =INDEX(tblIndicators!$B$2:$B$42,B2) -> 0 | N7: CountryID | O7: Label | P7: X | Q7: Y
A8: TITLE | N8: =B3 -> 3 | O8: =IF($B$3=0,"<none>",INDEX(LuCountry,$B$3)) -> Melaka | P8: =IF($B$3=0,NA(),INDEX(G19:G23,$B$3)) -> 58.51851852 | Q8: =IF($B$3=0,NA(),INDEX(H19:H23,$B$3)) -> 9507
A9: X-LABEL | B9: =CHOOSE(J1+1,F1,G1) -> OVERVIEW
A10: Y-LABEL | B10: =G2 -> City's GDP per capita (US$/capita) | M10: Max Outlier
M11: Target | N11: CountryID | O11: Label | P11: X | Q11: Y
A12: SLOPE | B12: =SLOPE(H19:H23,G19:G23) -> 1382.38744 | M12: =MAX(K19:K23) -> 7396.020934 | N12: =IF(B15,IF($B$5,MATCH(M12,K19:K23,0),0),0) -> 0 | O12: =IF(AND($B$15,$B$5,N12<>N8),INDEX(B19:B23,$N12),NA()) ->  | P12: =IF(AND($B$15,$B$5,N12<>N8),INDEX(G19:G23,$N12),NA()) ->  | Q12: =IF(AND($B$15,$B$5,N12<>N8),INDEX(H19:H23,$N12),NA()) -> 
A13: INTERCEPT | B13: =INTERCEPT(H19:H23,G19:G23) -> -78643.06031
A14: CORREL | B14: =CORREL(G19:G23,H19:H23) -> 0.9262439237 | C14: =IF(ISERROR(iScatter!B14),"n/a",ROUND(iScatter!B14,2)) -> 0.93 | M14: Min Outlier
A15: ERROR CORREL | B15: =IF(ISERROR(B14),FALSE,TRUE) -> TRUE | D15: =IF($C15=0,NA(),INDEX(aScores,$B$1,$A15)) ->  | E15: =IF($C15=0,NA(),INDEX(aScores,$B$2,$A15)) ->  | M15: Target | N15: CountryID | O15: Label | P15: X | Q15: Y
M16: =MIN(K19:K23) -> -10694.05582 | N16: =IF(B15,IF($B$5,MATCH(M16,K19:K23,0),0),0) -> 0 | O16: =IF(AND($B$15,$B$5,N16<>N8),INDEX(B19:B23,$N16),NA()) ->  | P16: =IF(AND($B$5,$B$15,N16<>N8),INDEX(G19:G23,$N16),NA()) ->  | Q16: =IF(AND($B$5,$B$15,N16<>N8),INDEX(H19:H23,$N16),NA()) -> 
D17: Raw data | F17: Allowable? | G17: Don't allow blanks or errors | J17: Anticipated | S17: Labels | W17: Base (unhighlighted) | Z17: Highlighted
A18: Country_ID | B18: Country | C18: STATUS | D18: X | E18: Y | G18: X | H18: Y | J18: Y | K18: Diff | S18: Include? | T18: X | U18: Y | W18: X | X18: Y | Z18: X | AA18: Y
A19: 1 | B19: =tblTerritories!C3 -> Izmir | C19: =IF(tblTerritories!F3="",0,tblTerritories!F3) -> 1 | D19: =IF($C19=0,NA(),CHOOSE($B$7+1,INDEX(aScores,$B$1,$A19),INDEX(aData,$B$1,$A19))) -> 71.2962963 | E19: =IF($C19=0,NA(),INDEX(aBG_Data,$B$2,$A19)) -> 14257 | F19: =AND(ISNUMBER(D19),ISNUMBER(E19)) -> TRUE | G19: =IF($F19,D19,"") -> 71.2962963 | H19: =IF($F19,E19,"") -> 14257 | J19: =IF(G19="","",(G19*$B$12)+$B$13) -> 19916.04419 | K19: =IF(J19="","",H19-J19) -> -5659.044194 | S19: =IF(NOT($B$4),0,IF(OR(A19=$N$8,A19=$N$12,A19=$N$16),0,IF(AND(C19<3,F19),1,0))) -> 0 | T19: =IF($S19=0,NA(),G19) ->  | W19: =IF(AND($C19>0,$F19),G19,NA()) -> 71.2962963 | X19: 14257 | Z19: =IF(AND($C19=2,$F19),G19,NA()) -> 
A20: =1+A19 -> 2 | B20: =tblTerritories!C4 -> Lisbon | C20: =IF(tblTerritories!F4="",0,tblTerritories!F4) -> 1 | D20: 76.48148148 | E20: =IF($C20=0,NA(),INDEX(aBG_Data,$B$2,$A20)) -> 34480 | F20: =AND(ISNUMBER(D20),ISNUMBER(E20)) -> TRUE | G20: =IF($F20,D20,"") -> 76.48148148 | H20: 34480 | J20: =IF(G20="","",(G20*$B$12)+$B$13) -> 27083.97907 | K20: =IF(J20="","",H20-J20) -> 7396.020934 | S20: =IF(NOT($B$4),0,IF(OR(A20=$N$8,A20=$N$12,A20=$N$16),0,IF(AND(C20<3,F20),1,0))) -> 0 | W20: 76.48148148 | X20: 34480
A21: =1+A20 -> 3 | B21: =tblTerritories!C5 -> Melaka | C21: =IF(tblTerritories!F5="",0,tblTerritories!F5) -> 3 | D21: 58.51851852 | E21: =IF($C21=0,NA(),INDEX(aBG_Data,$B$2,$A21)) -> 9507 | F21: TRUE | G21: 58.51851852 | H21: 9507 | J21: 2252.204686 | K21: 7254.795314 | S21: =IF(NOT($B$4),0,IF(OR(A21=$N$8,A21=$N$12,A21=$N$16),0,IF(AND(C21<3,F21),1,0))) -> 0 | W21: 58.51851852 | X21: 9507
A22: 4 | B22: =tblTerritories!C6 -> Recife | C22: =IF(tblTerritories!F6="",0,tblTerritories!F6) -> 1 | D22: 70.37037037 | E22: =IF($C22=0,NA(),INDEX(aBG_Data,$B$2,$A22)) -> 7942 | F22: TRUE | G22: 70.37037037 | H22: 7942 | J22: 18636.05582 | K22: -10694.05582 | S22: =IF(NOT($B$4),0,IF(OR(A22=$N$8,A22=$N$12,A22=$N$16),0,IF(AND(C22<3,F22),1,0))) -> 0 | W22: 70.37037037 | X22: 7942
A23: 5 | B23: =tblTerritories!C7 -> Singapore | C23: =IF(tblTerritories!F7="",0,tblTerritories!F7) -> 1 | D23: 97.40740741 | E23: =IF($C23=0,NA(),INDEX(aBG_Data,$B$2,$A23)) -> 57714 | F23: TRUE | G23: 97.40740741 | H23: 57714 | J23: 56011.71623 | K23: 1702.283769 | S23: =IF(NOT($B$4),0,IF(OR(A23=$N$8,A23=$N$12,A23=$N$16),0,IF(AND(C23<3,F23),1,0))) -> 0 | W23: 97.40740741 | X23: 57714

Sheet Weights (hidden)
A1: =uxb_works!B92 -> Global Platform for Sustainable Cities | BA1: 1 | BB1: 9
D6: =uxb_works!$C$5 -> The active weight profile has been changed from it's default setting | F6: =uxb_works!C5 -> The active weight profile has been changed from it's default setting
F12: DOMAINS | H12: Weight %
C13: =iWeights1!C13 -> GIUP | D13: =iWeights1!D13 -> 2 | E13: =iWeights1!E13 -> 1 | F13: =REPT(" ",E13)&iWeights1!F13 -> 1) GOVERNANCE AND INTEGRATED URBAN PLANNING | G13: 1 | H13: =INDEX(tblIndicators!AP$2:AP$42,D13) -> 0.1666666667 | J13: =REPT("|",H13*50) -> ||||||||
C14: =iWeights1!C14 -> FIFU | D14: =iWeights1!D14 -> 12 | E14: =iWeights1!E14 -> 1 | F14: =REPT(" ",E14)&iWeights1!F14 -> 2) FISCAL SUSTAINABILITY | G14: 1 | H14: =INDEX(tblIndicators!AP$2:AP$42,D14) -> 0.1666666667 | J14: =REPT("|",H14*50) -> ||||||||
C15: =iWeights1!C15 -> UREC | D15: =iWeights1!D15 -> 18 | E15: =iWeights1!E15 -> 1 | F15: =REPT(" ",E15)&iWeights1!F15 -> 3) URBAN ECONOMIES | G15: 1 | H15: =INDEX(tblIndicators!AP$2:AP$42,D15) -> 0.1666666667 | J15: ||||||||
C16: =iWeights1!C16 -> NERE | D16: =iWeights1!D16 -> 24 | E16: =iWeights1!E16 -> 1 | F16: =REPT(" ",E16)&iWeights1!F16 -> 4) NATURAL ENVIRONMENT AND RESOURCES | G16: 1 | H16: =INDEX(tblIndicators!AP$2:AP$42,D16) -> 0.1666666667 | J16: ||||||||
C17: =iWeights1!C17 -> CLAR | D17: =iWeights1!D17 -> 30 | E17: =iWeights1!E17 -> 1 | F17: =REPT(" ",E17)&iWeights1!F17 -> 5) CLIMATE ACTION AND RESILIENCE | G17: 1 | H17: =INDEX(tblIndicators!AP$2:AP$42,D17) -> 0.1666666667 | J17: ||||||||
C18: =iWeights1!C18 -> INQL | D18: =iWeights1!D18 -> 36 | E18: =iWeights1!E18 -> 1 | F18: =REPT(" ",E18)&iWeights1!F18 -> 6) INCLUSIVITY AND QUALITY OF LIFE | G18: 1 | H18: =INDEX(tblIndicators!AP$2:AP$42,D18) -> 0.1666666667 | J18: ||||||||
F20: MAIN CATEGORIES | H20: Weight %
C21: =iWeights1!C21 -> GIUP | D21: =iWeights1!D21 -> 2 | E21: =iWeights1!E21 -> 1 | F21: =REPT(" ",E21)&iWeights1!F21 -> 1) GOVERNANCE AND INTEGRATED URBAN PLANNING
C22: =iWeights1!C22 -> GIUP1_1 | D22: =iWeights1!D22 -> 3 | E22: =iWeights1!E22 -> 2 | F22: =REPT(" ",E22)&iWeights1!F22 -> 1.1) Vision and Long-term Strategic Planning | G22: 1 | H22: =INDEX(tblIndicators!AP$2:AP$42,D22) -> 0.1111111111 | J22: =REPT("|",H22*50) -> |||||
C23: =iWeights1!C23 -> GIUP1_2 | D23: =iWeights1!D23 -> 4 | E23: =iWeights1!E23 -> 2 | F23: =REPT(" ",E23)&iWeights1!F23 -> 1.2) Stakeholder participation | G23: 1 | H23: =INDEX(tblIndicators!AP$2:AP$42,D23) -> 0.1111111111 | J23: =REPT("|",H23*50) -> |||||
C24: =iWeights1!C24 -> GIUP1_3 | D24: =iWeights1!D24 -> 5 | E24: =iWeights1!E24 -> 2 | F24: =REPT(" ",E24)&iWeights1!F24 -> 1.3) Data Management | G24: 1 | H24: =INDEX(tblIndicators!AP$2:AP$42,D24) -> 0.1111111111 | J24: |||||
C25: =iWeights1!C25 -> GIUP1_4 | D25: =iWeights1!D25 -> 6 | E25: =iWeights1!E25 -> 2 | F25: =REPT(" ",E25)&iWeights1!F25 -> 1.4) Trend Analyses | G25: 1 | H25: =INDEX(tblIndicators!AP$2:AP$42,D25) -> 0.1111111111 | J25: |||||
C26: =iWeights1!C26 -> GIUP1_5 | D26: =iWeights1!D26 -> 7 | E26: =iWeights1!E26 -> 2 | F26: =REPT(" ",E26)&iWeights1!F26 -> 1.5) Land Use and Zoning | G26: 1 | H26: =INDEX(tblIndicators!AP$2:AP$42,D26) -> 0.1111111111 | J26: |||||
C27: =iWeights1!C27 -> GIUP1_6 | D27: =iWeights1!D27 -> 8 | E27: =iWeights1!E27 -> 2 | F27: =REPT(" ",E27)&iWeights1!F27 -> 1.6) Urban Growth Patterns | G27: 1 | H27: =INDEX(tblIndicators!AP$2:AP$42,D27) -> 0.1111111111 | J27: |||||
C28: =iWeights1!C28 -> GIUP1_7 | D28: =iWeights1!D28 -> 9 | E28: =iWeights1!E28 -> 2 | F28: =REPT(" ",E28)&iWeights1!F28 -> 1.7) Informal Settlements | G28: 1 | H28: =INDEX(tblIndicators!AP$2:AP$42,D28) -> 0.1111111111 | J28: |||||
C29: =iWeights1!C29 -> GIUP1_8 | D29: =iWeights1!D29 -> 10 | E29: =iWeights1!E29 -> 2 | F29: =REPT(" ",E29)&iWeights1!F29 -> 1.8) Transport and Mobility Integrated with Land Use | G29: 1 | H29: =INDEX(tblIndicators!AP$2:AP$42,D29) -> 0.1111111111 | J29: |||||
C30: =iWeights1!C30 -> GIUP1_9 | D30: =iWeights1!D30 -> 11 | E30: =iWeights1!E30 -> 2 | F30: =REPT(" ",E30)&iWeights1!F30 -> 1.9) Cultural Heritage | G30: 1 | H30: =INDEX(tblIndicators!AP$2:AP$42,D30) -> 0.1111111111 | J30: |||||
C31: =iWeights1!C31 -> FIFU | D31: =iWeights1!D31 -> 12 | E31: =iWeights1!E31 -> 1 | F31: =REPT(" ",E31)&iWeights1!F31 -> 2) FISCAL SUSTAINABILITY
C32: =iWeights1!C32 -> FIFU2_1 | D32: =iWeights1!D32 -> 13 | E32: =iWeights1!E32 -> 2 | F32: =REPT(" ",E32)&iWeights1!F32 -> 2.1) Accountability and Transparency | G32: 1 | H32: =INDEX(tblIndicators!AP$2:AP$42,D32) -> 0.2 | J32: ||||||||||
C33: =iWeights1!C33 -> FIFU2_2 | D33: =iWeights1!D33 -> 14 | E33: =iWeights1!E33 -> 2 | F33: =REPT(" ",E33)&iWeights1!F33 -> 2.2) Creditworthiness | G33: 1 | H33: =INDEX(tblIndicators!AP$2:AP$42,D33) -> 0.2 | J33: ||||||||||
C34: =iWeights1!C34 -> FIFU2_3 | D34: =iWeights1!D34 -> 15 | E34: =iWeights1!E34 -> 2 | F34: =REPT(" ",E34)&iWeights1!F34 -> 2.3) Revenue and Financial Autonomy | G34: 1 | H34: =INDEX(tblIndicators!AP$2:AP$42,D34) -> 0.2 | J34: ||||||||||
C35: =iWeights1!C35 -> FIFU2_4 | D35: =iWeights1!D35 -> 16 | E35: =iWeights1!E35 -> 2 | F35: =REPT(" ",E35)&iWeights1!F35 -> 2.4) Expenditure Management | G35: 1 | H35: =INDEX(tblIndicators!AP$2:AP$42,D35) -> 0.2 | J35: ||||||||||
C36: =iWeights1!C36 -> FIFU2_5 | D36: =iWeights1!D36 -> 17 | E36: =iWeights1!E36 -> 2 | F36: =REPT(" ",E36)&iWeights1!F36 -> 2.5) Management of Debt and Other Obligations | G36: 1 | H36: =INDEX(tblIndicators!AP$2:AP$42,D36) -> 0.2 | J36: ||||||||||
C37: =iWeights1!C37 -> UREC | D37: =iWeights1!D37 -> 18 | E37: =iWeights1!E37 -> 1 | F37: =REPT(" ",E37)&iWeights1!F37 -> 3) URBAN ECONOMIES
C38: =iWeights1!C38 -> UREC3_1 | D38: =iWeights1!D38 -> 19 | E38: =iWeights1!E38 -> 2 | F38: =REPT(" ",E38)&iWeights1!F38 -> 3.1) Economic Performance | G38: 1 | H38: =INDEX(tblIndicators!AP$2:AP$42,D38) -> 0.2 | J38: ||||||||||
C39: =iWeights1!C39 -> UREC3_2 | D39: =iWeights1!D39 -> 20 | E39: =iWeights1!E39 -> 2 | F39: =REPT(" ",E39)&iWeights1!F39 -> 3.2) Business Climate, Innovation, and Entrepreneurship | G39: 1 | H39: =INDEX(tblIndicators!AP$2:AP$42,D39) -> 0.2 | J39: ||||||||||
C40: =iWeights1!C40 -> UREC3_3 | D40: =iWeights1!D40 -> 21 | E40: =iWeights1!E40 -> 2 | F40: =REPT(" ",E40)&iWeights1!F40 -> 3.3) Labor Force | G40: 1 | H40: =INDEX(tblIndicators!AP$2:AP$42,D40) -> 0.2 | J40: ||||||||||
C41: =iWeights1!C41 -> UREC3_4 | D41: =iWeights1!D41 -> 22 | E41: =iWeights1!E41 -> 2 | F41: =REPT(" ",E41)&iWeights1!F41 -> 3.4) Livelihood Opportunities | G41: 1 | H41: =INDEX(tblIndicators!AP$2:AP$42,D41) -> 0.2 | J41: ||||||||||
C42: =iWeights1!C42 -> UREC3_5 | D42: =iWeights1!D42 -> 23 | E42: =iWeights1!E42 -> 2 | F42: =REPT(" ",E42)&iWeights1!F42 -> 3.5) Income Equality and Shared Prosperity | G42: 1 | H42: =INDEX(tblIndicators!AP$2:AP$42,D42) -> 0.2 | J42: ||||||||||
C43: =iWeights1!C43 -> NERE | D43: =iWeights1!D43 -> 24 | E43: =iWeights1!E43 -> 1 | F43: =REPT(" ",E43)&iWeights1!F43 -> 4) NATURAL ENVIRONMENT AND RESOURCES
C44: =iWeights1!C44 -> NERE4_1 | D44: =iWeights1!D44 -> 25 | E44: =iWeights1!E44 -> 2 | F44: =REPT(" ",E44)&iWeights1!F44 -> 4.1) Ecosystems and Biodiversity | G44: 1 | H44: =INDEX(tblIndicators!AP$2:AP$42,D44) -> 0.2 | J44: ||||||||||
C45: =iWeights1!C45 -> NERE4_2 | D45: =iWeights1!D45 -> 26 | E45: =iWeights1!E45 -> 2 | F45: =REPT(" ",E45)&iWeights1!F45 -> 4.2) Air Quality | G45: 1 | H45: =INDEX(tblIndicators!AP$2:AP$42,D45) -> 0.2 | J45: ||||||||||
C46: =iWeights1!C46 -> NERE4_3 | D46: =iWeights1!D46 -> 27 | E46: =iWeights1!E46 -> 2 | F46: =REPT(" ",E46)&iWeights1!F46 -> 4.3) Water Resources Management | G46: 1 | H46: =INDEX(tblIndicators!AP$2:AP$42,D46) -> 0.2 | J46: ||||||||||
C47: =iWeights1!C47 -> NERE4_4 | D47: =iWeights1!D47 -> 28 | E47: =iWeights1!E47 -> 2 | F47: =REPT(" ",E47)&iWeights1!F47 -> 4.4) Solid Waste Management | G47: 1 | H47: =INDEX(tblIndicators!AP$2:AP$42,D47) -> 0.2 | J47: ||||||||||
C48: =iWeights1!C48 -> NERE4_5 | D48: =iWeights1!D48 -> 29 | E48: =iWeights1!E48 -> 2 | F48: =REPT(" ",E48)&iWeights1!F48 -> 4.5) Consumption and Production Patterns | G48: 1 | H48: =INDEX(tblIndicators!AP$2:AP$42,D48) -> 0.2 | J48: ||||||||||
C49: =iWeights1!C49 -> CLAR | D49: =iWeights1!D49 -> 30 | E49: =iWeights1!E49 -> 1 | F49: =REPT(" ",E49)&iWeights1!F49 -> 5) CLIMATE ACTION AND RESILIENCE
C50: =iWeights1!C50 -> CLAR5_1 | D50: =iWeights1!D50 -> 31 | E50: =iWeights1!E50 -> 2 | F50: =REPT(" ",E50)&iWeights1!F50 -> 5.1) Greenhouse gas inventory | G50: 1 | H50: =INDEX(tblIndicators!AP$2:AP$42,D50) -> 0.2 | J50: ||||||||||
C51: =iWeights1!C51 -> CLAR5_2 | D51: =iWeights1!D51 -> 32 | E51: =iWeights1!E51 -> 2 | F51: =REPT(" ",E51)&iWeights1!F51 -> 5.2) Energy efficiency | G51: 1 | H51: =INDEX(tblIndicators!AP$2:AP$42,D51) -> 0.2 | J51: ||||||||||
C52: =iWeights1!C52 -> CLAR5_3 | D52: =iWeights1!D52 -> 33 | E52: =iWeights1!E52 -> 2 | F52: =REPT(" ",E52)&iWeights1!F52 -> 5.3) Clean energy | G52: 1 | H52: =INDEX(tblIndicators!AP$2:AP$42,D52) -> 0.2 | J52: ||||||||||
C53: =iWeights1!C53 -> CLAR5_4 | D53: =iWeights1!D53 -> 34 | E53: =iWeights1!E53 -> 2 | F53: =REPT(" ",E53)&iWeights1!F53 -> 5.4) Climate change adaptation | G53: 1 | H53: =INDEX(tblIndicators!AP$2:AP$42,D53) -> 0.2 | J53: ||||||||||
C54: =iWeights1!C54 -> CLAR5_5 | D54: =iWeights1!D54 -> 35 | E54: =iWeights1!E54 -> 2 | F54: =REPT(" ",E54)&iWeights1!F54 -> 5.5) Disaster risk reduction | G54: 1 | H54: =INDEX(tblIndicators!AP$2:AP$42,D54) -> 0.2 | J54: ||||||||||
C55: =iWeights1!C55 -> INQL | D55: =iWeights1!D55 -> 36 | E55: =iWeights1!E55 -> 1 | F55: =REPT(" ",E55)&iWeights1!F55 -> 6) INCLUSIVITY AND QUALITY OF LIFE
C56: =iWeights1!C56 -> INQL6_1 | D56: =iWeights1!D56 -> 37 | E56: =iWeights1!E56 -> 2 | F56: =REPT(" ",E56)&iWeights1!F56 -> 6.1) Housing | G56: 1 | H56: =INDEX(tblIndicators!AP$2:AP$42,D56) -> 0.2 | J56: ||||||||||
C57: =iWeights1!C57 -> INQL6_2 | D57: =iWeights1!D57 -> 38 | E57: =iWeights1!E57 -> 2 | F57: =REPT(" ",E57)&iWeights1!F57 -> 6.2) Poverty Reduction, Hunger Reduction, and Food Security | G57: 1 | H57: =INDEX(tblIndicators!AP$2:AP$42,D57) -> 0.2 | J57: ||||||||||
C58: =iWeights1!C58 -> INQL6_3 | D58: =iWeights1!D58 -> 39 | E58: =iWeights1!E58 -> 2 | F58: =REPT(" ",E58)&iWeights1!F58 -> 6.3) Drinking Water and Sanitation | G58: 1 | H58: =INDEX(tblIndicators!AP$2:AP$42,D58) -> 0.2 | J58: ||||||||||
C59: =iWeights1!C59 -> INQL6_4 | D59: =iWeights1!D59 -> 40 | E59: =iWeights1!E59 -> 2 | F59: =REPT(" ",E59)&iWeights1!F59 -> 6.4) Health and Well-Being | G59: 1 | H59: =INDEX(tblIndicators!AP$2:AP$42,D59) -> 0.2 | J59: ||||||||||
C60: =iWeights1!C60 -> INQL6_5 | D60: =iWeights1!D60 -> 41 | E60: =iWeights1!E60 -> 2 | F60: =REPT(" ",E60)&iWeights1!F60 -> 6.5) Safety | G60: 1 | H60: =INDEX(tblIndicators!AP$2:AP$42,D60) -> 0.2 | J60: ||||||||||

Sheet tblIndiSets (hidden)
Y1: 1 | Z1: DropDown Menu | AI1: Indi_Select_Region_Compare | AL1: =uxb_works!B167 -> 3 | AM1: =AL1+1 -> 4 | AT1: Leaves out Domain names in list
A2: CATEGORIES | T2: DO NOT DELETE | U2: DO NOT DELETE | V2: DO NOT DELETE | Z2: 1 | AA2: =COUNT(AA4:AA57) -> 41
Y3: =INDEX($AF$3:$AG$55,AF3+1,$Y$1) -> 0 | AF3: 0 | AG3: 0 | AI3: 0 | AK3: =COUNT(AK4:AK55) -> 1 | AL3: Long | AN3: Short | AS3: 1 | AT3: 2 | AU3: 3 | AV3: 4 | AW3: 5
Q4: OVERALL | R4: OVERALL | S4: OVERALL | T4: OVERALL | U4: OVERALL | V4: OVERALL | Y4: 1 | Z4: =IF(INDEX($Q$4:$V$57,Y4,$Z$2)="","",INDEX($Q$4:$V$57,Y4,$Z$2)) -> OVERALL | AA4: =IF(Z4="","",MATCH(Z4,tblIndicators!E$2:E$42,0)) -> 1 | AB4: =IF($AA4="","",INDEX(tblIndicators!AL$2:AL$42,$AA4)) -> OVERVIEW | AC4: =IF($AA4="","",INDEX(tblIndicators!AQ$2:AQ$42,$AA4)) -> 4 | AF4: =AF3+1 -> 1 | AG4: 1 | AI4: 1 | AJ4: =IF(OR(INDEX($AS$4:$AW$55,$AI4,$AM$1)=0,INDEX($AS$4:$AW$55,$AI4,$AM$1)=""),"",INDEX($AS$4:$AW$55,$AI4,$AM$1)) -> OVERALL | AK4: =MATCH(AJ4,tblIndicators!$E$2:$E$42,0) -> 1 | AL4: =REPT(" ",AM4)&IF($AK4="","",INDEX(tblIndicators!$AK$2:$AK$42,AK4)) -> OVERVIEW | AM4: =INDEX(tblIndicators!$G$2:$G$42,AK4) -> 0 | AN4: =REPT(" ",AM4)&IF($AK4="","",INDEX(tblIndicators!$AL$2:$AL$42,$AK4)) -> OVERVIEW | AO4: =TRIM(AN4) -> OVERVIEW | AP4: =IF(AO4<>"",LEFT(AO4,3),"") -> OVE | AS4: OVERALL | AT4: OVERALL | AU4: OVERALL | AV4: OVERALL | AW4: OVERALL
A5: OVERALL | B5: =IF(A5="","",MATCH(A5,tblIndicators!E$2:E$42,0)) -> 1 | C5: =IF($A5="","",INDEX(tblIndicators!AK$2:AK$42,$B5)) -> OVERVIEW | E5: =IF($A5="","",INDEX(tblIndicators!AL$2:AL$42,$B5)) -> OVERVIEW | Q5: GIUP | R5: GIUP | S5: FLAW | T5: FLAW1 | U5: FLAW1_1 | Y5: 2 | Z5: GIUP | AA5: =IF(Z5="","",MATCH(Z5,tblIndicators!E$2:E$42,0)) -> 2 | AB5: =IF($AA5="","",INDEX(tblIndicators!AL$2:AL$42,$AA5)) -> 1) GOVERNANCE AND INTEGRATED URBAN PLANNING | AC5: =IF($AA5="","",INDEX(tblIndicators!AQ$2:AQ$42,$AA5)) -> 4 | AF5: =AF4+1 -> 2 | AG5: 2 | AI5: 2 | AJ5: FLAW | AK5: =MATCH(AJ5,tblIndicators!$E$2:$E$42,0) ->  | AL5: =REPT(" ",AM5)&IF($AK5="","",INDEX(tblIndicators!$AK$2:$AK$42,AK5)) ->  | AM5: =INDEX(tblIndicators!$G$2:$G$42,AK5) ->  | AN5: =REPT(" ",AM5)&IF($AK5="","",INDEX(tblIndicators!$AL$2:$AL$42,$AK5)) ->  | AO5: =TRIM(AN5) ->  | AP5: =IF(AO5<>"",IF(uxb_works!$B$167=1,LEFT(AO5,1),LEFT(AO5,3))) ->  | AS5: =R5 -> GIUP | AT5: FLAW | AU5: FLAW | AV5: FLAW | AW5: FLAW
A6: =R5 -> GIUP | B6: =IF(A6="","",MATCH(A6,tblIndicators!E$2:E$42,0)) -> 2 | C6: =IF($A6="","",INDEX(tblIndicators!AK$2:AK$42,$B6)) -> 1) GOVERNANCE AND INTEGRATED URBAN PLANNING | E6: =IF($A6="","",INDEX(tblIndicators!AL$2:AL$42,$B6)) -> 1) GOVERNANCE AND INTEGRATED URBAN PLANNING | Q6: GIUP1_1 | R6: FIFU | S6: FLAW1 | T6: FLAW1_1 | U6: FLAW1_1_1 | Y6: 3 | Z6: GIUP1_1 | AA6: =IF(Z6="","",MATCH(Z6,tblIndicators!E$2:E$42,0)) -> 3 | AB6: =IF($AA6="","",INDEX(tblIndicators!AL$2:AL$42,$AA6)) -> 1.1) Vision and Long-term Strategic Planning | AC6: =IF($AA6="","",INDEX(tblIndicators!AQ$2:AQ$42,$AA6)) -> 3 | AF6: 3 | AG6: 3 | AI6: 3 | AJ6: FLAW1 | AK6: =MATCH(AJ6,tblIndicators!$E$2:$E$42,0) ->  | AL6: =REPT(" ",AM6)&IF($AK6="","",INDEX(tblIndicators!$AK$2:$AK$42,AK6)) ->  | AM6: =INDEX(tblIndicators!$G$2:$G$42,AK6) ->  | AN6: =REPT(" ",AM6)&IF($AK6="","",INDEX(tblIndicators!$AL$2:$AL$42,$AK6)) ->  | AP6: =IF(AO6<>"",IF(uxb_works!$B$167=1,LEFT(AO6,1),LEFT(AO6,3))) ->  | AS6: =#REF! ->  | AT6: FLAW1 | AU6: FLAW1 | AV6: FLAW1 | AW6: FLAW1
A7: =R6 -> FIFU | B7: =IF(A7="","",MATCH(A7,tblIndicators!E$2:E$42,0)) -> 12 | C7: =IF($A7="","",INDEX(tblIndicators!AK$2:AK$42,$B7)) -> 2) FISCAL SUSTAINABILITY | E7: =IF($A7="","",INDEX(tblIndicators!AL$2:AL$42,$B7)) -> 2) FISCAL SUSTAINABILITY | Q7: GIUP1_2 | R7: UREC | S7: FLAW2 | T7: FLAW1_2 | U7: FLAW1_2 | Y7: 4 | Z7: GIUP1_2 | AA7: =IF(Z7="","",MATCH(Z7,tblIndicators!E$2:E$42,0)) -> 4 | AB7: =IF($AA7="","",INDEX(tblIndicators!AL$2:AL$42,$AA7)) -> 1.2) Stakeholder participation | AC7: =IF($AA7="","",INDEX(tblIndicators!AQ$2:AQ$42,$AA7)) -> 3 | AF7: 4 | AG7: 4 | AI7: 4 | AJ7: FLAW1_1 | AK7: =MATCH(AJ7,tblIndicators!$E$2:$E$42,0) ->  | AL7: =REPT(" ",AM7)&IF($AK7="","",INDEX(tblIndicators!$AK$2:$AK$42,AK7)) ->  | AM7: =INDEX(tblIndicators!$G$2:$G$42,AK7) ->  | AN7: =REPT(" ",AM7)&IF($AK7="","",INDEX(tblIndicators!$AL$2:$AL$42,$AK7)) ->  | AP7: =IF(AO7<>"",IF(uxb_works!$B$167=1,LEFT(AO7,1),LEFT(AO7,3))) ->  | AS7: =#REF! ->  | AT7: FLAW2 | AU7: FLAW1_1 | AV7: FLAW1_1 | AW7: FLAW1_1
A8: UREC | B8: =IF(A8="","",MATCH(A8,tblIndicators!E$2:E$42,0)) -> 18 | C8: =IF($A8="","",INDEX(tblIndicators!AK$2:AK$42,$B8)) -> 3) URBAN ECONOMIES | E8: =IF($A8="","",INDEX(tblIndicators!AL$2:AL$42,$B8)) -> 3) URBAN ECONOMIES | Q8: GIUP1_3 | R8: NERE | S8: SUAG | T8: FLAW1_3 | U8: FLAW1_2_1 | Y8: 5 | Z8: GIUP1_3 | AA8: =IF(Z8="","",MATCH(Z8,tblIndicators!E$2:E$42,0)) -> 5 | AB8: =IF($AA8="","",INDEX(tblIndicators!AL$2:AL$42,$AA8)) -> 1.3) Data Management | AC8: =IF($AA8="","",INDEX(tblIndicators!AQ$2:AQ$42,$AA8)) -> 3 | AF8: 5 | AG8: 5 | AI8: 5 | AJ8: FLAW1_1_1 | AK8: =MATCH(AJ8,tblIndicators!$E$2:$E$42,0) ->  | AL8: =REPT(" ",AM8)&IF($AK8="","",INDEX(tblIndicators!$AK$2:$AK$42,AK8)) ->  | AM8: =INDEX(tblIndicators!$G$2:$G$42,AK8) ->  | AN8: =REPT(" ",AM8)&IF($AK8="","",INDEX(tblIndicators!$AL$2:$AL$42,$AK8)) ->  | AP8: =IF(AO8<>"",IF(uxb_works!$B$167=1,LEFT(AO8,1),LEFT(AO8,3))) ->  | AT8: SUAG | AU8: FLAW1_2 | AV8: FLAW1_1_1 | AW8: FLAW1_1_1
A9: NERE | B9: =IF(A9="","",MATCH(A9,tblIndicators!E$2:E$42,0)) -> 24 | C9: =IF($A9="","",INDEX(tblIndicators!AK$2:AK$42,$B9)) -> 4) NATURAL ENVIRONMENT AND RESOURCES | E9: =IF($A9="","",INDEX(tblIndicators!AL$2:AL$42,$B9)) -> 4) NATURAL ENVIRONMENT AND RESOURCES | Q9: GIUP1_4 | R9: CLAR | S9: SUAG3 | T9: FLAW1_4 | U9: FLAW1_3 | Y9: 6 | Z9: GIUP1_4 | AA9: =IF(Z9="","",MATCH(Z9,tblIndicators!E$2:E$42,0)) -> 6 | AB9: =IF($AA9="","",INDEX(tblIndicators!AL$2:AL$42,$AA9)) -> 1.4) Trend Analyses | AC9: =IF($AA9="","",INDEX(tblIndicators!AQ$2:AQ$42,$AA9)) -> 3 | AF9: 6 | AG9: 6 | AI9: 6 | AJ9: FLAW1_2 | AK9: =MATCH(AJ9,tblIndicators!$E$2:$E$42,0) ->  | AL9: =REPT(" ",AM9)&IF($AK9="","",INDEX(tblIndicators!$AK$2:$AK$42,AK9)) ->  | AM9: =INDEX(tblIndicators!$G$2:$G$42,AK9) ->  | AN9: =REPT(" ",AM9)&IF($AK9="","",INDEX(tblIndicators!$AL$2:$AL$42,$AK9)) ->  | AP9: =IF(AO9<>"",IF(uxb_works!$B$167=1,LEFT(AO9,1),LEFT(AO9,3))) ->  | AT9: SUAG3 | AU9: FLAW1_3 | AV9: FLAW1_2 | AW9: FLAW1_2
A10: CLAR | B10: =IF(A10="","",MATCH(A10,tblIndicators!E$2:E$42,0)) -> 30 | C10: =IF($A10="","",INDEX(tblIndicators!AK$2:AK$42,$B10)) -> 5) CLIMATE ACTION AND RESILIENCE | E10: =IF($A10="","",INDEX(tblIndicators!AL$2:AL$42,$B10)) -> 5) CLIMATE ACTION AND RESILIENCE | Q10: GIUP1_5 | R10: INQL | S10: SUAG4 | T10: FLAW2 | U10: FLAW1_3_1 | Y10: 7 | Z10: GIUP1_5 | AA10: =IF(Z10="","",MATCH(Z10,tblIndicators!E$2:E$42,0)) -> 7 | AB10: =IF($AA10="","",INDEX(tblIndicators!AL$2:AL$42,$AA10)) -> 1.5) Land Use and Zoning | AC10: =IF($AA10="","",INDEX(tblIndicators!AQ$2:AQ$42,$AA10)) -> 3 | AF10: 7 | AG10: 7 | AI10: 7 | AJ10: FLAW1_2_1 | AK10: =MATCH(AJ10,tblIndicators!$E$2:$E$42,0) ->  | AL10: =REPT(" ",AM10)&IF($AK10="","",INDEX(tblIndicators!$AK$2:$AK$42,AK10)) ->  | AM10: =INDEX(tblIndicators!$G$2:$G$42,AK10) ->  | AN10: =REPT(" ",AM10)&IF($AK10="","",INDEX(tblIndicators!$AL$2:$AL$42,$AK10)) ->  | AP10: =IF(AO10<>"",IF(uxb_works!$B$167=1,LEFT(AO10,1),LEFT(AO10,3))) ->  | AT10: SUAG4 | AU10: FLAW1_4 | AV10: FLAW1_2_1 | AW10: FLAW1_2_1
A11: INQL | B11: =IF(A11="","",MATCH(A11,tblIndicators!E$2:E$42,0)) -> 36 | C11: =IF($A11="","",INDEX(tblIndicators!AK$2:AK$42,$B11)) -> 6) INCLUSIVITY AND QUALITY OF LIFE | E11: =IF($A11="","",INDEX(tblIndicators!AL$2:AL$42,$B11)) -> 6) INCLUSIVITY AND QUALITY OF LIFE | Q11: GIUP1_6 | S11: SUAG5 | T11: FLAW2_1 | U11: FLAW1_4 | Y11: 8 | Z11: GIUP1_6 | AA11: =IF(Z11="","",MATCH(Z11,tblIndicators!E$2:E$42,0)) -> 8 | AB11: =IF($AA11="","",INDEX(tblIndicators!AL$2:AL$42,$AA11)) -> 1.6) Urban Growth Patterns | AC11: =IF($AA11="","",INDEX(tblIndicators!AQ$2:AQ$42,$AA11)) -> 3 | AF11: 8 | AG11: 10 | AI11: 8 | AJ11: FLAW1_3 | AK11: =MATCH(AJ11,tblIndicators!$E$2:$E$42,0) ->  | AL11: =REPT(" ",AM11)&IF($AK11="","",INDEX(tblIndicators!$AK$2:$AK$42,AK11)) ->  | AM11: =INDEX(tblIndicators!$G$2:$G$42,AK11) ->  | AN11: =REPT(" ",AM11)&IF($AK11="","",INDEX(tblIndicators!$AL$2:$AL$42,$AK11)) ->  | AP11: =IF(AO11<>"",IF(uxb_works!$B$167=1,LEFT(AO11,1),LEFT(AO11,3))) ->  | AT11: SUAG5 | AU11: FLAW2 | AV11: FLAW1_3 | AW11: FLAW1_2_1_1
Q12: GIUP1_7 | S12: NUCH | T12: FLAW2_2 | U12: FLAW1_4_1 | Y12: 9 | Z12: GIUP1_7 | AA12: =IF(Z12="","",MATCH(Z12,tblIndicators!E$2:E$42,0)) -> 9 | AB12: =IF($AA12="","",INDEX(tblIndicators!AL$2:AL$42,$AA12)) -> 1.7) Informal Settlements | AC12: =IF($AA12="","",INDEX(tblIndicators!AQ$2:AQ$42,$AA12)) -> 3 | AF12: 9 | AG12: 13 | AI12: 9 | AJ12: FLAW1_3_1 | AK12: =MATCH(AJ12,tblIndicators!$E$2:$E$42,0) ->  | AL12: =REPT(" ",AM12)&IF($AK12="","",INDEX(tblIndicators!$AK$2:$AK$42,AK12)) ->  | AM12: =INDEX(tblIndicators!$G$2:$G$42,AK12) ->  | AN12: =REPT(" ",AM12)&IF($AK12="","",INDEX(tblIndicators!$AL$2:$AL$42,$AK12)) ->  | AP12: =IF(AO12<>"",IF(uxb_works!$B$167=1,LEFT(AO12,1),LEFT(AO12,3))) ->  | AT12: NUCH | AU12: FLAW2_1 | AV12: FLAW1_3_1 | AW12: FLAW1_2_1_2
A13: =COUNT(B15:B55) -> 41 | Q13: GIUP1_8 | S13: NUCH6 | T13: SUAG3 | U13: FLAW2_1 | Y13: 10 | Z13: GIUP1_8 | AA13: =IF(Z13="","",MATCH(Z13,tblIndicators!E$2:E$42,0)) -> 10 | AB13: =IF($AA13="","",INDEX(tblIndicators!AL$2:AL$42,$AA13)) -> 1.8) Transport and Mobility Integrated with Land Use | AC13: =IF($AA13="","",INDEX(tblIndicators!AQ$2:AQ$42,$AA13)) -> 3 | AF13: 10 | AG13: 14 | AI13: 10 | AJ13: FLAW1_4 | AK13: =MATCH(AJ13,tblIndicators!$E$2:$E$42,0) ->  | AL13: =REPT(" ",AM13)&IF($AK13="","",INDEX(tblIndicators!$AK$2:$AK$42,AK13)) ->  | AM13: =INDEX(tblIndicators!$G$2:$G$42,AK13) ->  | AN13: =REPT(" ",AM13)&IF($AK13="","",INDEX(tblIndicators!$AL$2:$AL$42,$AK13)) ->  | AP13: =IF(AO13<>"",IF(uxb_works!$B$167=1,LEFT(AO13,1),LEFT(AO13,3))) ->  | AT13: NUCH6 | AU13: FLAW2_2 | AV13: FLAW1_4 | AW13: FLAW1_3
A14: DOMAINS + CATEGORIES | C14: <CLEAR> | E14: < CLEAR > | Q14: GIUP1_9 | S14: NUCH7 | T14: SUAG3_1 | U14: FLAW2_1_1 | Y14: 11 | Z14: GIUP1_9 | AA14: =IF(Z14="","",MATCH(Z14,tblIndicators!E$2:E$42,0)) -> 11 | AB14: =IF($AA14="","",INDEX(tblIndicators!AL$2:AL$42,$AA14)) -> 1.9) Cultural Heritage | AC14: =IF($AA14="","",INDEX(tblIndicators!AQ$2:AQ$42,$AA14)) -> 3 | AF14: 11 | AG14: 15 | AI14: 11 | AJ14: FLAW1_4_1 | AK14: =MATCH(AJ14,tblIndicators!$E$2:$E$42,0) ->  | AL14: =REPT(" ",AM14)&IF($AK14="","",INDEX(tblIndicators!$AK$2:$AK$42,AK14)) ->  | AM14: =INDEX(tblIndicators!$G$2:$G$42,AK14) ->  | AN14: =REPT(" ",AM14)&IF($AK14="","",INDEX(tblIndicators!$AL$2:$AL$42,$AK14)) ->  | AP14: =IF(AO14<>"",IF(uxb_works!$B$167=1,LEFT(AO14,1),LEFT(AO14,3))) ->  | AT14: NUCH7 | AU14: SUAG | AV14: FLAW1_4_1 | AW14: FLAW1_3_1
A15: =Q4 -> OVERALL | B15: =IF(A15="","",MATCH(A15,tblIndicators!$E$2:$E$42,0)) -> 1 | C15: =REPT(" ",D15)&IF($A15="","",INDEX(tblIndicators!$AK$2:$AK$42,$B15)) -> OVERVIEW | D15: =INDEX(tblIndicators!$G$2:$G$42,B15) -> 0 | E15: =REPT(" ",D15)&IF($A15="","",INDEX(tblIndicators!$AL$2:$AL$42,$B15)) -> OVERVIEW | F15: =TRIM(E15) -> OVERVIEW | Q15: FIFU | S15: NUCH8 | T15: SUAG3_2 | U15: FLAW2_2 | Y15: 12 | Z15: FIFU | AA15: =IF(Z15="","",MATCH(Z15,tblIndicators!E$2:E$42,0)) -> 12 | AB15: =IF($AA15="","",INDEX(tblIndicators!AL$2:AL$42,$AA15)) -> 2) FISCAL SUSTAINABILITY | AC15: =IF($AA15="","",INDEX(tblIndicators!AQ$2:AQ$42,$AA15)) -> 4 | AF15: 12 | AG15: 16 | AI15: 12 | AJ15: FLAW2 | AK15: =MATCH(AJ15,tblIndicators!$E$2:$E$42,0) ->  | AL15: =REPT(" ",AM15)&IF($AK15="","",INDEX(tblIndicators!$AK$2:$AK$42,AK15)) ->  | AM15: =INDEX(tblIndicators!$G$2:$G$42,AK15) ->  | AN15: =REPT(" ",AM15)&IF($AK15="","",INDEX(tblIndicators!$AL$2:$AL$42,$AK15)) ->  | AP15: =IF(AO15<>"",IF(uxb_works!$B$167=1,LEFT(AO15,1),LEFT(AO15,3))) ->  | AT15: NUCH8 | AU15: SUAG3 | AV15: FLAW2 | AW15: FLAW1_4
A16: =Q5 -> GIUP | B16: =IF(A16="","",MATCH(A16,tblIndicators!E$2:E$42,0)) -> 2 | C16: =REPT(" ",D16)&IF($A16="","",INDEX(tblIndicators!AK$2:AK$42,$B16)) -> 1) GOVERNANCE AND INTEGRATED URBAN PLANNING | D16: =INDEX(tblIndicators!$G$2:$G$42,B16) -> 1 | E16: =REPT(" ",D16)&IF($A16="","",INDEX(tblIndicators!AL$2:AL$42,$B16)) -> 1) GOVERNANCE AND INTEGRATED URBAN PLANNING | F16: =TRIM(E16) -> 1) GOVERNANCE AND INTEGRATED URBAN PLANNING | Q16: FIFU2_1 | T16: SUAG3_3 | U16: FLAW2_2_1 | Y16: 13 | Z16: FIFU2_1 | AA16: =IF(Z16="","",MATCH(Z16,tblIndicators!E$2:E$42,0)) -> 13 | AB16: =IF($AA16="","",INDEX(tblIndicators!AL$2:AL$42,$AA16)) -> 2.1) Accountability and Transparency | AC16: =IF($AA16="","",INDEX(tblIndicators!AQ$2:AQ$42,$AA16)) -> 3 | AF16: 13 | AG16: 18 | AI16: 13 | AJ16: FLAW2_1 | AK16: =MATCH(AJ16,tblIndicators!$E$2:$E$42,0) ->  | AL16: =REPT(" ",AM16)&IF($AK16="","",INDEX(tblIndicators!$AK$2:$AK$42,AK16)) ->  | AM16: =INDEX(tblIndicators!$G$2:$G$42,AK16) ->  | AN16: =REPT(" ",AM16)&IF($AK16="","",INDEX(tblIndicators!$AL$2:$AL$42,$AK16)) ->  | AP16: =IF(AO16<>"",IF(uxb_works!$B$167=1,LEFT(AO16,1),LEFT(AO16,3))) ->  | AU16: SUAG3_1 | AV16: FLAW2_1 | AW16: FLAW1_4_1
A17: GIUP1_1 | B17: =IF(A17="","",MATCH(A17,tblIndicators!E$2:E$42,0)) -> 3 | C17: =REPT(" ",D17)&IF($A17="","",INDEX(tblIndicators!AK$2:AK$42,$B17)) -> 1.1) Vision and Long-term Strategic Planning | D17: =INDEX(tblIndicators!$G$2:$G$42,B17) -> 2 | E17: =REPT(" ",D17)&IF($A17="","",INDEX(tblIndicators!AL$2:AL$42,$B17)) -> 1.1) Vision and Long-term Strategic Planning | F17: 1.1) Vision and Long-term Strategic Planning | Q17: FIFU2_2 | T17: SUAG3_4 | U17: SUAG3_1 | Y17: 14 | Z17: FIFU2_2 | AA17: =IF(Z17="","",MATCH(Z17,tblIndicators!E$2:E$42,0)) -> 14 | AB17: =IF($AA17="","",INDEX(tblIndicators!AL$2:AL$42,$AA17)) -> 2.2) Creditworthiness | AC17: =IF($AA17="","",INDEX(tblIndicators!AQ$2:AQ$42,$AA17)) -> 3 | AF17: 14 | AG17: 19 | AI17: 14 | AJ17: FLAW2_1_1 | AK17: =MATCH(AJ17,tblIndicators!$E$2:$E$42,0) ->  | AL17: =REPT(" ",AM17)&IF($AK17="","",INDEX(tblIndicators!$AK$2:$AK$42,AK17)) ->  | AM17: =INDEX(tblIndicators!$G$2:$G$42,AK17) ->  | AN17: =REPT(" ",AM17)&IF($AK17="","",INDEX(tblIndicators!$AL$2:$AL$42,$AK17)) ->  | AP17: =IF(AO17<>"",IF(uxb_works!$B$167=1,LEFT(AO17,1),LEFT(AO17,3))) ->  | AU17: SUAG3_2 | AV17: FLAW2_1_1 | AW17: FLAW2
A18: GIUP1_2 | B18: =IF(A18="","",MATCH(A18,tblIndicators!E$2:E$42,0)) -> 4 | C18: =REPT(" ",D18)&IF($A18="","",INDEX(tblIndicators!AK$2:AK$42,$B18)) -> 1.2) Stakeholder participation | D18: =INDEX(tblIndicators!$G$2:$G$42,B18) -> 2 | E18: =REPT(" ",D18)&IF($A18="","",INDEX(tblIndicators!AL$2:AL$42,$B18)) -> 1.2) Stakeholder participation | F18: 1.2) Stakeholder participation | Q18: FIFU2_3 | T18: SUAG3_5 | U18: SUAG3_1_1 | Y18: 15 | Z18: FIFU2_3 | AA18: =IF(Z18="","",MATCH(Z18,tblIndicators!E$2:E$42,0)) -> 15 | AB18: =IF($AA18="","",INDEX(tblIndicators!AL$2:AL$42,$AA18)) -> 2.3) Revenue and Financial Autonomy | AC18: =IF($AA18="","",INDEX(tblIndicators!AQ$2:AQ$42,$AA18)) -> 3 | AF18: 15 | AG18: 20 | AI18: 15 | AJ18: FLAW2_2 | AK18: =MATCH(AJ18,tblIndicators!$E$2:$E$42,0) ->  | AL18: =REPT(" ",AM18)&IF($AK18="","",INDEX(tblIndicators!$AK$2:$AK$42,AK18)) ->  | AM18: =INDEX(tblIndicators!$G$2:$G$42,AK18) ->  | AN18: =REPT(" ",AM18)&IF($AK18="","",INDEX(tblIndicators!$AL$2:$AL$42,$AK18)) ->  | AP18: =IF(AO18<>"",IF(uxb_works!$B$167=1,LEFT(AO18,1),LEFT(AO18,3))) ->  | AU18: SUAG3_3 | AV18: FLAW2_2 | AW18: FLAW2_1
A19: GIUP1_3 | B19: =IF(A19="","",MATCH(A19,tblIndicators!E$2:E$42,0)) -> 5 | C19: =REPT(" ",D19)&IF($A19="","",INDEX(tblIndicators!AK$2:AK$42,$B19)) -> 1.3) Data Management | D19: =INDEX(tblIndicators!$G$2:$G$42,B19) -> 2 | E19: =REPT(" ",D19)&IF($A19="","",INDEX(tblIndicators!AL$2:AL$42,$B19)) -> 1.3) Data Management | F19: 1.3) Data Management | Q19: FIFU2_4 | T19: SUAG3_6 | U19: SUAG3_2 | Y19: 16 | Z19: FIFU2_4 | AA19: =IF(Z19="","",MATCH(Z19,tblIndicators!E$2:E$42,0)) -> 16 | AB19: =IF($AA19="","",INDEX(tblIndicators!AL$2:AL$42,$AA19)) -> 2.4) Expenditure Management | AC19: =IF($AA19="","",INDEX(tblIndicators!AQ$2:AQ$42,$AA19)) -> 3 | AF19: 16 | AG19: 21 | AI19: 16 | AJ19: FLAW2_2_1 | AK19: =MATCH(AJ19,tblIndicators!$E$2:$E$42,0) ->  | AL19: =REPT(" ",AM19)&IF($AK19="","",INDEX(tblIndicators!$AK$2:$AK$42,AK19)) ->  | AM19: =INDEX(tblIndicators!$G$2:$G$42,AK19) ->  | AN19: =REPT(" ",AM19)&IF($AK19="","",INDEX(tblIndicators!$AL$2:$AL$42,$AK19)) ->  | AP19: =IF(AO19<>"",IF(uxb_works!$B$167=1,LEFT(AO19,1),LEFT(AO19,3))) ->  | AU19: SUAG3_4 | AV19: FLAW2_2_1 | AW19: FLAW2_1_1
A20: GIUP1_4 | B20: =IF(A20="","",MATCH(A20,tblIndicators!E$2:E$42,0)) -> 6 | C20: =REPT(" ",D20)&IF($A20="","",INDEX(tblIndicators!AK$2:AK$42,$B20)) -> 1.4) Trend Analyses | D20: =INDEX(tblIndicators!$G$2:$G$42,B20) -> 2 | E20: =REPT(" ",D20)&IF($A20="","",INDEX(tblIndicators!AL$2:AL$42,$B20)) -> 1.4) Trend Analyses | F20: 1.4) Trend Analyses | Q20: FIFU2_5 | T20: SUAG4 | U20: SUAG3_2_1 | Y20: 17 | Z20: FIFU2_5 | AA20: =IF(Z20="","",MATCH(Z20,tblIndicators!E$2:E$42,0)) -> 17 | AB20: =IF($AA20="","",INDEX(tblIndicators!AL$2:AL$42,$AA20)) -> 2.5) Management of Debt and Other Obligations | AC20: =IF($AA20="","",INDEX(tblIndicators!AQ$2:AQ$42,$AA20)) -> 3 | AF20: 17 | AG20: 22 | AI20: 17 | AJ20: SUAG | AK20: =MATCH(AJ20,tblIndicators!$E$2:$E$42,0) ->  | AL20: =REPT(" ",AM20)&IF($AK20="","",INDEX(tblIndicators!$AK$2:$AK$42,AK20)) ->  | AM20: =INDEX(tblIndicators!$G$2:$G$42,AK20) ->  | AN20: =REPT(" ",AM20)&IF($AK20="","",INDEX(tblIndicators!$AL$2:$AL$42,$AK20)) ->  | AP20: =IF(AO20<>"",IF(uxb_works!$B$167=1,LEFT(AO20,1),LEFT(AO20,3))) ->  | AU20: SUAG3_5 | AV20: SUAG | AW20: FLAW2_2
A21: GIUP1_5 | B21: =IF(A21="","",MATCH(A21,tblIndicators!E$2:E$42,0)) -> 7 | C21: =REPT(" ",D21)&IF($A21="","",INDEX(tblIndicators!AK$2:AK$42,$B21)) -> 1.5) Land Use and Zoning | D21: =INDEX(tblIndicators!$G$2:$G$42,B21) -> 2 | E21: =REPT(" ",D21)&IF($A21="","",INDEX(tblIndicators!AL$2:AL$42,$B21)) -> 1.5) Land Use and Zoning | F21: 1.5) Land Use and Zoning | Q21: UREC | T21: SUAG4_1 | U21: SUAG3_3 | Y21: 18 | Z21: UREC | AA21: =IF(Z21="","",MATCH(Z21,tblIndicators!E$2:E$42,0)) -> 18 | AB21: =IF($AA21="","",INDEX(tblIndicators!AL$2:AL$42,$AA21)) -> 3) URBAN ECONOMIES | AC21: =IF($AA21="","",INDEX(tblIndicators!AQ$2:AQ$42,$AA21)) -> 4 | AF21: 18 | AG21: 23 | AI21: 18 | AJ21: SUAG3 | AK21: =MATCH(AJ21,tblIndicators!$E$2:$E$42,0) ->  | AL21: =REPT(" ",AM21)&IF($AK21="","",INDEX(tblIndicators!$AK$2:$AK$42,AK21)) ->  | AM21: =INDEX(tblIndicators!$G$2:$G$42,AK21) ->  | AN21: =REPT(" ",AM21)&IF($AK21="","",INDEX(tblIndicators!$AL$2:$AL$42,$AK21)) ->  | AP21: =IF(AO21<>"",IF(uxb_works!$B$167=1,LEFT(AO21,1),LEFT(AO21,3))) ->  | AU21: SUAG3_6 | AV21: SUAG3 | AW21: FLAW2_2_1
A22: GIUP1_6 | B22: =IF(A22="","",MATCH(A22,tblIndicators!E$2:E$42,0)) -> 8 | C22: =REPT(" ",D22)&IF($A22="","",INDEX(tblIndicators!AK$2:AK$42,$B22)) -> 1.6) Urban Growth Patterns | D22: =INDEX(tblIndicators!$G$2:$G$42,B22) -> 2 | E22: =REPT(" ",D22)&IF($A22="","",INDEX(tblIndicators!AL$2:AL$42,$B22)) -> 1.6) Urban Growth Patterns | F22: 1.6) Urban Growth Patterns | Q22: UREC3_1 | T22: SUAG4_2 | U22: SUAG3_3_1 | Y22: 19 | Z22: UREC3_1 | AA22: =IF(Z22="","",MATCH(Z22,tblIndicators!E$2:E$42,0)) -> 19 | AB22: =IF($AA22="","",INDEX(tblIndicators!AL$2:AL$42,$AA22)) -> 3.1) Economic Performance | AC22: =IF($AA22="","",INDEX(tblIndicators!AQ$2:AQ$42,$AA22)) -> 3 | AF22: 19 | AG22: 24 | AI22: 19 | AJ22: SUAG3_1 | AK22: =MATCH(AJ22,tblIndicators!$E$2:$E$42,0) ->  | AL22: =REPT(" ",AM22)&IF($AK22="","",INDEX(tblIndicators!$AK$2:$AK$42,AK22)) ->  | AM22: =INDEX(tblIndicators!$G$2:$G$42,AK22) ->  | AN22: =REPT(" ",AM22)&IF($AK22="","",INDEX(tblIndicators!$AL$2:$AL$42,$AK22)) ->  | AP22: =IF(AO22<>"",IF(uxb_works!$B$167=1,LEFT(AO22,1),LEFT(AO22,3))) ->  | AU22: SUAG4 | AV22: SUAG3_1 | AW22: FLAW2_2_1_1
A23: GIUP1_7 | B23: =IF(A23="","",MATCH(A23,tblIndicators!E$2:E$42,0)) -> 9 | C23: =REPT(" ",D23)&IF($A23="","",INDEX(tblIndicators!AK$2:AK$42,$B23)) -> 1.7) Informal Settlements | D23: =INDEX(tblIndicators!$G$2:$G$42,B23) -> 2 | E23: =REPT(" ",D23)&IF($A23="","",INDEX(tblIndicators!AL$2:AL$42,$B23)) -> 1.7) Informal Settlements | F23: 1.7) Informal Settlements | Q23: UREC3_2 | T23: SUAG4_3 | U23: SUAG3_3_2 | Y23: 20 | Z23: UREC3_2 | AA23: =IF(Z23="","",MATCH(Z23,tblIndicators!E$2:E$42,0)) -> 20 | AB23: =IF($AA23="","",INDEX(tblIndicators!AL$2:AL$42,$AA23)) -> 3.2) Business Climate, Innovation, and Entrepreneurship | AC23: =IF($AA23="","",INDEX(tblIndicators!AQ$2:AQ$42,$AA23)) -> 3 | AF23: 20 | AG23: 25 | AI23: 20 | AJ23: SUAG3_1_1 | AK23: =MATCH(AJ23,tblIndicators!$E$2:$E$42,0) ->  | AL23: =REPT(" ",AM23)&IF($AK23="","",INDEX(tblIndicators!$AK$2:$AK$42,AK23)) ->  | AM23: =INDEX(tblIndicators!$G$2:$G$42,AK23) ->  | AN23: =REPT(" ",AM23)&IF($AK23="","",INDEX(tblIndicators!$AL$2:$AL$42,$AK23)) ->  | AP23: =IF(AO23<>"",IF(uxb_works!$B$167=1,LEFT(AO23,1),LEFT(AO23,3))) ->  | AU23: SUAG4_1 | AV23: SUAG3_1_1 | AW23: FLAW2_2_1_2
A24: GIUP1_8 | B24: =IF(A24="","",MATCH(A24,tblIndicators!E$2:E$42,0)) -> 10 | C24: =REPT(" ",D24)&IF($A24="","",INDEX(tblIndicators!AK$2:AK$42,$B24)) -> 1.8) Transport and Mobility Integrated with Land Use | D24: =INDEX(tblIndicators!$G$2:$G$42,B24) -> 2 | E24: =REPT(" ",D24)&IF($A24="","",INDEX(tblIndicators!AL$2:AL$42,$B24)) -> 1.8) Transport and Mobility Integrated with Land Use | F24: 1.8) Transport and Mobility Integrated with Land Use | Q24: UREC3_3 | T24: SUAG4_4 | U24: SUAG3_4 | Y24: 21 | Z24: UREC3_3 | AA24: =IF(Z24="","",MATCH(Z24,tblIndicators!E$2:E$42,0)) -> 21 | AB24: =IF($AA24="","",INDEX(tblIndicators!AL$2:AL$42,$AA24)) -> 3.3) Labor Force | AC24: =IF($AA24="","",INDEX(tblIndicators!AQ$2:AQ$42,$AA24)) -> 3 | AF24: 21 | AG24: 26 | AI24: 21 | AJ24: SUAG3_2 | AK24: =MATCH(AJ24,tblIndicators!$E$2:$E$42,0) ->  | AL24: =REPT(" ",AM24)&IF($AK24="","",INDEX(tblIndicators!$AK$2:$AK$42,AK24)) ->  | AM24: =INDEX(tblIndicators!$G$2:$G$42,AK24) ->  | AN24: =REPT(" ",AM24)&IF($AK24="","",INDEX(tblIndicators!$AL$2:$AL$42,$AK24)) ->  | AP24: =IF(AO24<>"",IF(uxb_works!$B$167=1,LEFT(AO24,1),LEFT(AO24,3))) ->  | AU24: SUAG4_2 | AV24: SUAG3_2 | AW24: FLAW2_2_1_3
A25: GIUP1_9 | B25: =IF(A25="","",MATCH(A25,tblIndicators!E$2:E$42,0)) -> 11 | C25: =REPT(" ",D25)&IF($A25="","",INDEX(tblIndicators!AK$2:AK$42,$B25)) -> 1.9) Cultural Heritage | D25: =INDEX(tblIndicators!$G$2:$G$42,B25) -> 2 | E25: =REPT(" ",D25)&IF($A25="","",INDEX(tblIndicators!AL$2:AL$42,$B25)) -> 1.9) Cultural Heritage | F25: 1.9) Cultural Heritage | Q25: UREC3_4 | T25: SUAG4_5 | U25: SUAG3_4_1 | Y25: 22 | Z25: UREC3_4 | AA25: =IF(Z25="","",MATCH(Z25,tblIndicators!E$2:E$42,0)) -> 22 | AB25: =IF($AA25="","",INDEX(tblIndicators!AL$2:AL$42,$AA25)) -> 3.4) Livelihood Opportunities | AC25: =IF($AA25="","",INDEX(tblIndicators!AQ$2:AQ$42,$AA25)) -> 3 | AF25: 22 | AG25: 27 | AI25: 22 | AJ25: SUAG3_2_1 | AK25: =MATCH(AJ25,tblIndicators!$E$2:$E$42,0) ->  | AL25: =REPT(" ",AM25)&IF($AK25="","",INDEX(tblIndicators!$AK$2:$AK$42,AK25)) ->  | AM25: =INDEX(tblIndicators!$G$2:$G$42,AK25) ->  | AN25: =REPT(" ",AM25)&IF($AK25="","",INDEX(tblIndicators!$AL$2:$AL$42,$AK25)) ->  | AP25: =IF(AO25<>"",IF(uxb_works!$B$167=1,LEFT(AO25,1),LEFT(AO25,3))) ->  | AU25: SUAG4_3 | AV25: SUAG3_2_1 | AW25: FLAW2_2_1_4
A26: FIFU | B26: =IF(A26="","",MATCH(A26,tblIndicators!E$2:E$42,0)) -> 12 | C26: =REPT(" ",D26)&IF($A26="","",INDEX(tblIndicators!AK$2:AK$42,$B26)) -> 2) FISCAL SUSTAINABILITY | D26: =INDEX(tblIndicators!$G$2:$G$42,B26) -> 1 | E26: =REPT(" ",D26)&IF($A26="","",INDEX(tblIndicators!AL$2:AL$42,$B26)) -> 2) FISCAL SUSTAINABILITY | F26: 2) FISCAL SUSTAINABILITY | Q26: UREC3_5 | T26: SUAG4_6 | U26: SUAG3_5 | Y26: 23 | Z26: UREC3_5 | AA26: =IF(Z26="","",MATCH(Z26,tblIndicators!E$2:E$42,0)) -> 23 | AB26: =IF($AA26="","",INDEX(tblIndicators!AL$2:AL$42,$AA26)) -> 3.5) Income Equality and Shared Prosperity | AC26: =IF($AA26="","",INDEX(tblIndicators!AQ$2:AQ$42,$AA26)) -> 3 | AF26: 23 | AG26: 28 | AI26: 23 | AJ26: SUAG3_3 | AK26: =MATCH(AJ26,tblIndicators!$E$2:$E$42,0) ->  | AL26: =REPT(" ",AM26)&IF($AK26="","",INDEX(tblIndicators!$AK$2:$AK$42,AK26)) ->  | AM26: =INDEX(tblIndicators!$G$2:$G$42,AK26) ->  | AN26: =REPT(" ",AM26)&IF($AK26="","",INDEX(tblIndicators!$AL$2:$AL$42,$AK26)) ->  | AP26: =IF(AO26<>"",IF(uxb_works!$B$167=1,LEFT(AO26,1),LEFT(AO26,3))) ->  | AU26: SUAG4_4 | AV26: SUAG3_3 | AW26: FLAW2_2_1_5
A27: FIFU2_1 | B27: =IF(A27="","",MATCH(A27,tblIndicators!E$2:E$42,0)) -> 13 | C27: =REPT(" ",D27)&IF($A27="","",INDEX(tblIndicators!AK$2:AK$42,$B27)) -> 2.1) Accountability and Transparency | D27: =INDEX(tblIndicators!$G$2:$G$42,B27) -> 2 | E27: =REPT(" ",D27)&IF($A27="","",INDEX(tblIndicators!AL$2:AL$42,$B27)) -> 2.1) Accountability and Transparency | F27: 2.1) Accountability and Transparency | Q27: NERE | T27: SUAG4_7 | U27: SUAG3_5_1 | Y27: 24 | Z27: NERE | AA27: =IF(Z27="","",MATCH(Z27,tblIndicators!E$2:E$42,0)) -> 24 | AB27: =IF($AA27="","",INDEX(tblIndicators!AL$2:AL$42,$AA27)) -> 4) NATURAL ENVIRONMENT AND RESOURCES | AC27: =IF($AA27="","",INDEX(tblIndicators!AQ$2:AQ$42,$AA27)) -> 4 | AF27: 24 | AG27: 29 | AI27: 24 | AJ27: SUAG3_3_1 | AK27: =MATCH(AJ27,tblIndicators!$E$2:$E$42,0) ->  | AL27: =REPT(" ",AM27)&IF($AK27="","",INDEX(tblIndicators!$AK$2:$AK$42,AK27)) ->  | AM27: =INDEX(tblIndicators!$G$2:$G$42,AK27) ->  | AN27: =REPT(" ",AM27)&IF($AK27="","",INDEX(tblIndicators!$AL$2:$AL$42,$AK27)) ->  | AP27: =IF(AO27<>"",IF(uxb_works!$B$167=1,LEFT(AO27,1),LEFT(AO27,3))) ->  | AU27: SUAG4_5 | AV27: SUAG3_3_1 | AW27: FLAW2_2_1_6
A28: FIFU2_2 | B28: =IF(A28="","",MATCH(A28,tblIndicators!E$2:E$42,0)) -> 14 | C28: =REPT(" ",D28)&IF($A28="","",INDEX(tblIndicators!AK$2:AK$42,$B28)) -> 2.2) Creditworthiness | D28: =INDEX(tblIndicators!$G$2:$G$42,B28) -> 2 | E28: =REPT(" ",D28)&IF($A28="","",INDEX(tblIndicators!AL$2:AL$42,$B28)) -> 2.2) Creditworthiness | F28: 2.2) Creditworthiness | Q28: NERE4_1 | T28: SUAG4_8 | U28: SUAG3_6 | Y28: 25 | Z28: NERE4_1 | AA28: =IF(Z28="","",MATCH(Z28,tblIndicators!E$2:E$42,0)) -> 25 | AB28: =IF($AA28="","",INDEX(tblIndicators!AL$2:AL$42,$AA28)) -> 4.1) Ecosystems and Biodiversity | AC28: =IF($AA28="","",INDEX(tblIndicators!AQ$2:AQ$42,$AA28)) -> 3 | AF28: 25 | AG28: 30 | AI28: 25 | AJ28: SUAG3_3_2 | AK28: =MATCH(AJ28,tblIndicators!$E$2:$E$42,0) ->  | AL28: =REPT(" ",AM28)&IF($AK28="","",INDEX(tblIndicators!$AK$2:$AK$42,AK28)) ->  | AM28: =INDEX(tblIndicators!$G$2:$G$42,AK28) ->  | AN28: =REPT(" ",AM28)&IF($AK28="","",INDEX(tblIndicators!$AL$2:$AL$42,$AK28)) ->  | AP28: =IF(AO28<>"",IF(uxb_works!$B$167=1,LEFT(AO28,1),LEFT(AO28,3))) ->  | AU28: SUAG4_6 | AV28: SUAG3_3_2 | AW28: FLAW2_2_1_7
A29: FIFU2_3 | B29: =IF(A29="","",MATCH(A29,tblIndicators!E$2:E$42,0)) -> 15 | C29: =REPT(" ",D29)&IF($A29="","",INDEX(tblIndicators!AK$2:AK$42,$B29)) -> 2.3) Revenue and Financial Autonomy | D29: =INDEX(tblIndicators!$G$2:$G$42,B29) -> 2 | E29: =REPT(" ",D29)&IF($A29="","",INDEX(tblIndicators!AL$2:AL$42,$B29)) -> 2.3) Revenue and Financial Autonomy | F29: 2.3) Revenue and Financial Autonomy | Q29: NERE4_2 | T29: SUAG4_9 | U29: SUAG3_6_1 | Y29: 26 | Z29: NERE4_2 | AA29: =IF(Z29="","",MATCH(Z29,tblIndicators!E$2:E$42,0)) -> 26 | AB29: =IF($AA29="","",INDEX(tblIndicators!AL$2:AL$42,$AA29)) -> 4.2) Air Quality | AC29: =IF($AA29="","",INDEX(tblIndicators!AQ$2:AQ$42,$AA29)) -> 3 | AF29: 26 | AG29: 31 | AI29: 26 | AJ29: SUAG3_4 | AK29: =MATCH(AJ29,tblIndicators!$E$2:$E$42,0) ->  | AL29: =REPT(" ",AM29)&IF($AK29="","",INDEX(tblIndicators!$AK$2:$AK$42,AK29)) ->  | AM29: =INDEX(tblIndicators!$G$2:$G$42,AK29) ->  | AN29: =REPT(" ",AM29)&IF($AK29="","",INDEX(tblIndicators!$AL$2:$AL$42,$AK29)) ->  | AP29: =IF(AO29<>"",IF(uxb_works!$B$167=1,LEFT(AO29,1),LEFT(AO29,3))) ->  | AU29: SUAG4_7 | AV29: SUAG3_4 | AW29: FLAW2_2_1_8
A30: FIFU2_4 | B30: =IF(A30="","",MATCH(A30,tblIndicators!E$2:E$42,0)) -> 16 | C30: =REPT(" ",D30)&IF($A30="","",INDEX(tblIndicators!AK$2:AK$42,$B30)) -> 2.4) Expenditure Management | D30: =INDEX(tblIndicators!$G$2:$G$42,B30) -> 2 | E30: =REPT(" ",D30)&IF($A30="","",INDEX(tblIndicators!AL$2:AL$42,$B30)) -> 2.4) Expenditure Management | F30: 2.4) Expenditure Management | Q30: NERE4_3 | T30: SUAG4_10 | U30: SUAG4_1 | Y30: 27 | Z30: NERE4_3 | AA30: =IF(Z30="","",MATCH(Z30,tblIndicators!E$2:E$42,0)) -> 27 | AB30: =IF($AA30="","",INDEX(tblIndicators!AL$2:AL$42,$AA30)) -> 4.3) Water Resources Management | AC30: =IF($AA30="","",INDEX(tblIndicators!AQ$2:AQ$42,$AA30)) -> 3 | AF30: 27 | AG30: 33 | AI30: 27 | AJ30: SUAG3_4_1 | AK30: =MATCH(AJ30,tblIndicators!$E$2:$E$42,0) ->  | AL30: =REPT(" ",AM30)&IF($AK30="","",INDEX(tblIndicators!$AK$2:$AK$42,AK30)) ->  | AM30: =INDEX(tblIndicators!$G$2:$G$42,AK30) ->  | AN30: =REPT(" ",AM30)&IF($AK30="","",INDEX(tblIndicators!$AL$2:$AL$42,$AK30)) ->  | AP30: =IF(AO30<>"",IF(uxb_works!$B$167=1,LEFT(AO30,1),LEFT(AO30,3))) ->  | AU30: SUAG4_8 | AV30: SUAG3_4_1 | AW30: FLAW2_2_1_9
A31: FIFU2_5 | B31: =IF(A31="","",MATCH(A31,tblIndicators!E$2:E$42,0)) -> 17 | C31: =REPT(" ",D31)&IF($A31="","",INDEX(tblIndicators!AK$2:AK$42,$B31)) -> 2.5) Management of Debt and Other Obligations | D31: =INDEX(tblIndicators!$G$2:$G$42,B31) -> 2 | E31: =REPT(" ",D31)&IF($A31="","",INDEX(tblIndicators!AL$2:AL$42,$B31)) -> 2.5) Management of Debt and Other Obligations | F31: 2.5) Management of Debt and Other Obligations | Q31: NERE4_4 | T31: SUAG4_11 | U31: SUAG4_1_1 | Y31: 28 | Z31: NERE4_4 | AA31: =IF(Z31="","",MATCH(Z31,tblIndicators!E$2:E$42,0)) -> 28 | AB31: =IF($AA31="","",INDEX(tblIndicators!AL$2:AL$42,$AA31)) -> 4.4) Solid Waste Management | AC31: =IF($AA31="","",INDEX(tblIndicators!AQ$2:AQ$42,$AA31)) -> 3 | AF31: 28 | AG31: 35 | AI31: 28 | AJ31: SUAG3_5 | AK31: =MATCH(AJ31,tblIndicators!$E$2:$E$42,0) ->  | AL31: =REPT(" ",AM31)&IF($AK31="","",INDEX(tblIndicators!$AK$2:$AK$42,AK31)) ->  | AM31: =INDEX(tblIndicators!$G$2:$G$42,AK31) ->  | AN31: =REPT(" ",AM31)&IF($AK31="","",INDEX(tblIndicators!$AL$2:$AL$42,$AK31)) ->  | AP31: =IF(AO31<>"",IF(uxb_works!$B$167=1,LEFT(AO31,1),LEFT(AO31,3))) ->  | AU31: SUAG4_9 | AV31: SUAG3_5 | AW31: SUAG
A32: UREC | B32: =IF(A32="","",MATCH(A32,tblIndicators!E$2:E$42,0)) -> 18 | C32: =REPT(" ",D32)&IF($A32="","",INDEX(tblIndicators!AK$2:AK$42,$B32)) -> 3) URBAN ECONOMIES | D32: =INDEX(tblIndicators!$G$2:$G$42,B32) -> 1 | E32: =REPT(" ",D32)&IF($A32="","",INDEX(tblIndicators!AL$2:AL$42,$B32)) -> 3) URBAN ECONOMIES | F32: 3) URBAN ECONOMIES | Q32: NERE4_5 | T32: SUAG4_12 | U32: SUAG4_1_2 | Y32: 29 | Z32: NERE4_5 | AA32: =IF(Z32="","",MATCH(Z32,tblIndicators!E$2:E$42,0)) -> 29 | AB32: =IF($AA32="","",INDEX(tblIndicators!AL$2:AL$42,$AA32)) -> 4.5) Consumption and Production Patterns | AC32: =IF($AA32="","",INDEX(tblIndicators!AQ$2:AQ$42,$AA32)) -> 3 | AF32: 29 | AG32: 36 | AI32: 29 | AJ32: SUAG3_5_1 | AK32: =MATCH(AJ32,tblIndicators!$E$2:$E$42,0) ->  | AL32: =REPT(" ",AM32)&IF($AK32="","",INDEX(tblIndicators!$AK$2:$AK$42,AK32)) ->  | AM32: =INDEX(tblIndicators!$G$2:$G$42,AK32) ->  | AN32: =REPT(" ",AM32)&IF($AK32="","",INDEX(tblIndicators!$AL$2:$AL$42,$AK32)) ->  | AP32: =IF(AO32<>"",IF(uxb_works!$B$167=1,LEFT(AO32,1),LEFT(AO32,3))) ->  | AU32: SUAG4_10 | AV32: SUAG3_5_1 | AW32: SUAG3
A33: UREC3_1 | B33: =IF(A33="","",MATCH(A33,tblIndicators!E$2:E$42,0)) -> 19 | C33: =REPT(" ",D33)&IF($A33="","",INDEX(tblIndicators!AK$2:AK$42,$B33)) -> 3.1) Economic Performance | D33: =INDEX(tblIndicators!$G$2:$G$42,B33) -> 2 | E33: =REPT(" ",D33)&IF($A33="","",INDEX(tblIndicators!AL$2:AL$42,$B33)) -> 3.1) Economic Performance | F33: 3.1) Economic Performance | Q33: CLAR | T33: SUAG5 | U33: SUAG4_1_3 | Y33: 30 | Z33: CLAR | AA33: =IF(Z33="","",MATCH(Z33,tblIndicators!E$2:E$42,0)) -> 30 | AB33: =IF($AA33="","",INDEX(tblIndicators!AL$2:AL$42,$AA33)) -> 5) CLIMATE ACTION AND RESILIENCE | AC33: =IF($AA33="","",INDEX(tblIndicators!AQ$2:AQ$42,$AA33)) -> 4 | AF33: 30 | AG33: 37 | AI33: 30 | AJ33: SUAG3_6 | AK33: =MATCH(AJ33,tblIndicators!$E$2:$E$42,0) ->  | AL33: =REPT(" ",AM33)&IF($AK33="","",INDEX(tblIndicators!$AK$2:$AK$42,AK33)) ->  | AM33: =INDEX(tblIndicators!$G$2:$G$42,AK33) ->  | AN33: =REPT(" ",AM33)&IF($AK33="","",INDEX(tblIndicators!$AL$2:$AL$42,$AK33)) ->  | AP33: =IF(AO33<>"",IF(uxb_works!$B$167=1,LEFT(AO33,1),LEFT(AO33,3))) ->  | AU33: SUAG4_11 | AV33: SUAG3_6 | AW33: SUAG3_1
A34: UREC3_2 | B34: =IF(A34="","",MATCH(A34,tblIndicators!E$2:E$42,0)) -> 20 | C34: =REPT(" ",D34)&IF($A34="","",INDEX(tblIndicators!AK$2:AK$42,$B34)) -> 3.2) Business Climate, Innovation, and Entrepreneurship | D34: =INDEX(tblIndicators!$G$2:$G$42,B34) -> 2 | E34: =REPT(" ",D34)&IF($A34="","",INDEX(tblIndicators!AL$2:AL$42,$B34)) -> 3.2) Business Climate, Innovation, and Entrepreneurship | F34: 3.2) Business Climate, Innovation, and Entrepreneurship | Q34: CLAR5_1 | T34: SUAG5_1 | U34: SUAG4_2 | Y34: 31 | Z34: CLAR5_1 | AA34: =IF(Z34="","",MATCH(Z34,tblIndicators!E$2:E$42,0)) -> 31 | AB34: =IF($AA34="","",INDEX(tblIndicators!AL$2:AL$42,$AA34)) -> 5.1) Greenhouse gas inventory | AC34: =IF($AA34="","",INDEX(tblIndicators!AQ$2:AQ$42,$AA34)) -> 3 | AF34: 31 | AG34: 38 | AI34: 31 | AJ34: SUAG3_6_1 | AK34: =MATCH(AJ34,tblIndicators!$E$2:$E$42,0) ->  | AL34: =REPT(" ",AM34)&IF($AK34="","",INDEX(tblIndicators!$AK$2:$AK$42,AK34)) ->  | AM34: =INDEX(tblIndicators!$G$2:$G$42,AK34) ->  | AN34: =REPT(" ",AM34)&IF($AK34="","",INDEX(tblIndicators!$AL$2:$AL$42,$AK34)) ->  | AP34: =IF(AO34<>"",IF(uxb_works!$B$167=1,LEFT(AO34,1),LEFT(AO34,3))) ->  | AU34: SUAG4_12 | AV34: SUAG3_6_1 | AW34: SUAG3_1_1
A35: UREC3_3 | B35: =IF(A35="","",MATCH(A35,tblIndicators!E$2:E$42,0)) -> 21 | C35: =REPT(" ",D35)&IF($A35="","",INDEX(tblIndicators!AK$2:AK$42,$B35)) -> 3.3) Labor Force | D35: =INDEX(tblIndicators!$G$2:$G$42,B35) -> 2 | E35: =REPT(" ",D35)&IF($A35="","",INDEX(tblIndicators!AL$2:AL$42,$B35)) -> 3.3) Labor Force | F35: 3.3) Labor Force | Q35: CLAR5_2 | T35: SUAG5_2 | U35: SUAG4_2_1 | Y35: =INDEX($AF$3:$AG$55,AF35+1,$Y$1) -> 32 | Z35: CLAR5_2 | AA35: =IF(Z35="","",MATCH(Z35,tblIndicators!E$2:E$42,0)) -> 32 | AB35: =IF($AA35="","",INDEX(tblIndicators!AL$2:AL$42,$AA35)) -> 5.2) Energy efficiency | AC35: =IF($AA35="","",INDEX(tblIndicators!AQ$2:AQ$42,$AA35)) -> 3 | AF35: 32 | AG35: 39 | AI35: 32 | AJ35: SUAG4 | AK35: =MATCH(AJ35,tblIndicators!$E$2:$E$42,0) ->  | AL35: =REPT(" ",AM35)&IF($AK35="","",INDEX(tblIndicators!$AK$2:$AK$42,AK35)) ->  | AM35: =INDEX(tblIndicators!$G$2:$G$42,AK35) ->  | AN35: =REPT(" ",AM35)&IF($AK35="","",INDEX(tblIndicators!$AL$2:$AL$42,$AK35)) ->  | AP35: =IF(AO35<>"",IF(uxb_works!$B$167=1,LEFT(AO35,1),LEFT(AO35,3))) ->  | AU35: SUAG5 | AV35: SUAG4 | AW35: SUAG3_2
A36: UREC3_4 | B36: =IF(A36="","",MATCH(A36,tblIndicators!E$2:E$42,0)) -> 22 | C36: =REPT(" ",D36)&IF($A36="","",INDEX(tblIndicators!AK$2:AK$42,$B36)) -> 3.4) Livelihood Opportunities | D36: =INDEX(tblIndicators!$G$2:$G$42,B36) -> 2 | E36: =REPT(" ",D36)&IF($A36="","",INDEX(tblIndicators!AL$2:AL$42,$B36)) -> 3.4) Livelihood Opportunities | F36: 3.4) Livelihood Opportunities | Q36: CLAR5_3 | T36: SUAG5_3 | U36: SUAG4_2_2 | Y36: 33 | Z36: =IF(INDEX($Q$4:$V$57,Y36,$Z$2)="","",INDEX($Q$4:$V$57,Y36,$Z$2)) -> CLAR5_3 | AA36: =IF(Z36="","",MATCH(Z36,tblIndicators!E$2:E$42,0)) -> 33 | AB36: =IF($AA36="","",INDEX(tblIndicators!AL$2:AL$42,$AA36)) -> 5.3) Clean energy | AC36: =IF($AA36="","",INDEX(tblIndicators!AQ$2:AQ$42,$AA36)) -> 3 | AF36: 33 | AG36: 40 | AI36: 33 | AJ36: =IF(OR(INDEX($AS$4:$AW$55,$AI36,$AM$1)=0,INDEX($AS$4:$AW$55,$AI36,$AM$1)=""),"",INDEX($AS$4:$AW$55,$AI36,$AM$1)) -> SUAG4_1 | AK36: =MATCH(AJ36,tblIndicators!$E$2:$E$42,0) ->  | AL36: =REPT(" ",AM36)&IF($AK36="","",INDEX(tblIndicators!$AK$2:$AK$42,AK36)) ->  | AM36: =INDEX(tblIndicators!$G$2:$G$42,AK36) ->  | AN36: =REPT(" ",AM36)&IF($AK36="","",INDEX(tblIndicators!$AL$2:$AL$42,$AK36)) ->  | AP36: =IF(AO36<>"",IF(uxb_works!$B$167=1,LEFT(AO36,1),LEFT(AO36,3))) ->  | AU36: SUAG5_1 | AV36: SUAG4_1 | AW36: SUAG3_2_1
A37: UREC3_5 | B37: =IF(A37="","",MATCH(A37,tblIndicators!E$2:E$42,0)) -> 23 | C37: =REPT(" ",D37)&IF($A37="","",INDEX(tblIndicators!AK$2:AK$42,$B37)) -> 3.5) Income Equality and Shared Prosperity | D37: =INDEX(tblIndicators!$G$2:$G$42,B37) -> 2 | E37: =REPT(" ",D37)&IF($A37="","",INDEX(tblIndicators!AL$2:AL$42,$B37)) -> 3.5) Income Equality and Shared Prosperity | F37: 3.5) Income Equality and Shared Prosperity | Q37: CLAR5_4 | T37: NUCH6 | U37: SUAG4_2_3 | Y37: 34 | Z37: CLAR5_4 | AA37: =IF(Z37="","",MATCH(Z37,tblIndicators!E$2:E$42,0)) -> 34 | AB37: =IF($AA37="","",INDEX(tblIndicators!AL$2:AL$42,$AA37)) -> 5.4) Climate change adaptation | AC37: =IF($AA37="","",INDEX(tblIndicators!AQ$2:AQ$42,$AA37)) -> 3 | AF37: 34 | AG37: 44 | AI37: 34 | AJ37: SUAG4_1_1 | AK37: =MATCH(AJ37,tblIndicators!$E$2:$E$42,0) ->  | AL37: =REPT(" ",AM37)&IF($AK37="","",INDEX(tblIndicators!$AK$2:$AK$42,AK37)) ->  | AM37: =INDEX(tblIndicators!$G$2:$G$42,AK37) ->  | AN37: =REPT(" ",AM37)&IF($AK37="","",INDEX(tblIndicators!$AL$2:$AL$42,$AK37)) ->  | AP37: =IF(AO37<>"",IF(uxb_works!$B$167=1,LEFT(AO37,1),LEFT(AO37,3))) ->  | AU37: SUAG5_2 | AV37: SUAG4_1_1 | AW37: SUAG3_3
A38: NERE | B38: =IF(A38="","",MATCH(A38,tblIndicators!E$2:E$42,0)) -> 24 | C38: =REPT(" ",D38)&IF($A38="","",INDEX(tblIndicators!AK$2:AK$42,$B38)) -> 4) NATURAL ENVIRONMENT AND RESOURCES | D38: =INDEX(tblIndicators!$G$2:$G$42,B38) -> 1 | E38: =REPT(" ",D38)&IF($A38="","",INDEX(tblIndicators!AL$2:AL$42,$B38)) -> 4) NATURAL ENVIRONMENT AND RESOURCES | F38: 4) NATURAL ENVIRONMENT AND RESOURCES | Q38: CLAR5_5 | T38: NUCH6_1 | U38: SUAG4_3 | Y38: 35 | Z38: CLAR5_5 | AA38: =IF(Z38="","",MATCH(Z38,tblIndicators!E$2:E$42,0)) -> 35 | AB38: =IF($AA38="","",INDEX(tblIndicators!AL$2:AL$42,$AA38)) -> 5.5) Disaster risk reduction | AC38: =IF($AA38="","",INDEX(tblIndicators!AQ$2:AQ$42,$AA38)) -> 3 | AF38: 35 | AG38: 45 | AI38: 35 | AJ38: SUAG4_1_2 | AK38: =MATCH(AJ38,tblIndicators!$E$2:$E$42,0) ->  | AL38: =REPT(" ",AM38)&IF($AK38="","",INDEX(tblIndicators!$AK$2:$AK$42,AK38)) ->  | AM38: =INDEX(tblIndicators!$G$2:$G$42,AK38) ->  | AN38: =REPT(" ",AM38)&IF($AK38="","",INDEX(tblIndicators!$AL$2:$AL$42,$AK38)) ->  | AP38: =IF(AO38<>"",IF(uxb_works!$B$167=1,LEFT(AO38,1),LEFT(AO38,3))) ->  | AU38: SUAG5_3 | AV38: SUAG4_1_2 | AW38: SUAG3_3_1
A39: NERE4_1 | B39: =IF(A39="","",MATCH(A39,tblIndicators!E$2:E$42,0)) -> 25 | C39: =REPT(" ",D39)&IF($A39="","",INDEX(tblIndicators!AK$2:AK$42,$B39)) -> 4.1) Ecosystems and Biodiversity | D39: =INDEX(tblIndicators!$G$2:$G$42,B39) -> 2 | E39: =REPT(" ",D39)&IF($A39="","",INDEX(tblIndicators!AL$2:AL$42,$B39)) -> 4.1) Ecosystems and Biodiversity | F39: 4.1) Ecosystems and Biodiversity | Q39: INQL | T39: NUCH6_2 | U39: SUAG4_3_1 | Y39: 36 | Z39: INQL | AA39: =IF(Z39="","",MATCH(Z39,tblIndicators!E$2:E$42,0)) -> 36 | AB39: =IF($AA39="","",INDEX(tblIndicators!AL$2:AL$42,$AA39)) -> 6) INCLUSIVITY AND QUALITY OF LIFE | AC39: =IF($AA39="","",INDEX(tblIndicators!AQ$2:AQ$42,$AA39)) -> 4 | AF39: 36 | AG39: 46 | AI39: 36 | AJ39: SUAG4_1_3 | AK39: =MATCH(AJ39,tblIndicators!$E$2:$E$42,0) ->  | AL39: =REPT(" ",AM39)&IF($AK39="","",INDEX(tblIndicators!$AK$2:$AK$42,AK39)) ->  | AM39: =INDEX(tblIndicators!$G$2:$G$42,AK39) ->  | AN39: =REPT(" ",AM39)&IF($AK39="","",INDEX(tblIndicators!$AL$2:$AL$42,$AK39)) ->  | AP39: =IF(AO39<>"",IF(uxb_works!$B$167=1,LEFT(AO39,1),LEFT(AO39,3))) ->  | AU39: NUCH | AV39: SUAG4_1_3 | AW39: SUAG3_3_2
A40: NERE4_2 | B40: =IF(A40="","",MATCH(A40,tblIndicators!E$2:E$42,0)) -> 26 | C40: =REPT(" ",D40)&IF($A40="","",INDEX(tblIndicators!AK$2:AK$42,$B40)) -> 4.2) Air Quality | D40: =INDEX(tblIndicators!$G$2:$G$42,B40) -> 2 | E40: =REPT(" ",D40)&IF($A40="","",INDEX(tblIndicators!AL$2:AL$42,$B40)) -> 4.2) Air Quality | F40: 4.2) Air Quality | Q40: INQL6_1 | T40: NUCH6_3 | U40: SUAG4_3_2 | Y40: 37 | Z40: INQL6_1 | AA40: =IF(Z40="","",MATCH(Z40,tblIndicators!E$2:E$42,0)) -> 37 | AB40: =IF($AA40="","",INDEX(tblIndicators!AL$2:AL$42,$AA40)) -> 6.1) Housing | AC40: =IF($AA40="","",INDEX(tblIndicators!AQ$2:AQ$42,$AA40)) -> 3 | AF40: 37 | AG40: 50 | AI40: 37 | AJ40: SUAG4_2 | AK40: =MATCH(AJ40,tblIndicators!$E$2:$E$42,0) ->  | AL40: =REPT(" ",AM40)&IF($AK40="","",INDEX(tblIndicators!$AK$2:$AK$42,AK40)) ->  | AM40: =INDEX(tblIndicators!$G$2:$G$42,AK40) ->  | AN40: =REPT(" ",AM40)&IF($AK40="","",INDEX(tblIndicators!$AL$2:$AL$42,$AK40)) ->  | AP40: =IF(AO40<>"",IF(uxb_works!$B$167=1,LEFT(AO40,1),LEFT(AO40,3))) ->  | AU40: NUCH6 | AV40: SUAG4_2 | AW40: SUAG3_4
A41: NERE4_3 | B41: =IF(A41="","",MATCH(A41,tblIndicators!E$2:E$42,0)) -> 27 | C41: =REPT(" ",D41)&IF($A41="","",INDEX(tblIndicators!AK$2:AK$42,$B41)) -> 4.3) Water Resources Management | D41: =INDEX(tblIndicators!$G$2:$G$42,B41) -> 2 | E41: =REPT(" ",D41)&IF($A41="","",INDEX(tblIndicators!AL$2:AL$42,$B41)) -> 4.3) Water Resources Management | F41: 4.3) Water Resources Management | Q41: INQL6_2 | T41: NUCH7 | U41: SUAG4_3_3 | Y41: 38 | Z41: INQL6_2 | AA41: =IF(Z41="","",MATCH(Z41,tblIndicators!E$2:E$42,0)) -> 38 | AB41: =IF($AA41="","",INDEX(tblIndicators!AL$2:AL$42,$AA41)) -> 6.2) Poverty Reduction, Hunger Reduction, and Food Security | AC41: =IF($AA41="","",INDEX(tblIndicators!AQ$2:AQ$42,$AA41)) -> 3 | AF41: 38 | AG41: 51 | AI41: 38 | AJ41: SUAG4_2_1 | AK41: =MATCH(AJ41,tblIndicators!$E$2:$E$42,0) ->  | AL41: =REPT(" ",AM41)&IF($AK41="","",INDEX(tblIndicators!$AK$2:$AK$42,AK41)) ->  | AM41: =INDEX(tblIndicators!$G$2:$G$42,AK41) ->  | AN41: =REPT(" ",AM41)&IF($AK41="","",INDEX(tblIndicators!$AL$2:$AL$42,$AK41)) ->  | AP41: =IF(AO41<>"",IF(uxb_works!$B$167=1,LEFT(AO41,1),LEFT(AO41,3))) ->  | AU41: NUCH6_1 | AV41: SUAG4_2_1 | AW41: SUAG3_4_1
A42: NERE4_4 | B42: =IF(A42="","",MATCH(A42,tblIndicators!E$2:E$42,0)) -> 28 | C42: =REPT(" ",D42)&IF($A42="","",INDEX(tblIndicators!AK$2:AK$42,$B42)) -> 4.4) Solid Waste Management | D42: =INDEX(tblIndicators!$G$2:$G$42,B42) -> 2 | E42: =REPT(" ",D42)&IF($A42="","",INDEX(tblIndicators!AL$2:AL$42,$B42)) -> 4.4) Solid Waste Management | F42: 4.4) Solid Waste Management | Q42: INQL6_3 | T42: NUCH7_1 | U42: SUAG4_4 | Y42: 39 | Z42: INQL6_3 | AA42: =IF(Z42="","",MATCH(Z42,tblIndicators!E$2:E$42,0)) -> 39 | AB42: =IF($AA42="","",INDEX(tblIndicators!AL$2:AL$42,$AA42)) -> 6.3) Drinking Water and Sanitation | AC42: =IF($AA42="","",INDEX(tblIndicators!AQ$2:AQ$42,$AA42)) -> 3 | AF42: 39 | AG42: 52 | AI42: 39 | AJ42: SUAG4_2_2 | AK42: =MATCH(AJ42,tblIndicators!$E$2:$E$42,0) ->  | AL42: =REPT(" ",AM42)&IF($AK42="","",INDEX(tblIndicators!$AK$2:$AK$42,AK42)) ->  | AM42: =INDEX(tblIndicators!$G$2:$G$42,AK42) ->  | AN42: =REPT(" ",AM42)&IF($AK42="","",INDEX(tblIndicators!$AL$2:$AL$42,$AK42)) ->  | AP42: =IF(AO42<>"",IF(uxb_works!$B$167=1,LEFT(AO42,1),LEFT(AO42,3))) ->  | AU42: NUCH6_2 | AV42: SUAG4_2_2 | AW42: SUAG3_5
A43: NERE4_5 | B43: =IF(A43="","",MATCH(A43,tblIndicators!E$2:E$42,0)) -> 29 | C43: =REPT(" ",D43)&IF($A43="","",INDEX(tblIndicators!AK$2:AK$42,$B43)) -> 4.5) Consumption and Production Patterns | D43: =INDEX(tblIndicators!$G$2:$G$42,B43) -> 2 | E43: =REPT(" ",D43)&IF($A43="","",INDEX(tblIndicators!AL$2:AL$42,$B43)) -> 4.5) Consumption and Production Patterns | F43: 4.5) Consumption and Production Patterns | Q43: INQL6_4 | T43: NUCH7_2 | U43: SUAG4_4_1 | Y43: 40 | Z43: INQL6_4 | AA43: =IF(Z43="","",MATCH(Z43,tblIndicators!E$2:E$42,0)) -> 40 | AB43: =IF($AA43="","",INDEX(tblIndicators!AL$2:AL$42,$AA43)) -> 6.4) Health and Well-Being | AC43: =IF($AA43="","",INDEX(tblIndicators!AQ$2:AQ$42,$AA43)) -> 3 | AF43: 40 | AG43: 53 | AI43: 40 | AJ43: SUAG4_2_3 | AK43: =MATCH(AJ43,tblIndicators!$E$2:$E$42,0) ->  | AL43: =REPT(" ",AM43)&IF($AK43="","",INDEX(tblIndicators!$AK$2:$AK$42,AK43)) ->  | AM43: =INDEX(tblIndicators!$G$2:$G$42,AK43) ->  | AN43: =REPT(" ",AM43)&IF($AK43="","",INDEX(tblIndicators!$AL$2:$AL$42,$AK43)) ->  | AP43: =IF(AO43<>"",IF(uxb_works!$B$167=1,LEFT(AO43,1),LEFT(AO43,3))) ->  | AU43: NUCH6_3 | AV43: SUAG4_2_3 | AW43: SUAG3_5_1
A44: CLAR | B44: =IF(A44="","",MATCH(A44,tblIndicators!E$2:E$42,0)) -> 30 | C44: =REPT(" ",D44)&IF($A44="","",INDEX(tblIndicators!AK$2:AK$42,$B44)) -> 5) CLIMATE ACTION AND RESILIENCE | D44: =INDEX(tblIndicators!$G$2:$G$42,B44) -> 1 | E44: =REPT(" ",D44)&IF($A44="","",INDEX(tblIndicators!AL$2:AL$42,$B44)) -> 5) CLIMATE ACTION AND RESILIENCE | F44: 5) CLIMATE ACTION AND RESILIENCE | Q44: INQL6_5 | T44: NUCH7_3 | U44: SUAG4_4_2 | Y44: 41 | Z44: INQL6_5 | AA44: =IF(Z44="","",MATCH(Z44,tblIndicators!E$2:E$42,0)) -> 41 | AB44: =IF($AA44="","",INDEX(tblIndicators!AL$2:AL$42,$AA44)) -> 6.5) Safety | AC44: =IF($AA44="","",INDEX(tblIndicators!AQ$2:AQ$42,$AA44)) -> 3 | AF44: 41 | AG44: 54 | AI44: 41 | AJ44: SUAG4_3 | AK44: =MATCH(AJ44,tblIndicators!$E$2:$E$42,0) ->  | AL44: =REPT(" ",AM44)&IF($AK44="","",INDEX(tblIndicators!$AK$2:$AK$42,AK44)) ->  | AM44: =INDEX(tblIndicators!$G$2:$G$42,AK44) ->  | AN44: =REPT(" ",AM44)&IF($AK44="","",INDEX(tblIndicators!$AL$2:$AL$42,$AK44)) ->  | AP44: =IF(AO44<>"",IF(uxb_works!$B$167=1,LEFT(AO44,1),LEFT(AO44,3))) ->  | AU44: NUCH7 | AV44: SUAG4_3 | AW44: SUAG3_6
A45: CLAR5_1 | B45: =IF(A45="","",MATCH(A45,tblIndicators!E$2:E$42,0)) -> 31 | C45: =REPT(" ",D45)&IF($A45="","",INDEX(tblIndicators!AK$2:AK$42,$B45)) -> 5.1) Greenhouse gas inventory | D45: =INDEX(tblIndicators!$G$2:$G$42,B45) -> 2 | E45: =REPT(" ",D45)&IF($A45="","",INDEX(tblIndicators!AL$2:AL$42,$B45)) -> 5.1) Greenhouse gas inventory | F45: 5.1) Greenhouse gas inventory | T45: NUCH7_4 | U45: SUAG4_4_3 | Y45: 42 | AA45: =IF(Z45="","",MATCH(Z45,tblIndicators!E$2:E$42,0)) ->  | AB45: =IF($AA45="","",INDEX(tblIndicators!AL$2:AL$42,$AA45)) ->  | AC45: =IF($AA45="","",INDEX(tblIndicators!AQ$2:AQ$42,$AA45)) ->  | AF45: 42 | AG45: 56 | AI45: 42 | AJ45: SUAG4_3_1 | AK45: =MATCH(AJ45,tblIndicators!$E$2:$E$42,0) ->  | AL45: =REPT(" ",AM45)&IF($AK45="","",INDEX(tblIndicators!$AK$2:$AK$42,AK45)) ->  | AM45: =INDEX(tblIndicators!$G$2:$G$42,AK45) ->  | AN45: =REPT(" ",AM45)&IF($AK45="","",INDEX(tblIndicators!$AL$2:$AL$42,$AK45)) ->  | AP45: =IF(AO45<>"",IF(uxb_works!$B$167=1,LEFT(AO45,1),LEFT(AO45,3))) ->  | AU45: NUCH7_1 | AV45: SUAG4_3_1 | AW45: SUAG3_6_1
A46: CLAR5_2 | B46: =IF(A46="","",MATCH(A46,tblIndicators!E$2:E$42,0)) -> 32 | C46: =REPT(" ",D46)&IF($A46="","",INDEX(tblIndicators!AK$2:AK$42,$B46)) -> 5.2) Energy efficiency | D46: =INDEX(tblIndicators!$G$2:$G$42,B46) -> 2 | E46: =REPT(" ",D46)&IF($A46="","",INDEX(tblIndicators!AL$2:AL$42,$B46)) -> 5.2) Energy efficiency | F46: 5.2) Energy efficiency | T46: NUCH8 | U46: SUAG4_5 | Y46: 43 | AA46: =IF(Z46="","",MATCH(Z46,tblIndicators!E$2:E$42,0)) ->  | AB46: =IF($AA46="","",INDEX(tblIndicators!AL$2:AL$42,$AA46)) ->  | AC46: =IF($AA46="","",INDEX(tblIndicators!AQ$2:AQ$42,$AA46)) ->  | AF46: 43 | AG46: 57 | AI46: 43 | AJ46: SUAG4_3_2 | AK46: =MATCH(AJ46,tblIndicators!$E$2:$E$42,0) ->  | AL46: =REPT(" ",AM46)&IF($AK46="","",INDEX(tblIndicators!$AK$2:$AK$42,AK46)) ->  | AM46: =INDEX(tblIndicators!$G$2:$G$42,AK46) ->  | AN46: =REPT(" ",AM46)&IF($AK46="","",INDEX(tblIndicators!$AL$2:$AL$42,$AK46)) ->  | AP46: =IF(AO46<>"",IF(uxb_works!$B$167=1,LEFT(AO46,1),LEFT(AO46,3))) ->  | AU46: NUCH7_2 | AV46: SUAG4_3_2 | AW46: SUAG4
A47: CLAR5_3 | B47: =IF(A47="","",MATCH(A47,tblIndicators!E$2:E$42,0)) -> 33 | C47: =REPT(" ",D47)&IF($A47="","",INDEX(tblIndicators!AK$2:AK$42,$B47)) -> 5.3) Clean energy | D47: =INDEX(tblIndicators!$G$2:$G$42,B47) -> 2 | E47: =REPT(" ",D47)&IF($A47="","",INDEX(tblIndicators!AL$2:AL$42,$B47)) -> 5.3) Clean energy | F47: 5.3) Clean energy | T47: NUCH8_1 | U47: SUAG4_5_1 | Y47: 44 | AA47: =IF(Z47="","",MATCH(Z47,tblIndicators!E$2:E$42,0)) ->  | AB47: =IF($AA47="","",INDEX(tblIndicators!AL$2:AL$42,$AA47)) ->  | AC47: =IF($AA47="","",INDEX(tblIndicators!AQ$2:AQ$42,$AA47)) ->  | AF47: 44 | AG47: 59 | AI47: 44 | AJ47: SUAG4_3_3 | AK47: =MATCH(AJ47,tblIndicators!$E$2:$E$42,0) ->  | AL47: =REPT(" ",AM47)&IF($AK47="","",INDEX(tblIndicators!$AK$2:$AK$42,AK47)) ->  | AM47: =INDEX(tblIndicators!$G$2:$G$42,AK47) ->  | AN47: =REPT(" ",AM47)&IF($AK47="","",INDEX(tblIndicators!$AL$2:$AL$42,$AK47)) ->  | AP47: =IF(AO47<>"",IF(uxb_works!$B$167=1,LEFT(AO47,1),LEFT(AO47,3))) ->  | AU47: NUCH7_3 | AV47: SUAG4_3_3 | AW47: SUAG4_1
A48: CLAR5_4 | B48: =IF(A48="","",MATCH(A48,tblIndicators!E$2:E$42,0)) -> 34 | C48: =REPT(" ",D48)&IF($A48="","",INDEX(tblIndicators!AK$2:AK$42,$B48)) -> 5.4) Climate change adaptation | D48: =INDEX(tblIndicators!$G$2:$G$42,B48) -> 2 | E48: =REPT(" ",D48)&IF($A48="","",INDEX(tblIndicators!AL$2:AL$42,$B48)) -> 5.4) Climate change adaptation | F48: 5.4) Climate change adaptation | T48: NUCH8_2 | U48: SUAG4_6 | Y48: 45 | AA48: =IF(Z48="","",MATCH(Z48,tblIndicators!E$2:E$42,0)) ->  | AB48: =IF($AA48="","",INDEX(tblIndicators!AL$2:AL$42,$AA48)) ->  | AC48: =IF($AA48="","",INDEX(tblIndicators!AQ$2:AQ$42,$AA48)) ->  | AF48: 45 | AG48: 61 | AI48: 45 | AJ48: SUAG4_4 | AK48: =MATCH(AJ48,tblIndicators!$E$2:$E$42,0) ->  | AL48: =REPT(" ",AM48)&IF($AK48="","",INDEX(tblIndicators!$AK$2:$AK$42,AK48)) ->  | AM48: =INDEX(tblIndicators!$G$2:$G$42,AK48) ->  | AN48: =REPT(" ",AM48)&IF($AK48="","",INDEX(tblIndicators!$AL$2:$AL$42,$AK48)) ->  | AP48: =IF(AO48<>"",IF(uxb_works!$B$167=1,LEFT(AO48,1),LEFT(AO48,3))) ->  | AU48: NUCH7_4 | AV48: SUAG4_4 | AW48: SUAG4_1_1
A49: CLAR5_5 | B49: =IF(A49="","",MATCH(A49,tblIndicators!E$2:E$42,0)) -> 35 | C49: =REPT(" ",D49)&IF($A49="","",INDEX(tblIndicators!AK$2:AK$42,$B49)) -> 5.5) Disaster risk reduction | D49: =INDEX(tblIndicators!$G$2:$G$42,B49) -> 2 | E49: =REPT(" ",D49)&IF($A49="","",INDEX(tblIndicators!AL$2:AL$42,$B49)) -> 5.5) Disaster risk reduction | F49: 5.5) Disaster risk reduction | T49: NUCH8_3 | U49: SUAG4_6_1 | Y49: 46 | AA49: =IF(Z49="","",MATCH(Z49,tblIndicators!E$2:E$42,0)) ->  | AB49: =IF($AA49="","",INDEX(tblIndicators!AL$2:AL$42,$AA49)) ->  | AC49: =IF($AA49="","",INDEX(tblIndicators!AQ$2:AQ$42,$AA49)) ->  | AF49: 46 | AG49: 66 | AI49: 46 | AJ49: SUAG4_4_1 | AK49: =MATCH(AJ49,tblIndicators!$E$2:$E$42,0) ->  | AL49: =REPT(" ",AM49)&IF($AK49="","",INDEX(tblIndicators!$AK$2:$AK$42,AK49)) ->  | AM49: =INDEX(tblIndicators!$G$2:$G$42,AK49) ->  | AN49: =REPT(" ",AM49)&IF($AK49="","",INDEX(tblIndicators!$AL$2:$AL$42,$AK49)) ->  | AP49: =IF(AO49<>"",IF(uxb_works!$B$167=1,LEFT(AO49,1),LEFT(AO49,3))) ->  | AU49: NUCH8 | AV49: SUAG4_4_1 | AW49: SUAG4_1_2
A50: INQL | B50: =IF(A50="","",MATCH(A50,tblIndicators!E$2:E$42,0)) -> 36 | C50: =REPT(" ",D50)&IF($A50="","",INDEX(tblIndicators!AK$2:AK$42,$B50)) -> 6) INCLUSIVITY AND QUALITY OF LIFE | D50: =INDEX(tblIndicators!$G$2:$G$42,B50) -> 1 | E50: =REPT(" ",D50)&IF($A50="","",INDEX(tblIndicators!AL$2:AL$42,$B50)) -> 6) INCLUSIVITY AND QUALITY OF LIFE | F50: 6) INCLUSIVITY AND QUALITY OF LIFE | T50: NUCH8_4 | U50: SUAG4_7 | Y50: 47 | AA50: =IF(Z50="","",MATCH(Z50,tblIndicators!E$2:E$42,0)) ->  | AB50: =IF($AA50="","",INDEX(tblIndicators!AL$2:AL$42,$AA50)) ->  | AC50: =IF($AA50="","",INDEX(tblIndicators!AQ$2:AQ$42,$AA50)) ->  | AF50: 47 | AG50: 67 | AI50: 47 | AJ50: SUAG4_4_2 | AK50: =MATCH(AJ50,tblIndicators!$E$2:$E$42,0) ->  | AL50: =REPT(" ",AM50)&IF($AK50="","",INDEX(tblIndicators!$AK$2:$AK$42,AK50)) ->  | AM50: =INDEX(tblIndicators!$G$2:$G$42,AK50) ->  | AN50: =REPT(" ",AM50)&IF($AK50="","",INDEX(tblIndicators!$AL$2:$AL$42,$AK50)) ->  | AP50: =IF(AO50<>"",IF(uxb_works!$B$167=1,LEFT(AO50,1),LEFT(AO50,3))) ->  | AU50: NUCH8_1 | AV50: SUAG4_4_2 | AW50: SUAG4_1_3
A51: INQL6_1 | B51: =IF(A51="","",MATCH(A51,tblIndicators!E$2:E$42,0)) -> 37 | C51: =REPT(" ",D51)&IF($A51="","",INDEX(tblIndicators!AK$2:AK$42,$B51)) -> 6.1) Housing | D51: =INDEX(tblIndicators!$G$2:$G$42,B51) -> 2 | E51: =REPT(" ",D51)&IF($A51="","",INDEX(tblIndicators!AL$2:AL$42,$B51)) -> 6.1) Housing | F51: 6.1) Housing | U51: SUAG4_7_1 | Y51: 48 | AA51: =IF(Z51="","",MATCH(Z51,tblIndicators!E$2:E$42,0)) ->  | AB51: =IF($AA51="","",INDEX(tblIndicators!AL$2:AL$42,$AA51)) ->  | AC51: =IF($AA51="","",INDEX(tblIndicators!AQ$2:AQ$42,$AA51)) ->  | AF51: 48 | AG51: 68 | AI51: 48 | AJ51: SUAG4_4_3 | AK51: =MATCH(AJ51,tblIndicators!$E$2:$E$42,0) ->  | AL51: =REPT(" ",AM51)&IF($AK51="","",INDEX(tblIndicators!$AK$2:$AK$42,AK51)) ->  | AM51: =INDEX(tblIndicators!$G$2:$G$42,AK51) ->  | AN51: =REPT(" ",AM51)&IF($AK51="","",INDEX(tblIndicators!$AL$2:$AL$42,$AK51)) ->  | AP51: =IF(AO51<>"",IF(uxb_works!$B$167=1,LEFT(AO51,1),LEFT(AO51,3))) ->  | AU51: NUCH8_2 | AV51: SUAG4_4_3 | AW51: SUAG4_2
A52: INQL6_2 | B52: =IF(A52="","",MATCH(A52,tblIndicators!E$2:E$42,0)) -> 38 | C52: =REPT(" ",D52)&IF($A52="","",INDEX(tblIndicators!AK$2:AK$42,$B52)) -> 6.2) Poverty Reduction, Hunger Reduction, and Food Security | D52: =INDEX(tblIndicators!$G$2:$G$42,B52) -> 2 | E52: =REPT(" ",D52)&IF($A52="","",INDEX(tblIndicators!AL$2:AL$42,$B52)) -> 6.2) Poverty Reduction, Hunger Reduction, and Food Security | F52: 6.2) Poverty Reduction, Hunger Reduction, and Food Security | U52: SUAG4_8 | Y52: 49 | AA52: =IF(Z52="","",MATCH(Z52,tblIndicators!E$2:E$42,0)) ->  | AB52: =IF($AA52="","",INDEX(tblIndicators!AL$2:AL$42,$AA52)) ->  | AC52: =IF($AA52="","",INDEX(tblIndicators!AQ$2:AQ$42,$AA52)) ->  | AF52: 49 | AG52: 70 | AI52: 49 | AJ52: SUAG4_5 | AK52: =MATCH(AJ52,tblIndicators!$E$2:$E$42,0) ->  | AL52: =REPT(" ",AM52)&IF($AK52="","",INDEX(tblIndicators!$AK$2:$AK$42,AK52)) ->  | AM52: =INDEX(tblIndicators!$G$2:$G$42,AK52) ->  | AN52: =REPT(" ",AM52)&IF($AK52="","",INDEX(tblIndicators!$AL$2:$AL$42,$AK52)) ->  | AP52: =IF(AO52<>"",IF(uxb_works!$B$167=1,LEFT(AO52,1),LEFT(AO52,3))) ->  | AU52: NUCH8_3 | AV52: SUAG4_5 | AW52: SUAG4_2_1
A53: INQL6_3 | B53: =IF(A53="","",MATCH(A53,tblIndicators!E$2:E$42,0)) -> 39 | C53: =REPT(" ",D53)&IF($A53="","",INDEX(tblIndicators!AK$2:AK$42,$B53)) -> 6.3) Drinking Water and Sanitation | D53: =INDEX(tblIndicators!$G$2:$G$42,B53) -> 2 | E53: =REPT(" ",D53)&IF($A53="","",INDEX(tblIndicators!AL$2:AL$42,$B53)) -> 6.3) Drinking Water and Sanitation | F53: 6.3) Drinking Water and Sanitation | U53: SUAG4_8_1 | Y53: 50 | AA53: =IF(Z53="","",MATCH(Z53,tblIndicators!E$2:E$42,0)) ->  | AB53: =IF($AA53="","",INDEX(tblIndicators!AL$2:AL$42,$AA53)) ->  | AC53: =IF($AA53="","",INDEX(tblIndicators!AQ$2:AQ$42,$AA53)) ->  | AF53: 50 | AG53: 72 | AI53: 50 | AJ53: SUAG4_5_1 | AK53: =MATCH(AJ53,tblIndicators!$E$2:$E$42,0) ->  | AL53: =REPT(" ",AM53)&IF($AK53="","",INDEX(tblIndicators!$AK$2:$AK$42,AK53)) ->  | AM53: =INDEX(tblIndicators!$G$2:$G$42,AK53) ->  | AN53: =REPT(" ",AM53)&IF($AK53="","",INDEX(tblIndicators!$AL$2:$AL$42,$AK53)) ->  | AP53: =IF(AO53<>"",IF(uxb_works!$B$167=1,LEFT(AO53,1),LEFT(AO53,3))) ->  | AU53: NUCH8_4 | AV53: SUAG4_5_1 | AW53: SUAG4_2_2
A54: INQL6_4 | B54: =IF(A54="","",MATCH(A54,tblIndicators!E$2:E$42,0)) -> 40 | C54: =REPT(" ",D54)&IF($A54="","",INDEX(tblIndicators!AK$2:AK$42,$B54)) -> 6.4) Health and Well-Being | D54: =INDEX(tblIndicators!$G$2:$G$42,B54) -> 2 | E54: =REPT(" ",D54)&IF($A54="","",INDEX(tblIndicators!AL$2:AL$42,$B54)) -> 6.4) Health and Well-Being | F54: 6.4) Health and Well-Being | U54: SUAG4_8_2 | Y54: 51 | AA54: =IF(Z54="","",MATCH(Z54,tblIndicators!E$2:E$42,0)) ->  | AB54: =IF($AA54="","",INDEX(tblIndicators!AL$2:AL$42,$AA54)) ->  | AC54: =IF($AA54="","",INDEX(tblIndicators!AQ$2:AQ$42,$AA54)) ->  | AF54: 51 | AG54: 76 | AI54: 51 | AJ54: SUAG4_6 | AK54: =MATCH(AJ54,tblIndicators!$E$2:$E$42,0) ->  | AL54: =REPT(" ",AM54)&IF($AK54="","",INDEX(tblIndicators!$AK$2:$AK$42,AK54)) ->  | AM54: =INDEX(tblIndicators!$G$2:$G$42,AK54) ->  | AN54: =REPT(" ",AM54)&IF($AK54="","",INDEX(tblIndicators!$AL$2:$AL$42,$AK54)) ->  | AP54: =IF(AO54<>"",IF(uxb_works!$B$167=1,LEFT(AO54,1),LEFT(AO54,3))) ->  | AV54: SUAG4_6 | AW54: SUAG4_2_3
A55: INQL6_5 | B55: =IF(A55="","",MATCH(A55,tblIndicators!E$2:E$42,0)) -> 41 | C55: =REPT(" ",D55)&IF($A55="","",INDEX(tblIndicators!AK$2:AK$42,$B55)) -> 6.5) Safety | D55: =INDEX(tblIndicators!$G$2:$G$42,B55) -> 2 | E55: =REPT(" ",D55)&IF($A55="","",INDEX(tblIndicators!AL$2:AL$42,$B55)) -> 6.5) Safety | F55: 6.5) Safety | U55: SUAG4_8_3 | Y55: 52 | AA55: =IF(Z55="","",MATCH(Z55,tblIndicators!E$2:E$42,0)) ->  | AB55: =IF($AA55="","",INDEX(tblIndicators!AL$2:AL$42,$AA55)) ->  | AC55: =IF($AA55="","",INDEX(tblIndicators!AQ$2:AQ$42,$AA55)) ->  | AF55: 52 | AG55: 77 | AI55: 52 | AJ55: SUAG4_6_1 | AK55: =MATCH(AJ55,tblIndicators!$E$2:$E$42,0) ->  | AL55: =REPT(" ",AM55)&IF($AK55="","",INDEX(tblIndicators!$AK$2:$AK$42,AK55)) ->  | AM55: =INDEX(tblIndicators!$G$2:$G$42,AK55) ->  | AN55: =REPT(" ",AM55)&IF($AK55="","",INDEX(tblIndicators!$AL$2:$AL$42,$AK55)) ->  | AP55: =IF(AO55<>"",IF(uxb_works!$B$167=1,LEFT(AO55,1),LEFT(AO55,3))) ->  | AV55: SUAG4_6_1 | AW55: SUAG4_3
A59: For Weights
A60: Categories + Indicators
A62: =Q5 -> GIUP | B62: =IF(A62="","",MATCH(A62,tblIndicators!E$2:E$42,0)) -> 2 | C62: =REPT(" ",D62)&IF($A62="","",INDEX(tblIndicators!AK$2:AK$42,$B62)) -> 1) GOVERNANCE AND INTEGRATED URBAN PLANNING | D62: =INDEX(tblIndicators!$G$2:$G$42,B62) -> 1 | E62: =IF($A62="","",INDEX(tblIndicators!AL$2:AL$42,$B62)) -> 1) GOVERNANCE AND INTEGRATED URBAN PLANNING
A63: GIUP1_1 | B63: =IF(A63="","",MATCH(A63,tblIndicators!E$2:E$42,0)) -> 3 | C63: =REPT(" ",D63)&IF($A63="","",INDEX(tblIndicators!AK$2:AK$42,$B63)) -> 1.1) Vision and Long-term Strategic Planning | D63: =INDEX(tblIndicators!$G$2:$G$42,B63) -> 2 | E63: =IF($A63="","",INDEX(tblIndicators!AL$2:AL$42,$B63)) -> 1.1) Vision and Long-term Strategic Planning
A64: GIUP1_2 | B64: =IF(A64="","",MATCH(A64,tblIndicators!E$2:E$42,0)) -> 4 | C64: =REPT(" ",D64)&IF($A64="","",INDEX(tblIndicators!AK$2:AK$42,$B64)) -> 1.2) Stakeholder participation | D64: =INDEX(tblIndicators!$G$2:$G$42,B64) -> 2 | E64: =IF($A64="","",INDEX(tblIndicators!AL$2:AL$42,$B64)) -> 1.2) Stakeholder participation
A65: GIUP1_3 | B65: =IF(A65="","",MATCH(A65,tblIndicators!E$2:E$42,0)) -> 5 | C65: =REPT(" ",D65)&IF($A65="","",INDEX(tblIndicators!AK$2:AK$42,$B65)) -> 1.3) Data Management | D65: =INDEX(tblIndicators!$G$2:$G$42,B65) -> 2 | E65: =IF($A65="","",INDEX(tblIndicators!AL$2:AL$42,$B65)) -> 1.3) Data Management
A66: GIUP1_4 | B66: =IF(A66="","",MATCH(A66,tblIndicators!E$2:E$42,0)) -> 6 | C66: =REPT(" ",D66)&IF($A66="","",INDEX(tblIndicators!AK$2:AK$42,$B66)) -> 1.4) Trend Analyses | D66: =INDEX(tblIndicators!$G$2:$G$42,B66) -> 2 | E66: =IF($A66="","",INDEX(tblIndicators!AL$2:AL$42,$B66)) -> 1.4) Trend Analyses
A67: GIUP1_5 | B67: =IF(A67="","",MATCH(A67,tblIndicators!E$2:E$42,0)) -> 7 | C67: =REPT(" ",D67)&IF($A67="","",INDEX(tblIndicators!AK$2:AK$42,$B67)) -> 1.5) Land Use and Zoning | D67: =INDEX(tblIndicators!$G$2:$G$42,B67) -> 2 | E67: =IF($A67="","",INDEX(tblIndicators!AL$2:AL$42,$B67)) -> 1.5) Land Use and Zoning
A68: GIUP1_6 | B68: =IF(A68="","",MATCH(A68,tblIndicators!E$2:E$42,0)) -> 8 | C68: =REPT(" ",D68)&IF($A68="","",INDEX(tblIndicators!AK$2:AK$42,$B68)) -> 1.6) Urban Growth Patterns | D68: =INDEX(tblIndicators!$G$2:$G$42,B68) -> 2 | E68: =IF($A68="","",INDEX(tblIndicators!AL$2:AL$42,$B68)) -> 1.6) Urban Growth Patterns
A69: GIUP1_7 | B69: =IF(A69="","",MATCH(A69,tblIndicators!E$2:E$42,0)) -> 9 | C69: =REPT(" ",D69)&IF($A69="","",INDEX(tblIndicators!AK$2:AK$42,$B69)) -> 1.7) Informal Settlements | D69: =INDEX(tblIndicators!$G$2:$G$42,B69) -> 2 | E69: =IF($A69="","",INDEX(tblIndicators!AL$2:AL$42,$B69)) -> 1.7) Informal Settlements
A70: GIUP1_8 | B70: =IF(A70="","",MATCH(A70,tblIndicators!E$2:E$42,0)) -> 10 | C70: =REPT(" ",D70)&IF($A70="","",INDEX(tblIndicators!AK$2:AK$42,$B70)) -> 1.8) Transport and Mobility Integrated with Land Use | D70: =INDEX(tblIndicators!$G$2:$G$42,B70) -> 2 | E70: =IF($A70="","",INDEX(tblIndicators!AL$2:AL$42,$B70)) -> 1.8) Transport and Mobility Integrated with Land Use
A71: GIUP1_9 | B71: =IF(A71="","",MATCH(A71,tblIndicators!E$2:E$42,0)) -> 11 | C71: =REPT(" ",D71)&IF($A71="","",INDEX(tblIndicators!AK$2:AK$42,$B71)) -> 1.9) Cultural Heritage | D71: =INDEX(tblIndicators!$G$2:$G$42,B71) -> 2 | E71: =IF($A71="","",INDEX(tblIndicators!AL$2:AL$42,$B71)) -> 1.9) Cultural Heritage
A72: FIFU | B72: =IF(A72="","",MATCH(A72,tblIndicators!E$2:E$42,0)) -> 12 | C72: =REPT(" ",D72)&IF($A72="","",INDEX(tblIndicators!AK$2:AK$42,$B72)) -> 2) FISCAL SUSTAINABILITY | D72: =INDEX(tblIndicators!$G$2:$G$42,B72) -> 1 | E72: =IF($A72="","",INDEX(tblIndicators!AL$2:AL$42,$B72)) -> 2) FISCAL SUSTAINABILITY
A73: FIFU2_1 | B73: =IF(A73="","",MATCH(A73,tblIndicators!E$2:E$42,0)) -> 13 | C73: =REPT(" ",D73)&IF($A73="","",INDEX(tblIndicators!AK$2:AK$42,$B73)) -> 2.1) Accountability and Transparency | D73: =INDEX(tblIndicators!$G$2:$G$42,B73) -> 2 | E73: =IF($A73="","",INDEX(tblIndicators!AL$2:AL$42,$B73)) -> 2.1) Accountability and Transparency
A74: FIFU2_2 | B74: =IF(A74="","",MATCH(A74,tblIndicators!E$2:E$42,0)) -> 14 | C74: =REPT(" ",D74)&IF($A74="","",INDEX(tblIndicators!AK$2:AK$42,$B74)) -> 2.2) Creditworthiness | D74: =INDEX(tblIndicators!$G$2:$G$42,B74) -> 2 | E74: =IF($A74="","",INDEX(tblIndicators!AL$2:AL$42,$B74)) -> 2.2) Creditworthiness
A75: FIFU2_3 | B75: =IF(A75="","",MATCH(A75,tblIndicators!E$2:E$42,0)) -> 15 | C75: =REPT(" ",D75)&IF($A75="","",INDEX(tblIndicators!AK$2:AK$42,$B75)) -> 2.3) Revenue and Financial Autonomy | D75: =INDEX(tblIndicators!$G$2:$G$42,B75) -> 2 | E75: =IF($A75="","",INDEX(tblIndicators!AL$2:AL$42,$B75)) -> 2.3) Revenue and Financial Autonomy
A76: FIFU2_4 | B76: =IF(A76="","",MATCH(A76,tblIndicators!E$2:E$42,0)) -> 16 | C76: =REPT(" ",D76)&IF($A76="","",INDEX(tblIndicators!AK$2:AK$42,$B76)) -> 2.4) Expenditure Management | D76: =INDEX(tblIndicators!$G$2:$G$42,B76) -> 2 | E76: =IF($A76="","",INDEX(tblIndicators!AL$2:AL$42,$B76)) -> 2.4) Expenditure Management
A77: FIFU2_5 | B77: =IF(A77="","",MATCH(A77,tblIndicators!E$2:E$42,0)) -> 17 | C77: =REPT(" ",D77)&IF($A77="","",INDEX(tblIndicators!AK$2:AK$42,$B77)) -> 2.5) Management of Debt and Other Obligations | D77: =INDEX(tblIndicators!$G$2:$G$42,B77) -> 2 | E77: =IF($A77="","",INDEX(tblIndicators!AL$2:AL$42,$B77)) -> 2.5) Management of Debt and Other Obligations
A78: UREC | B78: =IF(A78="","",MATCH(A78,tblIndicators!E$2:E$42,0)) -> 18 | C78: =REPT(" ",D78)&IF($A78="","",INDEX(tblIndicators!AK$2:AK$42,$B78)) -> 3) URBAN ECONOMIES | D78: =INDEX(tblIndicators!$G$2:$G$42,B78) -> 1 | E78: =IF($A78="","",INDEX(tblIndicators!AL$2:AL$42,$B78)) -> 3) URBAN ECONOMIES
A79: UREC3_1 | B79: =IF(A79="","",MATCH(A79,tblIndicators!E$2:E$42,0)) -> 19 | C79: =REPT(" ",D79)&IF($A79="","",INDEX(tblIndicators!AK$2:AK$42,$B79)) -> 3.1) Economic Performance | D79: =INDEX(tblIndicators!$G$2:$G$42,B79) -> 2 | E79: =IF($A79="","",INDEX(tblIndicators!AL$2:AL$42,$B79)) -> 3.1) Economic Performance
A80: UREC3_2 | B80: =IF(A80="","",MATCH(A80,tblIndicators!E$2:E$42,0)) -> 20 | C80: =REPT(" ",D80)&IF($A80="","",INDEX(tblIndicators!AK$2:AK$42,$B80)) -> 3.2) Business Climate, Innovation, and Entrepreneurship | D80: =INDEX(tblIndicators!$G$2:$G$42,B80) -> 2 | E80: =IF($A80="","",INDEX(tblIndicators!AL$2:AL$42,$B80)) -> 3.2) Business Climate, Innovation, and Entrepreneurship
A81: UREC3_3 | B81: =IF(A81="","",MATCH(A81,tblIndicators!E$2:E$42,0)) -> 21 | C81: =REPT(" ",D81)&IF($A81="","",INDEX(tblIndicators!AK$2:AK$42,$B81)) -> 3.3) Labor Force | D81: =INDEX(tblIndicators!$G$2:$G$42,B81) -> 2 | E81: =IF($A81="","",INDEX(tblIndicators!AL$2:AL$42,$B81)) -> 3.3) Labor Force
A82: UREC3_4 | B82: =IF(A82="","",MATCH(A82,tblIndicators!E$2:E$42,0)) -> 22 | C82: =REPT(" ",D82)&IF($A82="","",INDEX(tblIndicators!AK$2:AK$42,$B82)) -> 3.4) Livelihood Opportunities | D82: =INDEX(tblIndicators!$G$2:$G$42,B82) -> 2 | E82: =IF($A82="","",INDEX(tblIndicators!AL$2:AL$42,$B82)) -> 3.4) Livelihood Opportunities
A83: UREC3_5 | B83: =IF(A83="","",MATCH(A83,tblIndicators!E$2:E$42,0)) -> 23 | C83: =REPT(" ",D83)&IF($A83="","",INDEX(tblIndicators!AK$2:AK$42,$B83)) -> 3.5) Income Equality and Shared Prosperity | D83: =INDEX(tblIndicators!$G$2:$G$42,B83) -> 2 | E83: =IF($A83="","",INDEX(tblIndicators!AL$2:AL$42,$B83)) -> 3.5) Income Equality and Shared Prosperity
A84: NERE | B84: =IF(A84="","",MATCH(A84,tblIndicators!E$2:E$42,0)) -> 24 | C84: =REPT(" ",D84)&IF($A84="","",INDEX(tblIndicators!AK$2:AK$42,$B84)) -> 4) NATURAL ENVIRONMENT AND RESOURCES | D84: =INDEX(tblIndicators!$G$2:$G$42,B84) -> 1 | E84: =IF($A84="","",INDEX(tblIndicators!AL$2:AL$42,$B84)) -> 4) NATURAL ENVIRONMENT AND RESOURCES
A85: NERE4_1 | B85: =IF(A85="","",MATCH(A85,tblIndicators!E$2:E$42,0)) -> 25 | C85: =REPT(" ",D85)&IF($A85="","",INDEX(tblIndicators!AK$2:AK$42,$B85)) -> 4.1) Ecosystems and Biodiversity | D85: =INDEX(tblIndicators!$G$2:$G$42,B85) -> 2 | E85: =IF($A85="","",INDEX(tblIndicators!AL$2:AL$42,$B85)) -> 4.1) Ecosystems and Biodiversity
A86: NERE4_2 | B86: =IF(A86="","",MATCH(A86,tblIndicators!E$2:E$42,0)) -> 26 | C86: =REPT(" ",D86)&IF($A86="","",INDEX(tblIndicators!AK$2:AK$42,$B86)) -> 4.2) Air Quality | D86: =INDEX(tblIndicators!$G$2:$G$42,B86) -> 2 | E86: =IF($A86="","",INDEX(tblIndicators!AL$2:AL$42,$B86)) -> 4.2) Air Quality
A87: NERE4_3 | B87: =IF(A87="","",MATCH(A87,tblIndicators!E$2:E$42,0)) -> 27 | C87: =REPT(" ",D87)&IF($A87="","",INDEX(tblIndicators!AK$2:AK$42,$B87)) -> 4.3) Water Resources Management | D87: =INDEX(tblIndicators!$G$2:$G$42,B87) -> 2 | E87: =IF($A87="","",INDEX(tblIndicators!AL$2:AL$42,$B87)) -> 4.3) Water Resources Management
A88: NERE4_4 | B88: =IF(A88="","",MATCH(A88,tblIndicators!E$2:E$42,0)) -> 28 | C88: =REPT(" ",D88)&IF($A88="","",INDEX(tblIndicators!AK$2:AK$42,$B88)) -> 4.4) Solid Waste Management | D88: =INDEX(tblIndicators!$G$2:$G$42,B88) -> 2 | E88: =IF($A88="","",INDEX(tblIndicators!AL$2:AL$42,$B88)) -> 4.4) Solid Waste Management
A89: NERE4_5 | B89: =IF(A89="","",MATCH(A89,tblIndicators!E$2:E$42,0)) -> 29 | C89: =REPT(" ",D89)&IF($A89="","",INDEX(tblIndicators!AK$2:AK$42,$B89)) -> 4.5) Consumption and Production Patterns | D89: =INDEX(tblIndicators!$G$2:$G$42,B89) -> 2 | E89: =IF($A89="","",INDEX(tblIndicators!AL$2:AL$42,$B89)) -> 4.5) Consumption and Production Patterns
A90: CLAR | B90: =IF(A90="","",MATCH(A90,tblIndicators!E$2:E$42,0)) -> 30 | C90: =REPT(" ",D90)&IF($A90="","",INDEX(tblIndicators!AK$2:AK$42,$B90)) -> 5) CLIMATE ACTION AND RESILIENCE | D90: =INDEX(tblIndicators!$G$2:$G$42,B90) -> 1 | E90: =IF($A90="","",INDEX(tblIndicators!AL$2:AL$42,$B90)) -> 5) CLIMATE ACTION AND RESILIENCE
A91: CLAR5_1 | B91: =IF(A91="","",MATCH(A91,tblIndicators!E$2:E$42,0)) -> 31 | C91: =REPT(" ",D91)&IF($A91="","",INDEX(tblIndicators!AK$2:AK$42,$B91)) -> 5.1) Greenhouse gas inventory | D91: =INDEX(tblIndicators!$G$2:$G$42,B91) -> 2 | E91: =IF($A91="","",INDEX(tblIndicators!AL$2:AL$42,$B91)) -> 5.1) Greenhouse gas inventory
A92: CLAR5_2 | B92: =IF(A92="","",MATCH(A92,tblIndicators!E$2:E$42,0)) -> 32 | C92: =REPT(" ",D92)&IF($A92="","",INDEX(tblIndicators!AK$2:AK$42,$B92)) -> 5.2) Energy efficiency | D92: =INDEX(tblIndicators!$G$2:$G$42,B92) -> 2 | E92: =IF($A92="","",INDEX(tblIndicators!AL$2:AL$42,$B92)) -> 5.2) Energy efficiency
A93: CLAR5_3 | B93: =IF(A93="","",MATCH(A93,tblIndicators!E$2:E$42,0)) -> 33 | C93: =REPT(" ",D93)&IF($A93="","",INDEX(tblIndicators!AK$2:AK$42,$B93)) -> 5.3) Clean energy | D93: =INDEX(tblIndicators!$G$2:$G$42,B93) -> 2 | E93: =IF($A93="","",INDEX(tblIndicators!AL$2:AL$42,$B93)) -> 5.3) Clean energy
